Workbook

Sheet Pres & Prop Rev
B2: =IF(Base1_Billing2=2,"BILLED","") -> 
A4: WORK PAPER | D4: RESIDENTIAL | E4: GENERAL SVC. | F4: LG. GEN. SVC. | G4: EX LG GEN SVC | H4: PUMPING | I4: ST & AREA LTG
A5: REFERENCE | C5: TOTAL | D5: SCHEDULE 1,2 | E5: SCH. 11,12 | F5: SCH. 21,22 | G5: SCHEDULE 25 | H5: SCH. 30, 31, 32 | I5: SCH. 41-48 | P5: Print Header for all printed pages on this worksheet:
B6: PRESENT BILL DETERMINANTS | L6: Calculate all revenue exhibits using ____ rates: | P6: ="AVISTA UTILITIES WASHINGTON ELECTRIC PRO FORMA REVENUE UNDER PRESENT AND PROPOSED "&N9&" RATES 12 MONTHS ENDED DECEMBER 31, 2018" -> AVISTA UTILITIES WASHINGTON ELECTRIC PRO FORMA REVENUE UNDER PRESENT AND PROPOSED BASE TARIFF RATES 12 MONTHS ENDED DECEMBER 31, 2018
B7: KILOWATT HOURS (KWHS) | K7: 1) | L7: BASE TARIFF
A8: PDE-E-10 | B8: BLOCK 1 | D8: ='Bill Determ'!$B$9 -> 1605882414 | E8: ='Bill Determ'!$B$17 -> 430539202.5 | F8: ='Bill Determ'!$B$28 -> 1232886422 | G8: ='Bill Determ'!$B$37 -> 138000000 | H8: =SUM('Bill Determ'!$B$43:$C$43) -> 47992444.99 | L8: or | N8: 1
A9: PDE-E-10 | B9: BLOCK 2 | D9: ='Bill Determ'!$C$9 -> 487014728.2 | E9: ='Bill Determ'!$C$17 -> 192163370.7 | F9: ='Bill Determ'!$C$28 -> 147453504.2 | G9: ='Bill Determ'!$C$37 -> 561355022.9 | H9: ='Bill Determ'!$D$43 -> 97815247.46 | K9: 2) | L9: BILLING | N9: =CHOOSE(Base1_Billing2,L7,L9) -> BASE TARIFF
A10: PDE-E-10 | B10: BLOCK 3 | D10: ='Bill Determ'!$D$9 -> 273738139.5 | G10: ='Bill Determ'!$D$37 -> 414208988.8 | N10: =CHOOSE(Base1_Billing2,"Base","Billing") -> Base
B11: BLOCK 4
A12: PDE-E-20 | B12: STREET & AREA LIGHTS | I12: ='REVRUNS 12ME1218'!P287 -> 18542031.54
B14: SUBTOTAL | C14: =SUM(D14:I14) -> 5647591516 | D14: =SUM(D8:D12) -> 2366635282 | E14: 622702573.1 | F14: 1380339926 | G14: 1113564012 | H14: 145807692.4 | I14: 18542031.54
B17: SUBTOTAL | C17: =SUM(D17:I17) -> 5647591516 | D17: =D14+D15 -> 2366635282 | E17: 622702573.1 | F17: 1380339926 | G17: 1113564012 | H17: 145807692.4 | I17: 18542031.54
A18: PDE-E-10 | B18: ADJUSTMENT TO ACTUAL | C18: =SUM(D18:I18) -> 0 | D18: ='Bill Determ'!$E$11 -> 0 | E18: ='Bill Determ'!$D$21 -> 0 | F18: ='Bill Determ'!$D$33 -> 0 | G18: 0 | H18: ='Bill Determ'!$E$45 -> 0 | I18: 0
B20: TOTAL BEFORE ADJUSTMENT | C20: =SUM(D20:I20) -> 5647591516 | D20: =D17+D18 -> 2366635282 | E20: 622702573.1 | F20: 1380339926 | G20: 1113564012 | H20: 145807692.4 | I20: 18542031.54
A21: PDE-E-3 | B21: WEATHER & UNBILLED ADJ. KWHS | C21: =SUM(D21:I21) -> -9748691 | D21: =D142+D145 -> 8068407 | E21: -3396621 | F21: -14435302 | G21: 0 | H21: 14825 | I21: 0
B23: TOTAL PROFORMA KWHS | C23: =IF(ROUND(SUM(D23:I23),3)<>ROUND(SUM(C20:C21),3),#VALUE!,SUM(D23:I23)) -> 5637842825 | D23: =D20+D21 -> 2374703689 | E23: 619305952.1 | F23: 1365904624 | G23: 1113564012 | H23: 145822517.4 | I23: 18542031.54
A25: PDE-E-10 | B25: TOTAL BILLS | D25: ='Bill Determ'!$F$9 -> 2587975 | E25: ='Bill Determ'!$F$17 -> 386800 | F25: ='Bill Determ'!$F$28 -> 22787 | G25: ='Bill Determ'!$G$37 -> 276 | H25: ='Bill Determ'!$F$41 -> 29446
B26: MINIMUM BILLS
A27: PDE-E-10 | B27: EXCESS DEMAND | E27: ='Bill Determ'!$E$17 -> 433206.9797 | F27: ='Bill Determ'!$E$28 -> 2634662.436 | G27: ='Bill Determ'!$F$37+'Bill Determ'!F38 -> 1279394.393
B29: PROPOSED BILL DETERMINANTS
B30: KILOWATT HOURS (KWHS)
B31: BLOCK 1 | D31: =D8 -> 1605882414 | E31: 430539202.5 | F31: 1232886422 | G31: 138000000 | H31: 47992444.99 | I31: 0
B32: BLOCK 2 | D32: =D9 -> 487014728.2 | E32: 192163370.7 | F32: 147453504.2 | G32: ='Bill Determ'!$C$37 -> 561355022.9 | H32: 97815247.46 | I32: 0
B33: BLOCK 3 | D33: 273738139.5 | E33: 0 | F33: 0 | G33: ='Bill Determ'!$D$37 -> 414208988.8 | H33: 0 | I33: 0
B34: BLOCK 4 | D34: 0 | E34: 0 | F34: 0 | G34: 0 | H34: 0 | I34: 0
B35: STREET & AREA LIGHTS | D35: 0 | E35: 0 | F35: 0 | G35: 0 | H35: 0 | I35: =I12 -> 18542031.54
B37: SUBTOTAL | C37: =SUM(D37:I37) -> 5647591516 | D37: =SUM(D31:D35) -> 2366635282 | E37: 622702573.1 | F37: 1380339926 | G37: 1113564012 | H37: 145807692.4 | I37: 18542031.54
C38: =SUM(D38:I38) -> 0 | D38: =D15 -> 0 | E38: 0 | F38: 0 | G38: 0 | H38: 0 | I38: 0
B40: SUBTOTAL | C40: =SUM(D40:I40) -> 5647591516 | D40: =D37+D38 -> 2366635282 | E40: 622702573.1 | F40: 1380339926 | G40: 1113564012 | H40: 145807692.4 | I40: 18542031.54
B41: ADJUSTMENT TO ACTUAL | C41: =SUM(D41:I41) -> 0 | D41: =D18 -> 0 | E41: 0 | F41: 0 | G41: 0 | H41: 0 | I41: 0
B43: TOTAL BEFORE ADJUSTMENT | C43: =SUM(D43:I43) -> 5647591516 | D43: =D40+D41 -> 2366635282 | E43: 622702573.1 | F43: 1380339926 | G43: 1113564012 | H43: 145807692.4 | I43: 18542031.54
B44: WEATHER & UNBILLED ADJ. KWHS | C44: =SUM(D44:I44) -> -9748691 | D44: =D21 -> 8068407 | E44: -3396621 | F44: -14435302 | G44: 0 | H44: 14825 | I44: 0
B46: TOTAL PROFORMA KWHS | C46: =IF(ROUND(SUM(D46:I46),3)<>ROUND(SUM(C43:C44),3),#VALUE!,SUM(D46:I46)) -> 5637842825 | D46: =D43+D44 -> 2374703689 | E46: 619305952.1 | F46: 1365904624 | G46: 1113564012 | H46: 145822517.4 | I46: 18542031.54
B48: TOTAL BILLS | D48: =D25 -> 2587975 | E48: =E25 -> 386800 | F48: =F25 -> 22787 | G48: =G25 -> 276 | H48: =H25 -> 29446
B49: MINIMUM BILLS
B50: EXCESS DEMAND | E50: =E27 -> 433206.9797 | F50: =F27 -> 2634662.436 | G50: =G27 -> 1279394.393
D55: 1 | E55: 2 | F55: 3 | G55: 4 | H55: 5 | I55: 6 | L55: =SUMPRODUCT(--(ISBLANK(D55:I55))) -> 0
A56: WORK PAPER | D56: RESIDENTIAL | E56: GENERAL SVC. | F56: LG. GEN. SVC. | G56: EX LG GEN SVC | H56: PUMPING | I56: ST & AREA LTG | L56: ="selected in cell "&CELL("address",Base1_Billing2)&":" -> selected in cell $N$8:
A57: REFERENCE | C57: TOTAL | D57: SCHEDULE 1 | E57: SCH. 11,12 | F57: SCH. 21,22 | G57: SCHEDULE 25 | H57: SCH. 30, 31, 32 | I57: SCH. 41-48 | L57: =N10 -> Base
B58: PRESENT RATES | L58: ="Rates_"&$L$57&"_Present" -> Rates_Base_Present | N58: - range name where Present Rates table can be found
A59: PDE-E-21 | B59: BASIC CHARGE | D59: =INDEX(INDIRECT($L$58),$K59,D$55) -> 9 | E59: 20 | F59: 0 | G59: 0 | H59: 20 | I59: 0 | K59: 1 | L59: ="Rates_"&$L$57&"_Proposed" -> Rates_Base_Proposed | N59: - range name where Proposed Rates table can be found
B60: MONTHLY MINIMUM
A62: PDE-E-21 | B62: BLOCK 1 PER KWH | D62: =INDEX(INDIRECT($L$58),$K62,D$55) -> 7.533 | E62: 11.349 | F62: 7.189 | G62: 5.505 | H62: 9.712 | I62: 0 | K62: 2
A63: PDE-E-21 | B63: BLOCK 2 PER KWH | D63: 8.765 | E63: 8.341 | F63: 6.43 | G63: 4.953 | H63: 6.936 | I63: 0 | K63: 3
A64: PDE-E-21 | B64: BLOCK 3 PER KWH | D64: 10.276 | E64: 0 | F64: 0 | G64: 4.235 | H64: 0 | I64: 0 | K64: 4
B65: BLOCK 4 PER KWH | K65: 5
B67: ADJUST TO ACTUAL PER KWH | D67: =(D124-D111)/D14*100 -> 8.103795962 | E67: =(E124-E111-SUM(E117:E120))/E14*100 -> 10.42074397 | F67: =(F124-F111-SUM(F117:F120))/F14*100 -> 7.107920544 | H67: =(H124-H111-SUM(H117:H120))/H14*100 -> 7.849717411
A69: PDE-E-21 | B69: DEMAND BLOCK 1 | D69: =INDEX(INDIRECT($L$58),$K69,D$55) -> 0 | E69: 0 | F69: 500 | G69: 24000 | H69: 0 | I69: 0 | K69: 6
A70: PDE-E-21 | B70: DEMAND BLOCK 2 | D70: 0 | E70: 6.5 | F70: 6.5 | G70: 6.5 | H70: 0 | I70: 0 | K70: 7
B75: PROPOSED RATES
B76: BASIC CHARGE | D76: =INDEX(INDIRECT($L$59),$K76,D$55) -> 9 | E76: =INDEX(INDIRECT($L$59),$K76,E$55) -> 20 | H76: =INDEX(INDIRECT($L$59),$K76,H$55) -> 20 | K76: 1
B77: MONTHLY MINIMUM
B79: BLOCK 1 PER KWH | D79: =INDEX(INDIRECT($L$59),$K79,D$55) -> 7.533 | E79: 11.349 | F79: 7.189 | G79: 5.505 | H79: 9.712 | K79: 2
B80: BLOCK 2 PER KWH | D80: 8.765 | E80: 8.341 | F80: 6.43 | G80: 4.953 | H80: 6.936 | K80: 3
B81: BLOCK 3 PER KWH | D81: 10.276 | G81: 4.235 | K81: 4
B82: BLOCK 4 PER KWH | K82: 5
B84: ADJUST TO ACTUAL PER KWH | D84: =(D177-D164)/D37*100 -> 8.103795962 | E84: =(E177-E164-SUM(E170:E173))/E37*100 -> 10.42074397 | F84: =(F177-F164-SUM(F170:F173))/F37*100 -> 7.107920544 | H84: =(H177-H164-SUM(H170:H173))/H37*100 -> 7.849717411
B86: DEMAND BLOCK 1 | F86: =INDEX(INDIRECT($L$59),$K86,F$55) -> 500 | G86: =INDEX(INDIRECT($L$59),$K86,G$55) -> 24000 | K86: 6
B87: DEMAND BLOCK 2 | E87: =INDEX(INDIRECT($L$59),$K87,E$55) -> 6.5 | F87: =INDEX(INDIRECT($L$59),$K87,F$55) -> 6.5 | G87: =INDEX(INDIRECT($L$59),$K87,G$55) -> 6.5 | K87: 7
B95: =CHOOSE(Base1_Billing2,"Note: Rates do not include BPA Residential Exchange Program Schedule 59, , Decoupling Schedule 75, Public Purpose Adjustment Schedules 89,91,92, REC Revenue Adjustment Schedule 98 or Power Cost Surcharge Schedule 93.","") -> Note: Rates do not include BPA Residential Exchange Program Schedule 59, , Decoupling Schedule 75, Public Purpose Adjustment Schedules 89,91,92, REC Revenue Adjustment Schedule 98 or Power Cost Surcharge Schedule 93.
A107: WORK PAPER | D107: RESIDENTIAL | E107: GENERAL SVC. | F107: LG. GEN. SVC. | G107: EX LG GEN SVC | H107: PUMPING | I107: ST & AREA LTG
A108: REFERENCE | C108: TOTAL | D108: SCHEDULE 1 | E108: SCH. 11,12 | F108: SCH. 21,22 | G108: SCHEDULE 25 | H108: SCH. 30, 31, 32 | I108: SCH. 41-48
B109: PRESENT REVENUE
B110: =UPPER(CHOOSE(Base1_Billing2,$N$9,$N$10))&" REVENUE" -> BASE TARIFF REVENUE
B111: BASIC CHARGE | C111: =SUM(D111:I111) -> 31616695 | D111: =D25*D59 -> 23291775 | E111: =E25*E59 -> 7736000 | H111: =H25*H59 -> 588920
B112: MONTHLY MINIMUM | C112: 0
B113: BLOCK 1 | C113: 270723147.4 | D113: =ROUND(D8*D62/100,2) -> 120971122.2 | E113: 48861894.09 | F113: 88632204.87 | G113: 7596900 | H113: 4661026.26
B114: BLOCK 2 | C114: 102784827.8 | D114: 42686840.93 | E114: 16028346.75 | F114: 9481260.32 | G114: 27803914.28 | H114: 6784465.56
B115: BLOCK 3 | C115: 45671081.9 | D115: =ROUND(D10*D64/100,2) -> 28129331.22 | G115: 17541750.68
B116: BLOCK 4 | C116: 0
B117: DEMAND BLOCK 1 | C117: 18017500 | F117: =F25*F69 -> 11393500 | G117: =G25*G69 -> 6624000
B118: DEMAND BLOCK 2 | C118: 28257214.75 | E118: =E27*E70 -> 2815845.368 | F118: =F27*F70 -> 17125305.83 | G118: =G27*G70 -> 8316063.555
A119: PDE-E-22/23 | B119: POWER FACTOR ADJUSTMENT | C119: 124563.14 | E119: ='Bill Determ'!G17*0.5 -> 5644.95 | F119: =('Bill Determ'!G28)*0.5 -> 115738.62 | H119: ='Bill Determ'!G41*0.5 -> 3179.57
A120: PDE-E-29/8 | B120: PRIMARY VOLTAGE DISCOUNT | C120: -1296718.915 | F120: ='REVRUNS 12ME1218'!P441 -> -55487.7 | G120: ='WA Sch 25'!P116 -> -1241231.215
B121: ANNUAL MINIMUM ADJUSTMENT | C121: 102310.2664 | G121: ='WA Sch 25'!T142 -> 102310.2664
A122: PDE-E-11 | B122: STREET & AREA LIGHT REVENUE | C122: 6424023.48 | I122: ='Lighting summary'!D19 -> 6424023.48
B124: SUBTOTAL | C124: =IF(ROUND(SUM(C111:C122),3)<>ROUND(SUM(D124:I124),3),#VALUE!,SUM(D124:I124)) -> 502424644.9 | D124: =SUM(D111:D122) -> 215079069.4 | E124: 75447731.16 | F124: 126692521.9 | G124: 66743707.57 | H124: 12037591.39 | I124: 6424023.48
C125: =SUM(D125:I125) -> 0 | D125: =ROUND(D15*D67/100,2) -> 0 | E125: =ROUND(E15*E67/100,2) -> 0 | F125: =ROUND(F15*F67/100,2) -> 0 | G125: =ROUND(G15*G63/100,2) -> 0 | H125: =ROUND(H15*H67/100,2) -> 0
B127: SUBTOTAL | C127: =SUM(D127:I127) -> 502424644.9 | D127: =D124+D125 -> 215079069.4 | E127: 75447731.16 | F127: 126692521.9 | G127: 66743707.57 | H127: 12037591.39 | I127: 6424023.48
B128: ADJUST TO ACTUAL | C128: =SUM(D128:I128) -> 0 | D128: =ROUND(D18*D67/100,2) -> 0 | E128: 0 | F128: 0 | G128: 0 | H128: 0 | I128: 0
B130: ="TOTAL "&UPPER(CHOOSE(Base1_Billing2,$N$9,$N$10))&" REVENUE" -> TOTAL BASE TARIFF REVENUE | C130: =IF(ROUND(SUM(D130:I130),3)<>ROUND(SUM(C127:C128),3),#VALUE!,SUM(D130:I130)) -> 502424644.9 | D130: =D127+D128 -> 215079069.4 | E130: 75447731.16 | F130: 126692521.9 | G130: 66743707.57 | H130: 12037591.39 | I130: 6424023.48
B132: ADJUSTMENT REVENUE
B133: UNBILLED REVENUE ADJUSTMENT | L133: =D8/$D$14 -> 0.6785508635 | N133: =$D$134*L133 -> -14600309.72 | P133: =N133*(D62/100) -> -1099841.331
A134: PDE-E-15 | B134: UNBILLED LOAD KWHS | C134: =SUM(D134:I134) -> -39319785 | D134: ='REVRUNS 12ME1218'!P355 -> -21516898 | E134: ='REVRUNS 12ME1218'!P356 -> -4974918 | F134: ='REVRUNS 12ME1218'!P357 -> -12842794 | H134: ='REVRUNS 12ME1218'!P359 -> 14825 | L134: =D9/$D$14 -> 0.2057836 | N134: =$D$134*L134 -> -4427824.732 | P134: =N134*(D63/100) -> -388098.8378
A135: PDE-E-5/6 | B135: UNBILLED LOAD RATE | D135: =D67 -> 8.103795962 | E135: =E67 -> 10.42074397 | F135: =F67 -> 7.107920544 | H135: =H67 -> 7.849717411 | L135: =D10/$D$14 -> 0.1156655365 | N135: =$D$134*L135 -> -2488763.551 | P135: =N135*(D64/100) -> -255745.3425
B136: UNBILLED LOAD REVENUE | C136: =SUM(D136:I136) -> -3173800.85 | D136: =ROUND(D134*D135/100,2) -> -1743685.51 | E136: =ROUND(E134*E135/100,2) -> -518423.47 | F136: =ROUND(F134*F135/100,2) -> -912855.59 | H136: =ROUND(H134*H135/100,2) -> 1163.72 | L136: =SUM(L133:L135) -> 1 | N136: =SUM(N133:N135) -> -21516898 | P136: =SUM(P133:P135) -> -1743685.511
A138: PDE-E-17 | B138: WEATHER-SENSITIVE KWHS | C138: =SUM(D138:I138) -> 0 | D138: 0 | E138: 0 | F138: 0
A139: PDE-E-5/6 | B139: WEATHER-SENSITIVE RATE | D139: =I226 -> 9.25869649 | E139: =I245 -> 8.341 | F139: =I278 -> 6.43
B140: WEATHER-SENSITIVE REVENUE | C140: =SUM(D140:I140) -> 0 | D140: =ROUND(D138*D139/100,2) -> 0 | E140: =ROUND(E138*E139/100,2) -> 0 | F140: =ROUND(F138*F139/100,2) -> 0
A142: PDE-E-15 | B142: TOTAL UNBILLED KWH ADJUST | C142: =IF(ROUND(C134+C138,3)<>ROUND(SUM(D142:I142),3),#VALUE!,C134+C138) -> -39319785 | D142: =D134+D138 -> -21516898 | E142: =E134+E138 -> -4974918 | F142: =F134+F138 -> -12842794 | H142: =H134+H138 -> 14825 | I142: =I134+I138 -> 0
B143: TOTAL UNBILLED REVENUE ADJ | C143: =IF(ROUND(C136+C140,3)<>ROUND(SUM(D143:I143),3),#VALUE!,C136+C140) -> -3173800.85 | D143: =D136+D140 -> -1743685.51 | E143: =E136+E140 -> -518423.47 | F143: =F136+F140 -> -912855.59 | H143: =H136+H140 -> 1163.72
B144: WEATHER NORMALIZATION ADJ
A145: PDE-E-17 | B145: WEATHER-SENSITIVE KWHS | C145: =SUM(D145:I145) -> 29571094 | D145: 29585305 | E145: 1578297 | F145: -1592508
A146: PDE-E-5/6 | B146: WEATHER-SENSITIVE RATE | D146: =I226 -> 9.25869649 | E146: =I245 -> 8.341 | F146: =I278 -> 6.43
B147: WEATHER-SENSITIVE REVENUE | C147: =SUM(D147:I147) -> 2768461.09 | D147: =ROUND(D145*D146/100,2) -> 2739213.6 | E147: =ROUND(E145*E146/100,2) -> 131645.75 | F147: =ROUND(F145*F146/100,2) -> -102398.26
B149: TOTAL ADJUSTMENT REVENUE | C149: =IF(ROUND(C143+C147,3)<>ROUND(SUM(D149:I149),3),#VALUE!,C143+C147) -> -405339.76 | D149: =D147+D143 -> 995528.09 | E149: =E147+E143 -> -386777.72 | F149: =F147+F143 -> -1015253.85 | H149: =H147+H143 -> 1163.72
B150: =B130 -> TOTAL BASE TARIFF REVENUE | C150: =C130 -> 502424644.9 | D150: 215079069.4 | E150: 75447731.16 | F150: 126692521.9 | G150: 66743707.57 | H150: 12037591.39 | I150: 6424023.48
B152: TOTAL PRESENT REVENUE | C152: =IF(ROUND(C149+C150,3)<>ROUND(SUM(D152:I152),3),#VALUE!,SUM(D152:I152)) -> 502019305.2 | D152: =D149+D150 -> 216074597.5 | E152: 75060953.44 | F152: 125677268.1 | G152: 66743707.57 | H152: 12038755.11 | I152: 6424023.48
A160: WORK PAPER | D160: RESIDENTIAL | E160: GENERAL SVC. | F160: LG. GEN. SVC. | G160: EX LG GEN SVC | H160: PUMPING | I160: ST & AREA LTG
A161: REFERENCE | C161: TOTAL | D161: SCHEDULE 1 | E161: SCH. 11,12 | F161: SCH. 21,22 | G161: SCHEDULE 25 | H161: SCH. 30, 31, 32 | I161: SCH. 41-48
B162: PROPOSED REVENUE
B163: =UPPER(CHOOSE(Base1_Billing2,$N$9,$N$10))&" REVENUE" -> BASE TARIFF REVENUE
B164: BASIC CHARGE | C164: =SUM(D164:I164) -> 31616695 | D164: =D48*D76 -> 23291775 | E164: =E48*E76 -> 7736000 | H164: =H48*H76 -> 588920
B165: MONTHLY MINIMUM | C165: 0 | D165: =D49*D77 -> 0
B166: BLOCK 1 | C166: 270723147.4 | D166: =ROUND(D31*D79/100,2) -> 120971122.2 | E166: 48861894.09 | F166: 88632204.87 | G166: 7596900 | H166: =ROUND(H31*H79/100,2) -> 4661026.26
B167: BLOCK 2 | C167: 102784827.8 | D167: 42686840.93 | E167: 16028346.75 | F167: 9481260.32 | G167: 27803914.28 | H167: 6784465.56
B168: BLOCK 3 | C168: 45671081.9 | D168: =ROUND(D33*D81/100,2) -> 28129331.22 | G168: 17541750.68
B169: BLOCK 4 | C169: 0 | D169: =ROUND(D34*D82/100,2) -> 0
B170: DEMAND BLOCK 1 | C170: 18017500 | F170: =ROUND(F48*F86,2) -> 11393500 | G170: =ROUND(G48*G86,2) -> 6624000
B171: DEMAND BLOCK 2 | C171: 28257214.75 | E171: =ROUND(E50*E87,2) -> 2815845.37 | F171: =ROUND(F50*F87,2) -> 17125305.83 | G171: =ROUND(G50*G87,2) -> 8316063.55
B172: POWER FACTOR ADJUSTMENT | C172: 124563.14 | E172: =E119 -> 5644.95 | F172: =F119 -> 115738.62 | H172: =H119 -> 3179.57
B173: PRIMARY VOLTAGE DISCOUNT | C173: -1296718.915 | F173: =F120 -> -55487.7 | G173: ='WA Sch 25'!P116 -> -1241231.215
B174: ANNUAL MINIMUM ADJUSTMENT | C174: 102310.2664 | G174: ='WA Sch 25'!T142 -> 102310.2664
A175: PDE-E-11 | B175: STREET & AREA LIGHT REVENUE | C175: 6424023.481 | I175: ='Lighting summary'!G19 -> 6424023.481
B177: SUBTOTAL | C177: =IF(ROUND(SUM(C164:C175),3)<>ROUND(SUM(D177:I177),3),#VALUE!,SUM(D177:I177)) -> 502424644.9 | D177: =SUM(D164:D175) -> 215079069.4 | E177: 75447731.16 | F177: 126692521.9 | G177: 66743707.56 | H177: 12037591.39 | I177: 6424023.481
C178: =SUM(D178:I178) -> 0 | D178: =ROUND(D38*D84/100,2) -> 0 | E178: =ROUND(E38*E84/100,2) -> 0 | F178: =ROUND(F38*F84/100,2) -> 0 | G178: =ROUND(G38*G80/100,2) -> 0 | H178: =ROUND(H38*H84/100,2) -> 0 | I178: 0
B180: SUBTOTAL | C180: =SUM(D180:I180) -> 502424644.9 | D180: =D177+D178 -> 215079069.4 | E180: 75447731.16 | F180: 126692521.9 | G180: 66743707.56 | H180: 12037591.39 | I180: 6424023.481
B181: ADJUST TO ACTUAL | C181: =SUM(D181:I181) -> 0 | D181: =ROUND(D41*D84/100,2) -> 0 | E181: 0 | F181: 0 | G181: 0 | H181: 0 | I181: 0
B183: ="SUBTOTAL "&UPPER(CHOOSE(Base1_Billing2,$N$9,$N$10))&" REVENUE" -> SUBTOTAL BASE TARIFF REVENUE | C183: =IF(ROUND(SUM(D183:I183),3)<>ROUND(SUM(C180:C181),3),#VALUE!,SUM(D183:I183)) -> 502424644.9 | D183: =D180+D181 -> 215079069.4 | E183: 75447731.16 | F183: 126692521.9 | G183: 66743707.56 | H183: 12037591.39 | I183: 6424023.481
B185: ADJUSTMENT REVENUE
B186: UNBILLED REVENUE ADJUSTMENT
B187: UNBILLED LOAD KWHS | C187: =SUM(D187:I187) -> -39319785 | D187: =D134 -> -21516898 | E187: =E134 -> -4974918 | F187: =F134 -> -12842794 | H187: =H134 -> 14825
B188: UNBILLED LOAD RATE | D188: =D84 -> 8.103795962 | E188: =E84 -> 10.42074397 | F188: =F84 -> 7.107920544 | H188: =H84 -> 7.849717411
B189: UNBILLED LOAD REVENUE | C189: =SUM(D189:I189) -> -3173800.85 | D189: =ROUND(D187*D188/100,2) -> -1743685.51 | E189: =ROUND(E187*E188/100,2) -> -518423.47 | F189: =ROUND(F187*F188/100,2) -> -912855.59 | H189: =ROUND(H187*H188/100,2) -> 1163.72
B191: WEATHER-SENSITIVE KWHS | C191: =SUM(D191:I191) -> 0 | D191: =D138 -> 0 | E191: =E138 -> 0 | F191: =F138 -> 0
B192: WEATHER-SENSITIVE RATE | D192: =I235 -> 9.25869649 | E192: =I253 -> 8.341 | F192: =I286 -> 6.43
B193: WEATHER-SENSITIVE REVENUE | C193: =SUM(D193:I193) -> 0 | D193: =ROUND(D191*D192/100,2) -> 0 | E193: =ROUND(E191*E192/100,2) -> 0 | F193: =ROUND(F191*F192/100,2) -> 0
B195: TOTAL UNBILLED KWH ADJUST | C195: =IF(ROUND(C187+C191,3)<>ROUND(SUM(D195:I195),3),#VALUE!,SUM(D195:I195)) -> -39319785 | D195: =D187+D191 -> -21516898 | E195: =E187+E191 -> -4974918 | F195: =F187+F191 -> -12842794 | H195: =H187+H191 -> 14825
B196: TOTAL UNBILLED REVENUE ADJ | C196: =IF(ROUND(C189+C193,3)<>ROUND(SUM(D196:I196),3),#VALUE!,SUM(D196:I196)) -> -3173800.85 | D196: =D189+D193 -> -1743685.51 | E196: =E189+E193 -> -518423.47 | F196: =F189+F193 -> -912855.59 | H196: =H189+H193 -> 1163.72
B197: WEATHER NORMALIZATION ADJ
B198: WEATHER-SENSITIVE KWHS | C198: =SUM(D198:I198) -> 29571094 | D198: =D145 -> 29585305 | E198: =E145 -> 1578297 | F198: =F145 -> -1592508
B199: WEATHER-SENSITIVE RATE | D199: =I235 -> 9.25869649 | E199: =I253 -> 8.341 | F199: =I286 -> 6.43
B200: WEATHER-SENSITIVE REVENUE | C200: =SUM(D200:I200) -> 2768461.09 | D200: =ROUND(D198*D199/100,2) -> 2739213.6 | E200: =ROUND(E198*E199/100,2) -> 131645.75 | F200: =ROUND(F198*F199/100,2) -> -102398.26
B202: TOTAL ADJUSTMENT REVENUE | C202: =IF(ROUND(SUM(D202:I202),3)<>ROUND(C196+C200,3),#VALUE!,SUM(D202:I202)) -> -405339.76 | D202: =D200+D196 -> 995528.09 | E202: =E200+E196 -> -386777.72 | F202: =F200+F196 -> -1015253.85 | H202: =H200+H196 -> 1163.72
B203: ="TOTAL "&UPPER(CHOOSE(Base1_Billing2,$N$9,$N$10))&" REVENUE" -> TOTAL BASE TARIFF REVENUE | C203: =SUM(D203:I203) -> 502424644.9 | D203: =D183 -> 215079069.4 | E203: 75447731.16 | F203: 126692521.9 | G203: 66743707.56 | H203: 12037591.39 | I203: 6424023.481
B204: TOTAL PROPOSED REVENUE | C204: =IF(ROUND(SUM(D204:I204),3)<>ROUND(SUM(C202:C203),3),#VALUE!,SUM(D204:I204)) -> 502019305.2 | D204: =D202+D203 -> 216074597.5 | E204: 75060953.44 | F204: 125677268.1 | G204: 66743707.56 | H204: 12038755.11 | I204: 6424023.481
B205: TOTAL PRESENT REVENUE | C205: =SUM(D205:I205) -> 502019305.2 | D205: =D152 -> 216074597.5 | E205: 75060953.44 | F205: 125677268.1 | G205: 66743707.57 | H205: 12038755.11 | I205: 6424023.48
B207: TOTAL REVENUE INCREASE | C207: =SUM(D207:I207) -> -0.004176001996 | D207: =D204-D205 -> 0 | E207: 0.001666665077 | F207: -0.001666665077 | G207: -0.004500001669 | H207: 0 | I207: 0.0003239996731
B208: PERCENT REVENUE INCREASE | C208: =C207/C205 -> -8.318409179e-12 | D208: =D207/D205 -> 0 | E208: 2.220415543e-11 | F208: -1.326146806e-11 | G208: -6.742211113e-11 | H208: 0 | I208: =I207/I205 -> 5.043563027e-11
B209: =IF(Base1_Billing2=2,"Pres and Prop Revenues may be incorrect due to Sch 59--for example all of Sch 11 gets benefit of Sch 59 but it s/only be Sch 12; see Billing Rev on Exhibit page for fix","") -> 
C210: =C4 -> 
A216: WORK PAPER | D216: TOTAL | E216: TOTAL | F216: BASELOAD | G216: BASELOAD | H216: WTHR-SENS. | I216: WTHR-SENS.
A217: REFERENCE | C217: RATES | D217: KWHS | E217: REVENUE | F217: KWHS | G217: REVENUE | H217: KWHS | I217: REVENUE
B219: PRESENT BASELOAD AND WEATHER-SENSITIVE RATES
B220: SCHEDULE 1
B221: 0-800 KWHS | C221: =D62 -> 7.533 | D221: =D8 -> 1605882414 | E221: =C221*D221/100 -> 120971122.2 | F221: =MIN(D221,F225) -> 1583840700 | G221: =F221*C221/100 -> 119310719.9 | H221: =D221-F221 -> 22041713.82 | I221: =H221*C221/100 -> 1660402.302 | L221: =H221/$H$225 -> 0.02815772406 | N221: =L221*$D$145 -> 833054.8544 | O221: =N221*(C221/100) -> 62754.02218
B222: 801-1500 KWHS | C222: =D63 -> 8.765 | D222: =D9 -> 487014728.2 | E222: =C222*D222/100 -> 42686840.93 | F222: =MIN(F225-F221,D222) -> 0 | G222: =F222*C222/100 -> 0 | H222: =D222-F222 -> 487014728.2 | I222: =H222*C222/100 -> 42686840.93 | L222: =H222/$H$225 -> 0.6221488238 | N222: =L222*$D$145 -> 18406462.71 | O222: =N222*(C222/100) -> 1613326.456
B223: OVER 100 KWHS | C223: =D64 -> 10.276 | D223: =D10 -> 273738139.5 | E223: =C223*D223/100 -> 28129331.22 | F223: =MIN(F225-F221-F222,D223) -> 0 | G223: =F223*C223/100 -> 0 | H223: =D223-F223 -> 273738139.5 | I223: =H223*C223/100 -> 28129331.22 | L223: =H223/$H$225 -> 0.3496934521 | N223: =L223*$D$145 -> 10345787.44 | O223: =N223*(C223/100) -> 1063133.117
N224: =SUM(N221:N223) -> 29585305 | O224: =SUM(O221:O223) -> 2739213.596
B225: TOTAL | D225: =D221+D222+D223 -> 2366635282 | E225: 191787294.4 | F225: =612*D25 -> 1583840700 | G225: 119310719.9 | H225: 782794581.6 | I225: 72476574.45
B226: AVERAGE RATE | E226: =E225/D225*100 -> 8.103795962 | G226: =G225/F225*100 -> 7.533 | I226: =I225/H225*100 -> 9.25869649
B228: PROPOSED BASELOAD AND WEATHER-SENSITIVE RATES
B229: SCHEDULE 1
B230: 0-800 KWHS | C230: =D79 -> 7.533 | D230: =D221 -> 1605882414 | E230: =C230*D230/100 -> 120971122.2 | F230: =MIN(D230,F234) -> 1583840700 | G230: =F230*C230/100 -> 119310719.9 | H230: =H221 -> 22041713.82 | I230: =H230*C230/100 -> 1660402.302
B231: 801-1500 KWHS | C231: =D80 -> 8.765 | D231: =D222 -> 487014728.2 | E231: =C231*D231/100 -> 42686840.93 | F231: =MIN(F234-F230,D231) -> 0 | G231: =F231*C231/100 -> 0 | H231: =H222 -> 487014728.2 | I231: =H231*C231/100 -> 42686840.93
B232: OVER 1500 KWHS | C232: =D81 -> 10.276 | D232: =D223 -> 273738139.5 | E232: =C232*D232/100 -> 28129331.22 | F232: =MIN(F234-F230-F231,D232) -> 0 | G232: =F232*C232/100 -> 0 | H232: =H223 -> 273738139.5 | I232: =H232*C232/100 -> 28129331.22
B234: TOTAL | D234: =D230+D231+D232 -> 2366635282 | E234: 191787294.4 | F234: =F225 -> 1583840700 | G234: 119310719.9 | H234: 782794581.6 | I234: 72476574.45
B235: AVERAGE RATE | E235: =E234/D234*100 -> 8.103795962 | G235: =G234/F234*100 -> 7.533 | I235: =I234/H234*100 -> 9.25869649
B239: PRESENT BASELOAD AND WEATHER-SENSITIVE RATES
B240: SCHEDULE 11
B241: 0-3650 KWHS | C241: =E62 -> 11.349 | D241: =E8 -> 430539202.5 | E241: =C241*D241/100 -> 48861894.09 | F241: =MIN(D241,F244) -> 430539202.5 | G241: =F241*C241/100 -> 48861894.09 | H241: =D241-F241 -> 0 | I241: =H241*C241/100 -> 0
B242: over 3650 KWHS | C242: =E63 -> 8.341 | D242: =E9 -> 192163370.7 | E242: =C242*D242/100 -> 16028346.75 | F242: =MIN(F244-F241,D242) -> 100537197.5 | G242: =F242*C242/100 -> 8385807.647 | H242: =D242-F242 -> 91626173.11 | I242: =H242*C242/100 -> 7642539.099
B244: TOTAL | D244: =D241+D242 -> 622702573.1 | E244: 64890240.83 | F244: =1373*E25 -> 531076400 | G244: 57247701.73 | H244: 91626173.11 | I244: 7642539.099
B245: AVERAGE RATE | E245: =E244/D244*100 -> 10.42074397 | G245: =G244/F244*100 -> 10.77956048 | I245: =I244/H244*100 -> 8.341
B247: PROPOSED BASELOAD AND WEATHER-SENSITIVE RATES
B248: SCHEDULE 11
B249: 0-3650 KWHS | C249: =E79 -> 11.349 | D249: =E31 -> 430539202.5 | E249: =C249*D249/100 -> 48861894.09 | F249: =MIN(D249,F252) -> 430539202.5 | G249: =F249*C249/100 -> 48861894.09 | H249: =D249-F249 -> 0 | I249: =H249*C249/100 -> 0
B250: over 3650 KWHS | C250: =E80 -> 8.341 | D250: =E32 -> 192163370.7 | E250: =C250*D250/100 -> 16028346.75 | F250: =MIN(F252-F249,D250) -> 100537197.5 | G250: =F250*C250/100 -> 8385807.647 | H250: =D250-F250 -> 91626173.11 | I250: =H250*C250/100 -> 7642539.099
B252: TOTAL | D252: =D249+D250 -> 622702573.1 | E252: 64890240.83 | F252: =F244 -> 531076400 | G252: 57247701.73 | H252: 91626173.11 | I252: 7642539.099
B253: AVERAGE RATE | E253: =E252/D252*100 -> 10.42074397 | G253: =G252/F252*100 -> 10.77956048 | I253: =I252/H252*100 -> 8.341
B261: Note: Total Base Load for Sch. 1 = Base Load per bill times total billings (base load per bill on PDE-E-18) =
B262: ="663 X "&TEXT(D25,"#,##0")&" = "&TEXT(F225,"#,##0") -> 663 X 2,587,975 = 1,583,840,700
B263: ="Total Base Load for Sch. 11 = 1,338 X "&TEXT(E25,"#,##0")&" = "&TEXT(F244,"#,##0") -> Total Base Load for Sch. 11 = 1,338 X 386,800 = 531,076,400
B264: =IF(Base1_Billing2=2,"Pres and Prop Revenues may be incorrect due to Sch 59--for example all of Sch 11 gets benefit of Sch 59 but it s/only be Sch 12; see Billing Rev on Exhibit page for fix","") -> 
A269: WORK PAPER | D269: TOTAL | E269: TOTAL | F269: BASELOAD | G269: BASELOAD | H269: WTHR-SENS. | I269: WTHR-SENS.
A270: REFERENCE | C270: RATES | D270: KWHS | E270: REVENUE | F270: KWHS | G270: REVENUE | H270: KWHS | I270: REVENUE
B272: PRESENT BASELOAD AND WEATHER-SENSITIVE RATES
B273: SCHEDULE 21
B274: 0-250000 KWHS | C274: =F62 -> 7.189 | D274: =F8 -> 1232886422 | E274: =C274*D274/100 -> 88632204.87 | F274: =MIN(D274,F277) -> 1232886422 | G274: =F274*C274/100 -> 88632204.87 | H274: =D274-F274 -> 0 | I274: =H274*C274/100 -> 0
B275: OVER 250000 KWHS | C275: =F63 -> 6.43 | D275: =F9 -> 147453504.2 | E275: =C275*D275/100 -> 9481260.319 | F275: =MIN(F277-F274,D275) -> 88850726.05 | G275: =F275*C275/100 -> 5713101.685 | H275: =D275-F275 -> 58602778.13 | I275: =H275*C275/100 -> 3768158.634
B277: TOTAL | D277: =D274+D275 -> 1380339926 | E277: =E274+E275 -> 98113465.19 | F277: =58004*F25 -> 1321737148 | G277: =G274+G275 -> 94345306.56 | H277: =H274+H275 -> 58602778.13 | I277: =I274+I275 -> 3768158.634
B278: AVERAGE RATE | E278: =E277/D277*100 -> 7.107920544 | G278: =G277/F277*100 -> 7.137977979 | I278: =I277/H277*100 -> 6.43
B280: PROPOSED BASELOAD AND WEATHER-SENSITIVE RATES
B281: SCHEDULE 21
B282: 0-250000 KWHS | C282: =F79 -> 7.189 | D282: =D274 -> 1232886422 | E282: =C282*D282/100 -> 88632204.87 | F282: =MIN(D282,F285) -> 1232886422 | G282: =F282*C282/100 -> 88632204.87 | H282: =H274 -> 0 | I282: =H282*C282/100 -> 0
B283: OVER 250000 KWHS | C283: =F80 -> 6.43 | D283: =D275 -> 147453504.2 | E283: =C283*D283/100 -> 9481260.319 | F283: =MIN(F285-F282,D283) -> 88850726.05 | G283: =F283*C283/100 -> 5713101.685 | H283: =H275 -> 58602778.13 | I283: =H283*C283/100 -> 3768158.634
B285: TOTAL | D285: =D282+D283 -> 1380339926 | E285: =E282+E283 -> 98113465.19 | F285: =F277 -> 1321737148 | G285: =G282+G283 -> 94345306.56 | H285: =H282+H283 -> 58602778.13 | I285: =I282+I283 -> 3768158.634
B286: AVERAGE RATE | G286: =G285/F285*100 -> 7.137977979 | I286: =I285/H285*100 -> 6.43
B294: Note: Total Base Load for Sch. 21 = Base Load per bill times total billings (base load per bill on PDE-E-18) =
B295: ="53,800 X "&TEXT(F25,"#,##0")&" = "&TEXT(F277,"#,##0") -> 53,800 X 22,787 = 1,321,737,148
D299: =D207/D48 -> 0 | E299: =E207/E48 -> 4.308854905e-09 | F299: =F207/F48 -> -7.314104872e-08 | G299: =G207/G48 -> -1.630435387e-05 | H299: =H207/H48 -> 0
D300: =D23/D25 -> 917.5914329 | E300: =E23/E25 -> 1601.101221 | F300: =F23/F25 -> 59942.27516 | G300: =G23/G25 -> 4034652.216 | H300: =H23/H25 -> 4952.201231
C301: PRCA | D301: =D300*-'Sch 93 PCRA'!G13 -> 0 | E301: =E300*-'Sch 93 PCRA'!G15 -> 0 | F301: =F300*-'Sch 93 PCRA'!G17 -> 0 | G301: =G300*-'Sch 93 PCRA'!G19 -> 0 | H301: =H300*-'Sch 93 PCRA'!G21 -> 0
D302: =(800*((D79-D62)/100))+(165*((D80-D63)/100))+(D76-D59) -> 0
D305: =D299+D301 -> 0 | E305: =E299+E301 -> 4.308854905e-09 | F305: =F299+F301 -> -7.314104872e-08 | G305: =G299+G301 -> -1.630435387e-05 | H305: =H299+H301 -> 0

Sheet To Do
A5: Goodrich South Load | C5: 25 or 21? | D5: proform minimum if 25
A7: street light rates | C7: double check rates
C8: add codes to tariff
C9: delete codes from tariff | F9: sent email got Gayle/Deb on 1.28.19
A12: Weather base load numbers
A15: Make Street Light Code adjustments based on Dan K analysis
A16: Add new codes to WP's and tariffs
A18: Add rate schedule 030
A21: Potentially get rid of all wood pole street light rate because of Joint Use on poles (Steve Schulte idea)
A23: End Schedule 46 to new installations

Sheet Rate Design
A1: PRESENT RATES | D1: 1 | E1: 2 | F1: 3 | G1: 4 | H1: 5 | I1: 6 | N1: Tiers - used for bill comparisons
C2: TOTAL | D2: SCH. 1,2 | E2: SCH. 11,12 | F2: SCH. 21,22 | G2: SCH. 25 | H2: SCH. 30, 31, 32 | L2: Range Name | N2: SCHEDULE 1,2 | O2: SCH. 11,12 | P2: SCH. 21,22 | Q2: SCHEDULE 25 | R2: SCH. 30, 31, 32
B3: Base Tariff Rates
A4: 1 | B4: BASIC CHARGE | D4: 9 | E4: 20 | F4: 0 | G4: 0 | H4: 20
A5: 2 | B5: BLOCK 1 PER KWH | D5: 7.533 | E5: 11.349 | F5: 7.189 | G5: 5.505 | H5: 9.712 | N5: 800 | O5: 3650 | P5: 250000 | Q5: 500000
A6: 3 | B6: BLOCK 2 PER KWH | D6: 8.765 | E6: 8.341 | F6: 6.43 | G6: 4.953 | H6: 6.936 | N6: 1500 | O6: 9999999 | P6: 9999999 | Q6: 9999999
A7: 4 | B7: BLOCK 3 PER KWH | D7: 10.276 | E7: 0 | F7: 0 | G7: 4.235 | H7: 0 | L7: Rates_Base_Present | N7: 9999999 | O7: 9999999 | P7: 9999999 | Q7: 9999999
A8: 5 | B8: BLOCK 4 PER KWH
A9: 6 | B9: DEMAND CHARGE | D9: 0 | E9: 0 | F9: 500 | G9: 24000 | H9: 0
A10: 7 | B10: DEMAND BLOCK 1 | D10: 0 | E10: 6.5 | F10: 6.5 | G10: 6.5 | H10: 0 | N10: 0 | O10: 20 | P10: 50 | Q10: 3000
B12: Billing Rates | D12: =IF(D13<>'Pres & Prop Rev'!D$5,#VALUE!,"") ->  | E12: =IF(E13<>'Pres & Prop Rev'!E$5,#VALUE!,"") ->  | F12: =IF(F13<>'Pres & Prop Rev'!F$5,#VALUE!,"") ->  | G12: =IF(G13<>'Pres & Prop Rev'!G$5,#VALUE!,"") ->  | H12: =IF(H13<>'Pres & Prop Rev'!H$5,#VALUE!,"") -> 
D13: SCHEDULE 1,2 | E13: SCH. 11,12 | F13: SCH. 21,22 | G13: SCHEDULE 25 | H13: SCH. 30, 31, 32
A14: 1 | B14: BASIC CHARGE | D14: =D4 -> 9 | E14: =E4 -> 20 | F14: =F4 -> 0 | G14: =G4 -> 0 | H14: =H4 -> 20
A15: 2 | B15: BLOCK 1 PER KWH | D15: =D5-0.081-0.142-0.116+0.433+0.115-0.034 -> 7.708 | E15: =E5-0.188+0.054+0.597+0.167-0.036 -> 11.943 | F15: =F5-0.144+0.054+0.46+0.121-0.036 -> 7.644 | G15: =G5-0.093+0.297+0.076-0.035 -> 5.75 | H15: =H5-0.13+0.054+0.433+0.105-0.037 -> 10.137 | N15: =N5 -> 800 | O15: =O5 -> 3650 | P15: =P5 -> 250000 | Q15: =Q5 -> 500000
A16: 3 | B16: BLOCK 2 PER KWH | D16: =D6-0.081-0.142-0.116+0.433+0.115-0.034 -> 8.94 | E16: =E6-0.188+0.054+0.597+0.167-0.036 -> 8.935 | F16: =F6-0.144+0.054+0.46+0.121-0.036 -> 6.885 | G16: =G6-0.093+0.297+0.076-0.035 -> 5.198 | H16: =H6-0.13+0.054+0.433+0.105-0.037 -> 7.361 | N16: =N6 -> 1500 | O16: 9999999 | P16: 9999999 | Q16: 9999999
A17: 4 | B17: BLOCK 3 PER KWH | D17: =D7-0.081-0.142-0.116+0.433+0.115-0.034 -> 10.451 | G17: =G7-0.093+0.297-0.035 -> 4.404 | L17: Rates_Billing_Present | N17: 9999999 | O17: 9999999 | P17: 9999999 | Q17: 9999999
A18: 5 | B18: BLOCK 4 PER KWH
A19: 6 | B19: DEMAND CHARGE | F19: =F9 -> 500 | G19: =G9 -> 24000
A20: 7 | B20: DEMAND BLOCK 1 | E20: =E10 -> 6.5 | F20: =F10 -> 6.5 | G20: =G10 -> 6.5 | N20: =N10 -> 0 | O20: =O10 -> 20 | P20: =P10 -> 50 | Q20: =Q10 -> 3000
A22: PROPOSED RATES
B24: Base Tariff Rates | D24: =IF(D25<>'Pres & Prop Rev'!D$5,#VALUE!,"") ->  | E24: =IF(E25<>'Pres & Prop Rev'!E$5,#VALUE!,"") ->  | F24: =IF(F25<>'Pres & Prop Rev'!F$5,#VALUE!,"") ->  | G24: =IF(G25<>'Pres & Prop Rev'!G$5,#VALUE!,"") ->  | H24: =IF(H25<>'Pres & Prop Rev'!H$5,#VALUE!,"") -> 
D25: SCHEDULE 1,2 | E25: SCH. 11,12 | F25: SCH. 21,22 | G25: SCHEDULE 25 | H25: SCH. 30, 31, 32 | T25: Rounding
A26: 1 | B26: BASIC CHARGE | D26: =ROUND(D62,$T26) -> 9 | E26: =ROUND(E62,$T26) -> 20 | F26: =ROUND(F62,$T26) -> 0 | G26: =ROUND(G62,$T26) -> 0 | H26: =ROUND(H62,$T26) -> 20 | T26: 2 | U26: 2
A27: 2 | B27: BLOCK 1 PER KWH | D27: =ROUND(D85,$T27) -> 7.533 | E27: =ROUND(E85,$T27) -> 11.349 | F27: 7.189 | G27: 5.505 | H27: 9.712 | N27: 800 | O27: 3650 | P27: 250000 | Q27: 500000 | T27: 3 | U27: 3
A28: 3 | B28: BLOCK 2 PER KWH | D28: 8.765 | E28: =ROUND(E86,$T28) -> 8.341 | F28: 6.43 | G28: 4.953 | H28: 6.936 | N28: 1500 | O28: 9999999 | P28: 9999999 | Q28: 6000000 | T28: 3 | U28: 3
A29: 4 | B29: BLOCK 3 PER KWH | D29: 10.276 | E29: 0 | F29: 0 | G29: 4.235 | H29: 0 | L29: Rates_Base_Proposed | N29: 9999999 | O29: 9999999 | P29: 9999999 | Q29: 99999999 | T29: 3 | U29: 3
A30: 5 | B30: BLOCK 4 PER KWH | T30: 3 | U30: 3
A31: 6 | B31: DEMAND CHARGE | D31: =ROUND(D66,$T31) -> 0 | E31: =ROUND(E66,$T31) -> 0 | F31: =ROUND(F66,$T31) -> 500 | G31: =ROUND(G66,$T31) -> 24000 | H31: =ROUND(H66,$T31) -> 0 | T31: 2 | U31: 2
A32: 7 | B32: DEMAND BLOCK 1 | D32: =ROUND(D69,$T32) -> 0 | E32: =ROUND(E69,$T32) -> 6.5 | F32: =ROUND(F69,$T32) -> 6.5 | G32: =ROUND(G69,$T32) -> 6.5 | H32: =ROUND(H69,$T32) -> 0 | N32: 0 | O32: 20 | P32: 50 | Q32: 3000 | T32: 2 | U32: 2
B34: Billing Rates | D34: =IF(D35<>'Pres & Prop Rev'!D$5,#VALUE!,"") ->  | E34: =IF(E35<>'Pres & Prop Rev'!E$5,#VALUE!,"") ->  | F34: =IF(F35<>'Pres & Prop Rev'!F$5,#VALUE!,"") ->  | G34: =IF(G35<>'Pres & Prop Rev'!G$5,#VALUE!,"") ->  | H34: =IF(H35<>'Pres & Prop Rev'!H$5,#VALUE!,"") -> 
D35: SCHEDULE 1,2 | E35: SCH. 11,12 | F35: SCH. 21,22 | G35: SCHEDULE 25 | H35: SCH. 30, 31, 32 | S35: LIRAP/DSM increase
A36: 1 | B36: BASIC CHARGE | D36: =D26 -> 9 | E36: =E26 -> 20 | F36: =F26 -> 0 | G36: =G26 -> 0 | H36: =H26 -> 20 | S36: 1 | T36: 11 | U36: 21 | V36: 25 | W36: 31
A37: 2 | B37: BLOCK 1 PER KWH | D37: =D27-0.081-0.142-0.116+0.433+0.115-0.034 -> 7.708 | E37: =E27-0.188+0.054+0.597+0.167-0.036 -> 11.943 | F37: =F27-0.144+0.054+0.46+0.121-0.036 -> 7.644 | G37: =G27-0.093+0.297+0.076-0.035 -> 5.75 | H37: =H27-0.13+0.054+0.433+0.105-0.037 -> 10.137 | N37: =N27 -> 800 | O37: 3650 | P37: 250000 | Q37: 500000 | S37: 0 | T37: 0 | U37: 0 | V37: 0 | W37: 0
A38: 3 | B38: BLOCK 2 PER KWH | D38: =D28-0.081-0.142-0.116+0.433+0.115-0.034 -> 8.94 | E38: =E28-0.188+0.054+0.597+0.167-0.036 -> 8.935 | F38: =F28-0.144+0.054+0.46+0.121-0.036 -> 6.885 | G38: =G28-0.093+0.297+0.076-0.035 -> 5.198 | H38: =H28-0.13+0.054+0.433+0.105-0.037 -> 7.361 | N38: 1500 | O38: 9999999 | P38: 9999999 | Q38: 6000000 | S38: =S$37 -> 0 | T38: =T$37 -> 0 | U38: =U$37 -> 0 | V38: =V$37 -> 0 | W38: =W$37 -> 0
A39: 4 | B39: BLOCK 3 PER KWH | D39: =D29-0.081-0.142-0.116+0.433+0.115-0.034 -> 10.451 | G39: =G29-0.093+0.297-0.035 -> 4.404 | L39: Rates_Billing_Proposed | N39: 9999999 | O39: 9999999 | P39: 9999999 | Q39: 99999999 | S39: =S$37 -> 0 | T39: 0 | U39: 0 | V39: 0 | W39: 0
A40: 5 | B40: BLOCK 4 PER KWH | S40: 0 | T40: 0 | U40: 0 | V40: 0 | W40: 0
A41: 6 | B41: DEMAND CHARGE | F41: =F31 -> 500 | G41: =G31 -> 24000
A42: 7 | B42: DEMAND BLOCK 1 | E42: =E32 -> 6.5 | F42: =F32 -> 6.5 | G42: =G32 -> 6.5 | N42: =N32 -> 0 | O42: =O32 -> 20 | P42: =P32 -> 50 | Q42: =Q32 -> 3000
D45: 0 | E45: 0) ERM=0; 1) ERM as is
B47: Proposed Rate Workup - from Pres & Prop Rev tab
B49: KILOWATT HOURS (KWHS)
B50: BLOCK 1 | C50: =SUM(D50:H50) -> 3455300483 | D50: ='Pres & Prop Rev'!D31 -> 1605882414 | E50: ='Pres & Prop Rev'!E31 -> 430539202.5 | F50: ='Pres & Prop Rev'!F31 -> 1232886422 | G50: ='Pres & Prop Rev'!G31 -> 138000000 | H50: ='Pres & Prop Rev'!H31 -> 47992444.99
B51: BLOCK 2 | C51: =SUM(D51:H51) -> 1485801873 | D51: ='Pres & Prop Rev'!D32 -> 487014728.2 | E51: ='Pres & Prop Rev'!E32 -> 192163370.7 | F51: ='Pres & Prop Rev'!F32 -> 147453504.2 | G51: ='Pres & Prop Rev'!G32 -> 561355022.9 | H51: ='Pres & Prop Rev'!H32 -> 97815247.46
B52: BLOCK 3 | C52: =SUM(D52:H52) -> 687947128.3 | D52: ='Pres & Prop Rev'!D33 -> 273738139.5 | E52: ='Pres & Prop Rev'!E33 -> 0 | F52: ='Pres & Prop Rev'!F33 -> 0 | G52: ='Pres & Prop Rev'!G33 -> 414208988.8 | H52: ='Pres & Prop Rev'!H33 -> 0
B53: ADJ. TO ACTUAL/EE ADJ | C53: =SUM(D53:H53) -> 0 | D53: ='Pres & Prop Rev'!D41+'Pres & Prop Rev'!D38 -> 0 | E53: ='Pres & Prop Rev'!E41+'Pres & Prop Rev'!E38 -> 0 | F53: ='Pres & Prop Rev'!F41+'Pres & Prop Rev'!F38 -> 0 | G53: ='Pres & Prop Rev'!G41+'Pres & Prop Rev'!G38 -> 0 | H53: ='Pres & Prop Rev'!H41+'Pres & Prop Rev'!H38 -> 0
B54: WEATHER & U/B KWHS | C54: =SUM(D54:H54) -> -9748691 | D54: ='Pres & Prop Rev'!D44 -> 8068407 | E54: ='Pres & Prop Rev'!E44 -> -3396621 | F54: ='Pres & Prop Rev'!F44 -> -14435302 | G54: ='Pres & Prop Rev'!G44 -> 0 | H54: ='Pres & Prop Rev'!H44 -> 14825
B55: TOTAL PROFORMA KWHS | C55: =IF(ROUND(SUM(D55:I55),3)<>ROUND(SUM(C50:C54),3),#VALUE!,SUM(D55:I55)) -> 5619300794 | D55: =SUM(D50:D54) -> 2374703689 | E55: =SUM(E50:E54) -> 619305952.1 | F55: =SUM(F50:F54) -> 1365904624 | G55: =SUM(G50:G54) -> 1113564012 | H55: =SUM(H50:H54) -> 145822517.4
B56: TOTAL BILLS | D56: ='Pres & Prop Rev'!D48 -> 2587975 | E56: ='Pres & Prop Rev'!E48 -> 386800 | F56: ='Pres & Prop Rev'!F48 -> 22787 | G56: ='Pres & Prop Rev'!G48 -> 276 | H56: ='Pres & Prop Rev'!H48 -> 29446
B57: EXCESS DEMAND | D57: ='Pres & Prop Rev'!D50 -> 0 | E57: ='Pres & Prop Rev'!E50 -> 433206.9797 | F57: ='Pres & Prop Rev'!F50 -> 2634662.436 | G57: ='Pres & Prop Rev'!G50 -> 1279394.393 | H57: ='Pres & Prop Rev'!H50 -> 0
J58: Proposed rates: | K58: Formulas to copy
B59: Proposed Revenue | C59: =SUM(D59:I59) -> 495595381.7 | D59: ='Rate Spread GRC'!H15*1000 -> 216074897.5 | E59: ='Rate Spread GRC'!H17*1000 -> 75060953.44 | F59: ='Rate Spread GRC'!H19*1000 -> 125677268.1 | G59: ='Rate Spread GRC'!H21*1000 -> 66743507.57 | H59: ='Rate Spread GRC'!H23*1000 -> 12038755.11 | J59: same as current | K59: FLOOR | L59: CEILING | M59: OTHER
B60: Targeted Rate Increase | C60: =ROR!C47 -> 0.1246733613 | D60: =ROR!D47 -> 0.1334533078 | E60: =ROR!E47 -> 0.09973429493 | F60: =ROR!F47 -> 0.124670653 | G60: =ROR!G47 -> 0.1246814198 | H60: =ROR!H47 -> 0.1246557738 | J60: diff than current
B61: Present Basic Charge | D61: =D4 -> 9 | E61: =E4 -> 20 | F61: =F4 -> 0 | G61: =G4 -> 0 | H61: 20
B62: BASIC CHARGE | D62: 9 | E62: 20 | F62: 0 | G62: 0 | H62: 20 | K62: =FLOOR(K61*(1+K$60),$K63) -> 0 | L62: =CEILING(L61*(1+L$60),$L63) -> 0 | M62: =M61*(1+M$60) -> 0
B63: % D in Basic Charge | D63: =IF(D61,D62/D61-1,0) -> 0 | E63: =IF(E61,E62/E61-1,0) -> 0 | F63: =IF(F61,F62/F61-1,0) -> 0 | G63: =IF(G61,G62/G61-1,0) -> 0 | H63: =IF(H61,H62/H61-1,0) -> 0 | K63: 0.05 | L63: 0.05
B64: Basic Charge Revenue | C64: =SUM(D64:I64) -> 31616695 | D64: =D56*D62 -> 23291775 | E64: =E56*E62 -> 7736000 | F64: =F56*F62 -> 0 | G64: =G56*G62 -> 0 | H64: =H56*H62 -> 588920
B65: Present Demand Block 1 | D65: =D9 -> 0 | E65: =E9 -> 0 | F65: =F9 -> 500 | G65: =G9 -> 24000 | H65: =H9 -> 0
B66: DEMAND BLOCK 1 | F66: 500 | G66: 24000 | K66: =FLOOR(K65*(1+K$60),$K67) -> 0 | L66: =CEILING(L65*(1+L$60),$L67) -> 0 | M66: =M65*(1+M$60) -> 0
B67: % D in Demand Block 1 | D67: =IF(D65,D66/D65-1,0) -> 0 | E67: =IF(E65,E66/E65-1,0) -> 0 | F67: =IF(F65,F66/F65-1,0) -> 0 | G67: =IF(G65,G66/G65-1,0) -> 0 | H67: =IF(H65,H66/H65-1,0) -> 0 | K67: 5 | L67: 10
B68: Present Demand Block 2 | D68: =D10 -> 0 | E68: 6.5 | F68: 6.5 | G68: 6.5 | H68: =H10 -> 0
B69: DEMAND BLOCK 2 | E69: 6.5 | F69: 6.5 | G69: 6.5 | H69: 0 | K69: =FLOOR(K68*(1+K$60),$K70) -> 0 | L69: =CEILING(L68*(1+L$60),$L70) -> 0 | M69: =M68*(1+M$60) -> 0
B70: % D in Demand Block 2 | D70: =IF(D68,D69/D68-1,0) -> 0 | E70: =IF(E68,E69/E68-1,0) -> 0 | F70: =IF(F68,F69/F68-1,0) -> 0 | G70: =IF(G68,G69/G68-1,0) -> 0 | H70: =IF(H68,H69/H68-1,0) -> 0 | K70: 0.05 | L70: 0.05
B71: Demand Revenue | C71: =SUM(D71:I71) -> 46274714.75 | D71: =D56*D66+D57*D69 -> 0 | E71: =E56*E66+E57*E69 -> 2815845.368 | F71: =F56*F66+F57*F69 -> 28518805.83 | G71: =G56*G66+G57*G69 -> 14940063.55 | H71: =H56*H66+H57*H69 -> 0
B72: Pwr Fctr/Prim Voltg Disc | C72: =SUM(D72:I72) -> -1172155.775 | D72: ='Pres & Prop Rev'!D172+'Pres & Prop Rev'!D173 -> 0 | E72: ='Pres & Prop Rev'!E172+'Pres & Prop Rev'!E173 -> 5644.95 | F72: ='Pres & Prop Rev'!F172+'Pres & Prop Rev'!F173 -> 60250.92 | G72: ='Pres & Prop Rev'!G172+'Pres & Prop Rev'!G173 -> -1241231.215 | H72: ='Pres & Prop Rev'!H172+'Pres & Prop Rev'!H173 -> 3179.57
B74: Present Block 1 Base Rate | D74: =D5 -> 7.533 | E74: =E5 -> 11.349 | F74: =F5 -> 7.189 | G74: =G5 -> 5.505 | H74: =H5 -> 9.712
B75: Present Block 2 Base Rate | D75: =D6 -> 8.765 | E75: 8.341 | F75: 6.43 | G75: 4.953 | H75: 6.936
B76: Present Block 3 Base Rate | D76: 10.276 | E76: 0 | F76: 0 | G76: 4.235 | H76: 0
B78: 1) Flat Rate Increase | D78: 0 | E78: 1 | F78: 1 | G78: 1 | H78: 1
B79: 2) % Rate Increase | D79: 0 | E79: 0 | F79: 0 | G79: 0 | H79: 0 | M79: =M$60 -> 0
B80: Method ---> | D80: 2 | E80: 2 | F80: 2 | G80: 2 | H80: 2
A82: Calculated | B82: BLOCK 1 PER KWH | D82: =CHOOSE(D$80,D74+D$78,D74*(1+D$79)) -> 7.533 | E82: =CHOOSE(E$80,E74+E$78,E74*(1+E$79)) -> 11.349 | F82: =CHOOSE(F$80,F74+F$78,F74*(1+F$79)) -> 7.189 | G82: =CHOOSE(G$80,G74+G$78,G74*(1+G$79)) -> 5.505 | H82: =CHOOSE(H$80,H74+H$78,H74*(1+H$79)) -> 9.712
B83: BLOCK 2 PER KWH | D83: 8.765 | E83: 8.341 | F83: 6.43 | G83: =CHOOSE(G$80,G75+G$78,G75*(1+G$79)) -> 4.953 | H83: =CHOOSE(H$80,H75+H$78,H75*(1+H$79)) -> 6.936 | M83: =0.75*M82 -> 0
B84: BLOCK 3 PER KWH | D84: 10.276 | E84: 0 | F84: 0 | G84: =CHOOSE(G$80,G76+G$78,G76*(1+(G$79*1))) -> 4.235 | H84: 0
A85: Input | B85: BLOCK 1 PER KWH | D85: =D82 -> 7.533 | E85: 11.349 | F85: 7.189 | G85: 5.505 | H85: 9.712 | M85: =M82 -> 0
B86: BLOCK 2 PER KWH | D86: 8.765 | E86: 8.341 | F86: 6.43 | G86: 4.953 | H86: 6.936 | J86: =G86-G85 -> -0.552 | M86: =M83 -> 0 | N86: =0.75*(N85-N74)+N75 -> 0
B87: BLOCK 3 PER KWH | D87: 10.276 | E87: 0 | F87: 0 | G87: 4.235 | H87: 0 | J87: =G87-G86 -> -0.718 | M87: =M84 -> 0
B88: Blocks 1-3 Revenue | C88: =SUM(D88:I88) -> 419179057.2 | D88: =SUMPRODUCT(D50:D52,D85:D87)/100 -> 191787294.4 | E88: =SUMPRODUCT(E50:E52,E85:E87)/100 -> 64890240.83 | F88: =SUMPRODUCT(F50:F52,F85:F87)/100 -> 98113465.19 | G88: =SUMPRODUCT(G50:G52,G85:G87)/100 -> 52942564.96 | H88: =SUMPRODUCT(H50:H52,H85:H87)/100 -> 11445491.82
B89: Adj. to Actual Revenue | C89: =SUM(D89:I89) -> 0 | D89: ='Pres & Prop Rev'!D181+'Pres & Prop Rev'!D178 -> 0 | E89: ='Pres & Prop Rev'!E181+'Pres & Prop Rev'!E178 -> 0 | F89: ='Pres & Prop Rev'!F181+'Pres & Prop Rev'!F178 -> 0 | G89: ='Pres & Prop Rev'!G181+'Pres & Prop Rev'!G178 -> 0 | H89: ='Pres & Prop Rev'!H181+'Pres & Prop Rev'!H178 -> 0
B90: Weather & U/B Revenue | C90: =SUM(D90:I90) -> -405339.76 | D90: ='Pres & Prop Rev'!D202 -> 995528.09 | E90: ='Pres & Prop Rev'!E202 -> -386777.72 | F90: ='Pres & Prop Rev'!F202 -> -1015253.85 | G90: ='Pres & Prop Rev'!G202 -> 0 | H90: ='Pres & Prop Rev'!H202 -> 1163.72
B92: Revenue Remaining | C92: =IF(ROUND(C59-C64-C71-C72-SUM(C88:C90),3)<>ROUND(SUM(D92:I92),3),#VALUE!,SUM(D92:I92)) -> 102410.27 | D92: =D59-D64-D71-D72-SUM(D88:D90) -> 299.9996768 | E92: =E59-E64-E71-E72-SUM(E88:E90) -> 0.007044948637 | F92: =F59-F64-F71-F72-SUM(F88:F90) -> -0.002749353647 | G92: =G59-G64-G71-G72-SUM(G88:G90) -> 102110.2666 | H92: =H59-H64-H71-H72-SUM(H88:H90) -> -0.0005655754358 | J92: there will be some remainder in Schs. 21 & 25 because some components of their revenue don't change w/a rate change.
B93: Revenue Remaining - ¢/kWh | C93: =C92/C55*100 -> 0.001822473539 | D93: =D92/D55*100 -> 1.263314148e-05 | E93: 1.137555454e-09 | F93: -2.012844527e-10 | G93: 0.009169680911 | H93: -3.878519214e-10
B94: check - < $6k is rounding | C94: =SUM(D94:I94) -> -102310.2655 | D94: =D59-'Pres & Prop Rev'!D204-D92 -> 0.0003232359886 | E94: =E59-'Pres & Prop Rev'!E204-E92 -> -0.008711613715 | F94: =F59-'Pres & Prop Rev'!F204-F92 -> 0.004416018724 | G94: =G59-'Pres & Prop Rev'!G204-G92 -> -102310.2621 | H94: =H59-'Pres & Prop Rev'!H204-H92 -> 0.0005655754358
A95: =IF(Base1_Billing2=2,"MAKE SURE TO CHANGE Base1_Billing2 to '1' before designing Base Rates","") -> 
B96: Proposed Target | C96: =SUM(D96:I96) -> 495595381.7 | D96: =D59 -> 216074897.5 | E96: =E59 -> 75060953.44 | F96: =F59 -> 125677268.1 | G96: =G59 -> 66743507.57 | H96: =H59 -> 12038755.11
B97: Proposed Actual | C97: =SUM(D97:I97) -> 495595281.7 | D97: ='Pres & Prop Rev'!D204 -> 216074597.5 | E97: ='Pres & Prop Rev'!E204 -> 75060953.44 | F97: ='Pres & Prop Rev'!F204 -> 125677268.1 | G97: ='Pres & Prop Rev'!G204 -> 66743707.56 | H97: ='Pres & Prop Rev'!H204 -> 12038755.11
C98: =SUM(D98:H98) -> -100.0045 | D98: =D97-D96 -> -300 | E98: =E97-E96 -> 0.001666665077 | F98: =F97-F96 -> -0.001666665077 | G98: =G97-G96 -> 199.9955 | H98: =H97-H96 -> 0
B99: Rate D Check
B100: Basic Charge | C100: ='Pres & Prop Rev'!C164/'Pres & Prop Rev'!C111-1 -> 0 | D100: ='Pres & Prop Rev'!D164/'Pres & Prop Rev'!D111-1 -> 0 | E100: ='Pres & Prop Rev'!E164/'Pres & Prop Rev'!E111-1 -> 0 | F100: ='Pres & Prop Rev'!F164/'Pres & Prop Rev'!F111-1 ->  | G100: ='Pres & Prop Rev'!G164/'Pres & Prop Rev'!G111-1 ->  | H100: ='Pres & Prop Rev'!H164/'Pres & Prop Rev'!H111-1 -> 0
B101: Demand Charge | C101: =SUM('Pres & Prop Rev'!C170:C171)/SUM('Pres & Prop Rev'!C117:C118)-1 -> -9.724532291e-11 | D101: =SUM('Pres & Prop Rev'!D170:D171)/SUM('Pres & Prop Rev'!D117:D118)-1 ->  | E101: =SUM('Pres & Prop Rev'!E170:E171)/SUM('Pres & Prop Rev'!E117:E118)-1 -> 5.918885382e-10 | F101: =SUM('Pres & Prop Rev'!F170:F171)/SUM('Pres & Prop Rev'!F117:F118)-1 -> -5.844102979e-11 | G101: =SUM('Pres & Prop Rev'!G170:G171)/SUM('Pres & Prop Rev'!G117:G118)-1 -> -3.012035066e-10 | H101: =SUM('Pres & Prop Rev'!H170:H171)/SUM('Pres & Prop Rev'!H117:H118)-1 -> 
B102: Adj. to Actual Revenue | C102: ='Pres & Prop Rev'!C181/'Pres & Prop Rev'!C128-1 ->  | D102: ='Pres & Prop Rev'!D181/'Pres & Prop Rev'!D128-1 ->  | E102: ='Pres & Prop Rev'!E181/'Pres & Prop Rev'!E128-1 ->  | F102: ='Pres & Prop Rev'!F181/'Pres & Prop Rev'!F128-1 ->  | G102: ='Pres & Prop Rev'!G181/'Pres & Prop Rev'!G128-1 ->  | H102: ='Pres & Prop Rev'!H181/'Pres & Prop Rev'!H128-1 -> 
B103: Weather & U/B Revenue | C103: ='Pres & Prop Rev'!C202/'Pres & Prop Rev'!C149-1 -> 0 | D103: ='Pres & Prop Rev'!D202/'Pres & Prop Rev'!D149-1 -> 0 | E103: ='Pres & Prop Rev'!E202/'Pres & Prop Rev'!E149-1 -> 0 | F103: ='Pres & Prop Rev'!F202/'Pres & Prop Rev'!F149-1 -> 0 | G103: ='Pres & Prop Rev'!G202/'Pres & Prop Rev'!G149-1 ->  | H103: ='Pres & Prop Rev'!H202/'Pres & Prop Rev'!H149-1 -> 0
B104: Block Energy Charges | C104: =SUM('Pres & Prop Rev'!C166:C169)/SUM('Pres & Prop Rev'!C113:C116)-1 -> 0 | D104: =SUM('Pres & Prop Rev'!D166:D169)/SUM('Pres & Prop Rev'!D113:D116)-1 -> 0 | E104: =SUM('Pres & Prop Rev'!E166:E169)/SUM('Pres & Prop Rev'!E113:E116)-1 -> 0 | F104: =SUM('Pres & Prop Rev'!F166:F169)/SUM('Pres & Prop Rev'!F113:F116)-1 -> 0 | G104: =SUM('Pres & Prop Rev'!G166:G169)/SUM('Pres & Prop Rev'!G113:G116)-1 -> 0 | H104: =SUM('Pres & Prop Rev'!H166:H169)/SUM('Pres & Prop Rev'!H113:H116)-1 -> 0
B105: Overall Revenue | C105: ='Pres & Prop Rev'!C208 -> -8.318409179e-12 | D105: ='Pres & Prop Rev'!D208 -> 0 | E105: ='Pres & Prop Rev'!E208 -> 2.220415543e-11 | F105: ='Pres & Prop Rev'!F208 -> -1.326146806e-11 | G105: ='Pres & Prop Rev'!G208 -> -6.742211113e-11 | H105: ='Pres & Prop Rev'!H208 -> 0
B107: Avg. Usage | D107: =D55/D56 -> 917.5914329 | E107: =E55/E56 -> 1601.101221 | F107: =F55/F56 -> 59942.27516 | G107: =G55/G56 -> 4034652.216 | H107: =H55/H56 -> 4952.201231
B108: Bill Compare: | C108: =INDEX($D$2:$I$2,K108) -> SCH. 1,2 | F108: =INDEX($D$2:$I$2,L108) -> SCH. 11,12 | K108: 1 | L108: 2
B109: =IF(Base1_Billing2=2,"BILLING RATES","BASE RATES") -> BASE RATES | C109: Pres | D109: Prop | E109: % Incr | F109: Pres | G109: Prop | H109: % Incr
B110: 100
B111: 200
B112: 300
B113: 400
B114: 500
B115: 600
B116: 700
B117: 800
B118: 900
B119: 1000 | C119: =ROUND(D14+600*D15/100+400*D16/100,2) -> 91.01 | D119: =ROUND(D36+600*D37/100+400*D38/100,2) -> 91.01 | E119: =D119/C119-1 -> 0 | F119: =D119-C119 -> 0
B120: 1100
B121: 1200
B122: 1300
B123: 1400
B124: 1500
D125: 2425727000 | E125: =395341000+52692000 -> 448033000
D126: =205474*12 -> 2465688 | E126: =(19967+8691)*12 -> 343896
D127: =D125/D126 -> 983.7931644 | E127: =E125/E126 -> 1302.815386

Sheet Exh 1
A1: AVISTA UTILITIES | U1: This worksheet pulls data from 'Pres & Prop Rev' tab.
A2: WASHINGTON ELECTRIC
A3: PROPOSED INCREASE BY SERVICE SCHEDULE
A4: 12 MONTHS ENDED DECEMBER 31, 2018
A5: (000s of Dollars)
D10: Base Tariff | F10: Base Tariff | G10: Base | H10: Total Billed | J10: Adjusted Billed | M10: Schedule 93 | N10: Percent | R10: Percent | V10: Percent | W10: Total Billed
D11: Revenue | E11: Proposed | F11: Revenue | G11: Tariff | H11: Revenue | I11: Misc | J11: Revenue | K11: Total | L11: Misc | M11: ERM | N11: Increase | O11: Sch. 98 | P11: Sch. 93 | Q11: Proposed | R11: Increase | V11: Increase | W11: Revenue
B12: Type of | C12: Schedule | D12: Under Present | E12: General | F12: Under Proposed | G12: Percent | H12: at Present | I12: Rate Adjustment | J12: at Present | K12: General | L12: Rate Adjustment | M12: Rate Adjustment | N12: on Billed | O12: REC Revenue | P12: ERM | Q12: General | R12: on Billed | V12: on Base | W12: at Proposed
A13: No. | B13: Service | C13: Number | D13: Rates(1) | E13: Increase | F13: Rates(1) | G13: Increase | H13: Rates (2) | I13: Change | J13: Rates (2) | K13: Increase | L13: Expiration | M13: Decrease | N13: Revenue | O13: Decrease | P13: Increase | Q13: Increase | R13: Revenue | V13: Revenue | W13: Rates (2) | Y13: GRC | Z13: PCRA | AA13: ERM
B14: (a) | C14: (b) | D14: (c) | E14: (d) | F14: (e) | G14: (f) | H14: (g) | I14: (h) | J14: (i) | K14: (j) | L14: (k) | M14: (l) | N14: (l) | O14: (j) | P14: (k) | Q14: (j) | R14: (k) | T14: ="col (m) source" -> col (m) source
D15: =IF(Base1_Billing2<>1,"ERROR","") -> 
A16: 1 | B16: Residential | C16: 1/2 | D16: ='Pres & Prop Rev'!$D$152/1000 -> 216074.5975 | E16: ='Pres & Prop Rev'!$D$207/1000 -> 0 | F16: =D16+E16 -> 216074.5975 | G16: =E16/D16 -> 0 | H16: =220230.32892-156 -> 220074.3289 | I16: ='Sch 93 PCRA'!E13/1000 -> 0 | J16: =H16+I16 -> 220074.3289 | K16: =E16 -> 0 | L16: =-'Sch 93 PCRA'!E13/1000 -> 0 | M16: ='ERM Rebate Yr 1-3'!H14/1000 -> 0 | N16: =(K16+L16+M16)/J16 -> 0 | O16: =#REF!/1000 ->  | P16: =('Pres & Prop Rev'!D23*(0))/1000 -> 0 | Q16: =E16+P16 -> 0 | R16: =(Q16)/H16 -> 0 | T16: from Pres & Prop Rev tab | V16: =(E16+P16)/D16 -> 0 | W16: =K16+J16+L16+M16 -> 220074.3289 | Y16: =K16/J16 -> 0 | Z16: =L16/J16 -> 0 | AA16: =M16/J16 -> 0
A18: 2 | B18: General Service | C18: 11/12 | D18: ='Pres & Prop Rev'!$E$152/1000 -> 75060.95344 | E18: ='Pres & Prop Rev'!$E$207/1000 -> 1.666665077e-06 | F18: =D18+E18 -> 75060.95344 | G18: =E18/D18 -> 2.220415543e-11 | H18: =78739.6307983334-48 -> 78691.6308 | I18: ='Sch 93 PCRA'!E15/1000 -> 0 | J18: =H18+I18 -> 78691.6308 | K18: =E18 -> 1.666665077e-06 | L18: =-'Sch 93 PCRA'!E15/1000 -> 0 | M18: ='ERM Rebate Yr 1-3'!H16/1000 -> 0 | N18: =(K18+L18+M18)/J18 -> 2.117969929e-11 | O18: =#REF!/1000 ->  | P18: =('Pres & Prop Rev'!E23*(0))/1000 -> 0 | Q18: =E18+P18 -> 1.666665077e-06 | R18: =(Q18)/H18 -> 2.117969929e-11 | T18: from below | V18: =(E18+P18)/D18 -> 2.220415543e-11 | W18: =K18+J18+L18+M18 -> 78691.6308 | Y18: =K18/J18 -> 2.117969929e-11 | Z18: =L18/J18 -> 0 | AA18: =M18/J18 -> 0
A20: 3 | B20: Large General Service | C20: 21/22 | D20: ='Pres & Prop Rev'!$F$152/1000 -> 125677.2681 | E20: ='Pres & Prop Rev'!$F$207/1000 -> -1.666665077e-06 | F20: =D20+E20 -> 125677.2681 | G20: =E20/D20 -> -1.326146806e-11 | H20: =131892.134111667-26 -> 131866.1341 | I20: ='Sch 93 PCRA'!E17/1000 -> 0 | J20: 131866.1341 | K20: =E20 -> -1.666665077e-06 | L20: =-'Sch 93 PCRA'!E17/1000 -> 0 | M20: ='ERM Rebate Yr 1-3'!H18/1000 -> 0 | N20: -1.263906831e-11 | O20: =#REF!/1000 ->  | P20: =('Pres & Prop Rev'!F23*(0))/1000 -> 0 | Q20: =E20+P20 -> -1.666665077e-06 | R20: =(Q20)/H20 -> -1.263906831e-11 | T20: from below | V20: =(E20+P20)/D20 -> -1.326146806e-11 | W20: 131866.1341 | Y20: -1.263906831e-11 | Z20: 0 | AA20: 0
A22: 4 | B22: Extra Large General Service | C22: 25 | D22: ='Pres & Prop Rev'!$G$152/1000 -> 66743.70757 | E22: ='Pres & Prop Rev'!$G$207/1000 -> -4.500001669e-06 | F22: =D22+E22 -> 66743.70756 | G22: =E22/D22 -> -6.742211113e-11 | H22: 69157.14057 | I22: ='Sch 93 PCRA'!E19/1000 -> 0 | J22: 69157.14057 | K22: =E22 -> -4.500001669e-06 | L22: =-'Sch 93 PCRA'!E19/1000 -> 0 | M22: ='ERM Rebate Yr 1-3'!H20/1000 -> 0 | N22: -6.506922687e-11 | O22: =#REF!/1000 ->  | P22: =('Pres & Prop Rev'!G23*(0))/1000 -> 0 | Q22: =E22+P22 -> -4.500001669e-06 | R22: =(Q22)/H22 -> -6.506922687e-11 | T22: from Pres & Prop Rev tab | V22: =(E22+P22)/D22 -> -6.742211113e-11 | W22: 69157.14056 | Y22: -6.506922687e-11 | Z22: 0 | AA22: 0
A24: 5 | B24: Pumping Service | C24: 30/31/32 | D24: ='Pres & Prop Rev'!$H$152/1000 -> 12038.75511 | E24: ='Pres & Prop Rev'!$H$207/1000 -> 0 | F24: =D24+E24 -> 12038.75511 | G24: =E24/D24 -> 0 | H24: 12658.50082 | I24: ='Sch 93 PCRA'!E21/1000 -> 0 | J24: 12658.50082 | K24: =E24 -> 0 | L24: =-'Sch 93 PCRA'!E21/1000 -> 0 | M24: ='ERM Rebate Yr 1-3'!H22/1000 -> 0 | N24: 0 | O24: =#REF!/1000 ->  | P24: =('Pres & Prop Rev'!H23*(0))/1000 -> 0 | Q24: =E24+P24 -> 0 | R24: =(Q24)/H24 -> 0 | T24: from below | V24: =(E24+P24)/D24 -> 0 | W24: 12658.50082 | Y24: 0 | Z24: 0 | AA24: 0
A26: 6 | B26: Street & Area Lights | C26: 41-48 | D26: ='Pres & Prop Rev'!$I$152/1000 -> 6424.02348 | E26: ='Pres & Prop Rev'!$I$207/1000 -> 3.239996731e-07 | F26: =D26+E26 -> 6424.023481 | G26: =E26/D26 -> 5.043563027e-11 | H26: =6515.24461369592+275 -> 6790.244614 | I26: ='Sch 93 PCRA'!E23/1000 -> 0 | J26: =H26+I26 -> 6790.244614 | K26: =E26 -> 3.239996731e-07 | L26: =-'Sch 93 PCRA'!E23/1000 -> 0 | M26: ='ERM Rebate Yr 1-3'!H24/1000 -> 0 | N26: 4.77154641e-11 | O26: =#REF!/1000 ->  | P26: =('Pres & Prop Rev'!I23*(0))/1000 -> 0 | Q26: =E26+P26 -> 3.239996731e-07 | R26: =(Q26)/H26 -> 4.77154641e-11 | T26: from Pres & Prop Rev tab | V26: =(E26+P26)/D26 -> 5.043563027e-11 | W26: 6790.244614 | Y26: 4.77154641e-11 | Z26: 0 | AA26: 0
A28: 7 | B28: Total | D28: =SUM(D16:D26) -> 502019.3052 | E28: =SUM(E16:E26)+0.1 -> 0.099995824 | F28: =SUM(F16:F26) -> 502019.3052 | G28: =E28/D28 -> 1.991872085e-07 | H28: =SUM(H16:H26) -> 519237.9798 | I28: =SUM(I16:I26) -> 0 | J28: 519237.9798 | K28: =E28 -> 0.099995824 | L28: =SUM(L16:L26) -> 0 | M28: =SUM(M16:M26) -> 0 | N28: 1.925818755e-07 | O28: =SUM(O16:O27) ->  | P28: =SUM(P16:P26) -> 0 | Q28: =E28+P28 -> 0.099995824 | R28: =(Q28)/H28 -> 1.925818755e-07 | T28: from below | V28: =(E28+P28)/D28 -> 1.991872085e-07 | W28: =E28+H28+P28 -> 519238.0798 | Y28: 1.925818755e-07 | Z28: 0 | AA28: 0
D29: =ROUND(D28-'Pres & Prop Rev'!C205/1000,0) -> 0 | E29: =ROUND(E28-'Pres & Prop Rev'!C207/1000,0) -> 0
D30: =IF(Base1_Billing2=2,"Exhibit won't work until Base1_Billing2 range set to '1'","") -> 
A33: (1) Excludes all present rate adjustments: Schedule 59 (BPA Residential Exchange), Schedule 75 (Decoupling), Schedule 91 (DSM),
A34: Schedule 92 (LIRAP), Schedule 93 (ERM), and Schedule 98 (REC Revenue).
A36: (2) Includes all present rate adjustments: Schedule 59 (BPA Residential Exchange), Schedule 75 (Decoupling), Schedule 91 (DSM),
A37: Schedule 92 (LIRAP), Schedule 93 (ERM), and Schedule 98 (REC Revenue).
B40: reduce billed revenue for BPA ResEx (already accounted for in Schs 1 & 48)
F41: Billing | K41: Billed Revenue
F42: Determinants | H42: Sch 59 Rate | K42: Impact
B43: Schedule 12 only | F43: ='REVRUNS 12ME1218'!P113 -> 59058376.72 | H43: -0.00081 | K43: =F43*H43 -> -47837.28515
B44: Schedule 22 only | F44: ='REVRUNS 12ME1218'!P143 -> 32084456.64 | H44: -0.00081 | K44: =F44*H44 -> -25988.40988
B45: Schedule 32 only | F45: ='REVRUNS 12ME1218'!P198 -> 8563565.353 | H45: -0.00081 | K45: =F45*H45 -> -6936.487936
B46: Schedule 48 only | F46: ='REVRUNS 12ME1218'!P262 -> 2619506.616 | H46: -0.00081 | K46: =F46*H46 -> -2121.800359
B47: Total | F47: =SUM(F43:F46) -> 102325905.3 | K47: =SUM(K43:K46) -> -82883.98332 | N47: Manually deducted in Column H
B49: Schedule 98 (REC Revenue Rebate) | H49: Sch 98 Rate
B50: Schedule 41-48 only | F50: ='REVRUNS 12ME1218'!P287 -> 18542031.54 | H50: -0.00048 | K50: =F50*H50 -> -8900.175139
B52: Schedule 74 (Tax Rebate) | H52: Sch 74 Rate
B53: Schedule 41-48 only | F53: ='REVRUNS 12ME1218'!P287 -> 18542031.54 | H53: -0.00475 | K53: =F53*H53 -> -88074.64982
B55: Schedule 91 (DSM) | H55: Sch 91 Rate
B56: Schedule 41-48 only | F56: ='REVRUNS 12ME1218'!P287 -> 18542031.54 | H56: 0.02017 | K56: =F56*H56 -> 373992.7762
R57: ERM Reduction Calc
H58: Sch 89 Rate
B59: Schedule 2 only | F59: ='REVRUNS 12ME1218'!P83 -> 4939019.841 | H59: -0.03153 | K59: =F59*H59 -> -155727.2956 | P59: 0 | Q59: 1 | R59: =-D16*$P$60 -> 0 | T59: =0/'Pres & Prop Rev'!D23 -> 0 | U59: =(D16/$D$28)*$R$65 -> 0
P60: =P59/D28 -> 0 | Q60: 11 | R60: =-D18*P60 -> 0 | U60: =(D18/$D$28)*$R$65 -> 0
Q61: 21 | R61: =-D20*P60 -> 0 | U61: =(D20/$D$28)*$R$65 -> 0
Q62: 25 | R62: =-D22*P60 -> 0 | U62: =(D22/$D$28)*$R$65 -> 0
B63: Schedule 41-48 only Total | K63: =K46+K50+K56+K53 -> 274896.1509 | Q63: 31 | R63: =-D24*P60 -> 0 | U63: =(D24/$D$28)*$R$65 -> 0
Q64: 41-48 | R64: =-D26*P60 -> 0 | U64: =(D26/$D$28)*$R$65 -> 0
R65: =SUM(R59:R64) -> 0 | U65: =SUM(U59:U64) -> 0

Sheet Exh 2
A1: AVISTA UTILITIES | L1: This worksheet pulls data from 'ROR' tab.
A2: WASHINGTON ELECTRIC
A3: PRESENT & PROPOSED RATES OF RETURN BY RATE SCHEDULE
A4: 12 MONTHS ENDED DECEMBER 31, 2018
D9: Present Rates | G9: Base | I9: Proposed Rates
D10: Present | E10: Present | G10: Tariff | I10: Proposed | J10: Proposed
A11: Line | B11: Type of | C11: Sch. | D11: Rate of | E11: Relative | G11: Proposed | I11: Rate of | J11: Relative
A12: No. | B12: Service | C12: Number | D12: Return | E12: ROR | G12: Increase | I12: Return | J12: ROR
B13: (a) | C13: (b) | D13: (c) | E13: (d) | G13: (e) | I13: (f) | J13: (g)
A14: 1 | B14: Residential | C14: 1/2 | D14: =INDEX(ROR!$C$20:$I$20,$A14+1) -> 0.02983119248 | E14: =INDEX(ROR!$C$21:$I$21,$A14+1) -> 0.5552056831 | G14: =INDEX(ROR!$C$47:$I$47,$A14+1) -> 0.1334533078 | I14: =INDEX(ROR!$C$38:$I$38,$A14+1) -> 0.05194079684 | J14: =INDEX(ROR!$C$37:$I$37,$A14+1) -> 0.6693456047
A15: 2 | B15: General Service | C15: 11/12 | D15: =INDEX(ROR!$C$20:$I$20,$A15+1) -> 0.1090787604 | E15: =INDEX(ROR!$C$21:$I$21,$A15+1) -> 2.030128286 | G15: =INDEX(ROR!$C$47:$I$47,$A15+1) -> 0.09973429493 | I15: =INDEX(ROR!$C$38:$I$38,$A15+1) -> 0.1345021832 | J15: =INDEX(ROR!$C$37:$I$37,$A15+1) -> 1.733289642
A16: 3 | B16: Large General Service | C16: 21/22 | D16: =INDEX(ROR!$C$20:$I$20,$A16+1) -> 0.07842805704 | E16: =INDEX(ROR!$C$21:$I$21,$A16+1) -> 1.45967021 | G16: =INDEX(ROR!$C$47:$I$47,$A16+1) -> 0.124670653 | I16: =INDEX(ROR!$C$38:$I$38,$A16+1) -> 0.1048433002 | J16: =INDEX(ROR!$C$37:$I$37,$A16+1) -> 1.351084435
A17: 4 | B17: Extra Large General Svc. | C17: 25 | D17: =INDEX(ROR!$C$20:$I$20,$A17+1) -> 0.05262368321 | E17: =INDEX(ROR!$C$21:$I$21,$A17+1) -> 0.9794099919 | G17: =INDEX(ROR!$C$47:$I$47,$A17+1) -> 0.1246814198 | I17: =INDEX(ROR!$C$38:$I$38,$A17+1) -> 0.07994925801 | J17: =INDEX(ROR!$C$37:$I$37,$A17+1) -> 1.030282316
A18: 5 | B18: Pumping Service | C18: 30/31/32 | D18: =INDEX(ROR!$C$20:$I$20,$A18+1) -> 0.0455669163 | E18: =INDEX(ROR!$C$21:$I$21,$A18+1) -> 0.8480723963 | G18: =INDEX(ROR!$C$47:$I$47,$A18+1) -> 0.1246557738 | I18: =INDEX(ROR!$C$38:$I$38,$A18+1) -> 0.06679562282 | J18: =INDEX(ROR!$C$37:$I$37,$A18+1) -> 0.8607753301
A19: 6 | B19: Street & Area Lights | C19: 41-48 | D19: =INDEX(ROR!$C$20:$I$20,$A19+1) -> 0.03815370119 | E19: =INDEX(ROR!$C$21:$I$21,$A19+1) -> 0.710100736 | G19: =INDEX(ROR!$C$47:$I$47,$A19+1) -> 0.124727114 | I19: =INDEX(ROR!$C$38:$I$38,$A19+1) -> 0.05157370658 | J19: =INDEX(ROR!$C$37:$I$37,$A19+1) -> 0.6646150216
A20: 7 | B20: Total | D20: =INDEX(ROR!$C$20:$I$20,1) -> 0.05372998402 | E20: =INDEX(ROR!$C$21:$I$21,1) -> 1 | G20: =INDEX(ROR!$C$47:$I$47,1) -> 0.1246733613 | I20: =INDEX(ROR!$C$38:$I$38,1) -> 0.07759936941 | J20: =INDEX(ROR!$C$37:$I$37,1) -> 1

Sheet Exh 3
A1: AVISTA UTILITIES | S1: This worksheet uses Base & Billing rates from 'Rate Design' tab.
A2: WASHINGTON ELECTRIC
A3: PRESENT AND PROPOSED RATE COMPONENTS BY SCHEDULE
G9: Sch. 93 | J9: General | K9: Sch. 98 | L9: Sch. 93 | M9: Proposed | N9: Proposed | O9: Sch. 98 | P9: Sch. 93/94 | Q9: Proposed Billing
D10: Base Tariff | E10: Present | F10: Present | G10: PCRA | H10: Adjusted | J10: Rate | K10: REC Revenue | L10: PCRA | M10: Billing | N10: Base Tariff | O10: REC Revenue | P10: ERM/BPA | Q10: Rate With
A11: Type of Service | D11: Sch. Rate | E11: Other Adj.(1) | F11: Billing Rate | G11: Increase | H11: Billing Rate | J11: Inc/Dec | K11: Decrease | L11: Decrease | M11: Rate | N11: Rate | O11: Decrease | P11: Increase | Q11: ERM Decrease (2) | R11: non-printing | U11: Present | V11: Proposed | W11: Proposed
B12: (a) | D12: (b) | E12: (c) | F12: (d) | G12: (e) | H12: (f) | J12: (g) | K12: (f) | L12: (h) | M12: (i) | N12: (j) | O12: (h) | P12: (i) | Q12: (j) | R12: Base | S12: Billing | U12: Billing | V12: Base | W12: Billing
A13: Residential Service - Schedule 1
A14: Basic Charge | D14: ='Rate Design'!D4 -> 9 | E14: =F14-D14 -> 0 | F14: ='Rate Design'!D14 -> 9 | J14: =IF(ROUND(M14-F14,5)<>ROUND(N14-D14,5),#VALUE!,N14-D14) -> 0 | M14: ='Rate Design'!D36 -> 9 | N14: ='Rate Design'!D26 -> 9 | Q14: =N14 -> 9 | R14: =J14/D14 -> 0 | S14: =J14/F14 -> 0
A15: Energy Charge:
A16: ="First "&TEXT('Rate Design'!N5,"#,##0")&" kWhs" -> First 800 kWhs | D16: ='Rate Design'!D5/100 -> 0.07533 | E16: =F16-D16 -> 0.00175 | F16: ='Rate Design'!D15/100 -> 0.07708 | G16: ='Sch 93 PCRA'!G13 -> 0 | H16: =F16+G16 -> 0.07708 | J16: =N16-D16 -> 0 | K16: 0 | L16: =-'Sch 93 PCRA'!G13 -> 0 | M16: ='Rate Design'!D37/100 -> 0.07708 | N16: ='Rate Design'!D27/100 -> 0.07533 | O16: =#REF! ->  | P16: =0.00164+0.00083 -> 0.00247 | Q16: =M16+O16+P16 ->  | R16: =J16/D16 -> 0 | S16: =J16/F16 -> 0 | U16: =D16+E16-F16 -> 0 | V16: =D16+J16-N16 -> 0 | W16: =F16+G16+J16+K16+L16-M16 -> 0
A17: =TEXT('Rate Design'!N5,"#,##0")&" - "&TEXT('Rate Design'!N6,"#,##0")&" kWhs" -> 800 - 1,500 kWhs | D17: ='Rate Design'!D6/100 -> 0.08765 | E17: =F17-D17 -> 0.00175 | F17: ='Rate Design'!D16/100 -> 0.0894 | G17: =G16 -> 0 | H17: =F17+G17 -> 0.0894 | J17: =N17-D17 -> 0 | K17: =K16 -> 0 | L17: =L16 -> 0 | M17: ='Rate Design'!D38/100 -> 0.0894 | N17: ='Rate Design'!D28/100 -> 0.08765 | O17: =O16 ->  | P17: =P16 -> 0.00247 | Q17: =M17+O17 ->  | R17: =J17/D17 -> 0 | S17: =J17/F17 -> 0 | U17: =D17+E17-F17 -> 0 | V17: =D17+J17-N17 -> 0 | W17: =F17+G17+J17+K17+L17-M17 -> 0
A18: ="All over "&TEXT('Rate Design'!N6,"#,##0")&" kWhs" -> All over 1,500 kWhs | D18: ='Rate Design'!D7/100 -> 0.10276 | E18: =F18-D18 -> 0.00175 | F18: ='Rate Design'!D17/100 -> 0.10451 | G18: =G16 -> 0 | H18: =F18+G18 -> 0.10451 | J18: =N18-D18 -> 0 | K18: =K16 -> 0 | L18: =L16 -> 0 | M18: ='Rate Design'!D39/100 -> 0.10451 | N18: ='Rate Design'!D29/100 -> 0.10276 | O18: =O16 ->  | P18: =P16 -> 0.00247 | Q18: =M18+O18 ->  | R18: =J18/D18 -> 0 | S18: =J18/F18 -> 0 | U18: =D18+E18-F18 -> 0 | V18: =D18+J18-N18 -> 0 | W18: =F18+G18+J18+K18+L18-M18 -> 0
A20: General Services - Schedule 11
A21: Basic Charge | D21: ='Rate Design'!E4 -> 20 | E21: =F21-D21 -> 0 | F21: ='Rate Design'!E14 -> 20 | J21: =IF(ROUND(M21-F21,5)<>ROUND(N21-D21,5),#VALUE!,N21-D21) -> 0 | M21: ='Rate Design'!E36 -> 20 | N21: ='Rate Design'!E26 -> 20 | Q21: =N21 -> 20 | R21: =J21/D21 -> 0 | S21: =J21/F21 -> 0
A22: Energy Charge:
A23: ="First "&TEXT('Rate Design'!O5,"#,##0")&" kWhs" -> First 3,650 kWhs | D23: ='Rate Design'!E5/100 -> 0.11349 | E23: =F23-D23 -> 0.00594 | F23: ='Rate Design'!E15/100 -> 0.11943 | G23: ='Sch 93 PCRA'!G15 -> 0 | H23: =F23+G23 -> 0.11943 | J23: =N23-D23 -> 0 | K23: =K16 -> 0 | L23: =-'Sch 93 PCRA'!G15 -> 0 | M23: ='Rate Design'!E37/100 -> 0.11943 | N23: ='Rate Design'!E27/100 -> 0.11349 | O23: =O16 ->  | P23: =P16 -> 0.00247 | Q23: =M23+O23 ->  | R23: =J23/D23 -> 0 | S23: =J23/F23 -> 0 | U23: =D23+E23-F23 -> 0 | V23: =D23+J23-N23 -> 0 | W23: =F23+G23+J23+K23+L23-M23 -> 0
A24: ="All over "&TEXT('Rate Design'!O5,"#,##0")&" kWhs" -> All over 3,650 kWhs | D24: ='Rate Design'!E6/100 -> 0.08341 | E24: =F24-D24 -> 0.00594 | F24: ='Rate Design'!E16/100 -> 0.08935 | G24: =G23 -> 0 | H24: =F24+G24 -> 0.08935 | J24: =N24-D24 -> 0 | K24: =K23 -> 0 | L24: =L23 -> 0 | M24: ='Rate Design'!E38/100 -> 0.08935 | N24: ='Rate Design'!E28/100 -> 0.08341 | O24: =O23 ->  | P24: =P23 -> 0.00247 | Q24: =M24+O24 ->  | R24: =J24/D24 -> 0 | S24: =J24/F24 -> 0 | U24: =D24+E24-F24 -> 0 | V24: =D24+J24-N24 -> 0 | W24: =F24+G24+J24+K24+L24-M24 -> 0
A25: Demand Charge:
A26: =TEXT('Rate Design'!O10,"#,##0")&" kW or less" -> 20 kW or less | D26: no charge | F26: no charge | J26: no charge | N26: no charge | Q26: no charge
A27: ="Over "&TEXT('Rate Design'!O10,"#,##0")&" kW" -> Over 20 kW | D27: ='Rate Design'!E10 -> 6.5 | E27: =F27-D27 -> 0 | F27: ='Rate Design'!E20 -> 6.5 | J27: =IF(ROUND(M27-F27,5)<>ROUND(N27-D27,5),#VALUE!,N27-D27) -> 0 | M27: ='Rate Design'!E42 -> 6.5 | N27: ='Rate Design'!E32 -> 6.5 | Q27: ='Rate Design'!E32 -> 6.5 | R27: =J27/D27 -> 0 | S27: =J27/F27 -> 0
A28: Minimums: | D28: $15.00 Single Phase Service | M28: $20.00 Single Phase Service
D29: $25.35 Three Phase Service | M29: $27.35 Three Phase Service
A31: Large General Service - Schedule 21
A32: Energy Charge:
A33: ="First "&TEXT('Rate Design'!P5,"#,##0")&" kWhs" -> First 250,000 kWhs | D33: ='Rate Design'!F5/100 -> 0.07189 | E33: =F33-D33 -> 0.00455 | F33: ='Rate Design'!F15/100 -> 0.07644 | G33: ='Sch 93 PCRA'!G17 -> 0 | H33: =F33+G33 -> 0.07644 | J33: =N33-D33 -> 0 | K33: =K16 -> 0 | L33: =-'Sch 93 PCRA'!G17 -> 0 | M33: ='Rate Design'!F37/100 -> 0.07644 | N33: ='Rate Design'!F27/100 -> 0.07189 | O33: =O16 ->  | P33: =P16 -> 0.00247 | Q33: =M33+O33 ->  | R33: =J33/D33 -> 0 | S33: =J33/F33 -> 0 | U33: =D33+E33-F33 -> 0 | V33: =D33+J33-N33 -> 0 | W33: =F33+G33+J33+K33+L33-M33 -> 0
A34: ="All over "&TEXT('Rate Design'!P5,"#,##0")&" kWhs" -> All over 250,000 kWhs | D34: ='Rate Design'!F6/100 -> 0.0643 | E34: =F34-D34 -> 0.00455 | F34: ='Rate Design'!F16/100 -> 0.06885 | G34: =G33 -> 0 | H34: =F34+G34 -> 0.06885 | J34: =N34-D34 -> 0 | K34: =K33 -> 0 | L34: =L33 -> 0 | M34: ='Rate Design'!F38/100 -> 0.06885 | N34: ='Rate Design'!F28/100 -> 0.0643 | O34: =O33 ->  | P34: =P33 -> 0.00247 | Q34: =M34+O34 ->  | R34: =J34/D34 -> 0 | S34: =J34/F34 -> 0 | U34: =D34+E34-F34 -> 0 | V34: =D34+J34-N34 -> 0 | W34: =F34+G34+J34+K34+L34-M34 -> 0
A35: Demand Charge:
A36: =TEXT('Rate Design'!P10,"#,##0")&" kW or less" -> 50 kW or less | D36: ='Rate Design'!F9 -> 500 | E36: =F36-D36 -> 0 | F36: ='Rate Design'!F19 -> 500 | J36: =IF(ROUND(M36-F36,5)<>ROUND(N36-D36,5),#VALUE!,N36-D36) -> 0 | M36: ='Rate Design'!F41 -> 500 | N36: ='Rate Design'!F31 -> 500 | Q36: =N36 -> 500 | R36: =J36/D36 -> 0 | S36: =J36/F36 -> 0
A37: ="Over "&TEXT('Rate Design'!P10,"#,##0")&" kW" -> Over 50 kW | D37: ='Rate Design'!F10 -> 6.5 | E37: =F37-D37 -> 0 | F37: ='Rate Design'!F20 -> 6.5 | J37: =IF(ROUND(M37-F37,5)<>ROUND(N37-D37,5),#VALUE!,N37-D37) -> 0 | M37: ='Rate Design'!F42 -> 6.5 | N37: ='Rate Design'!F32 -> 6.5 | Q37: ='Rate Design'!F32 -> 6.5 | R37: =J37/D37 -> 0 | S37: =J37/F37 -> 0
A38: Primary Voltage Discount | D38: 0.2 | E38: =F38-D38 -> 0 | F38: 0.2 | J38: =IF(ROUND(M38-F38,5)<>ROUND(N38-D38,5),#VALUE!,N38-D38) -> 0 | M38: 0.2 | N38: 0.2 | Q38: 0.2 | R38: =J38/D38 -> 0 | S38: =J38/F38 -> 0
A40: Extra Large General Service - Schedule 25
A41: Energy Charge:
A42: ="First "&TEXT('Rate Design'!Q5,"#,##0")&" kWhs" -> First 500,000 kWhs | D42: ='Rate Design'!G5/100 -> 0.05505 | E42: =F42-D42 -> 0.00245 | F42: ='Rate Design'!G15/100 -> 0.0575 | G42: ='Sch 93 PCRA'!G19 -> 0 | H42: =F42+G42 -> 0.0575 | J42: =N42-D42 -> 0 | K42: =K16 -> 0 | L42: =-'Sch 93 PCRA'!G19 -> 0 | M42: ='Rate Design'!G37/100 -> 0.0575 | N42: ='Rate Design'!G27/100 -> 0.05505 | O42: =O16 ->  | P42: =P16 -> 0.00247 | Q42: =M42+O42 ->  | R42: =J42/D42 -> 0 | S42: =J42/F42 -> 0 | U42: =D42+E42-F42 -> 0 | V42: =D42+J42-N42 -> 0 | W42: =F42+G42+J42+K42+L42-M42 -> 0
A43: =TEXT('Rate Design'!Q27,"#,##0")&" - "&TEXT('Rate Design'!Q28,"#,##0")&" kWhs" -> 500,000 - 6,000,000 kWhs | D43: ='Rate Design'!G6/100 -> 0.04953 | E43: =F43-D43 -> 0.00245 | F43: ='Rate Design'!G16/100 -> 0.05198 | G43: =G42 -> 0 | H43: =F43+G43 -> 0.05198 | J43: =N43-D43 -> 0 | K43: =K42 -> 0 | L43: =L42 -> 0 | M43: ='Rate Design'!G38/100 -> 0.05198 | N43: ='Rate Design'!G28/100 -> 0.04953 | O43: =O42 ->  | P43: =P42 -> 0.00247 | Q43: =M43+O43 ->  | R43: =J43/D43 -> 0 | S43: =J43/F43 -> 0 | U43: =D43+E43-F43 -> 0 | V43: =D43+J43-N43 -> 0 | W43: =F43+G43+J43+K43+L43-M43 -> 0
A44: ="All over "&TEXT('Rate Design'!Q28,"#,##0")&" kWhs" -> All over 6,000,000 kWhs | D44: ='Rate Design'!G7/100 -> 0.04235 | E44: =F44-D44 -> 0.00169 | F44: ='Rate Design'!G17/100 -> 0.04404 | G44: =G43 -> 0 | H44: =F44+G44 -> 0.04404 | J44: =N44-D44 -> 0 | K44: =K42 -> 0 | L44: =L43 -> 0 | M44: ='Rate Design'!G39/100 -> 0.04404 | N44: ='Rate Design'!G29/100 -> 0.04235 | O44: =O42 ->  | P44: =P42 -> 0.00247 | Q44: =M44+O44 ->  | R44: =J44/D44 -> 0 | S44: =J44/F44 -> 0 | U44: =D44+E44-F44 -> 0 | V44: =D44+J44-N44 -> 0 | W44: =F44+G44+J44+K44+L44-M44 -> 0
A45: Demand Charge:
A46: =TEXT('Rate Design'!Q10,"#,##0")&" kva or less" -> 3,000 kva or less | D46: ='Rate Design'!G9 -> 24000 | E46: =F46-D46 -> 0 | F46: ='Rate Design'!G19 -> 24000 | J46: =IF(ROUND(M46-F46,5)<>ROUND(N46-D46,5),#VALUE!,N46-D46) -> 0 | M46: ='Rate Design'!G41 -> 24000 | N46: ='Rate Design'!G31 -> 24000 | Q46: ='Rate Design'!G31 -> 24000 | R46: =J46/D46 -> 0 | S46: =J46/F46 -> 0
A47: ="Over "&TEXT('Rate Design'!Q10,"#,##0")&" kva" -> Over 3,000 kva | D47: ='Rate Design'!G10 -> 6.5 | E47: =F47-D47 -> 0 | F47: ='Rate Design'!G20 -> 6.5 | J47: =IF(ROUND(M47-F47,5)<>ROUND(N47-D47,5),#VALUE!,N47-D47) -> 0 | M47: ='Rate Design'!G42 -> 6.5 | N47: ='Rate Design'!G32 -> 6.5 | Q47: ='Rate Design'!G32 -> 6.5 | R47: =J47/D47 -> 0 | S47: =J47/F47 -> 0
A48: Primary Volt. Discount
A49: 11 - 60 kv | D49: 0.2 | E49: =F49-D49 -> 0 | F49: 0.2 | J49: =IF(ROUND(M49-F49,5)<>ROUND(N49-D49,5),#VALUE!,N49-D49) -> 0 | M49: 0.2 | N49: 0.2 | Q49: =N49 -> 0.2 | R49: =J49/D49 -> 0 | S49: =J49/F49 -> 0
A50: 60 - 115 kv | D50: 1.1 | E50: =F50-D50 -> 0 | F50: 1.1 | J50: =IF(ROUND(M50-F50,5)<>ROUND(N50-D50,5),#VALUE!,N50-D50) -> 0 | M50: 1.1 | N50: 1.1 | Q50: =N50 -> 1.1 | R50: =J50/D50 -> 0 | S50: =J50/F50 -> 0
A51: 115 or higher kv | D51: 1.4 | E51: =F51-D51 -> 0 | F51: 1.4 | J51: =IF(ROUND(M51-F51,5)<>ROUND(N51-D51,5),#VALUE!,N51-D51) -> 0 | M51: 1.4 | N51: 1.4 | Q51: =N51 -> 1.4 | R51: =J51/D51 -> 0 | S51: =J51/F51 -> 0
A52: Annual Minimum | D52: Present: | E52: =6000000*D42+5000000*D43+12*F46 -> 865950 | L52: Proposed: | M52: =6000000*N42+5000000*N43+12*N46 -> 865950 | Q52: =M52 -> 865950 | R52: =M52/E52-1 -> 0
A54: Pumping Service - Schedule 31
A55: Basic Charge | D55: ='Rate Design'!H4 -> 20 | E55: =F55-D55 -> 0 | F55: ='Rate Design'!H14 -> 20 | J55: =IF(ROUND(M55-F55,5)<>ROUND(N55-D55,5),#VALUE!,N55-D55) -> 0 | M55: ='Rate Design'!H36 -> 20 | N55: ='Rate Design'!H26 -> 20 | Q55: =N55 -> 20 | R55: =J55/D55 -> 0 | S55: =J55/F55 -> 0
A56: Energy Charge:
A57: First 85 kW/kWh | D57: ='Rate Design'!H5/100 -> 0.09712 | E57: =F57-D57 -> 0.00425 | F57: ='Rate Design'!H15/100 -> 0.10137 | G57: ='Sch 93 PCRA'!G21 -> 0 | H57: =F57+G57 -> 0.10137 | J57: =N57-D57 -> 0 | K57: =K16 -> 0 | L57: =-'Sch 93 PCRA'!G21 -> 0 | M57: ='Rate Design'!H37/100 -> 0.10137 | N57: ='Rate Design'!H27/100 -> 0.09712 | O57: =O16 ->  | P57: =P16 -> 0.00247 | Q57: =M57+O57 ->  | R57: =J57/D57 -> 0 | S57: =J57/F57 -> 0 | U57: =D57+E57-F57 -> 0 | V57: =D57+J57-N57 -> 0 | W57: =F57+G57+J57+K57+L57-M57 -> 0
A58: Next 80 kW/kWh | D58: ='Rate Design'!H5/100 -> 0.09712 | E58: =F57-D57 -> 0.00425 | F58: ='Rate Design'!H15/100 -> 0.10137 | G58: =G57 -> 0 | H58: =F58+G58 -> 0.10137 | J58: =N57-D57 -> 0 | K58: =K17 -> 0 | L58: =L57 -> 0 | M58: ='Rate Design'!H37/100 -> 0.10137 | N58: ='Rate Design'!H27/100 -> 0.09712 | R58: =J58/D58 -> 0 | S58: =J58/F58 -> 0 | U58: =D58+E58-F58 -> 0 | V58: =D58+J58-N58 -> 0 | W58: =F58+G58+J58+K58+L58-M58 -> 0
A59: All additional kWhs | D59: ='Rate Design'!H6/100 -> 0.06936 | E59: =F59-D59 -> 0.00425 | F59: ='Rate Design'!H16/100 -> 0.07361 | G59: =G57 -> 0 | H59: =F59+G59 -> 0.07361 | J59: =N59-D59 -> 0 | K59: =K57 -> 0 | L59: =L57 -> 0 | M59: ='Rate Design'!H38/100 -> 0.07361 | N59: ='Rate Design'!H28/100 -> 0.06936 | O59: =O57 ->  | P59: =P57 -> 0.00247 | Q59: =M59+O59 ->  | R59: =J59/D59 -> 0 | S59: =J59/F59 -> 0 | U59: =D59+E59-F59 -> 0 | V59: =D59+J59-N59 -> 0 | W59: =F59+G59+J59+K59+L59-M59 -> 0
A63: (1) Includes all present rate adjustments: Schedule 59 (BPA Residential Exchange), Schedule 75 (Decoupling), Schedule 91 (DSM),
A64: Schedule 92 (LIRAP), Schedule 93 (ERM), and Schedule 98 (REC Revenue).

Sheet Exh 4
A1: AVISTA UTILITIES
A2: WASHINGTON ELECTRIC
A3: PROPOSED INCREASE BY SERVICE SCHEDULE
A4: 12 MONTHS ENDED DECEMBER 31, 2018
A5: (000s of Dollars)
A7: May 1, 2019 Increase
D10: Total Billed | F10: Power | G10: Adjusted Billed | H10: Percent
D11: Revenue | E11: Proposed | F11: Supply | G11: Revenue | H11: Increase
B12: Type of | C12: Schedule | D12: at Present | E12: Rate Plan | F12: Update | G12: at Present | H12: on Billed
A13: No. | B13: Service | C13: Number | D13: Rates (1) | E13: Increase (2) | F13: Adjustment | G13: Rates (1) | H13: Revenue | Q13: Rate Plan | R13: PCRA
B14: (a) | C14: (b) | D14: (c) | E14: (d) | F14: (e) | G14: (f) | H14: (g)
A16: 1 | B16: Residential | C16: 1/2 | D16: ='Exh 1'!J16+'Exh 1'!K16+'Exh 1'!L16+'Exh 1'!M16 -> 220074.3289 | E16: ='Exh 1'!E16/'Exh 1'!$E$28*'Exh 4'!$E$63 -> 0 | F16: 0 | G16: =D16+E16+F16 -> 220074.3289 | H16: =(E16+F16)/D16 -> 0 | L16: ='Exh 1'!F16 -> 216074.5975 | M16: =E16/L16 -> 0 | Q16: =E16/D16 -> 0 | R16: =F16/D16 -> 0
A18: 2 | B18: General Service | C18: 11/12 | D18: ='Exh 1'!J18+'Exh 1'!K18+'Exh 1'!L18+'Exh 1'!M18 -> 78691.6308 | E18: ='Exh 1'!E18/'Exh 1'!$E$28*'Exh 4'!$E$63 -> 0 | F18: 0 | G18: =D18+E18+F18 -> 78691.6308 | H18: =(E18+F18)/D18 -> 0 | Q18: =E18/D18 -> 0 | R18: =F18/D18 -> 0
A20: 3 | B20: Large General Service | C20: 21/22 | D20: ='Exh 1'!J20+'Exh 1'!K20+'Exh 1'!L20+'Exh 1'!M20 -> 131866.1341 | E20: ='Exh 1'!E20/'Exh 1'!$E$28*'Exh 4'!$E$63 -> 0 | F20: 0 | G20: 131866.1341 | H20: 0 | Q20: 0 | R20: 0
A22: 4 | B22: Extra Large General Service | C22: 25 | D22: ='Exh 1'!J22+'Exh 1'!K22+'Exh 1'!L22+'Exh 1'!M22 -> 69157.14056 | E22: ='Exh 1'!E22/'Exh 1'!$E$28*'Exh 4'!$E$63 -> 0 | F22: 0 | G22: 69157.14056 | H22: 0 | Q22: 0 | R22: 0
A24: 5 | B24: Pumping Service | C24: 30/31/32 | D24: ='Exh 1'!J24+'Exh 1'!K24+'Exh 1'!L24+'Exh 1'!M24 -> 12658.50082 | E24: ='Exh 1'!E24/'Exh 1'!$E$28*'Exh 4'!$E$63 -> 0 | F24: 0 | G24: 12658.50082 | H24: 0 | Q24: 0 | R24: 0
A26: 6 | B26: Street & Area Lights | C26: 41-48 | D26: ='Exh 1'!J26+'Exh 1'!K26+'Exh 1'!L26+'Exh 1'!M26 -> 6790.244614 | E26: ='Exh 1'!E26/'Exh 1'!$E$28*'Exh 4'!$E$63 -> 0 | F26: 0 | G26: 6790.244614 | H26: 0 | Q26: 0 | R26: 0
A28: 7 | B28: Total | D28: =SUM(D16:D26)+0.2 -> 519238.1798 | E28: =SUM(E16:E26)+0.1 -> 0.1 | F28: =SUM(F16:F26) -> 0 | G28: =SUM(G16:G27) -> 519237.9798 | H28: 1.925898439e-07 | Q28: 1.925898439e-07 | R28: 0
A32: May 1, 2020 Increase
D35: Total Billed | E35: Proposed | F35: Power | G35: Adjusted Billed | H35: Percent
D36: Revenue | E36: Incremental | F36: Supply | G36: Revenue | H36: Increase
B37: Type of | C37: Schedule | D37: at Present | E37: Rate Plan | F37: Update | G37: at Present | H37: on Billed
A38: No. | B38: Service | C38: Number | D38: Rates (1) | E38: Increase (2) | F38: Adjustment | G38: Rates (1) | H38: Revenue
B39: (a) | C39: (b) | D39: (c) | E39: (d) | F39: (e) | G39: (f) | H39: (g)
A41: 1 | B41: Residential | C41: 1/2 | D41: =G16 -> 220074.3289 | E41: ='Exh 1'!E16/'Exh 1'!$E$28*'Exh 4'!$E$64 -> 0 | F41: 0 | G41: =D41+E41+F41 -> 220074.3289 | H41: =(E41+F41)/D41 -> 0 | L41: =L16+E16 -> 216074.5975 | M41: =E41/L41 -> 0
A43: 2 | B43: General Service | C43: 11/12 | D43: =G18 -> 78691.6308 | E43: ='Exh 1'!E18/'Exh 1'!$E$28*'Exh 4'!$E$64 -> 0 | F43: 0 | G43: =D43+E43+F43 -> 78691.6308 | H43: =(E43+F43)/D43 -> 0
A45: 3 | B45: Large General Service | C45: 21/22 | D45: 131866.1341 | E45: ='Exh 1'!E20/'Exh 1'!$E$28*'Exh 4'!$E$64 -> 0 | F45: 0 | G45: 131866.1341 | H45: 0
A47: 4 | B47: Extra Large General Service | C47: 25 | D47: 69157.14056 | E47: ='Exh 1'!E22/'Exh 1'!$E$28*'Exh 4'!$E$64 -> 0 | F47: 0 | G47: 69157.14056 | H47: 0
A49: 5 | B49: Pumping Service | C49: 30/31/32 | D49: 12658.50082 | E49: ='Exh 1'!E24/'Exh 1'!$E$28*'Exh 4'!$E$64 -> 0 | F49: 0 | G49: 12658.50082 | H49: 0
A51: 6 | B51: Street & Area Lights | C51: 41-48 | D51: 6790.244614 | E51: ='Exh 1'!E26/'Exh 1'!$E$28*'Exh 4'!$E$64 -> 0 | F51: 0 | G51: =D51+E51+F51+0.1 -> 6790.344614 | H51: 0
A53: 7 | B53: Total | D53: =SUM(D41:D51)+0.2 -> 519238.1798 | E53: =SUM(E41:E51) -> 0 | F53: =SUM(F41:F51) -> 0 | G53: =SUM(G41:G52) -> 519238.0798 | H53: 0
A58: (1) Includes all present rate adjustments: Schedule 59 (BPA Residential Exchange), Schedule 75 (Decoupling), Schedule 91 (DSM),
A61: (2) The Schedule 96 (Rate Plan Adjustment) increase is proposed to be spread based upon a pro-rata allocation of the May 1, 2018 increase.
C63: Step 1 Rev Req | E63: 0
C64: Step 2 Rev Req | E64: 0

Sheet Exh 5
A1: AVISTA UTILITIES
A2: WASHINGTON ELECTRIC
A3: PROPOSED RATE PLAN (SCHEDULE 96) INCREASE
A4: 12 MONTHS ENDED DECEMBER 31, 2018
A7: May 1, 2019 Increase
D8: Year 1
D9: Schedule 96
D10: Rate Plan | E10: kWh | F10: Cents
B11: Type of | C11: Schedule | D11: Rate | E11: Billing | F11: Per
A12: No. | B12: Service | C12: Number | D12: Adjustment | E12: Determinants | F12: kWh
B13: (a) | C13: (b) | D13: (c) | E13: (d) | F13: (e)
A15: 1 | B15: Residential | C15: 1/2 | D15: ='Exh 4'!E16*1000 -> 0 | E15: ='Pres & Prop Rev'!D23 -> 2374703689 | F15: =ROUND(D15/E15,5) -> 0
A17: 2 | B17: General Service | C17: 11/12 | D17: ='Exh 4'!E18*1000 -> 0 | E17: ='Pres & Prop Rev'!E23 -> 619305952.1 | F17: =ROUND(D17/E17,5) -> 0
A19: 3 | B19: Large General Service | C19: 21/22 | D19: ='Exh 4'!E20*1000 -> 0 | E19: ='Pres & Prop Rev'!F23 -> 1365904624 | F19: 0
A21: 4 | B21: Extra Large General Service | C21: 25 | D21: ='Exh 4'!E22*1000 -> 0 | E21: ='Pres & Prop Rev'!G23 -> 1113564012 | F21: 0
A23: 5 | B23: Pumping Service | C23: 30/31/32 | D23: ='Exh 4'!E24*1000 -> 0 | E23: ='Pres & Prop Rev'!H23 -> 145822517.4 | F23: 0
A25: 6 | B25: Street & Area Lights | C25: 41-48 | D25: ='Exh 4'!E26*1000 -> 0 | E25: ='Pres & Prop Rev'!I23 -> 18542031.54 | F25: 0
A27: 7 | B27: Total | D27: =SUM(D15:D25) -> 0 | E27: =SUM(E15:E25) -> 5637842825
A31: The Schedule 96 (Rate Plan Rate Adjustment) increase is proposed to be spread based upon a pro-rata allocation of the May 1, 2018 increase.
A37: May 1, 2020 Increase | D37: Year 1 | E37: Year 2 | F37: Total
D38: Schedule 96 | E38: Schedule 96 | F38: Schedule 96 | H38: Total
D39: Rate Plan | E39: Rate Plan | F39: Rate Plan | G39: kWh | H39: Cents
B40: Type of | C40: Schedule | D40: Rate | E40: Rate | F40: Rate | G40: Billing | H40: Per
A41: No. | B41: Service | C41: Number | D41: Adjustment | E41: Adjustment | F41: Adjustment | G41: Determinants | H41: kWh
B42: (a) | C42: (b) | D42: (c) | E42: (d) | F42: (e) | G42: (f) | H42: (g)
A44: 1 | B44: Residential | C44: 1/2 | D44: =D15 -> 0 | E44: ='Exh 4'!E41*1000 -> 0 | F44: =D44+E44 -> 0 | G44: =E15 -> 2374703689 | H44: =ROUND(F44/G44,5) -> 0
A46: 2 | B46: General Service | C46: 11/12 | D46: =D17 -> 0 | E46: ='Exh 4'!E43*1000 -> 0 | F46: =D46+E46 -> 0 | G46: =E17 -> 619305952.1 | H46: =ROUND(F46/G46,5) -> 0
A48: 3 | B48: Large General Service | C48: 21/22 | D48: 0 | E48: ='Exh 4'!E45*1000 -> 0 | F48: 0 | G48: =E19 -> 1365904624 | H48: 0
A50: 4 | B50: Extra Large General Service | C50: 25 | D50: 0 | E50: ='Exh 4'!E47*1000 -> 0 | F50: 0 | G50: =E21 -> 1113564012 | H50: 0
A52: 5 | B52: Pumping Service | C52: 30/31/32 | D52: 0 | E52: ='Exh 4'!E49*1000 -> 0 | F52: 0 | G52: =E23 -> 145822517.4 | H52: 0
A54: 6 | B54: Street & Area Lights | C54: 41-48 | D54: 0 | E54: ='Exh 4'!E51*1000 -> 0 | F54: 0 | G54: =E25 -> 18542031.54 | H54: 0
A56: 7 | B56: Total | D56: =SUM(D44:D54) -> 0 | E56: =SUM(E44:E54) -> 0 | F56: 0 | G56: =SUM(G44:G54) -> 5637842825
A60: The Schedule 96 (Rate Plan Rate Adjustment) increase is proposed to be spread based upon a pro-rata allocation of the May 1, 2018 increase.

Sheet ROR
B1: AVISTA UTILITIES
B2: WASHINGTON ELECTRIC
B3: PRESENT & PROPOSED RATE OF RETURN BY RATE SCHEDULE
B4: 12 MONTHS ENDED DECEMBER 31, 2016
C7: Total | D7: Sch 1 | E7: Sch 11 | F7: Sch 21 | G7: Sch 25 | H7: Sch 31 | I7: Schs 41-48
B8: Total Rate Base | C8: =SUM(D8:I8) -> 1592165000 | D8: 770696932.9 | E8: 185672770.9 | F8: 375641340.6 | G8: 181343242.4 | H8: 39462707.94 | I8: 39348005.3 | J8: from COS
B10: Revenue From Retail Rates | C10: =SUM(D10:I10) -> 492134000 | D10: 209489000 | E10: 73766000 | F10: 126766000 | G10: 64348000 | H10: 10894000 | I10: 6871000 | J10: from COS
B11: Other Operating Revenues | C11: =SUM(D11:I11) -> 48595000 | D11: 22053915.74 | E11: 5305927.806 | F11: 11610408.51 | G11: 8184279.799 | H11: 1089289.23 | I11: 351178.9109 | J11: from COS
B12: Total Revenues | C12: =IF(ROUND(C10+C11,0)<>ROUND(SUM(D12:I12),0),#VALUE!,SUM(D12:I12)) -> 540729000 | D12: =D10+D11 -> 231542915.7 | E12: 79071927.81 | F12: 138376408.5 | G12: 72532279.8 | H12: 11983289.23 | I12: 7222178.911
B14: Total Operating Exp b4 conv items & taxes | C14: =SUM(D14:I14) -> 406978000 | D14: =D17-D15-D16 -> 197496643.9 | E14: 46330197.29 | F14: 91545316.12 | G14: 57210827.21 | H14: 9244345.826 | I14: 5150669.641
B15: Revenue Related conversion items | C15: =SUM(D15:I15) -> 24122000 | D15: 10268125.47 | E15: 3615648.283 | F15: 6213448.882 | G15: 3154024.018 | H15: 533970.5609 | I15: 336782.7909 | J15: from COS
B16: Income Taxes | C16: =SUM(D16:I16) -> 24082000 | D16: 787337.8129 | E16: 8873126.561 | F16: 11156823.02 | G16: 2624479.226 | H16: 406778.9334 | I16: 233454.4425 | J16: from COS
B17: Total Expenses | C17: =IF(ROUND(SUM(C14:C16),0)<>ROUND(SUM(D17:I17),0),#VALUE!,SUM(D17:I17)) -> 455182000 | D17: 208552107.2 | E17: 58818972.13 | F17: 108915588 | G17: 62989330.46 | H17: 10185095.32 | I17: 5720906.874 | J17: from COS
D18: .
B19: Net Operating Income | C19: =IF(ROUND(C12-C17,0)<>ROUND(SUM(D19:I19),0),#VALUE!,ROUND(SUM(D19:I19),-3)) -> 85547000 | D19: =D12-D17 -> 22990808.55 | E19: 20252955.68 | F19: 29460820.49 | G19: 9542949.341 | H19: 1798193.91 | I19: 1501272.037
B20: Present Rate of Return | C20: =C19/C8 -> 0.05372998402 | D20: 0.02983119248 | E20: 0.1090787604 | F20: 0.07842805704 | G20: 0.05262368321 | H20: 0.0455669163 | I20: =I19/I8 -> 0.03815370119
B21: Present Return Ratio | C21: =C20/$C20 -> 1 | D21: 0.5552056831 | E21: 2.030128286 | F21: 1.45967021 | G21: 0.9794099919 | H21: 0.8480723963 | I21: 0.710100736
B23: Interest Expense | C23: =SUM(D23:I23) -> 44740000 | D23: 21656662.96 | E23: 5217423.928 | F23: 10555560.25 | G23: 5095763.734 | H23: 1108906.146 | I23: 1105682.99 | J23: from COS
B25: Proposed Misc Revenue Increase | C25: 0
B26: Proposed Rate Revenue Increase | C26: 61356000 | D26: =C26/C10 -> 0.1246733613
B27: Proposed Rev Increase | C27: =C25+C26 -> 61356000
D28: change
B29: Proposed Rate Revenues | C29: =C10+C26 -> 553490000 | D29: =C29-C10 -> 61356000 | F29: Uncollectibles | G29: 0.006578
B30: incremental conversion expenses | C30: =ROUND(C27*G29,-3)+ROUND(C27*G30,-3)+ROUND(C27*G31,-3) -> 2888000 | F30: Commiss Fees | G30: 0.002
B31: incremental Income Taxes | C31: =ROUND(C27*G32,-3) -> 20464000 | F31: Excise Tax | G31: 0.038479
B32: Proposed Return | C32: =C19+C27-C30-C31 -> 123551000 | D32: =C32-C19 -> 38004000 | F32: Federal Inc Tax | G32: 0.33353
B33: Proposed Return % | C33: =C32/C8 -> 0.07759936941
B35: Allocation of incremental Misc Rev | C35: =SUM(D35:I35) -> 0 | D35: 0 | E35: 0 | F35: 0 | G35: 0 | H35: 0 | I35: 0 | J35: from COS
B37: Target Relative Return | C37: =C38/C33 -> 1 | D37: =D39/D8/C33 -> 0.6693456047 | E37: 1.733289642 | F37: 1.351084435 | G37: 1.030282316 | H37: 0.8607753301 | I37: 0.6646150216 | J37: Input | K37: =D26 -> 0.1246733613
B38: Target Return % | C38: =C39/C8 -> 0.07759936941 | D38: =D39/D8 -> 0.05194079684 | E38: 0.1345021832 | F38: 0.1048433002 | G38: 0.07994925801 | H38: 0.06679562282 | I38: 0.05157370658
B39: Target Return (NOI b4 Interest) | C39: =C32 -> 123551000 | D39: =$C$32-SUM(E39:I39) -> 40030612.82 | E39: =E8*E37*$C$32/$C$8 -> 24973393.04 | F39: =F8*F37*$C$32/$C$8 -> 39383477.83 | G39: =G8*G37*$C$32/$C$8 -> 14498257.68 | H39: =H8*H37*$C$32/$C$8 -> 2635936.155 | I39: =I8*I37*$C$32/$C$8 -> 2029322.48 | J39: =ROUND(C39-SUM(D39:I39),0) -> 0
B40: Target Return after Interest Expense | C40: =C39-C23 -> 78811000 | D40: =D39-D23 -> 18373949.86 | E40: 19755969.11 | F40: 28827917.58 | G40: 9402493.942 | H40: 1527030.01 | I40: 923639.4904 | J40: 0
B41: Target Return b4 Income Taxes & Interest | C41: =C40+C16+C31+C23 -> 168097000 | D41: =D40+D23+D40/$C40*SUM($C$16,$C$31) -> 50416040.87 | E41: 36139973.85 | F41: 55677756.76 | G41: 19812788.58 | H41: 3499052.71 | I41: 2551387.227 | J41: 0
B42: Target Return b4 Misc Rev | C42: =C41-C11-$C$25*C35 -> 119502000 | D42: =D41-D11-$C$25*D35 -> 28362125.13 | E42: 30834046.04 | F42: 44067348.25 | G42: 11628508.78 | H42: 2409763.481 | I42: 2200208.316 | J42: 0
B43: =B14 -> Total Operating Exp b4 conv items & taxes | C43: 406978000 | D43: =D14 -> 197496643.9 | E43: 46330197.29 | F43: 91545316.12 | G43: 57210827.21 | H43: 9244345.826 | I43: =I14 -> 5150669.641 | J43: 0
B44: Conversion Items | C44: =C15+C30 -> 27010000 | D44: =$C44*D46/$C46 -> 11587230.95 | E44: 3958756.671 | F44: 6957335.634 | G44: 3531664.005 | H44: 597890.6936 | I44: 377122.0438 | J44: 0
B45: Incremental Rate Revenue | C45: =C26 -> 61356000 | D45: =(D42-D10+D14+($C$44*D10)/$C$29)/(1-$C$44/$C$29) -> 27957000 | E45: 7357000 | F45: 15804000 | G45: 8023000 | H45: 1358000 | I45: 857000 | J45: 0
B46: Target Rate Revenue | C46: =C42+C43+C44 -> 553490000 | D46: =D10+D45 -> 237446000 | E46: 81123000 | F46: 142570000 | G46: 72371000 | H46: 12252000 | I46: 7728000 | J46: 0
B47: Change in Rate Revenue | C47: =C46/C10-1 -> 0.1246733613 | D47: 0.1334533078 | E47: 0.09973429493 | F47: 0.124670653 | G47: 0.1246814198 | H47: 0.1246557738 | I47: 0.124727114
B49: Incremental Rate Revenue - rounded | C49: =SUM(D49:I49) -> 61357000 | D49: =ROUND(D45,-3)+1000 -> 27958000 | E49: =ROUND(E45,-3) -> 7357000 | F49: 15804000 | G49: 8023000 | H49: 1358000 | I49: 857000
B50: Target Rate Revenue - rounded | C50: =SUM(D50:I50) -> 553490000 | D50: =ROUND(D46,-3) -> 237446000 | E50: 81123000 | F50: 142570000 | G50: 72371000 | H50: 12252000 | I50: 7728000
B52: ERM Revenue decrease | C52: =SUM(D52:I52) -> 0 | D52: 0 | E52: 0 | F52: 0 | G52: 0 | H52: 0 | I52: 0
B53: Net Increase | C53: =SUM(D53:I53) -> 61356000 | D53: =D45+D52 -> 27957000 | E53: 7357000 | F53: 15804000 | G53: 8023000 | H53: 1358000 | I53: 857000
B54: Present Billed | C54: =SUM(D54:I54) -> 481541000 | D54: 204738000 | E54: 66923000 | F54: 129127000 | G54: 62716000 | H54: 10909000 | I54: 7128000
B55: Net Increase as % of billed | C55: =C53/C54 -> 0.1274159417 | D55: 0.1365501275 | E55: 0.1099323103 | F55: 0.1223911343 | G55: 0.1279258881 | H55: 0.1244843707 | I55: 0.1202300786
B56: Total Present Billed Revenue | C56: =SUM(D56:I56) -> 519237979.8 | D56: ='Exh 1'!H16*1000 -> 220074328.9 | E56: ='Exh 1'!H18*1000 -> 78691630.8 | F56: ='Exh 1'!H20*1000 -> 131866134.1 | G56: ='Exh 1'!H22*1000 -> 69157140.57 | H56: ='Exh 1'!H24*1000 -> 12658500.82 | I56: ='Exh 1'!H26*1000 -> 6790244.614
B57: % of Present Billed Revenue | C57: =C45/C56 -> 0.1181654701 | D57: =D45/D56 -> 0.1270343531 | E57: 0.09349151778 | F57: 0.1198488157 | G57: 0.1160111586 | H57: 0.1072796865 | I57: 0.1262104753
B59: Movement towards Unity | D59: =(D37-D21)/(1-D21) -> 0.2566128146 | E59: 0.2881569688 | F59: 0.2362253907 | G59: 2.470728689 | H59: 0.08361175666 | I59: -0.1569017932
B61: Movement To Unity | D61: =(D37-D21)/(1-D21) -> 0.2566128146 | E61: 0.2881569688 | F61: 0.2362253907 | G61: 2.470728689 | H61: 0.08361175666 | I61: -0.1569017932
B64: Uniform Present Return | C64: =C19 -> 85547000 | D64: =$C64*D$8/$C$8 -> 41409533.88 | E64: =$C64*E$8/$C$8 -> 9976195.01 | F64: 20183203.23 | G64: 9743569.517 | H64: 2120330.667 | I64: 2114167.696
B65: Present Income Taxes at Unity | C65: =C16 -> 24082000 | D65: 11657035.26 | E65: 2808359.478 | F65: 5681694.275 | G65: 2742873.989 | H65: 596885.9589 | I65: 595151.0451
B66: Operating Expenses (Excl. Rev Rel exp & inc tax) | C66: =SUM(D66:I66) -> 406978000 | D66: =D14 -> 197496643.9 | E66: 46330197.29 | F66: 91545316.12 | G66: 57210827.21 | H66: 9244345.826 | I66: 5150669.641
B67: Deduct Other Operating Revenues | C67: =SUM(D67:I67) -> -48595000 | D67: =-D11 -> -22053915.74 | E67: -5305927.806 | F67: -11610408.51 | G67: -8184279.799 | H67: -1089289.23 | I67: -351178.9109
B68: Revenue Related Expenses at Unity | C68: =C15 -> 24122000 | D68: =$C68*SUM(D64:D67)/SUM($C$64:$C$67) -> 11777692.17 | E68: 2773382.844 | F68: 5453071.5 | G68: 3170466.499 | H68: 560372.3295 | I68: 387014.6536
B69: Total Uniform Cost at Present Return | C69: =SUM(C64:C68) -> 492134000 | D69: =SUM(D64:D68) -> 240286989.5 | E69: 56582206.81 | F69: 111252876.6 | G69: 64683457.42 | H69: 11432645.55 | I69: 7895824.124
B71: Uniform Proposed Return | C71: =C32 -> 123551000 | D71: =$C71*D$8/$C$8 -> 59805596 | E71: =$C71*E$8/$C$8 -> 14408089.94 | F71: =$C71*F$8/$C$8 -> 29149531.16 | G71: 14072121.26 | H71: 3062281.252 | I71: 3053380.399
B72: Proposed Income Taxes at Unity | C72: =C16+C31 -> 44546000 | D72: 21562756.1 | E72: 5194800.319 | F72: 10509789.6 | G72: 5073667.664 | H72: 1104097.746 | I72: 1100888.566
B73: Operating Expenses (Excl. Rev Rel exp & inc tax) | C73: =SUM(D73:I73) -> 406978000 | D73: =D14 -> 197496643.9 | E73: 46330197.29 | F73: 91545316.12 | G73: 57210827.21 | H73: 9244345.826 | I73: 5150669.641
B74: Deduct Other Operating Revenues | C74: =SUM(D74:I74) -> -48595000 | D74: =-D11-$C$25*D35 -> -22053915.74 | E74: -5305927.806 | F74: -11610408.51 | G74: -8184279.799 | H74: -1089289.23 | I74: -351178.9109
B75: Proposed Revenue Related Expenses at Unity | C75: =C15+C30 -> 27010000 | D75: =$C75*SUM(D71:D74)/SUM($C$71:$C$74) -> 13175177.17 | E75: 3110354.78 | F75: 6135541.916 | G75: 3497444.926 | H75: 632126.5298 | I75: 459354.6751
B76: Total Uniform Cost at Proposed Return | C76: =SUM(C71:C75) -> 553490000 | D76: =SUM(D71:D75) -> 269986257.4 | E76: 63737514.51 | F76: 125729770.3 | G76: 71669781.26 | H76: 12953562.12 | I76: 9413114.37
B78: Revenue Change to Achieve Unity (rounded) | C78: =SUM(D78:I78) -> 61355000 | D78: =ROUND(D76-D10,-3)-2000 -> 60495000 | E78: =ROUND(E76-E10,-3) -> -10028000 | F78: =ROUND(F76-F10,-3) -> -1036000 | G78: =ROUND(G76-G10,-3) -> 7322000 | H78: =ROUND(H76-H10,-3) -> 2060000 | I78: =ROUND(I76-I10,-3) -> 2542000
B80: Revenue to Cost Ratio at Present Rates | C80: =C10/C69 -> 1 | D80: 0.8718283102 | E80: 1.303696058 | F80: 1.1394402 | G80: 0.9948138607 | H80: 0.95288531 | I80: 0.8702068197
B81: Revenue to Cost Ratio at Proposed Rates | C81: =C46/C76 -> 1 | D81: 0.8794743934 | E81: 1.272766919 | F81: 1.133939875 | G81: 1.009784022 | H81: 0.9458402162 | I81: 0.8209822696
B82: Change in Revenue to Cost Ratio | C82: =C81-C80 -> 0 | D82: 0.007646083246 | E82: -0.03092913904 | F82: -0.00550032521 | G82: 0.01497016154 | H82: -0.007045093743 | I82: -0.04922455005
C83: =C82/(1-C80) -> 0 | D83: 0.0596550085 | E83: 0.1018424118 | F83: 0.03944576385 | G83: 2.886571453 | H83: -0.1495307246 | I83: -0.3792537476

Sheet Rate Spread GRC
A3: Avista
A4: Electric
A5: Rate Spread
D9: Base Tariff | F9: Base | J9: Adjusted Billed | L9: Percent
D10: Revenue | E10: Percentage | F10: Tariff | G10: Proposed | H10: Proposed | J10: Revenue | K10: Power Cost | L10: Increase
B11: Type of | C11: Schedule | D11: Under Present | E11: of Base | F11: Percent | G11: General | H11: Base Tariff | J11: at Present | K11: Rate Adjustment | L11: on Billed
A12: No. | B12: Service | C12: Number | D12: Rates(1) | E12: Increase | F12: Increase | G12: Increase | H12: Revenue | J12: Rates (2) | K12: Expiration | L12: Revenue
B13: (a) | C13: (b) | D13: (c) | E13: (d) | F13: (e) | G13: (f) | H13: (g) | J13: (i) | K13: (k) | L13: (l)
D14: =IF(Base1_Billing2<>1,"ERROR","") -> 
A15: 1 | B15: Residential | C15: 1/2 | D15: ='Pres & Prop Rev'!$D$152/1000 -> 216074.5975 | E15: 1.070422053 | F15: =E15*$E$30 -> 0 | G15: =F15*D15 -> 0 | H15: =D15+G15+0.3 -> 216074.8975 | J15: ='Exh 1'!H16+'Exh 1'!I16 -> 220074.3289 | K15: ='Exh 1'!L16 -> 0 | L15: =(G15+K15)/J15 -> 0
A17: 2 | B17: General Service | C17: 11/12 | D17: ='Pres & Prop Rev'!$E$152/1000 -> 75060.95344 | E17: 0.8 | F17: =E17*$E$30 -> 0 | G17: =F17*D17 -> 0 | H17: =D17+G17 -> 75060.95344 | J17: ='Exh 1'!H18+'Exh 1'!I18 -> 78691.6308 | K17: ='Exh 1'!L18 -> 0 | L17: =(G17+K17)/J17 -> 0
A19: 3 | B19: Large General Service | C19: 21/22 | D19: ='Pres & Prop Rev'!$F$152/1000 -> 125677.2681 | E19: 1 | F19: =E19*$E$30 -> 0 | G19: =F19*D19 -> 0 | H19: 125677.2681 | J19: ='Exh 1'!H20+'Exh 1'!I20 -> 131866.1341 | K19: ='Exh 1'!L20 -> 0 | L19: 0
A21: 4 | B21: Extra Large General Service | C21: 25 | D21: ='Pres & Prop Rev'!$G$152/1000 -> 66743.70757 | E21: 1 | F21: 0 | G21: 0 | H21: =D21+G21-0.2 -> 66743.50757 | J21: ='Exh 1'!H22+'Exh 1'!I22 -> 69157.14057 | K21: ='Exh 1'!L22 -> 0 | L21: 0
A23: 5 | B23: Pumping Service | C23: 30/31/32 | D23: ='Pres & Prop Rev'!$H$152/1000 -> 12038.75511 | E23: 1 | F23: 0 | G23: 0 | H23: 12038.75511 | J23: ='Exh 1'!H24+'Exh 1'!I24 -> 12658.50082 | K23: ='Exh 1'!L24 -> 0 | L23: 0
A25: 6 | B25: Street & Area Lights | C25: 41-48 | D25: ='Pres & Prop Rev'!$I$152/1000 -> 6424.02348 | E25: 1 | F25: 0 | G25: 0 | H25: 6424.02348 | J25: ='Exh 1'!H26+'Exh 1'!I26 -> 6790.244614 | K25: ='Exh 1'!L26 -> 0 | L25: 0
A27: 7 | B27: Total | D27: =SUM(D15:D25) -> 502019.3052 | F27: =D30/$D$27 -> 0 | G27: =SUM(G15:G25) -> 0 | H27: 502019.3052 | J27: ='Exh 1'!H28+'Exh 1'!I28 -> 519237.9798 | K27: =SUM(K15:K25) -> 0 | L27: 0
D28: =ROUND(D27-'Pres & Prop Rev'!C205/1000,0) -> 0 | G28: =ROUND(G27-D30,0) -> 0
B30: Revenue Requirement | D30: 0 | E30: =D30/D27 -> 0
H31: =G27/511823 -> 0

Sheet Bill Determ
A1: AVISTA UTILITIES
A2: WASHINGTON ELECTRIC
A3: ACTUAL / PRO FORMA BILLING DETERMINANTS BY RATE SCHEDULE
A4: 12 MONTHS ENDED DECEMBER 31, 2016
A8: Schedule 1, 2 | B8: 0-800 kWhs | C8: 801-1500 kWhs | D8: over 1500 kWhs | E8: Total kWhs | F8: Total Billings(2)
A9: kWhs per billing run(1) | B9: ='Block Data'!O21 -> 1605882414 | C9: ='Block Data'!O22 -> 487014728.2 | D9: ='Block Data'!O23 -> 273738139.5 | E9: =B9+C9+D9 -> 2366635282 | F9: ='REVRUNS 12ME1218'!P36 -> 2587975
A10: Total kWhs per Rev. Run(2) | E10: ='Block Data'!O13 -> 2366635282
A11: Adjust. kWhs to Actual | E11: =E10-E9 -> 0
A14: Schedule 11,12 | B14: 0-3,650 kWhs | C14: over 3,650 kWhs | D14: Total kWhs | E14: kw over 20(1) | F14: Total Billings(2) | G14: kvar billed(1)
A15: kWhs per Revenue Run(1) | B15: ='Block Data'!O38 -> 430539202.5 | C15: ='Block Data'!O39 -> 192163370.7 | D15: =B15+C15 -> 622702573.1 | E15: ='Block Data'!O45 -> 433206.9797 | F15: ='REVRUNS 12ME1218'!P37 -> 386800 | G15: ='Block Data'!O49 -> 11289.9
A16: Shifted from Sch 21 | B16: 0 | C16: 0 | D16: =SUM(B16:C16) -> 0 | E16: 0 | F16: 0 | G16: 0
A17: Total by Block | B17: =SUM(B15:B16) -> 430539202.5 | C17: 192163370.7 | D17: 622702573.1 | E17: 433206.9797 | F17: 386800 | G17: 11289.9
A18: Total kWhs per Rev. Run(2) | D18: ='Block Data'!O31 -> 622702573.1
A19: Schedule Shifting from 21 | D19: =D16 -> 0
A20: Total Adjusted kWhs | D20: =D18+D19 -> 622702573.1
A21: Adjust. kWhs to Actual | D21: =D20-D17 -> 0
A24: Schedule 21,22 | B24: 0-250,000 kWhs | C24: over 250,000 kWhs | D24: Total kWhs | E24: kw over 50(1) | F24: Total Billings(2) | G24: kvar billed(1)
A25: kWhs per Revenue Run(1) | B25: ='Block Data'!O64 -> 1232886422 | C25: ='Block Data'!O65 -> 147453504.2 | D25: =B25+C25 -> 1380339926 | E25: ='Block Data'!O71 -> 2634662.436 | F25: ='REVRUNS 12ME1218'!P38 -> 22787 | G25: ='Block Data'!O75 -> 231477.24
A26: Special Contract Shifted to Sched 21 | B26: 0 | C26: 0 | D26: =SUM(B26:C26) -> 0 | E26: 0 | F26: 0 | G26: 0
A27: Shifted to Sch 011(4) | B27: =-D16 -> 0 | C27: 0 | D27: =SUM(B27:C27) -> 0 | E27: 0 | F27: =-F16 -> 0 | G27: =-G16 -> 0
A28: Total | B28: =SUM(B25:B27) -> 1232886422 | C28: =SUM(C25:C27) -> 147453504.2 | D28: =SUM(B28:C28) -> 1380339926 | E28: =SUM(E25:E27) -> 2634662.436 | F28: =SUM(F25:F27) -> 22787 | G28: =SUM(G25:G27) -> 231477.24
A29: Total kWhs per Rev. Run(2) | D29: ='Block Data'!O57 -> 1380339926
A30: Schedule Shifting to Sch. 21 | D30: =D26 -> 0
A31: Schedule Shifting to Sch. 11 | D31: =D27 -> 0
A32: Total adjusted kWhs | D32: =D29+D30+D31 -> 1380339926
A33: Adjust. kWhs to Actual | D33: =D32-D28 -> 0
A36: Schedule 25(3) | B36: 0-500,000 kWhs | C36: 500,001-6M kWhs | D36: > 6M kWhs | E36: Total kWhs | F36: kva over 3,000 | G36: Total Billings(2)
A37: Total | B37: ='WA Sch 25'!Q27 -> 138000000 | C37: ='WA Sch 25'!R27 -> 561355022.9 | D37: ='WA Sch 25'!S27 -> 414208988.8 | E37: =SUM(B37:D37) -> 1113564012 | F37: ='WA Sch 25'!P91 -> 1279394.393 | G37: =23*12 -> 276
A40: Schedule 30, 31, & 32 | B40: Block 1 kWhs | C40: Block 2 kWhs | D40: Block 3 kWhs | E40: Total kWhs | F40: Total Billings(2) | G40: kvar billed(1)
A41: kWhs per billing run (30,31& 32)(1) | B41: ='Block Data'!O92 -> 36763073.91 | C41: ='Block Data'!O93 -> 11229371.08 | D41: ='Block Data'!O94 -> 97815247.46 | E41: =B41+C41+D41 -> 145807692.4 | F41: ='REVRUNS 12ME1218'!P40 -> 29446 | G41: ='Block Data'!O99 -> 6359.14
A42: Schedule 31 to 30 Shifting Adj | B42: 0 | C42: 0 | D42: =-B42-C42 -> 0 | E42: =SUM(B42:D42) -> 0
A43: Total Schs. 30,31&32 | B43: =B41+B42 -> 36763073.91 | C43: =C41+C42 -> 11229371.08 | D43: =D41+D42 -> 97815247.46 | E43: =E41+E42 -> 145807692.4
A44: Total kWhs per Rev. Run(2) | E44: ='Block Data'!O84 -> 145807692.4
A45: Adjust kWhs to Actual | E45: =E44-E43 -> 0
A49: (1) From workpaper PDE-E-22/23
A50: (2) From workpaper PDE-E-19
A51: (3) From workpaper PDE-E-7/8
A62: Revenue Runs from this sheet | B62: =E10+D18+D29+E44+E37 -> 5629049485
A64: actual Revenue Runs | B64: ='REVRUNS 12ME1218'!P288 -> 5557003938
A65: less:
A66: Sch 25 Adj | B66: ='REVRUNS 12ME1218'!P285-'Bill Determ'!E37 -> -90587578.14 | C66: rev. runs too high
A68: Sch shifting | B68: =D26 -> 0 | C68: not shown on this sheet
A69: Schs 41-48 St & Area Lt | B69: ='REVRUNS 12ME1218'!P287 -> 18542031.54 | C69: not shown on this sheet
B70: =B64-SUM(B66:B69) -> 5629049485
A71: Diff | B71: =B62-B70 -> 0
A73: from Present Rev tab | B73: ='Pres & Prop Rev'!C20-'Pres & Prop Rev'!C15 -> 5647591516
A74: this sheet + SAL | B74: =B62+B69+B68 -> 5647591516
A75: Diff | B75: =B73-B74 -> 0
A78: Rev. Run customers | B78: ='REVRUNS 12ME1218'!P42 -> 3032358
A79: less:
A80: normalize Sch 25 | B80: ='REVRUNS 12ME1218'!P39-G37 -> -23 | C80: rev. runs too low
A81: Sch Shifting | B81: =-F26 -> 0 | C81: not shown on this sheet
A82: Schs 41-48 St & Area Lt | B82: ='REVRUNS 12ME1218'!P41 -> 5097 | C82: not shown on this sheet
B83: =B78-SUM(B79:B82) -> 3027284
A85: from Present Rev tab | B85: =SUM('Pres & Prop Rev'!D25:I25) -> 3027284
A86: Diff | B86: =B83-B85 -> 0

Sheet Sch 93 PCRA
A3: Schedule 93
A4: Power Cost Rate Adjustment
E7: Schedule 93
D8: Present | E8: Power Cost | F8: kWh | G8: Cents
B9: Type of | C9: Schedule | D9: Billed | E9: Rate | F9: Billing | G9: Per
A10: No. | B10: Service | C10: Number | D10: Revenue | E10: Adjustment | F10: Determinants | G10: kWh
B11: (a) | C11: (b) | D11: (c) | E11: (d) | F11: (e) | G11: (f)
A13: 1 | B13: Residential | C13: 1/2 | D13: ='Exh 1'!H16*1000 -> 220074328.9 | E13: =F13*G13 -> 0 | F13: ='Pres & Prop Rev'!D23 -> 2374703689 | G13: 0
A15: 2 | B15: General Service | C15: 11/12 | D15: ='Exh 1'!H18*1000 -> 78691630.8 | E15: =F15*G15 -> 0 | F15: ='Pres & Prop Rev'!E23 -> 619305952.1 | G15: 0
A17: 3 | B17: Large General Service | C17: 21/22 | D17: ='Exh 1'!H20*1000 -> 131866134.1 | E17: 0 | F17: ='Pres & Prop Rev'!F23 -> 1365904624 | G17: 0
A19: 4 | B19: Extra Large General Service | C19: 25 | D19: ='Exh 1'!H22*1000 -> 69157140.57 | E19: 0 | F19: ='Pres & Prop Rev'!G23 -> 1113564012 | G19: 0
A21: 5 | B21: Pumping Service | C21: 30/31/32 | D21: ='Exh 1'!H24*1000 -> 12658500.82 | E21: 0 | F21: ='Pres & Prop Rev'!H23 -> 145822517.4 | G21: 0
A23: 6 | B23: Street & Area Lights | C23: 41-48 | D23: ='Exh 1'!H26*1000 -> 6790244.614 | E23: 0 | F23: ='Pres & Prop Rev'!I23 -> 18542031.54 | G23: 0
A25: 7 | B25: Total | D25: ='Exh 1'!H28*1000 -> 519237979.8 | E25: =SUM(E13:E23) -> 0 | F25: =SUM(F13:F23) -> 5637842825
A29: * Expires when new base rates go into effect from GRC.
B32: Rev Req | C32: =E25/D25 -> 0 | D32: =(D25)*C32 -> 0

Sheet ERM Rebate Yr 1-3
A3: Schedule 93
A4: Energy Recovery Mechanism Adjustment
A7: Uniform Cent
H8: Schedule 93
D9: Cents | F9: kWh | H9: Power Supply
B10: Type of | C10: Schedule | D10: Per | F10: Billing | H10: Revenue | J10: Avg | K10: Monthly | L10: Annual
A11: No. | B11: Service | C11: Number | D11: kWh | F11: Determinants | H11: Decrease | J11: Usage | K11: Rebate | L11: Rebate | M11: %
B12: (a) | C12: (b) | D12: (c) | F12: (e) | H12: (d)
A14: 1 | B14: Residential | C14: 1/2 | D14: =$F$30 -> 0 | F14: ='Pres & Prop Rev'!D23 -> 2374703689 | H14: =F14*D14 -> 0 | J14: ='Bill Impact'!A18 -> 918 | K14: ='Bill Impact'!A18*'ERM Rebate Yr 1-3'!F30 -> 0 | L14: =K14*12 -> 0 | M14: =K14/P14 -> 0 | P14: ='Bill Impact'!E18 -> 81.21
A16: 2 | B16: General Service | C16: 11/12 | D16: =$F$30 -> 0 | F16: ='Pres & Prop Rev'!E23 -> 619305952.1 | H16: =F16*D16 -> 0 | J16: ='Pres & Prop Rev'!E300 -> 1601.101221 | K16: =J16*D16 -> 0 | L16: =K16*12 -> 0
A18: 3 | B18: Large General Service | C18: 21/22 | D18: =$F$30 -> 0 | F18: ='Pres & Prop Rev'!F23 -> 1365904624 | H18: =F18*D18 -> 0 | J18: ='Pres & Prop Rev'!F300 -> 59942.27516 | K18: =J18*D18 -> 0 | L18: 0
A20: 4 | B20: Extra Large General Service | C20: 25 | D20: =$F$30 -> 0 | F20: ='Pres & Prop Rev'!G23 -> 1113564012 | H20: =F20*D20 -> 0 | I20: IEP | J20: ='WA Sch 25'!P14/12 -> 40452281.83 | K20: =J20*F30 -> 0 | L20: =K20*12 -> 0 | M20: =K20/P20 -> 0 | P20: ='WA Sch 25'!P129/12 -> 2079173.971
I21: Sch 25 | J21: ='Pres & Prop Rev'!G300 -> 4034652.216 | K21: =J21*F30 -> 0 | L21: =K21*12 -> 0
A22: 5 | B22: Pumping Service | C22: 30/31/32 | D22: =$F$30 -> 0 | F22: ='Pres & Prop Rev'!H23 -> 145822517.4 | H22: =F22*D22 -> 0
A24: 6 | B24: Street & Area Lights | C24: 41-48 | D24: =$F$30 -> 0 | F24: ='Pres & Prop Rev'!I23 -> 18542031.54 | H24: =F24*D24 -> 0
A26: 7 | B26: Total | F26: =SUM(F14:F24) -> 5637842825 | H26: =SUM(H14:H24) -> 0
B30: Rev Req | D30: 0 | F30: =D30/F26 -> 0
B31: Billed Percentage | D31: =(D30/1000)/'Exh 1'!J28 -> 0
A33: Uniform % Spread / Uniform Cent to Blocks
H34: Schedule 93
D35: Cents | F35: kWh | H35: Power Supply | T35: Present
B36: Type of | C36: Schedule | D36: Per | F36: Billing | H36: Revenue | J36: Avg | K36: Monthly | L36: Annual | T36: Base | U36: ERM
A37: No. | B37: Service | C37: Number | D37: kWh | F37: Determinants | H37: Decrease | J37: Usage | K37: Rebate | L37: Rebate | M37: % | T37: Revenue | U37: $
B38: (a) | C38: (b) | D38: (c) | F38: (e) | H38: (d)
A40: 1 | B40: Residential | C40: 1/2 | D40: =U40/F40 -> 0 | F40: ='Pres & Prop Rev'!D23 -> 2374703689 | H40: =F40*D40 -> 0 | J40: =J14 -> 918 | K40: =J40*D40 -> 0 | L40: =K40*12 -> 0 | M40: =K40/P40 -> 0 | P40: =P14 -> 81.21 | T40: ='Exh 1'!D16 -> 216074.5975 | U40: =(T40/$T$52)*$D$30 -> 0
A42: 2 | B42: General Service | C42: 11/12 | D42: =U42/F42 -> 0 | F42: ='Pres & Prop Rev'!E23 -> 619305952.1 | H42: =F42*D42 -> 0 | J42: =J16 -> 1601.101221 | K42: =J42*D42 -> 0 | L42: =K42*12 -> 0 | T42: ='Exh 1'!D18 -> 75060.95344 | U42: =(T42/$T$52)*$D$30 -> 0
A44: 3 | B44: Large General Service | C44: 21/22 | D44: =U44/F44 -> 0 | F44: ='Pres & Prop Rev'!F23 -> 1365904624 | H44: =F44*D44 -> 0 | J44: =J18 -> 59942.27516 | K44: =J44*D44 -> 0 | L44: 0 | T44: ='Exh 1'!D20 -> 125677.2681 | U44: =(T44/$T$52)*$D$30 -> 0
A46: 4 | B46: Extra Large General Service | C46: 25 | D46: =U46/F46 -> 0 | F46: ='Pres & Prop Rev'!G23 -> 1113564012 | H46: =F46*D46 -> 0 | I46: IEP | J46: =J20 -> 40452281.83 | K46: =J46*D46 -> 0 | L46: =K46*12 -> 0 | M46: =K46/P46 -> 0 | P46: =P20 -> 2079173.971 | T46: ='Exh 1'!D22 -> 66743.70757 | U46: =(T46/$T$52)*$D$30 -> 0
I47: Sch 25 | J47: =J21 -> 4034652.216 | K47: =J47*D46 -> 0 | L47: =K47*12 -> 0
A48: 5 | B48: Pumping Service | C48: 30/31/32 | D48: =U48/F48 -> 0 | F48: ='Pres & Prop Rev'!H23 -> 145822517.4 | H48: =F48*D48 -> 0 | T48: ='Exh 1'!D24 -> 12038.75511 | U48: =(T48/$T$52)*$D$30 -> 0
A50: 6 | B50: Street & Area Lights | C50: 41-48 | D50: =U50/F50 -> 0 | F50: ='Pres & Prop Rev'!I23 -> 18542031.54 | H50: =F50*D50 -> 0 | T50: ='Exh 1'!D26 -> 6424.02348 | U50: =(T50/$T$52)*$D$30 -> 0
A52: 7 | B52: Total | F52: =SUM(F40:F50) -> 5637842825 | H52: =SUM(H40:H50) -> 0 | T52: ='Exh 1'!D28 -> 502019.3052 | U52: =SUM(U40:U50) -> 0
B56: Rev Req | D56: 0 | F56: =D56/F52 -> 0
B57: Billed Percentage | D57: =(D56/1000)/'Exh 4'!D28 -> 0
A60: Generation Allocator (like REC Revenue)
H61: Schedule 93
D62: Cents | F62: kWh | H62: Power Supply | V62: Generation
B63: Type of | C63: Schedule | D63: Per | F63: Billing | H63: Revenue | J63: Avg | K63: Monthly | L63: Annual | V63: Percentage
A64: No. | B64: Service | C64: Number | D64: kWh | F64: Determinants | H64: Decrease | J64: Usage | K64: Rebate | L64: Rebate | M64: %
B65: (a) | C65: (b) | D65: (c) | F65: (e) | H65: (d)
A67: 1 | B67: Residential | C67: 1/2 | D67: =T67/F67 -> 0 | F67: ='Pres & Prop Rev'!D23 -> 2374703689 | H67: =F67*D67 -> 0 | J67: =J14 -> 918 | K67: =J67*D67 -> 0 | L67: =K67*12 -> 0 | M67: =K67/P67 -> 0 | P67: =P14 -> 81.21 | T67: =$D$83*V67 -> 0 | V67: 0.4195978592
A69: 2 | B69: General Service | C69: 11/12 | D69: =T69/F69 -> 0 | F69: ='Pres & Prop Rev'!E23 -> 619305952.1 | H69: =F69*D69 -> 0 | J69: =J16 -> 1601.101221 | K69: =J69*D69 -> 0 | L69: =K69*12 -> 0 | T69: =$D$83*V69 -> 0 | V69: 0.1107216016
A71: 3 | B71: Large General Service | C71: 21/22 | D71: =T71/F71 -> 0 | F71: ='Pres & Prop Rev'!F23 -> 1365904624 | H71: =F71*D71 -> 0 | J71: 59942.27516 | K71: =J71*D71 -> 0 | L71: 0 | T71: 0 | V71: 0.2499537582
A73: 4 | B73: Extra Large General Service | C73: 25 | D73: =T73/F73 -> 0 | F73: ='Pres & Prop Rev'!G23 -> 1113564012 | H73: =F73*D73 -> 0 | I73: IEP | J73: =J46 -> 40452281.83 | K73: =J73*D73 -> 0 | L73: =K73*12 -> 0 | M73: =K73/P73 -> 0 | P73: =P46 -> 2079173.971 | T73: 0 | V73: 0.1919032788
I74: Sch 25 | J74: =J47 -> 4034652.216 | K74: =J74*D73 -> 0 | L74: =K74*12 -> 0
A75: 5 | B75: Pumping Service | C75: 30/31/32 | D75: =T75/F75 -> 0 | F75: ='Pres & Prop Rev'!H23 -> 145822517.4 | H75: =F75*D75 -> 0 | T75: 0 | V75: 0.02371593998
A77: 6 | B77: Street & Area Lights | C77: 41-48 | D77: =T77/F77 -> 0 | F77: ='Pres & Prop Rev'!I23 -> 18542031.54 | H77: =F77*D77 -> 0 | T77: 0 | V77: 0.004107562309
A79: 7 | B79: Total | F79: =SUM(F67:F77) -> 5637842825 | H79: =SUM(H67:H77) -> 0 | T79: =-H52+H79 -> 0 | V79: =SUM(V67:V77) -> 1
B83: Rev Req | D83: 0 | F83: =D83/F79 -> 0
B84: Billed Percentage | D84: =(D83/1000)/'Exh 4'!D53 -> 0

Sheet Sch 25 - Billing Rate
A1: WA 2017 GRC | D1: Billing Rates | J1: =D1 -> Billing Rates
J2: PRESENT RATES | L2: Block1 | M2: Block2 | N2: Block3
A3: PRESENT | J3: Base--> | K3: ='Rate Design'!G9 -> 24000 | L3: ='Rate Design'!G5/100 -> 0.05505 | M3: ='Rate Design'!G6/100 -> 0.04953 | N3: ='Rate Design'!G7/100 -> 0.04235 | O3: ='Rate Design'!G10 -> 6.5 | P3: -0.2 | Q3: -1.1 | R3: -1.4
C4: Kwh usage | F4: kva usage | G4: KVA usage | J4: Billing--> | K4: ='Rate Design'!G19 -> 24000 | L4: ='Rate Design'!G15/100 -> 0.0575 | M4: ='Rate Design'!G16/100 -> 0.05198 | N4: ='Rate Design'!G17/100 -> 0.04404 | O4: ='Rate Design'!G20 -> 6.5 | P4: -0.2 | Q4: -1.1 | R4: -1.4
C5: Block1 | D5: Block2 | E5: Block3 | F5: > 3000 | G5: >= 11 kv | H5: >= 60 kv | I5: >= 115 kv | K5: Cust Chg | L5: Energy | O5: Demand | P5: PV Discount | S5: Total
A6: 1 | B6: ='WA Sch 25'!B4 -> Goodrich - North 2311008572 | C6: ='WA Sch 25'!Q4 -> 6000000 | D6: ='WA Sch 25'!R4 -> 61924320 | E6: ='WA Sch 25'!S4 -> 781606.8 | F6: ='WA Sch 25'!P68 -> 95148.954 | G6: ='WA Sch 25'!P41 -> 131148.954 | K6: =$K$4*12 -> 288000 | L6: =C6*$L$4 -> 345000 | M6: =D6*$M$4 -> 3218826.154 | N6: =E6*$N$4 -> 34421.96347 | O6: =F6*$O$4 -> 618468.201 | P6: =G6*$P$4 -> -26229.7908 | Q6: =H6*$Q$4 -> 0 | R6: =I6*$R$4 -> 0 | S6: =SUM(K6:R6) -> 4478486.527
A7: 22 | B7: ='WA Sch 25'!B5 -> Goodrich - South 2311155858 (No PVD) | C7: ='WA Sch 25'!Q5 -> 6000000 | D7: ='WA Sch 25'!R5 -> 2207545.6 | E7: ='WA Sch 25'!S5 -> 0 | F7: ='WA Sch 25'!P69 -> 0 | G7: ='WA Sch 25'!P42 -> 26781.116 | K7: =$K$4*12 -> 288000 | L7: =C7*$L$4 -> 345000 | M7: =D7*$M$4 -> 114748.2203 | N7: =E7*$N$4 -> 0 | O7: =F7*$O$4 -> 0 | P7: =G7*$P$4 -> -5356.2232 | Q7: =H7*$Q$4 -> 0 | R7: =I7*$R$4 -> 0 | S7: =SUM(K7:R7) -> 742391.9971
A8: 23 | B8: ='WA Sch 25'!B6 -> Boise Cascade LLC Inland Region | C8: ='WA Sch 25'!Q6 -> 6000000 | D8: ='WA Sch 25'!R6 -> 4404968.7 | E8: ='WA Sch 25'!S6 -> 0 | F8: ='WA Sch 25'!P70 -> 9316.698 | G8: ='WA Sch 25'!P43 -> 45316.698 | K8: =$K$4*12 -> 288000 | L8: =C8*$L$4 -> 345000 | M8: =D8*$M$4 -> 228970.273 | N8: =E8*$N$4 -> 0 | O8: =F8*$O$4 -> 60558.537 | P8: =G8*$P$4 -> -9063.3396 | Q8: =H8*$Q$4 -> 0 | R8: =I8*$R$4 -> 0 | S8: =SUM(K8:R8) -> 913465.4704
A9: 2 | B9: ='WA Sch 25'!B7 -> Boise Cascade Plywood | C9: ='WA Sch 25'!Q7 -> 6000000 | D9: ='WA Sch 25'!R7 -> 27830760.6 | E9: ='WA Sch 25'!S7 -> 0 | F9: ='WA Sch 25'!P71 -> 24982.638 | G9: ='WA Sch 25'!P44 -> 60982.638 | K9: =$K$4*12 -> 288000 | L9: =C9*$L$4 -> 345000 | M9: =D9*$M$4 -> 1446642.936 | N9: =E9*$N$4 -> 0 | O9: =F9*$O$4 -> 162387.147 | P9: =G9*$P$4 -> -12196.5276 | Q9: =H9*$Q$4 -> 0 | R9: =I9*$R$4 -> 0 | S9: =SUM(K9:R9) -> 2229833.555
A10: 3 | B10: ='WA Sch 25'!B8 -> Boise Cascade Sawmill | C10: ='WA Sch 25'!Q8 -> 6000000 | D10: ='WA Sch 25'!R8 -> 9854475.7 | E10: ='WA Sch 25'!S8 -> 0 | F10: ='WA Sch 25'!P72 -> 331.294 | G10: ='WA Sch 25'!P45 -> 34362.748 | K10: 288000 | L10: 345000 | M10: 512235.6469 | N10: 0 | O10: 2153.411 | P10: -6872.5496 | Q10: 0 | R10: 0 | S10: =SUM(K10:R10) -> 1140516.508
A11: 4 | B11: ='WA Sch 25'!B9 -> City of Spokane | C11: ='WA Sch 25'!Q9 -> 6000000 | D11: ='WA Sch 25'!R9 -> 9063473.244 | E11: ='WA Sch 25'!S9 -> 0 | F11: ='WA Sch 25'!P73 -> 0 | G11: ='WA Sch 25'!P46 -> 30830.211 | K11: 288000 | L11: =C11*$L$4 -> 345000 | M11: 471119.3392 | N11: 0 | O11: 0 | P11: -6166.0422 | Q11: 0 | R11: 0 | S11: 1097953.297
A12: 5 | B12: ='WA Sch 25'!B10 -> Empire Health Services | C12: ='WA Sch 25'!Q10 -> 6000000 | D12: ='WA Sch 25'!R10 -> 15479225.25 | E12: ='WA Sch 25'!S10 -> 0 | F12: ='WA Sch 25'!P74 -> 4435.657 | G12: ='WA Sch 25'!P47 -> 39526.487 | K12: 288000 | L12: 345000 | M12: 804610.1285 | N12: 0 | O12: 28831.7705 | P12: -7905.2974 | Q12: 0 | R12: 0 | S12: 1458536.602
A13: 6 | B13: ='WA Sch 25'!B11 -> Gonzaga University | C13: ='WA Sch 25'!Q11 -> 6000000 | D13: ='WA Sch 25'!R11 -> 18858869 | E13: ='WA Sch 25'!S11 -> 0 | F13: ='WA Sch 25'!P75 -> 20426.99 | G13: ='WA Sch 25'!P48 -> 56426.99 | K13: 288000 | L13: 345000 | M13: 980284.0106 | N13: 0 | O13: 132775.435 | P13: -11285.398 | Q13: 0 | R13: 0 | S13: 1734774.048
A14: 7 | B14: ='WA Sch 25'!B12 -> Honeywell Electronics | C14: ='WA Sch 25'!Q12 -> 6000000 | D14: ='WA Sch 25'!R12 -> 10067781.1 | E14: ='WA Sch 25'!S12 -> 0 | F14: ='WA Sch 25'!P76 -> 2525.403 | G14: ='WA Sch 25'!P49 -> 38430.434 | K14: 288000 | L14: 345000 | M14: 523323.2616 | N14: 0 | O14: 16415.1195 | P14: -7686.0868 | Q14: 0 | R14: 0 | S14: 1165052.294
A15: 8 | B15: ='WA Sch 25'!B13 -> Huntwood Industries | C15: ='WA Sch 25'!Q13 -> 6000000 | D15: ='WA Sch 25'!R13 -> 6455702.7 | E15: ='WA Sch 25'!S13 -> 0 | F15: ='WA Sch 25'!P77 -> 13844.746 | G15: ='WA Sch 25'!P50 -> 49844.746 | K15: 288000 | L15: =C15*$L$4 -> 345000 | M15: 335567.4263 | N15: 0 | O15: 89990.849 | P15: -9968.9492 | Q15: 0 | R15: 0 | S15: 1048589.326
A16: 9 | B16: ='WA Sch 25'!B14 -> Inland Empire Paper | C16: ='WA Sch 25'!Q14 -> 6000000 | D16: ='WA Sch 25'!R14 -> 66000000 | E16: ='WA Sch 25'!S14 -> 413427382 | F16: ='WA Sch 25'!P78 -> 701069.25 | H16: ='WA Sch 25'!P103 -> 118787.83 | I16: ='WA Sch 25'!P105 -> 622946.78 | K16: 288000 | L16: 345000 | M16: 3430680 | N16: 18207341.9 | O16: 4556950.125 | P16: 0 | Q16: -130666.613 | R16: -872125.492 | S16: 25825179.92
A17: 10 | B17: ='WA Sch 25'!B15 -> Simplot - Othello | C17: ='WA Sch 25'!Q15 -> 6000000 | D17: ='WA Sch 25'!R15 -> 52999216.5 | E17: ='WA Sch 25'!S15 -> 0 | F17: ='WA Sch 25'!P79 -> 65398.611 | G17: ='WA Sch 25'!P52 -> 101398.611 | K17: 288000 | L17: 345000 | M17: 2754899.274 | N17: 0 | O17: 425090.9715 | P17: -20279.7222 | Q17: 0 | R17: 0 | S17: 3792710.523
A18: 11 | B18: ='WA Sch 25'!B16 -> McCaine Foods Inc | C18: ='WA Sch 25'!Q16 -> 6000000 | D18: ='WA Sch 25'!R16 -> 54022368 | E18: ='WA Sch 25'!S16 -> 0 | F18: ='WA Sch 25'!P80 -> 71852.486 | G18: ='WA Sch 25'!P53 -> 107852.486 | K18: 288000 | L18: 345000 | M18: 2808082.689 | N18: 0 | O18: 467041.159 | P18: -21570.4972 | Q18: 0 | R18: 0 | S18: 3886553.35
A19: 12 | B19: ='WA Sch 25'!B17 -> Sacred Heart Medical Center | C19: ='WA Sch 25'!Q17 -> 6000000 | D19: ='WA Sch 25'!R17 -> 36461016.15 | E19: ='WA Sch 25'!S17 -> 0 | F19: ='WA Sch 25'!P81 -> 42079.378 | G19: ='WA Sch 25'!P54 -> 78079.378 | K19: 288000 | L19: 345000 | M19: 1895243.619 | N19: 0 | O19: 273515.957 | P19: -15615.8756 | Q19: 0 | R19: 0 | S19: 2786143.701
A20: 13 | B20: ='WA Sch 25'!B18 -> Spokane County Combined Master | C20: ='WA Sch 25'!Q18 -> 6000000 | D20: ='WA Sch 25'!R18 -> 5674089 | E20: ='WA Sch 25'!S18 -> 0 | F20: ='WA Sch 25'!P82 -> 0 | G20: ='WA Sch 25'!P55 -> 27355.605 | K20: 288000 | L20: 345000 | M20: 294939.1462 | N20: 0 | O20: 0 | P20: -5471.121 | Q20: 0 | R20: 0 | S20: 922468.0252
A21: 14 | B21: ='WA Sch 25'!B19 -> Spokane Industries | C21: ='WA Sch 25'!Q19 -> 6000000 | D21: ='WA Sch 25'!R19 -> 4931880 | E21: ='WA Sch 25'!S19 -> 0 | F21: ='WA Sch 25'!P83 -> 37457.26 | G21: ='WA Sch 25'!P56 -> 73457.26 | K21: 288000 | L21: 345000 | M21: 256359.1224 | N21: 0 | O21: 243472.19 | P21: -14691.452 | Q21: 0 | R21: 0 | S21: 1118139.86
A22: 15 | B22: ='WA Sch 25'!B20 -> Triumph Composite | C22: ='WA Sch 25'!Q20 -> 6000000 | D22: ='WA Sch 25'!R20 -> 9372216.301 | E22: ='WA Sch 25'!S20 -> 0 | F22: ='WA Sch 25'!P84 -> 4243.426 | G22: ='WA Sch 25'!P57 -> 39880.54 | K22: 288000 | L22: 345000 | M22: 487167.8033 | N22: 0 | O22: 27582.269 | P22: -7976.108 | Q22: 0 | R22: 0 | S22: 1139773.964
A23: 16 | B23: ='WA Sch 25'!B21 -> Vaagen Brothers Lumber | C23: ='WA Sch 25'!Q21 -> 6000000 | D23: ='WA Sch 25'!R21 -> 19294295.6 | E23: ='WA Sch 25'!S21 -> 0 | F23: ='WA Sch 25'!P85 -> 20159.03 | G23: ='WA Sch 25'!P58 -> 56159.03 | K23: 288000 | L23: 345000 | M23: 1002917.485 | N23: 0 | O23: 131033.695 | P23: -11231.806 | Q23: 0 | R23: 0 | S23: 1755719.374
A24: 17 | B24: ='WA Sch 25'!B22 -> WSU - MP-A South Campus Feeder | C24: ='WA Sch 25'!Q22 -> 6000000 | D24: ='WA Sch 25'!R22 -> 22401380 | E24: ='WA Sch 25'!S22 -> 0 | F24: ='WA Sch 25'!P86 -> 15800.348 | G24: ='WA Sch 25'!P59 -> 51800.348 | K24: 288000 | L24: 345000 | M24: 1164423.732 | N24: 0 | O24: 102702.262 | P24: -10360.0696 | Q24: 0 | R24: 0 | S24: 1889765.925
A25: 18 | B25: ='WA Sch 25'!B23 -> WSU - MP-B East Campus EA | C25: ='WA Sch 25'!Q23 -> 6000000 | D25: ='WA Sch 25'!R23 -> 43824080.83 | E25: ='WA Sch 25'!S23 -> 0 | F25: ='WA Sch 25'!P87 -> 68642.24 | G25: ='WA Sch 25'!P60 -> 104642.24 | K25: 288000 | L25: 345000 | M25: 2277975.722 | N25: 0 | O25: 446174.56 | P25: -20928.448 | Q25: 0 | R25: 0 | S25: 3336221.834
A26: 19 | B26: ='WA Sch 25'!B24 -> WSU - MP-C East Campus EB | C26: ='WA Sch 25'!Q24 -> 6000000 | D26: ='WA Sch 25'!R24 -> 30686055 | E26: ='WA Sch 25'!S24 -> 0 | F26: ='WA Sch 25'!P88 -> 28700.145 | G26: ='WA Sch 25'!P61 -> 64700.145 | K26: 288000 | L26: 345000 | M26: 1595061.139 | N26: 0 | O26: 186550.9425 | P26: -12940.029 | Q26: 0 | R26: 0 | S26: 2401672.052
A27: 20 | B27: ='WA Sch 25'!B25 -> WSU - MP -D Casp East (no PVD) | C27: ='WA Sch 25'!Q25 -> 6000000 | D27: ='WA Sch 25'!R25 -> 25518880.42 | E27: ='WA Sch 25'!S25 -> 0 | F27: ='WA Sch 25'!P89 -> 24336.108 | K27: 288000 | L27: 345000 | M27: 1326471.404 | N27: 0 | O27: 158184.702 | P27: 0 | Q27: 0 | R27: 0 | S27: 2117656.106
A28: 21 | B28: ='WA Sch 25'!B26 -> WSU - MP-E Casp West (no PVD) | C28: ='WA Sch 25'!Q26 -> 6000000 | D28: ='WA Sch 25'!R26 -> 24022423.2 | E28: ='WA Sch 25'!S26 -> 0 | F28: ='WA Sch 25'!P90 -> 28643.731 | K28: 288000 | L28: 345000 | M28: 1248685.558 | N28: 0 | O28: 186184.2515 | P28: 0 | Q28: 0 | R28: 0 | S28: 2067869.809
C29: =SUM(C6:C28) -> 138000000 | D29: 561355022.9 | E29: 414208988.8 | F29: 1279394.393 | G29: 1218976.665 | H29: 118787.83 | I29: 622946.78 | K29: =SUM(K6:K28) -> 6624000 | L29: 7935000 | M29: 29179234.09 | N29: 18241763.87 | O29: 8316063.555 | P29: -243795.333 | Q29: -130666.613 | R29: -872125.492 | S29: 69049474.07
A32: PROPOSED | J32: PROP. RATES | L32: Block1 | M32: Block2 | N32: Block3
J33: Base--> | K33: ='Rate Design'!G31 -> 24000 | L33: ='Rate Design'!G27/100 -> 0.05505 | M33: ='Rate Design'!G28/100 -> 0.04953 | N33: ='Rate Design'!G29/100 -> 0.04235 | O33: ='Rate Design'!G32 -> 6.5 | P33: -0.2 | Q33: -1.1 | R33: -1.4
J34: Billing--> | K34: ='Rate Design'!G41 -> 24000 | L34: ='Exh 3'!M42 -> 0.0575 | M34: ='Rate Design'!G38/100 -> 0.05198 | N34: ='Rate Design'!G39/100 -> 0.04404 | O34: ='Rate Design'!G42 -> 6.5 | P34: -0.2 | Q34: -1.1 | R34: -1.4 | W34: Dollar Increase
K35: Cust Chg | L35: Energy | O35: Demand | P35: PV Discount | S35: Total | T35: Increase | U35: % D | V35: Cust Charge | W35: 1st Block | X35: 2nd Block | Y35: 3rd Block | Z35: Demand | AA35: Overall
A36: 1 | B36: BF Goodrich | C36: =C6 -> 6000000 | D36: 61924320 | E36: 781606.8 | F36: 95148.954 | G36: 131148.954 | H36: 0 | I36: 0 | K36: =$K$34*12 -> 288000 | L36: =C36*$L$34 -> 345000 | M36: =D36*$M$34 -> 3218826.154 | N36: =E36*$N$34 -> 34421.96347 | O36: =F36*$O$34 -> 618468.201 | P36: =G36*$P$34 -> -26229.7908 | Q36: =H36*$Q$34 -> 0 | R36: =I36*$R$34 -> 0 | S36: =SUM(K36:R36) -> 4478486.527 | T36: =S36-S6 -> 0 | U36: =S36/S6-1 -> 0 | V36: =K36-K6 -> 0 | W36: =L36-L6 -> 0 | X36: =M36-M6 -> 0 | Y36: =N36-N6 -> 0 | Z36: =O36-O6 -> 0 | AA36: =S36-S6 -> 0 | AB36: =SUM(V36:Z36)-AA36 -> 0
A37: 22 | B37: BF Goodrich | C37: =C7 -> 6000000 | D37: 2207545.6 | E37: 0 | F37: 0 | G37: 26781.116 | H37: 0 | I37: 0 | K37: =$K$34*12 -> 288000 | L37: =C37*$L$34 -> 345000 | M37: =D37*$M$34 -> 114748.2203 | N37: =E37*$N$34 -> 0 | O37: =F37*$O$34 -> 0 | P37: =G37*$P$34 -> -5356.2232 | Q37: =H37*$Q$34 -> 0 | R37: =I37*$R$34 -> 0 | S37: =SUM(K37:R37) -> 742391.9971 | T37: 0 | U37: 0 | V37: 0 | W37: 0 | X37: 0 | Y37: 0 | Z37: 0 | AA37: 0 | AB37: =SUM(V37:Z37)-AA37 -> 0
A38: 23 | B38: BF Goodrich | C38: =C8 -> 6000000 | D38: 4404968.7 | E38: 0 | F38: 9316.698 | G38: 45316.698 | H38: 0 | I38: 0 | K38: =$K$34*12 -> 288000 | L38: =C38*$L$34 -> 345000 | M38: =D38*$M$34 -> 228970.273 | N38: =E38*$N$34 -> 0 | O38: =F38*$O$34 -> 60558.537 | P38: =G38*$P$34 -> -9063.3396 | Q38: =H38*$Q$34 -> 0 | R38: =I38*$R$34 -> 0 | S38: =SUM(K38:R38) -> 913465.4704 | T38: 0 | U38: 0 | V38: 0 | W38: 0 | X38: 0 | Y38: 0 | Z38: 0 | AA38: 0 | AB38: =SUM(V38:Z38)-AA38 -> 0
A39: 2 | B39: Boise Cascade Plywood | C39: =C9 -> 6000000 | D39: 27830760.6 | E39: 0 | F39: 24982.638 | G39: 60982.638 | H39: 0 | I39: 0 | K39: =$K$34*12 -> 288000 | L39: =C39*$L$34 -> 345000 | M39: =D39*$M$34 -> 1446642.936 | N39: =E39*$N$34 -> 0 | O39: =F39*$O$34 -> 162387.147 | P39: =G39*$P$34 -> -12196.5276 | Q39: =H39*$Q$34 -> 0 | R39: =I39*$R$34 -> 0 | S39: =SUM(K39:R39) -> 2229833.555 | T39: 0 | U39: 0 | V39: 0 | W39: 0 | X39: 0 | Y39: 0 | Z39: 0 | AA39: 0 | AB39: =SUM(V39:Z39)-AA39 -> 0
A40: 3 | B40: Boise Cascade Sawmill | C40: 6000000 | D40: 9854475.7 | E40: 0 | F40: 331.294 | G40: 34362.748 | H40: 0 | I40: 0 | K40: 288000 | L40: 345000 | M40: 512235.6469 | N40: 0 | O40: 2153.411 | P40: -6872.5496 | Q40: 0 | R40: 0 | S40: =SUM(K40:R40) -> 1140516.508 | T40: 0 | U40: 0 | V40: 0 | W40: 0 | X40: 0 | Y40: 0 | Z40: 0 | AA40: 0 | AB40: 0
A41: 4 | B41: City of Spokane Sewage Treatment Plt | C41: 6000000 | D41: 9063473.244 | E41: 0 | F41: 0 | G41: 30830.211 | H41: 0 | I41: 0 | K41: 288000 | L41: 345000 | M41: 471119.3392 | N41: 0 | O41: 0 | P41: -6166.0422 | Q41: 0 | R41: 0 | S41: 1097953.297 | T41: 0 | U41: 0 | V41: 0 | W41: 0 | X41: 0 | Y41: 0 | Z41: 0 | AA41: 0 | AB41: 0
A42: 5 | B42: Deaconess Medical Center | C42: 6000000 | D42: 15479225.25 | E42: 0 | F42: 4435.657 | G42: 39526.487 | H42: 0 | I42: 0 | K42: 288000 | L42: 345000 | M42: 804610.1285 | N42: 0 | O42: 28831.7705 | P42: -7905.2974 | Q42: 0 | R42: 0 | S42: 1458536.602 | T42: 0 | U42: 0 | V42: 0 | W42: 0 | X42: 0 | Y42: 0 | Z42: 0 | AA42: 0 | AB42: 0
A43: 6 | B43: Gonzaga University | C43: 6000000 | D43: 18858869 | E43: 0 | F43: 20426.99 | G43: 56426.99 | H43: 0 | I43: 0 | K43: 288000 | L43: 345000 | M43: 980284.0106 | N43: 0 | O43: 132775.435 | P43: -11285.398 | Q43: 0 | R43: 0 | S43: 1734774.048 | T43: 0 | U43: 0 | V43: 0 | W43: 0 | X43: 0 | Y43: 0 | Z43: 0 | AA43: 0 | AB43: 0
A44: 7 | B44: Honeywell Electronics | C44: 6000000 | D44: 10067781.1 | E44: 0 | F44: 2525.403 | G44: 38430.434 | H44: 0 | I44: 0 | K44: 288000 | L44: 345000 | M44: 523323.2616 | N44: 0 | O44: 16415.1195 | P44: -7686.0868 | Q44: 0 | R44: 0 | S44: 1165052.294 | T44: 0 | U44: 0 | V44: 0 | W44: 0 | X44: 0 | Y44: 0 | Z44: 0 | AA44: 0 | AB44: 0
A45: 8 | B45: Huntwood Industries | C45: 6000000 | D45: 6455702.7 | E45: 0 | F45: 13844.746 | G45: 49844.746 | H45: 0 | I45: 0 | K45: 288000 | L45: 345000 | M45: 335567.4263 | N45: 0 | O45: 89990.849 | P45: -9968.9492 | Q45: 0 | R45: 0 | S45: 1048589.326 | T45: 0 | U45: 0 | V45: 0 | W45: 0 | X45: 0 | Y45: 0 | Z45: 0 | AA45: 0 | AB45: 0
A46: 9 | B46: Inland Empire Paper | C46: 6000000 | D46: 66000000 | E46: 413427382 | F46: 701069.25 | G46: 0 | H46: 118787.83 | I46: 622946.78 | K46: 288000 | L46: 345000 | M46: 3430680 | N46: 18207341.9 | O46: 4556950.125 | P46: 0 | Q46: -130666.613 | R46: -872125.492 | S46: 25825179.92 | T46: 0 | U46: 0 | V46: 0 | W46: 0 | X46: 0 | Y46: 0 | Z46: 0 | AA46: 0 | AB46: 0
A47: 10 | B47: JR Simplot | C47: 6000000 | D47: 52999216.5 | E47: 0 | F47: 65398.611 | G47: 101398.611 | H47: 0 | I47: 0 | K47: 288000 | L47: 345000 | M47: 2754899.274 | N47: 0 | O47: 425090.9715 | P47: -20279.7222 | Q47: 0 | R47: 0 | S47: 3792710.523 | T47: 0 | U47: 0 | V47: 0 | W47: 0 | X47: 0 | Y47: 0 | Z47: 0 | AA47: 0 | AB47: 0
A48: 11 | B48: McCaine Foods Inc | C48: 6000000 | D48: 54022368 | E48: 0 | F48: 71852.486 | G48: 107852.486 | H48: 0 | I48: 0 | K48: 288000 | L48: 345000 | M48: 2808082.689 | N48: 0 | O48: 467041.159 | P48: -21570.4972 | Q48: 0 | R48: 0 | S48: 3886553.35 | T48: 0 | U48: 0 | V48: 0 | W48: 0 | X48: 0 | Y48: 0 | Z48: 0 | AA48: 0 | AB48: 0
A49: 12 | B49: Sacred Heart Medical Center | C49: =C19 -> 6000000 | D49: 36461016.15 | E49: 0 | F49: 42079.378 | G49: 78079.378 | H49: 0 | I49: 0 | K49: 288000 | L49: 345000 | M49: 1895243.619 | N49: 0 | O49: 273515.957 | P49: -15615.8756 | Q49: 0 | R49: 0 | S49: 2786143.701 | T49: 0 | U49: 0 | V49: 0 | W49: 0 | X49: 0 | Y49: 0 | Z49: 0 | AA49: 0 | AB49: 0
A50: 13 | B50: Spokane County Courthouse | C50: 6000000 | D50: 5674089 | E50: 0 | F50: 0 | G50: 27355.605 | H50: 0 | I50: 0 | K50: 288000 | L50: 345000 | M50: 294939.1462 | N50: 0 | O50: 0 | P50: -5471.121 | Q50: 0 | R50: 0 | S50: 922468.0252 | T50: 0 | U50: 0 | V50: 0 | W50: 0 | X50: 0 | Y50: 0 | Z50: 0 | AA50: 0 | AB50: 0
A51: 14 | B51: Spokane Steel Foundry | C51: 6000000 | D51: 4931880 | E51: 0 | F51: 37457.26 | G51: 73457.26 | H51: 0 | I51: 0 | K51: 288000 | L51: 345000 | M51: 256359.1224 | N51: 0 | O51: 243472.19 | P51: -14691.452 | Q51: 0 | R51: 0 | S51: 1118139.86 | T51: 0 | U51: 0 | V51: 0 | W51: 0 | X51: 0 | Y51: 0 | Z51: 0 | AA51: 0 | AB51: 0
A52: 15 | B52: Triumph Composite / Boeing | C52: 6000000 | D52: 9372216.301 | E52: 0 | F52: 4243.426 | G52: 39880.54 | H52: 0 | I52: 0 | K52: 288000 | L52: 345000 | M52: 487167.8033 | N52: 0 | O52: 27582.269 | P52: -7976.108 | Q52: 0 | R52: 0 | S52: 1139773.964 | T52: 0 | U52: 0 | V52: 0 | W52: 0 | X52: 0 | Y52: 0 | Z52: 0 | AA52: 0 | AB52: 0
A53: 16 | B53: Vaagen Brothers Lumber | C53: 6000000 | D53: 19294295.6 | E53: 0 | F53: 20159.03 | G53: 56159.03 | H53: 0 | I53: 0 | K53: 288000 | L53: 345000 | M53: 1002917.485 | N53: 0 | O53: 131033.695 | P53: -11231.806 | Q53: 0 | R53: 0 | S53: 1755719.374 | T53: 0 | U53: 0 | V53: 0 | W53: 0 | X53: 0 | Y53: 0 | Z53: 0 | AA53: 0 | AB53: 0
A54: 17 | B54: WSU - MP-A South Campus Feeder | C54: 6000000 | D54: 22401380 | E54: 0 | F54: 15800.348 | G54: 51800.348 | H54: 0 | I54: 0 | K54: 288000 | L54: 345000 | M54: 1164423.732 | N54: 0 | O54: 102702.262 | P54: -10360.0696 | Q54: 0 | R54: 0 | S54: 1889765.925 | T54: 0 | U54: 0 | V54: 0 | W54: 0 | X54: 0 | Y54: 0 | Z54: 0 | AA54: 0 | AB54: 0
A55: 18 | B55: WSU - MP-B East Campus EA | C55: 6000000 | D55: 43824080.83 | E55: 0 | F55: 68642.24 | G55: 104642.24 | H55: 0 | I55: 0 | K55: 288000 | L55: 345000 | M55: 2277975.722 | N55: 0 | O55: 446174.56 | P55: -20928.448 | Q55: 0 | R55: 0 | S55: 3336221.834 | T55: 0 | U55: 0 | V55: 0 | W55: 0 | X55: 0 | Y55: 0 | Z55: 0 | AA55: 0 | AB55: 0
A56: 19 | B56: WSU - MP-C East Campus EB | C56: 6000000 | D56: 30686055 | E56: 0 | F56: 28700.145 | G56: 64700.145 | H56: 0 | I56: 0 | K56: 288000 | L56: 345000 | M56: 1595061.139 | N56: 0 | O56: 186550.9425 | P56: -12940.029 | Q56: 0 | R56: 0 | S56: 2401672.052 | T56: 0 | U56: 0 | V56: 0 | W56: 0 | X56: 0 | Y56: 0 | Z56: 0 | AA56: 0 | AB56: 0
A57: 20 | B57: WSU - MP -D Casp East (no PVD) | C57: 6000000 | D57: 25518880.42 | E57: 0 | F57: 24336.108 | G57: 0 | H57: 0 | I57: 0 | K57: 288000 | L57: 345000 | M57: 1326471.404 | N57: 0 | O57: 158184.702 | P57: 0 | Q57: 0 | R57: 0 | S57: 2117656.106 | T57: 0 | U57: 0 | V57: 0 | W57: 0 | X57: 0 | Y57: 0 | Z57: 0 | AA57: 0 | AB57: 0
A58: 21 | B58: WSU - MP-E Casp West (no PVD) | C58: 6000000 | D58: 24022423.2 | E58: 0 | F58: 28643.731 | G58: 0 | H58: 0 | I58: 0 | K58: 288000 | L58: 345000 | M58: 1248685.558 | N58: 0 | O58: 186184.2515 | P58: 0 | Q58: 0 | R58: 0 | S58: 2067869.809 | T58: 0 | U58: 0 | V58: 0 | W58: 0 | X58: 0 | Y58: 0 | Z58: 0 | AA58: 0 | AB58: 0
C59: =SUM(C36:C58) -> 138000000 | D59: 561355022.9 | E59: 414208988.8 | F59: 1279394.393 | G59: 1218976.665 | H59: 118787.83 | I59: 622946.78 | K59: =SUM(K36:K58) -> 6624000 | L59: 7935000 | M59: 29179234.09 | N59: 18241763.87 | O59: 8316063.555 | P59: -243795.333 | Q59: -130666.613 | R59: -872125.492 | S59: 69049474.07 | T59: 0 | U59: 0 | V59: 0 | W59: 0 | X59: 0 | Y59: 0 | Z59: 0 | AA59: 0 | AB59: =SUM(V59:Z59)-AA59 -> 0
AA60: =S59-S29-AA59 -> 0

Sheet Bill Impact
A3: Schedule 001 Bill Impact
A7: Schedule 001 Present | G7: Schedule 001 Proposed
B8: Basic Charge | C8: Block 1 | D8: Block 2 | E8: Total Bill | G8: Basic Charge | H8: Block 1 | I8: Block 2 | J8: Total Bill | L8: Bill Impact | M8: % Change
B9: ='Exh 3'!D14 -> 9 | C9: ='Exh 3'!H16 -> 0.07708 | D9: ='Exh 3'!H17 -> 0.0894 | G9: ='Exh 3'!Q14 -> 9 | H9: ='Exh 3'!M16 -> 0.07708 | I9: ='Exh 3'!M17 -> 0.0894
A10: 100 | B10: =$B$9 -> 9 | C10: =A10*$C$9 -> 7.708 | E10: =SUM(B10:D10) -> 16.708 | G10: =$G$9 -> 9 | H10: =A10*$H$9 -> 7.708 | J10: =SUM(G10:I10) -> 16.708 | L10: =J10-E10 -> 0 | M10: =L10/E10 -> 0
A11: 200 | B11: =$B$9 -> 9 | C11: 15.416 | E11: =SUM(B11:D11) -> 24.416 | G11: =$G$9 -> 9 | H11: 15.416 | J11: =SUM(G11:I11) -> 24.416 | L11: =J11-E11 -> 0 | M11: =L11/E11 -> 0
A12: 300 | B12: =$B$9 -> 9 | C12: 23.124 | E12: =SUM(B12:D12) -> 32.124 | G12: =$G$9 -> 9 | H12: 23.124 | J12: =SUM(G12:I12) -> 32.124 | L12: 0 | M12: =L12/E12 -> 0
A13: 400 | B13: =$B$9 -> 9 | C13: 30.832 | E13: =SUM(B13:D13) -> 39.832 | G13: =$G$9 -> 9 | H13: 30.832 | J13: =SUM(G13:I13) -> 39.832 | L13: 0 | M13: =L13/E13 -> 0
A14: 500 | B14: =$B$9 -> 9 | C14: 38.54 | E14: =SUM(B14:D14) -> 47.54 | G14: =$G$9 -> 9 | H14: 38.54 | J14: =SUM(G14:I14) -> 47.54 | L14: 0 | M14: =L14/E14 -> 0
A15: 600 | B15: =$B$9 -> 9 | C15: 46.248 | E15: =SUM(B15:D15) -> 55.248 | G15: =$G$9 -> 9 | H15: 46.248 | J15: =SUM(G15:I15) -> 55.248 | L15: 0 | M15: =L15/E15 -> 0
A16: 700 | B16: 9 | C16: 53.956 | E16: =SUM(B16:D16) -> 62.956 | G16: 9 | H16: 53.956 | J16: =SUM(G16:I16) -> 62.956 | L16: 0 | M16: =L16/E16 -> 0
A17: 800 | B17: 9 | C17: 61.664 | E17: 70.664 | G17: 9 | H17: 61.664 | J17: 70.664 | L17: 0 | M17: 0
A18: =ROUND('Pres & Prop Rev'!D46/'Pres & Prop Rev'!D48,0) -> 918 | B18: 9 | C18: =ROUND($C$17,2) -> 61.66 | D18: =ROUND((A18-$A$17)*$D$9,2) -> 10.55 | E18: 81.21 | G18: 9 | H18: =ROUND($H$17,2) -> 61.66 | I18: =ROUND((A18-$A$17)*$I$9,2) -> 10.55 | J18: =SUM(G18:I18) -> 81.21 | L18: 0 | M18: 0 | P18: 957 2016 case | R18: 938 2017 case
A19: 1000 | B19: 9 | C19: =ROUND($C$17,2) -> 61.66 | D19: =ROUND((A19-$A$17)*$D$9,2) -> 17.88 | E19: 88.54 | G19: 9 | H19: =ROUND($H$17,2) -> 61.66 | I19: =ROUND((A19-$A$17)*$I$9,2) -> 17.88 | J19: 88.54 | L19: 0 | M19: 0
A20: 1100 | B20: 9 | C20: =$C$17 -> 61.664 | D20: =(A20-$A$17)*$D$9 -> 26.82 | E20: =SUM(B20:D20) -> 97.484 | G20: 9 | H20: =$H$17 -> 61.664 | I20: =(A20-$A$17)*$I$9 -> 26.82 | J20: =SUM(G20:I20) -> 97.484 | L20: 0 | M20: =L20/E20 -> 0
A21: 1200 | B21: 9 | C21: =$C$17 -> 61.664 | D21: =(A21-$A$17)*$D$9 -> 35.76 | E21: 106.424 | G21: 9 | H21: =$H$17 -> 61.664 | I21: =(A21-$A$17)*$I$9 -> 35.76 | J21: 106.424 | L21: 0 | M21: 0
A22: 1300 | B22: 9 | C22: =$C$17 -> 61.664 | D22: =(A22-$A$17)*$D$9 -> 44.7 | E22: =SUM(B22:D22) -> 115.364 | G22: 9 | H22: =$H$17 -> 61.664 | I22: =(A22-$A$17)*$I$9 -> 44.7 | J22: =SUM(G22:I22) -> 115.364 | L22: 0 | M22: =L22/E22 -> 0
A23: 1400 | B23: 9 | C23: =$C$17 -> 61.664 | D23: =(A23-$A$17)*$D$9 -> 53.64 | E23: =SUM(B23:D23) -> 124.304 | G23: 9 | H23: =$H$17 -> 61.664 | I23: =(A23-$A$17)*$I$9 -> 53.64 | J23: =SUM(G23:I23) -> 124.304 | L23: 0 | M23: =L23/E23 -> 0
A24: 1500 | B24: 9 | C24: =$C$17 -> 61.664 | D24: =(A24-$A$17)*$D$9 -> 62.58 | E24: 133.244 | G24: 9 | H24: =$H$17 -> 61.664 | I24: =(A24-$A$17)*$I$9 -> 62.58 | J24: 133.244 | L24: 0 | M24: 0
G28: =G9-B9 -> 0 | H28: =(H9-C9)*800 -> 0 | I28: =(I9-D9)*138 -> 0 | L28: =SUM(G28:I28) -> 0 | M28: =L28/E18 -> 0 | N28: Net of ERM
G29: =G28 -> 0 | H29: =800*'Exh 3'!J16 -> 0 | I29: =138*'Exh 3'!J17 -> 0 | L29: =SUM(G29:I29) -> 0 | M29: =L29/E18 -> 0 | N29: Total Base Rate Change

Sheet WA Sch 25
A1: Washington Schedule 25 Billing Determinants | Q1: 1st | R1: =Q2 -> 500000 | S1: =R2 -> 6000000
P2: 12-mo Ended | Q2: 500000 | R2: 6000000 | S2: 99999999
A3: KWHs | C3: Acct No. | D3: 2018-01-01 | E3: 2018-02-01 | F3: 2018-03-01 | G3: 2018-04-01 | H3: 2018-05-01 | I3: 2018-06-01 | J3: 2018-07-01 | K3: 2018-08-01 | L3: 2018-09-01 | M3: 2018-10-01 | N3: 2018-11-01 | O3: 2018-12-01 | P3: Total | Q3: kwhs/mo | R3: kwhs/mo | S3: kwhs/mo
A4: 1 | B4: Goodrich - North 2311008572 | C4: 2311008572 | D4: 5417357.4 | E4: 5209482.6 | F4: 5598083.4 | G4: 5938930.2 | H4: 6179069.4 | I4: 5771215.8 | J4: 6205584 | K4: 6286131.6 | L4: 5214997.2 | M4: 6027205.8 | N4: 4774253.4 | O4: 6083616 | P4: =SUM(D4:O4) -> 68705926.8 | Q4: =Q$2*12-SUMPRODUCT(--($D4:$O4<=Q$2),Q$2-$D4:$O4) -> 6000000 | R4: =R$2*12-SUM($Q4:Q4)-SUMPRODUCT(--($D4:$O4<=R$2),R$2-$D4:$O4) -> 61924320 | S4: =S$2*12-SUM($Q4:R4)-SUMPRODUCT(--($D4:$O4<=S$2),S$2-$D4:$O4) -> 781606.8
A5: 22 | B5: Goodrich - South 2311155858 (No PVD) | C5: 2311155858 | D5: 606597 | E5: 661977.2 | F5: 727160 | G5: 697581 | H5: 691017.6 | I5: 762333.6 | J5: 723049.6 | K5: 817499.2 | L5: 511733.6 | M5: 638428 | N5: 649174.4 | O5: 720994.4 | P5: =SUM(D5:O5) -> 8207545.6 | Q5: =Q$2*12-SUMPRODUCT(--($D5:$O5<=Q$2),Q$2-$D5:$O5) -> 6000000 | R5: =R$2*12-SUM($Q5:Q5)-SUMPRODUCT(--($D5:$O5<=R$2),R$2-$D5:$O5) -> 2207545.6 | S5: =S$2*12-SUM($Q5:R5)-SUMPRODUCT(--($D5:$O5<=S$2),S$2-$D5:$O5) -> 0
A6: 23 | B6: Boise Cascade LLC Inland Region | C6: 7600951015 | D6: 979473.6 | E6: 895377 | F6: 951957.3 | G6: 876397.2 | H6: 896023.8 | I6: 891303 | J6: 781783.8 | K6: 831364.8 | L6: 779045.4 | M6: 873927.6 | N6: 836098.2 | O6: 812217 | P6: =SUM(D6:O6) -> 10404968.7 | Q6: =Q$2*12-SUMPRODUCT(--($D6:$O6<=Q$2),Q$2-$D6:$O6) -> 6000000 | R6: =R$2*12-SUM($Q6:Q6)-SUMPRODUCT(--($D6:$O6<=R$2),R$2-$D6:$O6) -> 4404968.7 | S6: =S$2*12-SUM($Q6:R6)-SUMPRODUCT(--($D6:$O6<=S$2),S$2-$D6:$O6) -> 0
A7: 2 | B7: Boise Cascade Plywood | C7: 8920023327 | D7: 3098709.6 | E7: 2900940 | F7: 3192966 | G7: 3000358.2 | H7: 2990820 | I7: 2914699.2 | J7: 2818183.2 | K7: 2977010.4 | L7: 2712145.8 | M7: 2877663.6 | N7: 2753625 | O7: 1593639.598 | P7: 33830760.6 | Q7: =Q$2*12-SUMPRODUCT(--($D7:$O7<=Q$2),Q$2-$D7:$O7) -> 6000000 | R7: =R$2*12-SUM($Q7:Q7)-SUMPRODUCT(--($D7:$O7<=R$2),R$2-$D7:$O7) -> 27830760.6 | S7: =S$2*12-SUM($Q7:R7)-SUMPRODUCT(--($D7:$O7<=S$2),S$2-$D7:$O7) -> 0
A8: 3 | B8: Boise Cascade Sawmill | C8: 9920023116 | D8: 1451406.6 | E8: 1330051.8 | F8: 1413395.2 | G8: 1259812.4 | H8: 1296068.2 | I8: 1267047.6 | J8: 1254391.6 | K8: 1297139.2 | L8: 1191800.4 | M8: 1372032.2 | N8: 1325175.6 | O8: 1396154.9 | P8: 15854475.7 | Q8: 6000000 | R8: =R$2*12-SUM($Q8:Q8)-SUMPRODUCT(--($D8:$O8<=R$2),R$2-$D8:$O8) -> 9854475.7 | S8: =S$2*12-SUM($Q8:R8)-SUMPRODUCT(--($D8:$O8<=S$2),S$2-$D8:$O8) -> 0
A9: 4 | B9: City of Spokane | C9: 8970099313 | D9: 1294328.7 | E9: 1157305.8 | F9: 1248464.7 | G9: 1205773.8 | H9: 1278664.8 | I9: 1238120.1 | J9: 1324371.3 | K9: 1312516.8 | L9: 1250367.3 | M9: 1238766.9 | N9: 1209572.7 | O9: 1305220.344 | P9: 15063473.24 | Q9: 6000000 | R9: =R$2*12-SUM($Q9:Q9)-SUMPRODUCT(--($D9:$O9<=R$2),R$2-$D9:$O9) -> 9063473.244 | S9: =S$2*12-SUM($Q9:R9)-SUMPRODUCT(--($D9:$O9<=S$2),S$2-$D9:$O9) -> 0
A10: 5 | B10: Empire Health Services | C10: 0080095044 | D10: 1680174.3 | E10: 1550971.8 | F10: 1669355.1 | G10: 1622050.5 | H10: 1966864.2 | I10: 1912079.4 | J10: 2179709.7 | K10: 2106808.2 | L10: 1816311 | M10: 1649123.7 | N10: 1620303.3 | O10: 1705474.05 | P10: 21479225.25 | Q10: 6000000 | R10: =R$2*12-SUM($Q10:Q10)-SUMPRODUCT(--($D10:$O10<=R$2),R$2-$D10:$O10) -> 15479225.25 | S10: =S$2*12-SUM($Q10:R10)-SUMPRODUCT(--($D10:$O10<=S$2),S$2-$D10:$O10) -> 0
A11: 6 | B11: Gonzaga University | C11: 1420028876 | D11: 2251093.6 | E11: 2295039.6 | F11: 2148288.8 | G11: 2103292.8 | H11: 1859382 | I11: 1633699.2 | J11: 1985695.6 | K11: 2040340.4 | L11: 2035250 | M11: 2111894.4 | N11: 2195715.2 | O11: 2199177.4 | P11: 24858869 | Q11: 6000000 | R11: =R$2*12-SUM($Q11:Q11)-SUMPRODUCT(--($D11:$O11<=R$2),R$2-$D11:$O11) -> 18858869 | S11: =S$2*12-SUM($Q11:R11)-SUMPRODUCT(--($D11:$O11<=S$2),S$2-$D11:$O11) -> 0
A12: 7 | B12: Honeywell Electronics | C12: 0170122152 | D12: 1342430.6 | E12: 1273123.6 | F12: 1374676.8 | G12: 1291710 | H12: 1411495.4 | I12: 1389838.8 | J12: 1540082.6 | K12: 1508025.4 | L12: 1332346.4 | M12: 1340910.2 | N12: 1106404.6 | O12: 1156736.7 | P12: 16067781.1 | Q12: 6000000 | R12: =R$2*12-SUM($Q12:Q12)-SUMPRODUCT(--($D12:$O12<=R$2),R$2-$D12:$O12) -> 10067781.1 | S12: =S$2*12-SUM($Q12:R12)-SUMPRODUCT(--($D12:$O12<=S$2),S$2-$D12:$O12) -> 0
A13: 8 | B13: Huntwood Industries | C13: 8640841982 | D13: 1108779 | E13: 1009331.4 | F13: 1067136 | G13: 1043343 | H13: 1082596.2 | I13: 1052801.4 | J13: 1056594 | K13: 1131643.8 | L13: 962224.2 | M13: 1076833.8 | N13: 959767.2 | O13: 904652.7 | P13: 12455702.7 | Q13: 6000000 | R13: =R$2*12-SUM($Q13:Q13)-SUMPRODUCT(--($D13:$O13<=R$2),R$2-$D13:$O13) -> 6455702.7 | S13: =S$2*12-SUM($Q13:R13)-SUMPRODUCT(--($D13:$O13<=S$2),S$2-$D13:$O13) -> 0
A14: 9 | B14: Inland Empire Paper | C14: 0160126924 | D14: 42113570 | E14: 38726690 | F14: 42012008 | G14: 40858220 | H14: 39613368 | I14: 39658628 | J14: 40571988 | K14: 41162272 | L14: 38387778 | M14: 41469272 | N14: 39553724 | O14: 41299864 | P14: 485427382 | Q14: 6000000 | R14: =R$2*12-SUM($Q14:Q14)-SUMPRODUCT(--($D14:$O14<=R$2),R$2-$D14:$O14) -> 66000000 | S14: =S$2*12-SUM($Q14:R14)-SUMPRODUCT(--($D14:$O14<=S$2),S$2-$D14:$O14) -> 413427382
A15: 10 | B15: Simplot - Othello | C15: 4250473907 | D15: 5475880.2 | E15: 3225600 | F15: 5302936.8 | G15: 5139876 | H15: 5546520 | I15: 4880064 | J15: 4436115.6 | K15: 5475225 | L15: 4745651.4 | M15: 5373593.4 | N15: 4515264.6 | O15: 4882489.5 | P15: 58999216.5 | Q15: 6000000 | R15: =R$2*12-SUM($Q15:Q15)-SUMPRODUCT(--($D15:$O15<=R$2),R$2-$D15:$O15) -> 52999216.5 | S15: =S$2*12-SUM($Q15:R15)-SUMPRODUCT(--($D15:$O15<=S$2),S$2-$D15:$O15) -> 0
A16: 11 | B16: McCaine Foods Inc | C16: 9060132009 | D16: 2675148 | E16: 4832542.4 | F16: 5366177.6 | G16: 5075285.6 | H16: 5759633.6 | I16: 4983580 | J16: 4542300 | K16: 5232987.2 | L16: 5027002.401 | M16: 5821580.8 | N16: 5324020.8 | O16: 5382109.6 | P16: 60022368 | Q16: 6000000 | R16: =R$2*12-SUM($Q16:Q16)-SUMPRODUCT(--($D16:$O16<=R$2),R$2-$D16:$O16) -> 54022368 | S16: =S$2*12-SUM($Q16:R16)-SUMPRODUCT(--($D16:$O16<=S$2),S$2-$D16:$O16) -> 0
A17: 12 | B17: Sacred Heart Medical Center | C17: 0030019644 | D17: 3200689.8 | E17: 2917420.8 | F17: 3190861.8 | G17: 3189855.9 | H17: 4044789 | I17: 3911493.6 | J17: 4551246 | K17: 4441298.4 | L17: 3624860.4 | M17: 3239193.3 | N17: 3056115.3 | O17: 3093191.85 | P17: 42461016.15 | Q17: 6000000 | R17: =R$2*12-SUM($Q17:Q17)-SUMPRODUCT(--($D17:$O17<=R$2),R$2-$D17:$O17) -> 36461016.15 | S17: =S$2*12-SUM($Q17:R17)-SUMPRODUCT(--($D17:$O17<=S$2),S$2-$D17:$O17) -> 0
A18: 13 | B18: Spokane County Combined Master | C18: 1080099801 | D18: 911570.1 | E18: 817296.9 | F18: 882348.6 | G18: 881155.8 | H18: 1073816.1 | I18: 1046600.1 | J18: 1202604.9 | K18: 1199814 | L18: 978219.9 | M18: 934644.9 | N18: 858442.2 | O18: 887575.5 | P18: 11674089 | Q18: 6000000 | R18: =R$2*12-SUM($Q18:Q18)-SUMPRODUCT(--($D18:$O18<=R$2),R$2-$D18:$O18) -> 5674089 | S18: =S$2*12-SUM($Q18:R18)-SUMPRODUCT(--($D18:$O18<=S$2),S$2-$D18:$O18) -> 0
A19: 14 | B19: Spokane Industries | C19: 0070121063 | D19: 889757.4 | E19: 844967.4 | F19: 962325 | G19: 864949.2 | H19: 926184 | I19: 881078.4 | J19: 904692 | K19: 991965 | L19: 957684.6 | M19: 1042830.6 | N19: 790020.6 | O19: 875425.8 | P19: 10931880 | Q19: 6000000 | R19: =R$2*12-SUM($Q19:Q19)-SUMPRODUCT(--($D19:$O19<=R$2),R$2-$D19:$O19) -> 4931880 | S19: =S$2*12-SUM($Q19:R19)-SUMPRODUCT(--($D19:$O19<=S$2),S$2-$D19:$O19) -> 0
A20: 15 | B20: Triumph Composite | C20: 2260946595 | D20: 1270193.4 | E20: 1112622 | F20: 1160409.6 | G20: 1219999.2 | H20: 1452465 | I20: 1443086.4 | J20: 1530123 | K20: 1495053 | L20: 1277089.8 | M20: 1209801.6 | N20: 1110093.6 | O20: 1091279.701 | P20: 15372216.3 | Q20: 6000000 | R20: =R$2*12-SUM($Q20:Q20)-SUMPRODUCT(--($D20:$O20<=R$2),R$2-$D20:$O20) -> 9372216.301 | S20: =S$2*12-SUM($Q20:R20)-SUMPRODUCT(--($D20:$O20<=S$2),S$2-$D20:$O20) -> 0
A21: 16 | B21: Vaagen Brothers Lumber | C21: 2470070232 | D21: 2358092.8 | E21: 2190658.4 | F21: 2360405.6 | G21: 2160110.4 | H21: 1789183.2 | I21: 2045484 | J21: 1923790.4 | K21: 1989926.4 | L21: 1954489.6 | M21: 2159164 | N21: 2107380.8 | O21: 2255610 | P21: 25294295.6 | Q21: 6000000 | R21: =R$2*12-SUM($Q21:Q21)-SUMPRODUCT(--($D21:$O21<=R$2),R$2-$D21:$O21) -> 19294295.6 | S21: =S$2*12-SUM($Q21:R21)-SUMPRODUCT(--($D21:$O21<=S$2),S$2-$D21:$O21) -> 0
A22: 17 | B22: WSU - MP-A South Campus Feeder | C22: 3730460787 | D22: 2503933.6 | E22: 2509035.2 | F22: 2568546.4 | G22: 2359705.6 | H22: 2259538.4 | I22: 2136456 | J22: 2168320 | K22: 2295686.4 | L22: 2237127.2 | M22: 2436683.2 | N22: 2370692.8 | O22: 2555655.2 | P22: 28401380 | Q22: 6000000 | R22: =R$2*12-SUM($Q22:Q22)-SUMPRODUCT(--($D22:$O22<=R$2),R$2-$D22:$O22) -> 22401380 | S22: =S$2*12-SUM($Q22:R22)-SUMPRODUCT(--($D22:$O22<=S$2),S$2-$D22:$O22) -> 0
A23: 18 | B23: WSU - MP-B East Campus EA | C23: 6030021572 | D23: 4357473 | E23: 3896860 | F23: 3695622 | G23: 3595240 | H23: 4259323 | I23: 4201313 | J23: 5094661.29 | K23: 5131098.29 | L23: 4086204.3 | M23: 3815254.08 | N23: 3722507 | O23: 3968524.87 | P23: 49824080.83 | Q23: 6000000 | R23: =R$2*12-SUM($Q23:Q23)-SUMPRODUCT(--($D23:$O23<=R$2),R$2-$D23:$O23) -> 43824080.83 | S23: =S$2*12-SUM($Q23:R23)-SUMPRODUCT(--($D23:$O23<=S$2),S$2-$D23:$O23) -> 0
A24: 19 | B24: WSU - MP-C East Campus EB | C24: 6100609210 | D24: 3294921 | E24: 2997090.6 | F24: 3210345.6 | G24: 3063408.6 | H24: 2906194.2 | I24: 2811337.2 | J24: 2954351.4 | K24: 2975448 | L24: 2907105.6 | M24: 3094039.2 | N24: 3162175.8 | O24: 3309637.8 | P24: 36686055 | Q24: 6000000 | R24: =R$2*12-SUM($Q24:Q24)-SUMPRODUCT(--($D24:$O24<=R$2),R$2-$D24:$O24) -> 30686055 | S24: =S$2*12-SUM($Q24:R24)-SUMPRODUCT(--($D24:$O24<=S$2),S$2-$D24:$O24) -> 0
A25: 20 | B25: WSU - MP -D Casp East (no PVD) | C25: 5030019646 | D25: 2586936 | E25: 2474712 | F25: 2788048 | G25: 2708744 | H25: 2555544 | I25: 2409704 | J25: 2499608 | K25: 2613272 | L25: 2564312 | M25: 2750072 | N25: 2713584 | O25: 2854344.424 | P25: 31518880.42 | Q25: 6000000 | R25: =R$2*12-SUM($Q25:Q25)-SUMPRODUCT(--($D25:$O25<=R$2),R$2-$D25:$O25) -> 25518880.42 | S25: =S$2*12-SUM($Q25:R25)-SUMPRODUCT(--($D25:$O25<=S$2),S$2-$D25:$O25) -> 0
A26: 21 | B26: WSU - MP-E Casp West (no PVD) | C26: 7030024549 | D26: 2369852.8 | E26: 2230491.2 | F26: 2259040 | G26: 2340637.6 | H26: 2228816.8 | I26: 2189023.2 | J26: 3213347.2 | K26: 3415423.2 | L26: 2857607.2 | M26: 2567745.6 | N26: 2208488.8 | O26: 2141949.6 | P26: 30022423.2 | Q26: 6000000 | R26: =R$2*12-SUM($Q26:Q26)-SUMPRODUCT(--($D26:$O26<=R$2),R$2-$D26:$O26) -> 24022423.2 | S26: =S$2*12-SUM($Q26:R26)-SUMPRODUCT(--($D26:$O26<=S$2),S$2-$D26:$O26) -> 0
B27: Schedule 25 Total | D27: =SUM(D4:D26) -> 93238368.5 | E27: 87059587.7 | F27: 95150558.3 | G27: 92496437 | H27: 94067376.9 | I27: 91430986 | J27: 95462593.19 | K27: 98727948.69 | L27: 89411353.7 | M27: 95120660.88 | N27: 88922599.9 | O27: 92475540.94 | P27: =IF(ROUND(SUM(P4:P26),0)<>ROUND(SUM(D27:O27),0),#VALUE!,SUM(P4:P26)) -> 1113564012 | Q27: =SUM(Q4:Q26) -> 138000000 | R27: =SUM(R4:R26) -> 561355022.9 | S27: =SUM(S4:S26) -> 414208988.8
S28: =SUM(Q27:S27) -> 1113564012
B29: Revenue Run Total | D29: 85895739.5 | E29: 82389792.7 | F29: 59452404.5 | G29: 91719050 | H29: 50375927.6 | I29: 94067376.9 | J29: 91430986 | K29: 95462593.19 | L29: 98727948.69 | M29: 89411353.7 | N29: 95120660.88 | O29: 88922599.9 | P29: =SUM(D29:O29) -> 1022976434
B30: Booked Unbilled Reversal | D30: -2136242 | E30: -11830759 | F30: -16075679 | G30: -45932134 | H30: -49900218 | I30: -92404792 | J30: -94046228 | K30: -95141639 | L30: -98894442 | M30: -89933574 | N30: -95301943 | O30: -87801605 | P30: =SUM(D30:O30) -> -779399255
B31: Gross Booked Unbilled | D31: 11830759 | E31: 16075679 | F31: 45932134 | G31: 49900218 | H31: 92404792 | I31: 94046228 | J31: 95141639 | K31: 98894442 | L31: 89933574 | M31: 95301943 | N31: 87801605 | O31: 92515285 | P31: 869778298
B32: Gross Unbilled True-up | D32: 0 | E32: 424875 | F32: 6266574 | G32: 3075877 | H32: 4262752 | I32: -15075 | J32: 2921121 | K32: 2433674 | L32: 2077947 | M32: 2418885 | N32: 3721162 | O32: 2560423 | P32: 30148215
B33: Unbilled Reversal True-up | D33: -2351888 | E33: 0 | F33: -424875 | G33: -6266574 | H33: -3075877 | I33: -4262752 | J33: 15075 | K33: -2921121 | L33: -2433674 | M33: -2077947 | N33: -2418885 | O33: -3721162 | P33: -29939680
P34: 0
P35: 0
B36: Adj Revenue Runs, Sch 25 | D36: =SUM(D29:D35) -> 93238368.5 | E36: 87059587.7 | F36: 95150558.5 | G36: 92496437 | H36: 94067376.6 | I36: 91430985.9 | J36: 95462593 | K36: =SUM(K29:K35) -> 98727949.19 | L36: =SUM(L29:L35) -> 89411353.69 | M36: =SUM(M29:M35) -> 95120660.7 | N36: =SUM(N29:N35) -> 88922599.88 | O36: =SUM(O29:O35) -> 92475540.9 | P36: =IF(ROUND(SUM(P29:P35),0)<>ROUND(SUM(D36:O36),0),#VALUE!,SUM(P29:P35)) -> 1113564012
D37: =D36-D27 -> 0 | E37: 0 | F37: 0.2000000328 | G37: 0 | H37: -0.299999997 | I37: -0.09999999404 | J37: -0.1900000274 | K37: 0.4999999702 | L37: -0.01099999249 | M37: -0.1789999902 | N37: -0.01999998093 | O37: -0.03699998558 | P37: -0.1369998455
B40: KVA | D40: =D$3 -> 2018-01-01 | E40: =E$3 -> 2018-02-01 | F40: 2018-03-01 | G40: 2018-04-01 | H40: 2018-05-01 | I40: 2018-06-01 | J40: 2018-07-01 | K40: 2018-08-01 | L40: 2018-09-01 | M40: 2018-10-01 | N40: 2018-11-01 | O40: 2018-12-01 | P40: Total | Q40: Peak | R40: Month
A41: 1 | B41: Goodrich - North 2311008572 | C41: =C4 -> 2311008572 | D41: 9397.434 | E41: 10808.555 | F41: 10876.92 | G41: 12189.222 | H41: 10398.216 | I41: 11271.489 | J41: 10980.262 | K41: 11527.986 | L41: 10716.938 | M41: 11924.82 | N41: 10440.25 | O41: 10616.862 | P41: =SUM(D41:O41) -> 131148.954 | Q41: =MAX(D41:O41) -> 12189.222 | R41: =INDEX($D$40:$O$40,MATCH(Q41,$D41:$O41,0)) -> 2018-04-01
A42: 22 | B42: Goodrich - South 2311155858 (No PVD) | C42: 2311155858 | D42: 2039 | E42: 2084 | F42: 2418.837 | G42: 2431.664 | H42: 2296.901 | I42: 2265.198 | J42: 2143.418 | K42: 2308.64 | L42: 2129.444 | M42: 2274.51 | N42: 2130.739 | O42: 2258.765 | P42: =SUM(D42:O42) -> 26781.116 | Q42: =MAX(D42:O42) -> 2431.664 | R42: =INDEX($D$40:$O$40,MATCH(Q42,$D42:$O42,0)) -> 2018-04-01
A43: 23 | B43: Boise Cascade LLC Inland Region | C43: 7600951015 | D43: 4001.76 | E43: 3968.251 | F43: 3931.927 | G43: 3862.137 | H43: 3778.404 | I43: 3829.903 | J43: 3654.618 | K43: 3595.995 | L43: 3626.622 | M43: 3622.504 | N43: 3699.854 | O43: 3744.723 | P43: =SUM(D43:O43) -> 45316.698 | Q43: =MAX(D43:O43) -> 4001.76 | R43: =INDEX($D$40:$O$40,MATCH(Q43,$D43:$O43,0)) -> 2018-01-01
A44: 2 | B44: Boise Cascade Plywood | C44: 8920023327 | D44: 5106.868 | E44: 5228.836 | F44: 5152.597 | G44: 5015.616 | H44: 4996.581 | I44: 4970.735 | J44: 4928.08 | K44: 5016.854 | L44: 5010.126 | M44: 5221.112 | N44: 5144.923 | O44: 5190.31 | P44: 60982.638 | Q44: =MAX(D44:O44) -> 5228.836 | R44: =INDEX($D$40:$O$40,MATCH(Q44,$D44:$O44,0)) -> 2018-02-01
A45: 3 | B45: Boise Cascade Sawmill | C45: 9920023116 | D45: 3044.835 | E45: 3165.724 | F45: 2936.157 | G45: 2832.737 | H45: 2790.268 | I45: 2642.027 | J45: 2697.375 | K45: 2738.079 | L45: 2684.688 | M45: 2751.567 | N45: 2958.556 | O45: 3120.735 | P45: 34362.748 | Q45: =MAX(D45:O45) -> 3165.724 | R45: 2018-02-01
A46: 4 | B46: City of Spokane | C46: 8970099313 | D46: 2633.598 | E46: 2437.032 | F46: 2551.955 | G46: 2453.03 | H46: 2354.556 | I46: 2611.745 | J46: 2612.403 | K46: 2763.986 | L46: 2602.496 | M46: 2752.696 | N46: 2553.496 | O46: 2503.218 | P46: 30830.211 | Q46: 2763.986 | R46: 2018-08-01
A47: 5 | B47: Empire Health Services | C47: 0080095044 | D47: 2779.067 | E47: 2869.538 | F47: 2721.992 | G47: 3450.44 | H47: 3858.024 | I47: 3693.93 | J47: 3911.697 | K47: 3885 | L47: 3581.145 | M47: 3055.421 | N47: 2832.361 | O47: 2887.872 | P47: 39526.487 | Q47: 3911.697 | R47: 2018-07-01
A48: 6 | B48: Gonzaga University | C48: 1420028876 | D48: 4475.325 | E48: 4880.02 | F48: 4434.525 | G48: 4814.779 | H48: 4723.4 | I48: 4119.123 | J48: 4821.993 | K48: 5334.552 | L48: 5154.96 | M48: 4196.418 | N48: 4699.364 | O48: 4772.531 | P48: 56426.99 | Q48: 5334.552 | R48: 2018-08-01
A49: 7 | B49: Honeywell Electronics | C49: 0170122152 | D49: 3061.67 | E49: 3134.306 | F49: 3167.087 | G49: 3035.386 | H49: 3408.92 | I49: 3260.476 | J49: 3649.725 | K49: 3544.709 | L49: 3110.418 | M49: 3118.114 | N49: 3034.592 | O49: 2905.031 | P49: 38430.434 | Q49: 3649.725 | R49: 2018-07-01
A50: 8 | B50: Huntwood Industries | C50: 8640841982 | D50: 4179.994 | E50: 4116.866 | F50: 4122.766 | G50: 4175.738 | H50: 4152.031 | I50: 4106.294 | J50: 4239.071 | K50: 4195.243 | L50: 4110.039 | M50: 4143.346 | N50: 4199.874 | O50: 4103.484 | P50: 49844.746 | Q50: 4239.071 | R50: 2018-07-01
A51: 9 | B51: Inland Empire Paper | C51: 0160126924 | D51: 62256 | E51: 62379 | F51: 63189 | G51: 61994.13 | H51: 61517.53 | I51: 59396.53 | J51: 62813.1 | K51: 61040.2 | L51: 59942.23 | M51: 61096.84 | N51: 60588.02 | O51: 60856.67 | P51: 737069.25 | Q51: 63189 | R51: 2018-03-01
A52: 10 | B52: Simplot - Othello | C52: 4250473907 | D52: 8442.418 | E52: 8358.511 | F52: 8105.56 | G52: 8224.904 | H52: 8483.355 | I52: 8479.861 | J52: 8624.309 | K52: 8557.473 | L52: 9557.949 | M52: 8207.006 | N52: 8147.16 | O52: 8210.105 | P52: 101398.611 | Q52: 9557.949 | R52: 2018-09-01
A53: 11 | B53: McCaine Foods Inc | C53: 9060132009 | D53: 8657.716 | E53: 8652.44 | F53: 8902.788 | G53: 9184 | H53: 9377.531 | I53: 8867.607 | J53: 8953.067 | K53: 8889.252 | L53: 8913.068 | M53: 9166.261 | N53: 9181.978 | O53: 9106.778 | P53: 107852.486 | Q53: 9377.531 | R53: 2018-05-01
A54: 12 | B54: Sacred Heart Medical Center | C54: 0030019644 | D54: 5071.446 | E54: 5121.796 | F54: 5189.142 | G54: 7026.441 | H54: 7631.118 | I54: 7475.982 | J54: 8008.901 | K54: 8512.119 | L54: 7510.109 | M54: 6467.324 | N54: 5024.339 | O54: 5040.661 | P54: 78079.378 | Q54: 8512.119 | R54: 2018-08-01
A55: 13 | B55: Spokane County Combined Master | C55: 1080099801 | D55: 1785.914 | E55: 1777.647 | F55: 1775.562 | G55: 2368.014 | H55: 2782.803 | I55: 2718.5 | J55: 2820.427 | K55: 2869.488 | L55: 2416.084 | M55: 2158.53 | N55: 2108.187 | O55: 1774.449 | P55: 27355.605 | Q55: 2869.488 | R55: 2018-08-01
A56: 14 | B56: Spokane Industries | C56: 0070121063 | D56: 6008.589 | E56: 5809.049 | F56: 6148.594 | G56: 6208.017 | H56: 6002.525 | I56: 6222.267 | J56: 6246.743 | K56: 6290.159 | L56: 5921.322 | M56: 6413.485 | N56: 5857.676 | O56: 6328.834 | P56: 73457.26 | Q56: 6413.485 | R56: 2018-10-01
A57: 15 | B57: Triumph Composite | C57: 2260946595 | D57: 3065.39 | E57: 2963.974 | F57: 2942.471 | G57: 3177.044 | H57: 3683.091 | I57: 3760.293 | J57: 3950.198 | K57: 3875.251 | L57: 3607.348 | M57: 3124.811 | N57: 2862.724 | O57: 2867.945 | P57: 39880.54 | Q57: 3950.198 | R57: 2018-07-01
A58: 16 | B58: Vaagen Brothers Lumber | C58: 2470070232 | D58: 4777.374 | E58: 4899.011 | F58: 4820.959 | G58: 4753.447 | H58: 4477.886 | I58: 4414.122 | J58: 4523.039 | K58: 4447.909 | L58: 4598.115 | M58: 4784.445 | N58: 4793.247 | O58: 4869.476 | P58: 56159.03 | Q58: 4899.011 | R58: 2018-02-01
A59: 17 | B59: WSU - MP-A South Campus Feeder | C59: 3730460787 | D59: 4509.541 | E59: 4640.64 | F59: 4637.138 | G59: 4368.632 | H59: 3971.707 | I59: 3937.003 | J59: 3983.565 | K59: 4133.544 | L59: 4257.915 | M59: 4457.15 | N59: 4390.914 | O59: 4512.599 | P59: 51800.348 | Q59: 4640.64 | R59: 2018-02-01
A60: 18 | B60: WSU - MP-B East Campus EA | C60: 6030021572 | D60: 8308 | E60: 7585 | F60: 7410 | G60: 9091.2 | H60: 9326.83 | I60: 9601.17 | J60: 10739.17 | K60: 10982.51 | L60: 9616.03 | M60: 7396.07 | N60: 7264.42 | O60: 7321.84 | P60: 104642.24 | Q60: 10982.51 | R60: 2018-08-01
A61: 19 | B61: WSU - MP-C East Campus EB | C61: 6100609210 | D61: 5683.281 | E61: 5615.932 | F61: 5617.817 | G61: 5574.057 | H61: 5024.534 | I61: 4956.975 | J61: 4832.483 | K61: 5151.419 | L61: 5185.685 | M61: 5362.346 | N61: 5780.531 | O61: 5915.085 | P61: 64700.145 | Q61: 5915.085 | R61: 2018-12-01
A62: 20 | B62: WSU - MP -D Casp East (no PVD) | C62: 5030019646 | D62: 4817.382 | E62: 5010.657 | F62: 5289.252 | G62: 5335.106 | H62: 4795.331 | I62: 4586.645 | J62: 4694.739 | K62: 5016.198 | L62: 4987.947 | M62: 5059.492 | N62: 5305.948 | O62: 5437.411 | P62: 60336.108 | Q62: 5437.411 | R62: 2018-12-01
A63: 21 | B63: WSU - MP-E Casp West (no PVD) | C63: 7030024549 | D63: 4338.623 | E63: 4320.718 | F63: 4136.319 | G63: 5872.945 | H63: 5696.32 | I63: 5612.318 | J63: 6844.556 | K63: 7163.116 | L63: 6990.209 | M63: 5036.215 | N63: 4252.462 | O63: 4379.93 | P63: 64643.731 | Q63: 7163.116 | R63: 2018-08-01
B64: Schedule 25 Total | D64: =SUM(D41:D63) -> 168441.225 | E64: 169827.503 | F64: 170479.365 | G64: 177438.686 | H64: 175527.862 | I64: 172800.193 | J64: 180672.939 | K64: 181839.682 | L64: 176230.887 | M64: 171790.483 | N64: 167251.615 | O64: 168725.314 | P64: =IF(ROUND(SUM(P41:P63),0)<>ROUND(SUM(D64:O64),0),#VALUE!,SUM(P41:P63)) -> 2081025.754
P66: =P$2 -> 12-mo Ended
B67: KVA in excess of 3,000 | D67: =D$3 -> 2018-01-01 | E67: =E$3 -> 2018-02-01 | F67: 2018-03-01 | G67: 2018-04-01 | H67: 2018-05-01 | I67: 2018-06-01 | J67: 2018-07-01 | K67: 2018-08-01 | L67: 2018-09-01 | M67: 2018-10-01 | N67: 2018-11-01 | O67: 2018-12-01 | P67: Total
A68: 1 | B68: =B4 -> Goodrich - North 2311008572 | C68: =C4 -> 2311008572 | D68: =IF(D41>3000,D41-3000,0) -> 6397.434 | E68: 7808.555 | F68: 7876.92 | G68: =MAX(0,G41-3000) -> 9189.222 | H68: =MAX(0,H41-3000) -> 7398.216 | I68: 8271.489 | J68: 7980.262 | K68: 8527.986 | L68: 7716.938 | M68: 8924.82 | N68: 7440.25 | O68: 7616.862 | P68: =SUM(D68:O68) -> 95148.954
A69: 22 | D69: 0 | E69: 0 | F69: 0 | G69: =MAX(0,G42-3000) -> 0 | H69: 0 | I69: 0 | J69: 0 | K69: 0 | L69: 0 | M69: 0 | N69: 0 | O69: 0 | P69: =SUM(D69:O69) -> 0
A70: 23 | D70: 1001.76 | E70: 968.251 | F70: 931.927 | G70: =MAX(0,G43-3000) -> 862.137 | H70: 778.404 | I70: 829.903 | J70: 654.618 | K70: 595.995 | L70: 626.622 | M70: 622.504 | N70: 699.854 | O70: 744.723 | P70: =SUM(D70:O70) -> 9316.698
A71: 2 | B71: =B7 -> Boise Cascade Plywood | C71: 8920023327 | D71: 2106.868 | E71: 2228.836 | F71: 2152.597 | G71: =MAX(0,G44-3000) -> 2015.616 | H71: 1996.581 | I71: 1970.735 | J71: 1928.08 | K71: 2016.854 | L71: 2010.126 | M71: 2221.112 | N71: 2144.923 | O71: 2190.31 | P71: 24982.638
A72: 3 | B72: Boise Cascade Sawmill | C72: 9920023116 | D72: 44.835 | E72: 165.724 | F72: 0 | G72: =MAX(0,G45-3000) -> 0 | H72: 0 | I72: 0 | J72: 0 | K72: 0 | L72: 0 | M72: 0 | N72: 0 | O72: 120.735 | P72: 331.294
A73: 4 | B73: City of Spokane | C73: 8970099313 | D73: 0 | E73: 0 | F73: 0 | G73: =MAX(0,G46-3000) -> 0 | H73: 0 | I73: 0 | J73: 0 | K73: 0 | L73: 0 | M73: 0 | N73: 0 | O73: 0 | P73: 0
A74: 5 | B74: Empire Health Services | C74: 0080095044 | D74: 0 | E74: 0 | F74: 0 | G74: =MAX(0,G47-3000) -> 450.44 | H74: 858.024 | I74: 693.93 | J74: 911.697 | K74: 885 | L74: 581.145 | M74: 55.421 | N74: 0 | O74: 0 | P74: 4435.657
A75: 6 | B75: Gonzaga University | C75: 1420028876 | D75: 1475.325 | E75: 1880.02 | F75: 1434.525 | G75: =MAX(0,G48-3000) -> 1814.779 | H75: 1723.4 | I75: 1119.123 | J75: 1821.993 | K75: 2334.552 | L75: 2154.96 | M75: 1196.418 | N75: 1699.364 | O75: 1772.531 | P75: 20426.99
A76: 7 | B76: Honeywell Electronics | C76: 0170122152 | D76: 61.67 | E76: 134.306 | F76: 167.087 | G76: =MAX(0,G49-3000) -> 35.386 | H76: 408.92 | I76: 260.476 | J76: 649.725 | K76: 544.709 | L76: 110.418 | M76: 118.114 | N76: 34.592 | O76: 0 | P76: 2525.403
A77: 8 | B77: Huntwood Industries | C77: 610074869 | D77: 1179.994 | E77: 1116.866 | F77: 1122.766 | G77: =MAX(0,G50-3000) -> 1175.738 | H77: 1152.031 | I77: 1106.294 | J77: 1239.071 | K77: 1195.243 | L77: 1110.039 | M77: 1143.346 | N77: 1199.874 | O77: 1103.484 | P77: 13844.746
A78: 9 | B78: =B14 -> Inland Empire Paper | C78: 0160126924 | D78: =MAX(0,D51-3000) -> 59256 | E78: =MAX(0,E51-3000) -> 59379 | F78: =MAX(0,F51-3000) -> 60189 | G78: =MAX(0,G51-3000) -> 58994.13 | H78: 58517.53 | I78: 56396.53 | J78: 59813.1 | K78: 58040.2 | L78: 56942.23 | M78: 58096.84 | N78: 57588.02 | O78: 57856.67 | P78: 701069.25
A79: 10 | B79: Simplot - Othello | C79: 4250473907 | D79: =IF(D52>3000,D52-3000,0) -> 5442.418 | E79: 5358.511 | F79: 5105.56 | G79: =MAX(0,G52-3000) -> 5224.904 | H79: 5483.355 | I79: 5479.861 | J79: 5624.309 | K79: 5557.473 | L79: 6557.949 | M79: 5207.006 | N79: 5147.16 | O79: 5210.105 | P79: 65398.611
A80: 11 | B80: McCaine Foods Inc | C80: 9060132009 | D80: 5657.716 | E80: 5652.44 | F80: 5902.788 | G80: =MAX(0,G53-3000) -> 6184 | H80: 6377.531 | I80: 5867.607 | J80: 5953.067 | K80: 5889.252 | L80: 5913.068 | M80: 6166.261 | N80: 6181.978 | O80: 6106.778 | P80: 71852.486
A81: 12 | B81: Sacred Heart Medical Center | C81: 0030019644 | D81: 2071.446 | E81: 2121.796 | F81: 2189.142 | G81: =MAX(0,G54-3000) -> 4026.441 | H81: 4631.118 | I81: 4475.982 | J81: 5008.901 | K81: 5512.119 | L81: 4510.109 | M81: 3467.324 | N81: 2024.339 | O81: 2040.661 | P81: 42079.378
A82: 13 | B82: Spokane County Combined Master | C82: 1080099801 | D82: 0 | E82: 0 | F82: 0 | G82: =MAX(0,G55-3000) -> 0 | H82: 0 | I82: 0 | J82: 0 | K82: 0 | L82: 0 | M82: 0 | N82: 0 | O82: 0 | P82: 0
A83: 14 | B83: Spokane Industries | C83: 0070121063 | D83: 3008.589 | E83: 2809.049 | F83: 3148.594 | G83: =MAX(0,G56-3000) -> 3208.017 | H83: 3002.525 | I83: 3222.267 | J83: 3246.743 | K83: 3290.159 | L83: 2921.322 | M83: 3413.485 | N83: 2857.676 | O83: 3328.834 | P83: 37457.26
A84: 15 | B84: Triumph Composite | C84: 2260946595 | D84: 65.39 | E84: 0 | F84: 0 | G84: =MAX(0,G57-3000) -> 177.044 | H84: 683.091 | I84: 760.293 | J84: 950.198 | K84: 875.251 | L84: 607.348 | M84: 124.811 | N84: 0 | O84: 0 | P84: 4243.426
A85: 16 | B85: Vaagen Brothers Lumber | C85: 2470070232 | D85: 1777.374 | E85: 1899.011 | F85: 1820.959 | G85: =MAX(0,G58-3000) -> 1753.447 | H85: 1477.886 | I85: 1414.122 | J85: 1523.039 | K85: 1447.909 | L85: 1598.115 | M85: 1784.445 | N85: 1793.247 | O85: 1869.476 | P85: 20159.03
A86: 17 | B86: WSU - MP-A South Campus Feeder | C86: 3730460787 | D86: 1509.541 | E86: 1640.64 | F86: 1637.138 | G86: =MAX(0,G59-3000) -> 1368.632 | H86: 971.707 | I86: 937.003 | J86: 983.565 | K86: 1133.544 | L86: 1257.915 | M86: 1457.15 | N86: 1390.914 | O86: 1512.599 | P86: 15800.348
A87: 18 | B87: WSU - MP-B East Campus EA | C87: 6030021572 | D87: 5308 | E87: 4585 | F87: 4410 | G87: =MAX(0,G60-3000) -> 6091.2 | H87: 6326.83 | I87: 6601.17 | J87: 7739.17 | K87: 7982.51 | L87: 6616.03 | M87: 4396.07 | N87: 4264.42 | O87: 4321.84 | P87: 68642.24
A88: 19 | B88: WSU - MP-C East Campus EB | C88: 6100609210 | D88: 2683.281 | E88: 2615.932 | F88: 2617.817 | G88: =MAX(0,G61-3000) -> 2574.057 | H88: 2024.534 | I88: 1956.975 | J88: 1832.483 | K88: 2151.419 | L88: 2185.685 | M88: 2362.346 | N88: 2780.531 | O88: 2915.085 | P88: 28700.145
A89: 20 | B89: WSU - MP -D Casp East (no PVD) | C89: 5030019646 | D89: 1817.382 | E89: 2010.657 | F89: 2289.252 | G89: =MAX(0,G62-3000) -> 2335.106 | H89: 1795.331 | I89: 1586.645 | J89: 1694.739 | K89: 2016.198 | L89: 1987.947 | M89: 2059.492 | N89: 2305.948 | O89: 2437.411 | P89: 24336.108
A90: 21 | B90: WSU - MP-E Casp West (no PVD) | C90: 7030024549 | D90: 1338.623 | E90: 1320.718 | F90: 1136.319 | G90: =MAX(0,G63-3000) -> 2872.945 | H90: 2696.32 | I90: 2612.318 | J90: 3844.556 | K90: 4163.116 | L90: 3990.209 | M90: 2036.215 | N90: 1252.462 | O90: 1379.93 | P90: 28643.731
B91: Schedule 25 Total | D91: =SUM(D68:D90) -> 102203.646 | E91: 103695.312 | F91: 104132.391 | G91: 110353.241 | H91: 108303.334 | I91: 105562.723 | J91: 113399.316 | K91: 114159.489 | L91: 109398.175 | M91: 104853.18 | N91: 100805.552 | O91: 102528.034 | P91: =IF(ROUND(SUM(P68:P90),0)<>ROUND(SUM(D91:O91),0),#VALUE!,SUM(P68:P90)) -> 1279394.393
B96: 9 KWHs | D96: =D$3 -> 2018-01-01 | E96: =E$3 -> 2018-02-01 | F96: 2018-03-01 | G96: 2018-04-01 | H96: 2018-05-01 | I96: 2018-06-01 | J96: 2018-07-01 | K96: 2018-08-01 | L96: 2018-09-01 | M96: 2018-10-01 | N96: 2018-11-01 | O96: 2018-12-01 | P96: Total
B97: 60 KV | P97: =SUM(D97:O97) -> 0
B98: 4.16 KV | P98: =SUM(D98:O98) -> 0
B99: 115 KV | P99: =SUM(D99:O99) -> 0
A100: * | B100: Total | D100: =SUM(D97:D99) -> 0 | E100: 0 | F100: 0 | G100: 0 | H100: 0 | I100: 0 | J100: 0 | K100: 0 | L100: 0 | M100: 0 | N100: 0 | O100: 0 | P100: 0
D101: =D14 -> 42113570 | E101: 38726690 | F101: 42012008 | G101: 40858220 | H101: 39613368 | I101: 39658628 | J101: 40571988 | K101: 41162272 | L101: 38387778 | M101: 41469272 | N101: 39553724 | O101: 41299864 | P101: =SUM(D101:O101) -> 485427382
B102: 9 KVA
B103: 60 KV | D103: 9615 | E103: 9738 | F103: 9266 | G103: 9426.5 | H103: 13524.7 | I103: 8784.3 | J103: 8958.43 | K103: 9132.94 | L103: 11689.97 | M103: 9293.58 | N103: 10280.13 | O103: 9078.28 | P103: =SUM(D103:O103) -> 118787.83
B104: 4.16 KV | P104: =SUM(D104:O104) -> 0
B105: 115 KV | D105: 52272 | E105: 52705 | F105: 53136 | G105: 51984.8 | H105: 51840 | I105: 50544 | J105: 52848.78 | K105: 51408 | L105: 50976 | M105: 51408 | N105: 51696 | O105: 52128.2 | P105: =SUM(D105:O105) -> 622946.78
A106: * | B106: Total | D106: =SUM(D103:D105) -> 61887 | E106: 62443 | F106: 62402 | G106: 61411.3 | H106: 65364.7 | I106: 59328.3 | J106: 61807.21 | K106: 60540.94 | L106: 62665.97 | M106: 60701.58 | N106: 61976.13 | O106: 61206.48 | P106: 741734.61
D107: =D51 -> 62256 | E107: =E51 -> 62379 | F107: 63189 | G107: =G51 -> 61994.13 | H107: 61517.53 | I107: 59396.53 | J107: 62813.1 | K107: 61040.2 | L107: 59942.23 | M107: 61096.84 | N107: 60588.02 | O107: 60856.67 | P107: =SUM(D107:O107) -> 737069.25
B109: Calc Revenue for 9 | D109: =500000*0.0575+MIN(5500000,D14-500000)*0.05177+MAX(0,D14-6000000)*0.04433+15000+D78*5.25-D103*1.1-D105*1.4 -> 2156736.258 | E109: =500000*0.0575+MIN(5500000,E14-500000)*0.05177+MAX(0,E14-6000000)*0.04433+15000+E78*5.25-E103*1.1-E105*1.4 -> 2006500.118 | F109: =500000*0.0575+MIN(5500000,F14-500000)*0.05177+MAX(0,F14-6000000)*0.04433+15000+F78*5.25-F103*1.1-F105*1.4 -> 2156306.565 | G109: =500000*0.05616+MIN(5500000,G14-500000)*0.05053+MAX(0,G14-6000000)*0.0432+21000+G78*6-G103*1.1-G105*1.4 -> 2103687.014 | H109: =500000*0.05616+MIN(5500000,H14-500000)*0.05053+MAX(0,H14-6000000)*0.0432+21000+H78*6-H103*1.1-H105*1.4 -> 2042744.508 | I109: 2039002.58 | J109: 2095540.917 | K109: 2112228.916 | L109: 1983575.023 | M109: 2125654.452 | N109: 2038361.454 | O109: 2116123.557 | P109: =SUM(D109:O109) -> 24976461.36
B110: Revenue for 9 per Handbill Report | P110: =SUM(D110:O110) -> 0
D111: =D109-D110 -> 2156736.258 | E111: =E109-E110 -> 2006500.118 | F111: 2156306.565 | G111: 2103687.014 | H111: 2042744.508 | I111: 2039002.58 | J111: 2095540.917 | K111: 2112228.916 | L111: 1983575.023 | M111: 2125654.452 | N111: 2038361.454 | O111: 2116123.557
B112: Primary Voltage Discount
B113: >11 and <60 | C113: -0.2 | D113: =(D64-D62-D63-D51-D42)*$C113 -> -18998.044 | E113: =(E64-E62-E63-E51-E42)*$C113 -> -19206.6256 | F113: -19089.1914 | G113: -20360.9682 | H113: -20244.356 | I113: -20187.9004 | J113: -20835.4252 | K113: -21262.3056 | L113: -20436.2114 | M113: -19664.6852 | N113: -18994.8892 | O113: -19158.5076 | P113: =SUM(D113:O113) -> -238439.1098
B114: >60 and <115 | C114: =-1.1 -> -1.1 | D114: =D103*$C114 -> -10576.5 | E114: =E103*$C114 -> -10711.8 | F114: =F103*$C114 -> -10192.6 | G114: -10369.15 | H114: -14877.17 | I114: -9662.73 | J114: -9854.273 | K114: -10046.234 | L114: -12858.967 | M114: -10222.938 | N114: -11308.143 | O114: -9986.108 | P114: =SUM(D114:O114) -> -130666.613
B115: >115 | C115: -1.4 | D115: =D105*$C115 -> -73180.8 | E115: =E105*$C115 -> -73787 | F115: =F105*$C115 -> -74390.4 | G115: -72778.72 | H115: -72576 | I115: -70761.6 | J115: -73988.292 | K115: -71971.2 | L115: -71366.4 | M115: -71971.2 | N115: -72374.4 | O115: -72979.48 | P115: =SUM(D115:O115) -> -872125.492
D116: =SUM(D113:D115) -> -102755.344 | E116: -103705.4256 | F116: -103672.1914 | G116: -103508.8382 | H116: -107697.526 | I116: -100612.2304 | J116: -104677.9902 | K116: -103279.7396 | L116: -104661.5784 | M116: -101858.8232 | N116: -102677.4322 | O116: -102124.0956 | P116: -1241231.215
T117: Present | U117: Proposed
B118: Base Revenues | T118: Annual Minimum
B119: BF Goodrich | C119: 770037736 | D119: =500000*('Rate Design'!$G$5/100)+MIN(5500000,D4-500000)*('Rate Design'!$G$6/100)+MAX(0,D4-6000000)*('Rate Design'!$G$7/100)+'Rate Design'!$G$9+D68*'Rate Design'!$G$10-0.2*D41 -> 334785.5462 | E119: =500000*('Rate Design'!$G$5/100)+MIN(5500000,E4-500000)*('Rate Design'!$G$6/100)+MAX(0,E4-6000000)*('Rate Design'!$G$7/100)+'Rate Design'!$G$9+E68*'Rate Design'!$G$10-0.2*E41 -> 333379.5697 | F119: =500000*('Rate Design'!$G$5/100)+MIN(5500000,F4-500000)*('Rate Design'!$G$6/100)+MAX(0,F4-6000000)*('Rate Design'!$G$7/100)+'Rate Design'!$G$9+F68*'Rate Design'!$G$10-0.2*F41 -> 353057.6668 | G119: =500000*('Rate Design'!$G$5/100)+MIN(5500000,G4-500000)*('Rate Design'!$G$6/100)+MAX(0,G4-6000000)*('Rate Design'!$G$7/100)+'Rate Design'!$G$9+G68*'Rate Design'!$G$10-0.2*G41 -> 378207.3114 | H119: =500000*('Rate Design'!$G$5/100)+MIN(5500000,H4-500000)*('Rate Design'!$G$6/100)+MAX(0,H4-6000000)*('Rate Design'!$G$7/100)+'Rate Design'!$G$9+H68*'Rate Design'!$G$10-0.2*H41 -> 377532.3499 | I119: =500000*('Rate Design'!$G$5/100)+MIN(5500000,I4-500000)*('Rate Design'!$G$6/100)+MAX(0,I4-6000000)*('Rate Design'!$G$7/100)+'Rate Design'!$G$9+I68*'Rate Design'!$G$10-0.2*I41 -> 364118.6993 | J119: =500000*('Rate Design'!$G$5/100)+MIN(5500000,J4-500000)*('Rate Design'!$G$6/100)+MAX(0,J4-6000000)*('Rate Design'!$G$7/100)+'Rate Design'!$G$9+J68*'Rate Design'!$G$10-0.2*J41 -> 382322.133 | K119: =500000*('Rate Design'!$G$5/100)+MIN(5500000,K4-500000)*('Rate Design'!$G$6/100)+MAX(0,K4-6000000)*('Rate Design'!$G$7/100)+'Rate Design'!$G$9+K68*'Rate Design'!$G$10-0.2*K41 -> 389183.9851 | L119: =500000*('Rate Design'!$G$5/100)+MIN(5500000,L4-500000)*('Rate Design'!$G$6/100)+MAX(0,L4-6000000)*('Rate Design'!$G$7/100)+'Rate Design'!$G$9+L68*'Rate Design'!$G$10-0.2*L41 -> 333075.5207 | M119: =500000*('Rate Design'!$G$5/100)+MIN(5500000,M4-500000)*('Rate Design'!$G$6/100)+MAX(0,M4-6000000)*('Rate Design'!$G$7/100)+'Rate Design'!$G$9+M68*'Rate Design'!$G$10-0.2*M41 -> 380718.5316 | N119: =500000*('Rate Design'!$G$5/100)+MIN(5500000,N4-500000)*('Rate Design'!$G$6/100)+MAX(0,N4-6000000)*('Rate Design'!$G$7/100)+'Rate Design'!$G$9+N68*'Rate Design'!$G$10-0.2*N41 -> 309502.3459 | O119: =500000*('Rate Design'!$G$5/100)+MIN(5500000,O4-500000)*('Rate Design'!$G$6/100)+MAX(0,O4-6000000)*('Rate Design'!$G$7/100)+'Rate Design'!$G$9+O68*'Rate Design'!$G$10-0.2*O41 -> 374867.3682 | P119: =SUM(D119:O119) -> 4310751.028 | T119: =IF(P119<829950,829950-P119,0) -> 0
D120: =500000*('Rate Design'!$G$5/100)+MIN(5500000,D5-500000)*('Rate Design'!$G$6/100)+MAX(0,D5-6000000)*('Rate Design'!$G$7/100)+'Rate Design'!$G$9+D69*'Rate Design'!$G$10 -> 56804.74941 | E120: =500000*('Rate Design'!$G$5/100)+MIN(5500000,E5-500000)*('Rate Design'!$G$6/100)+MAX(0,E5-6000000)*('Rate Design'!$G$7/100)+'Rate Design'!$G$9+E69*'Rate Design'!$G$10 -> 59547.73072 | F120: =500000*('Rate Design'!$G$5/100)+MIN(5500000,F5-500000)*('Rate Design'!$G$6/100)+MAX(0,F5-6000000)*('Rate Design'!$G$7/100)+'Rate Design'!$G$9+F69*'Rate Design'!$G$10 -> 62776.2348 | G120: =500000*('Rate Design'!$G$5/100)+MIN(5500000,G5-500000)*('Rate Design'!$G$6/100)+MAX(0,G5-6000000)*('Rate Design'!$G$7/100)+'Rate Design'!$G$9+G69*'Rate Design'!$G$10 -> 61311.18693 | H120: =500000*('Rate Design'!$G$5/100)+MIN(5500000,H5-500000)*('Rate Design'!$G$6/100)+MAX(0,H5-6000000)*('Rate Design'!$G$7/100)+'Rate Design'!$G$9+H69*'Rate Design'!$G$10 -> 60986.10173 | I120: =500000*('Rate Design'!$G$5/100)+MIN(5500000,I5-500000)*('Rate Design'!$G$6/100)+MAX(0,I5-6000000)*('Rate Design'!$G$7/100)+'Rate Design'!$G$9+I69*'Rate Design'!$G$10 -> 64518.38321 | J120: =500000*('Rate Design'!$G$5/100)+MIN(5500000,J5-500000)*('Rate Design'!$G$6/100)+MAX(0,J5-6000000)*('Rate Design'!$G$7/100)+'Rate Design'!$G$9+J69*'Rate Design'!$G$10 -> 62572.64669 | K120: =500000*('Rate Design'!$G$5/100)+MIN(5500000,K5-500000)*('Rate Design'!$G$6/100)+MAX(0,K5-6000000)*('Rate Design'!$G$7/100)+'Rate Design'!$G$9+K69*'Rate Design'!$G$10 -> 67250.73538 | L120: =500000*('Rate Design'!$G$5/100)+MIN(5500000,L5-500000)*('Rate Design'!$G$6/100)+MAX(0,L5-6000000)*('Rate Design'!$G$7/100)+'Rate Design'!$G$9+L69*'Rate Design'!$G$10 -> 52106.16521 | M120: =500000*('Rate Design'!$G$5/100)+MIN(5500000,M5-500000)*('Rate Design'!$G$6/100)+MAX(0,M5-6000000)*('Rate Design'!$G$7/100)+'Rate Design'!$G$9+M69*'Rate Design'!$G$10 -> 58381.33884 | N120: =500000*('Rate Design'!$G$5/100)+MIN(5500000,N5-500000)*('Rate Design'!$G$6/100)+MAX(0,N5-6000000)*('Rate Design'!$G$7/100)+'Rate Design'!$G$9+N69*'Rate Design'!$G$10 -> 58913.60803 | O120: =500000*('Rate Design'!$G$5/100)+MIN(5500000,O5-500000)*('Rate Design'!$G$6/100)+MAX(0,O5-6000000)*('Rate Design'!$G$7/100)+'Rate Design'!$G$9+O69*'Rate Design'!$G$10 -> 62470.85263 | P120: =SUM(D120:O120) -> 727639.7336 | T120: =IF(P120<829950,829950-P120,0) -> 102310.2664
D121: =500000*('Rate Design'!$G$5/100)+MIN(5500000,D6-500000)*('Rate Design'!$G$6/100)+MAX(0,D6-6000000)*('Rate Design'!$G$7/100)+'Rate Design'!$G$9+D70*'Rate Design'!$G$10-0.2*D43 -> 80984.41541 | E121: =500000*('Rate Design'!$G$5/100)+MIN(5500000,E6-500000)*('Rate Design'!$G$6/100)+MAX(0,E6-6000000)*('Rate Design'!$G$7/100)+'Rate Design'!$G$9+E70*'Rate Design'!$G$10-0.2*E43 -> 76608.00411 | F121: =500000*('Rate Design'!$G$5/100)+MIN(5500000,F6-500000)*('Rate Design'!$G$6/100)+MAX(0,F6-6000000)*('Rate Design'!$G$7/100)+'Rate Design'!$G$9+F70*'Rate Design'!$G$10-0.2*F43 -> 79181.58517 | G121: =500000*('Rate Design'!$G$5/100)+MIN(5500000,G6-500000)*('Rate Design'!$G$6/100)+MAX(0,G6-6000000)*('Rate Design'!$G$7/100)+'Rate Design'!$G$9+G70*'Rate Design'!$G$10-0.2*G43 -> 74999.41642 | H121: =500000*('Rate Design'!$G$5/100)+MIN(5500000,H6-500000)*('Rate Design'!$G$6/100)+MAX(0,H6-6000000)*('Rate Design'!$G$7/100)+'Rate Design'!$G$9+H70*'Rate Design'!$G$10-0.2*H43 -> 75444.00401 | I121: =500000*('Rate Design'!$G$5/100)+MIN(5500000,I6-500000)*('Rate Design'!$G$6/100)+MAX(0,I6-6000000)*('Rate Design'!$G$7/100)+'Rate Design'!$G$9+I70*'Rate Design'!$G$10-0.2*I43 -> 75534.62649 | J121: =500000*('Rate Design'!$G$5/100)+MIN(5500000,J6-500000)*('Rate Design'!$G$6/100)+MAX(0,J6-6000000)*('Rate Design'!$G$7/100)+'Rate Design'!$G$9+J70*'Rate Design'!$G$10-0.2*J43 -> 69005.84501 | K121: =500000*('Rate Design'!$G$5/100)+MIN(5500000,K6-500000)*('Rate Design'!$G$6/100)+MAX(0,K6-6000000)*('Rate Design'!$G$7/100)+'Rate Design'!$G$9+K70*'Rate Design'!$G$10-0.2*K43 -> 71092.26704 | L121: =500000*('Rate Design'!$G$5/100)+MIN(5500000,L6-500000)*('Rate Design'!$G$6/100)+MAX(0,L6-6000000)*('Rate Design'!$G$7/100)+'Rate Design'!$G$9+L70*'Rate Design'!$G$10-0.2*L43 -> 68693.83726 | M121: =500000*('Rate Design'!$G$5/100)+MIN(5500000,M6-500000)*('Rate Design'!$G$6/100)+MAX(0,M6-6000000)*('Rate Design'!$G$7/100)+'Rate Design'!$G$9+M70*'Rate Design'!$G$10-0.2*M43 -> 73367.40923 | N121: =500000*('Rate Design'!$G$5/100)+MIN(5500000,N6-500000)*('Rate Design'!$G$6/100)+MAX(0,N6-6000000)*('Rate Design'!$G$7/100)+'Rate Design'!$G$9+N70*'Rate Design'!$G$10-0.2*N43 -> 71981.02405 | O121: =500000*('Rate Design'!$G$5/100)+MIN(5500000,O6-500000)*('Rate Design'!$G$6/100)+MAX(0,O6-6000000)*('Rate Design'!$G$7/100)+'Rate Design'!$G$9+O70*'Rate Design'!$G$10-0.2*O43 -> 71080.86291 | P121: =SUM(D121:O121) -> 887973.2971 | T121: =IF(P121<829950,829950-P121,0) -> 0
B122: Boise Cascade Plywood | C122: 500017 | D122: =500000*('Rate Design'!$G$5/100)+MIN(5500000,D7-500000)*('Rate Design'!$G$6/100)+MAX(0,D7-6000000)*('Rate Design'!$G$7/100)+'Rate Design'!$G$9+D71*'Rate Design'!$G$10-0.2*D44 -> 192912.3549 | E122: =500000*('Rate Design'!$G$5/100)+MIN(5500000,E7-500000)*('Rate Design'!$G$6/100)+MAX(0,E7-6000000)*('Rate Design'!$G$7/100)+'Rate Design'!$G$9+E71*'Rate Design'!$G$10-0.2*E44 -> 183885.225 | F122: =500000*('Rate Design'!$G$5/100)+MIN(5500000,F7-500000)*('Rate Design'!$G$6/100)+MAX(0,F7-6000000)*('Rate Design'!$G$7/100)+'Rate Design'!$G$9+F71*'Rate Design'!$G$10-0.2*F44 -> 197868.9671 | G122: =500000*('Rate Design'!$G$5/100)+MIN(5500000,G7-500000)*('Rate Design'!$G$6/100)+MAX(0,G7-6000000)*('Rate Design'!$G$7/100)+'Rate Design'!$G$9+G71*'Rate Design'!$G$10-0.2*G44 -> 187466.1224 | H122: =500000*('Rate Design'!$G$5/100)+MIN(5500000,H7-500000)*('Rate Design'!$G$6/100)+MAX(0,H7-6000000)*('Rate Design'!$G$7/100)+'Rate Design'!$G$9+H71*'Rate Design'!$G$10-0.2*H44 -> 186873.7749 | I122: =500000*('Rate Design'!$G$5/100)+MIN(5500000,I7-500000)*('Rate Design'!$G$6/100)+MAX(0,I7-6000000)*('Rate Design'!$G$7/100)+'Rate Design'!$G$9+I71*'Rate Design'!$G$10-0.2*I44 -> 182940.6819 | J122: =500000*('Rate Design'!$G$5/100)+MIN(5500000,J7-500000)*('Rate Design'!$G$6/100)+MAX(0,J7-6000000)*('Rate Design'!$G$7/100)+'Rate Design'!$G$9+J71*'Rate Design'!$G$10-0.2*J44 -> 177891.5179 | K122: =500000*('Rate Design'!$G$5/100)+MIN(5500000,K7-500000)*('Rate Design'!$G$6/100)+MAX(0,K7-6000000)*('Rate Design'!$G$7/100)+'Rate Design'!$G$9+K71*'Rate Design'!$G$10-0.2*K44 -> 186317.5053 | L122: =500000*('Rate Design'!$G$5/100)+MIN(5500000,L7-500000)*('Rate Design'!$G$6/100)+MAX(0,L7-6000000)*('Rate Design'!$G$7/100)+'Rate Design'!$G$9+L71*'Rate Design'!$G$10-0.2*L44 -> 173156.3753 | M122: =500000*('Rate Design'!$G$5/100)+MIN(5500000,M7-500000)*('Rate Design'!$G$6/100)+MAX(0,M7-6000000)*('Rate Design'!$G$7/100)+'Rate Design'!$G$9+M71*'Rate Design'!$G$10-0.2*M44 -> 182683.6837 | N122: =500000*('Rate Design'!$G$5/100)+MIN(5500000,N7-500000)*('Rate Design'!$G$6/100)+MAX(0,N7-6000000)*('Rate Design'!$G$7/100)+'Rate Design'!$G$9+N71*'Rate Design'!$G$10-0.2*N44 -> 176060.0612 | O122: =500000*('Rate Design'!$G$5/100)+MIN(5500000,O7-500000)*('Rate Design'!$G$6/100)+MAX(0,O7-6000000)*('Rate Design'!$G$7/100)+'Rate Design'!$G$9+O71*'Rate Design'!$G$10-0.2*O44 -> 118891.9223 | P122: =SUM(D122:O122) -> 2146948.192 | T122: 0
B123: Boise Cascade Sawmill | C123: 500018 | D123: =500000*('Rate Design'!$G$5/100)+MIN(5500000,D8-500000)*('Rate Design'!$G$6/100)+MAX(0,D8-6000000)*('Rate Design'!$G$7/100)+'Rate Design'!$G$9+D72*'Rate Design'!$G$10-0.2*D45 -> 98330.6294 | E123: =500000*('Rate Design'!$G$5/100)+MIN(5500000,E8-500000)*('Rate Design'!$G$6/100)+MAX(0,E8-6000000)*('Rate Design'!$G$7/100)+'Rate Design'!$G$9+E72*'Rate Design'!$G$10-0.2*E45 -> 93081.52685 | F123: =500000*('Rate Design'!$G$5/100)+MIN(5500000,F8-500000)*('Rate Design'!$G$6/100)+MAX(0,F8-6000000)*('Rate Design'!$G$7/100)+'Rate Design'!$G$9+F72*'Rate Design'!$G$10-0.2*F45 -> 96178.23286 | G123: =500000*('Rate Design'!$G$5/100)+MIN(5500000,G8-500000)*('Rate Design'!$G$6/100)+MAX(0,G8-6000000)*('Rate Design'!$G$7/100)+'Rate Design'!$G$9+G72*'Rate Design'!$G$10-0.2*G45 -> 88591.96077 | H123: =500000*('Rate Design'!$G$5/100)+MIN(5500000,H8-500000)*('Rate Design'!$G$6/100)+MAX(0,H8-6000000)*('Rate Design'!$G$7/100)+'Rate Design'!$G$9+H72*'Rate Design'!$G$10-0.2*H45 -> 90396.20435 | I123: =500000*('Rate Design'!$G$5/100)+MIN(5500000,I8-500000)*('Rate Design'!$G$6/100)+MAX(0,I8-6000000)*('Rate Design'!$G$7/100)+'Rate Design'!$G$9+I72*'Rate Design'!$G$10-0.2*I45 -> 88988.46223 | J123: =500000*('Rate Design'!$G$5/100)+MIN(5500000,J8-500000)*('Rate Design'!$G$6/100)+MAX(0,J8-6000000)*('Rate Design'!$G$7/100)+'Rate Design'!$G$9+J72*'Rate Design'!$G$10-0.2*J45 -> 88350.54095 | K123: =500000*('Rate Design'!$G$5/100)+MIN(5500000,K8-500000)*('Rate Design'!$G$6/100)+MAX(0,K8-6000000)*('Rate Design'!$G$7/100)+'Rate Design'!$G$9+K72*'Rate Design'!$G$10-0.2*K45 -> 90459.68878 | L123: =500000*('Rate Design'!$G$5/100)+MIN(5500000,L8-500000)*('Rate Design'!$G$6/100)+MAX(0,L8-6000000)*('Rate Design'!$G$7/100)+'Rate Design'!$G$9+L72*'Rate Design'!$G$10-0.2*L45 -> 85252.93621 | M123: =500000*('Rate Design'!$G$5/100)+MIN(5500000,M8-500000)*('Rate Design'!$G$6/100)+MAX(0,M8-6000000)*('Rate Design'!$G$7/100)+'Rate Design'!$G$9+M72*'Rate Design'!$G$10-0.2*M45 -> 94166.44147 | N123: =500000*('Rate Design'!$G$5/100)+MIN(5500000,N8-500000)*('Rate Design'!$G$6/100)+MAX(0,N8-6000000)*('Rate Design'!$G$7/100)+'Rate Design'!$G$9+N72*'Rate Design'!$G$10-0.2*N45 -> 91804.23627 | O123: =500000*('Rate Design'!$G$5/100)+MIN(5500000,O8-500000)*('Rate Design'!$G$6/100)+MAX(0,O8-6000000)*('Rate Design'!$G$7/100)+'Rate Design'!$G$9+O72*'Rate Design'!$G$10-0.2*O45 -> 96072.1827 | P123: 1101673.043 | T123: 0
B124: City of Spokane Sewage Treatment Plt | C124: 1900002 | D124: =500000*('Rate Design'!$G$5/100)+MIN(5500000,D9-500000)*('Rate Design'!$G$6/100)+MAX(0,D9-6000000)*('Rate Design'!$G$7/100)+'Rate Design'!$G$9+D73*'Rate Design'!$G$10-0.2*D46 -> 90341.38091 | E124: =500000*('Rate Design'!$G$5/100)+MIN(5500000,E9-500000)*('Rate Design'!$G$6/100)+MAX(0,E9-6000000)*('Rate Design'!$G$7/100)+'Rate Design'!$G$9+E73*'Rate Design'!$G$10-0.2*E46 -> 83593.94987 | F124: =500000*('Rate Design'!$G$5/100)+MIN(5500000,F9-500000)*('Rate Design'!$G$6/100)+MAX(0,F9-6000000)*('Rate Design'!$G$7/100)+'Rate Design'!$G$9+F73*'Rate Design'!$G$10-0.2*F46 -> 88086.06559 | G124: =500000*('Rate Design'!$G$5/100)+MIN(5500000,G9-500000)*('Rate Design'!$G$6/100)+MAX(0,G9-6000000)*('Rate Design'!$G$7/100)+'Rate Design'!$G$9+G73*'Rate Design'!$G$10-0.2*G46 -> 85991.37031 | H124: =500000*('Rate Design'!$G$5/100)+MIN(5500000,H9-500000)*('Rate Design'!$G$6/100)+MAX(0,H9-6000000)*('Rate Design'!$G$7/100)+'Rate Design'!$G$9+H73*'Rate Design'!$G$10-0.2*H46 -> 89621.35634 | I124: =500000*('Rate Design'!$G$5/100)+MIN(5500000,I9-500000)*('Rate Design'!$G$6/100)+MAX(0,I9-6000000)*('Rate Design'!$G$7/100)+'Rate Design'!$G$9+I73*'Rate Design'!$G$10-0.2*I46 -> 87561.73955 | J124: =500000*('Rate Design'!$G$5/100)+MIN(5500000,J9-500000)*('Rate Design'!$G$6/100)+MAX(0,J9-6000000)*('Rate Design'!$G$7/100)+'Rate Design'!$G$9+J73*'Rate Design'!$G$10-0.2*J46 -> 91833.62989 | K124: =500000*('Rate Design'!$G$5/100)+MIN(5500000,K9-500000)*('Rate Design'!$G$6/100)+MAX(0,K9-6000000)*('Rate Design'!$G$7/100)+'Rate Design'!$G$9+K73*'Rate Design'!$G$10-0.2*K46 -> 91216.1599 | L124: =500000*('Rate Design'!$G$5/100)+MIN(5500000,L9-500000)*('Rate Design'!$G$6/100)+MAX(0,L9-6000000)*('Rate Design'!$G$7/100)+'Rate Design'!$G$9+L73*'Rate Design'!$G$10-0.2*L46 -> 88170.19317 | M124: =500000*('Rate Design'!$G$5/100)+MIN(5500000,M9-500000)*('Rate Design'!$G$6/100)+MAX(0,M9-6000000)*('Rate Design'!$G$7/100)+'Rate Design'!$G$9+M73*'Rate Design'!$G$10-0.2*M46 -> 87565.58536 | N124: =500000*('Rate Design'!$G$5/100)+MIN(5500000,N9-500000)*('Rate Design'!$G$6/100)+MAX(0,N9-6000000)*('Rate Design'!$G$7/100)+'Rate Design'!$G$9+N73*'Rate Design'!$G$10-0.2*N46 -> 86159.43663 | O124: =500000*('Rate Design'!$G$5/100)+MIN(5500000,O9-500000)*('Rate Design'!$G$6/100)+MAX(0,O9-6000000)*('Rate Design'!$G$7/100)+'Rate Design'!$G$9+O73*'Rate Design'!$G$10-0.2*O46 -> 90906.92004 | P124: 1061047.788 | T124: 0
B125: Deaconess Medical Center | C125: 1900011 | D125: =500000*('Rate Design'!$G$5/100)+MIN(5500000,D10-500000)*('Rate Design'!$G$6/100)+MAX(0,D10-6000000)*('Rate Design'!$G$7/100)+'Rate Design'!$G$9+D74*'Rate Design'!$G$10-0.2*D47 -> 109423.2197 | E125: =500000*('Rate Design'!$G$5/100)+MIN(5500000,E10-500000)*('Rate Design'!$G$6/100)+MAX(0,E10-6000000)*('Rate Design'!$G$7/100)+'Rate Design'!$G$9+E74*'Rate Design'!$G$10-0.2*E47 -> 103005.7257 | F125: =500000*('Rate Design'!$G$5/100)+MIN(5500000,F10-500000)*('Rate Design'!$G$6/100)+MAX(0,F10-6000000)*('Rate Design'!$G$7/100)+'Rate Design'!$G$9+F74*'Rate Design'!$G$10-0.2*F47 -> 108898.7597 | G125: =500000*('Rate Design'!$G$5/100)+MIN(5500000,G10-500000)*('Rate Design'!$G$6/100)+MAX(0,G10-6000000)*('Rate Design'!$G$7/100)+'Rate Design'!$G$9+G74*'Rate Design'!$G$10-0.2*G47 -> 109337.9333 | H125: =500000*('Rate Design'!$G$5/100)+MIN(5500000,H10-500000)*('Rate Design'!$G$6/100)+MAX(0,H10-6000000)*('Rate Design'!$G$7/100)+'Rate Design'!$G$9+H74*'Rate Design'!$G$10-0.2*H47 -> 128984.335 | I125: =500000*('Rate Design'!$G$5/100)+MIN(5500000,I10-500000)*('Rate Design'!$G$6/100)+MAX(0,I10-6000000)*('Rate Design'!$G$7/100)+'Rate Design'!$G$9+I74*'Rate Design'!$G$10-0.2*I47 -> 125237.0517 | J125: =500000*('Rate Design'!$G$5/100)+MIN(5500000,J10-500000)*('Rate Design'!$G$6/100)+MAX(0,J10-6000000)*('Rate Design'!$G$7/100)+'Rate Design'!$G$9+J74*'Rate Design'!$G$10-0.2*J47 -> 139864.7125 | K125: =500000*('Rate Design'!$G$5/100)+MIN(5500000,K10-500000)*('Rate Design'!$G$6/100)+MAX(0,K10-6000000)*('Rate Design'!$G$7/100)+'Rate Design'!$G$9+K74*'Rate Design'!$G$10-0.2*K47 -> 136085.7101 | L125: =500000*('Rate Design'!$G$5/100)+MIN(5500000,L10-500000)*('Rate Design'!$G$6/100)+MAX(0,L10-6000000)*('Rate Design'!$G$7/100)+'Rate Design'!$G$9+L74*'Rate Design'!$G$10-0.2*L47 -> 119783.0973 | M125: =500000*('Rate Design'!$G$5/100)+MIN(5500000,M10-500000)*('Rate Design'!$G$6/100)+MAX(0,M10-6000000)*('Rate Design'!$G$7/100)+'Rate Design'!$G$9+M74*'Rate Design'!$G$10-0.2*M47 -> 108190.2492 | N125: =500000*('Rate Design'!$G$5/100)+MIN(5500000,N10-500000)*('Rate Design'!$G$6/100)+MAX(0,N10-6000000)*('Rate Design'!$G$7/100)+'Rate Design'!$G$9+N74*'Rate Design'!$G$10-0.2*N47 -> 106447.1502 | O125: =500000*('Rate Design'!$G$5/100)+MIN(5500000,O10-500000)*('Rate Design'!$G$6/100)+MAX(0,O10-6000000)*('Rate Design'!$G$7/100)+'Rate Design'!$G$9+O74*'Rate Design'!$G$10-0.2*O47 -> 110654.5553 | P125: 1405912.5 | T125: 0
B126: Gonzaga University | C126: 622922 | D126: =500000*('Rate Design'!$G$5/100)+MIN(5500000,D11-500000)*('Rate Design'!$G$6/100)+MAX(0,D11-6000000)*('Rate Design'!$G$7/100)+'Rate Design'!$G$9+D75*'Rate Design'!$G$10-0.2*D48 -> 146951.2135 | E126: =500000*('Rate Design'!$G$5/100)+MIN(5500000,E11-500000)*('Rate Design'!$G$6/100)+MAX(0,E11-6000000)*('Rate Design'!$G$7/100)+'Rate Design'!$G$9+E75*'Rate Design'!$G$10-0.2*E48 -> 151677.4374 | F126: =500000*('Rate Design'!$G$5/100)+MIN(5500000,F11-500000)*('Rate Design'!$G$6/100)+MAX(0,F11-6000000)*('Rate Design'!$G$7/100)+'Rate Design'!$G$9+F75*'Rate Design'!$G$10-0.2*F48 -> 141602.2518 | G126: =500000*('Rate Design'!$G$5/100)+MIN(5500000,G11-500000)*('Rate Design'!$G$6/100)+MAX(0,G11-6000000)*('Rate Design'!$G$7/100)+'Rate Design'!$G$9+G75*'Rate Design'!$G$10-0.2*G48 -> 141769.2001 | H126: =500000*('Rate Design'!$G$5/100)+MIN(5500000,H11-500000)*('Rate Design'!$G$6/100)+MAX(0,H11-6000000)*('Rate Design'!$G$7/100)+'Rate Design'!$G$9+H75*'Rate Design'!$G$10-0.2*H48 -> 129112.6105 | I126: =500000*('Rate Design'!$G$5/100)+MIN(5500000,I11-500000)*('Rate Design'!$G$6/100)+MAX(0,I11-6000000)*('Rate Design'!$G$7/100)+'Rate Design'!$G$9+I75*'Rate Design'!$G$10-0.2*I48 -> 114127.5963 | J126: =500000*('Rate Design'!$G$5/100)+MIN(5500000,J11-500000)*('Rate Design'!$G$6/100)+MAX(0,J11-6000000)*('Rate Design'!$G$7/100)+'Rate Design'!$G$9+J75*'Rate Design'!$G$10-0.2*J48 -> 135990.059 | K126: =500000*('Rate Design'!$G$5/100)+MIN(5500000,K11-500000)*('Rate Design'!$G$6/100)+MAX(0,K11-6000000)*('Rate Design'!$G$7/100)+'Rate Design'!$G$9+K75*'Rate Design'!$G$10-0.2*K48 -> 141925.7376 | L126: =500000*('Rate Design'!$G$5/100)+MIN(5500000,L11-500000)*('Rate Design'!$G$6/100)+MAX(0,L11-6000000)*('Rate Design'!$G$7/100)+'Rate Design'!$G$9+L75*'Rate Design'!$G$10-0.2*L48 -> 140542.1805 | M126: =500000*('Rate Design'!$G$5/100)+MIN(5500000,M11-500000)*('Rate Design'!$G$6/100)+MAX(0,M11-6000000)*('Rate Design'!$G$7/100)+'Rate Design'!$G$9+M75*'Rate Design'!$G$10-0.2*M48 -> 138299.563 | N126: =500000*('Rate Design'!$G$5/100)+MIN(5500000,N11-500000)*('Rate Design'!$G$6/100)+MAX(0,N11-6000000)*('Rate Design'!$G$7/100)+'Rate Design'!$G$9+N75*'Rate Design'!$G$10-0.2*N48 -> 145619.7671 | O126: =500000*('Rate Design'!$G$5/100)+MIN(5500000,O11-500000)*('Rate Design'!$G$6/100)+MAX(0,O11-6000000)*('Rate Design'!$G$7/100)+'Rate Design'!$G$9+O75*'Rate Design'!$G$10-0.2*O48 -> 146252.2019 | P126: 1673869.819 | T126: 0
B127: Honeywell Electronics | C127: 2304636 | D127: =500000*('Rate Design'!$G$5/100)+MIN(5500000,D12-500000)*('Rate Design'!$G$6/100)+MAX(0,D12-6000000)*('Rate Design'!$G$7/100)+'Rate Design'!$G$9+D76*'Rate Design'!$G$10-0.2*D49 -> 93039.10862 | E127: =500000*('Rate Design'!$G$5/100)+MIN(5500000,E12-500000)*('Rate Design'!$G$6/100)+MAX(0,E12-6000000)*('Rate Design'!$G$7/100)+'Rate Design'!$G$9+E76*'Rate Design'!$G$10-0.2*E49 -> 90063.93971 | F127: =500000*('Rate Design'!$G$5/100)+MIN(5500000,F12-500000)*('Rate Design'!$G$6/100)+MAX(0,F12-6000000)*('Rate Design'!$G$7/100)+'Rate Design'!$G$9+F76*'Rate Design'!$G$10-0.2*F49 -> 95300.39 | G127: =500000*('Rate Design'!$G$5/100)+MIN(5500000,G12-500000)*('Rate Design'!$G$6/100)+MAX(0,G12-6000000)*('Rate Design'!$G$7/100)+'Rate Design'!$G$9+G76*'Rate Design'!$G$10-0.2*G49 -> 90361.3281 | H127: =500000*('Rate Design'!$G$5/100)+MIN(5500000,H12-500000)*('Rate Design'!$G$6/100)+MAX(0,H12-6000000)*('Rate Design'!$G$7/100)+'Rate Design'!$G$9+H76*'Rate Design'!$G$10-0.2*H49 -> 98647.56316 | I127: =500000*('Rate Design'!$G$5/100)+MIN(5500000,I12-500000)*('Rate Design'!$G$6/100)+MAX(0,I12-6000000)*('Rate Design'!$G$7/100)+'Rate Design'!$G$9+I76*'Rate Design'!$G$10-0.2*I49 -> 96639.71456 | J127: =500000*('Rate Design'!$G$5/100)+MIN(5500000,J12-500000)*('Rate Design'!$G$6/100)+MAX(0,J12-6000000)*('Rate Design'!$G$7/100)+'Rate Design'!$G$9+J76*'Rate Design'!$G$10-0.2*J49 -> 106533.5587 | K127: =500000*('Rate Design'!$G$5/100)+MIN(5500000,K12-500000)*('Rate Design'!$G$6/100)+MAX(0,K12-6000000)*('Rate Design'!$G$7/100)+'Rate Design'!$G$9+K76*'Rate Design'!$G$10-0.2*K49 -> 104284.1648 | L127: =500000*('Rate Design'!$G$5/100)+MIN(5500000,L12-500000)*('Rate Design'!$G$6/100)+MAX(0,L12-6000000)*('Rate Design'!$G$7/100)+'Rate Design'!$G$9+L76*'Rate Design'!$G$10-0.2*L49 -> 92846.75059 | M127: =500000*('Rate Design'!$G$5/100)+MIN(5500000,M12-500000)*('Rate Design'!$G$6/100)+MAX(0,M12-6000000)*('Rate Design'!$G$7/100)+'Rate Design'!$G$9+M76*'Rate Design'!$G$10-0.2*M49 -> 93319.40041 | N127: =500000*('Rate Design'!$G$5/100)+MIN(5500000,N12-500000)*('Rate Design'!$G$6/100)+MAX(0,N12-6000000)*('Rate Design'!$G$7/100)+'Rate Design'!$G$9+N76*'Rate Design'!$G$10-0.2*N49 -> 81178.14944 | O127: =500000*('Rate Design'!$G$5/100)+MIN(5500000,O12-500000)*('Rate Design'!$G$6/100)+MAX(0,O12-6000000)*('Rate Design'!$G$7/100)+'Rate Design'!$G$9+O76*'Rate Design'!$G$10-0.2*O49 -> 83472.16255 | P127: 1125686.231 | T127: 0
B128: Huntwood Industries | C128: 610074869 | D128: =500000*('Rate Design'!$G$5/100)+MIN(5500000,D13-500000)*('Rate Design'!$G$6/100)+MAX(0,D13-6000000)*('Rate Design'!$G$7/100)+'Rate Design'!$G$9+D77*'Rate Design'!$G$10-0.2*D50 -> 88511.78607 | E128: =500000*('Rate Design'!$G$5/100)+MIN(5500000,E13-500000)*('Rate Design'!$G$6/100)+MAX(0,E13-6000000)*('Rate Design'!$G$7/100)+'Rate Design'!$G$9+E77*'Rate Design'!$G$10-0.2*E50 -> 83188.44004 | F128: =500000*('Rate Design'!$G$5/100)+MIN(5500000,F13-500000)*('Rate Design'!$G$6/100)+MAX(0,F13-6000000)*('Rate Design'!$G$7/100)+'Rate Design'!$G$9+F77*'Rate Design'!$G$10-0.2*F50 -> 86088.67188 | G128: =500000*('Rate Design'!$G$5/100)+MIN(5500000,G13-500000)*('Rate Design'!$G$6/100)+MAX(0,G13-6000000)*('Rate Design'!$G$7/100)+'Rate Design'!$G$9+G77*'Rate Design'!$G$10-0.2*G50 -> 85243.92819 | H128: =500000*('Rate Design'!$G$5/100)+MIN(5500000,H13-500000)*('Rate Design'!$G$6/100)+MAX(0,H13-6000000)*('Rate Design'!$G$7/100)+'Rate Design'!$G$9+H77*'Rate Design'!$G$10-0.2*H50 -> 87038.78509 | I128: =500000*('Rate Design'!$G$5/100)+MIN(5500000,I13-500000)*('Rate Design'!$G$6/100)+MAX(0,I13-6000000)*('Rate Design'!$G$7/100)+'Rate Design'!$G$9+I77*'Rate Design'!$G$10-0.2*I50 -> 85274.90554 | J128: =500000*('Rate Design'!$G$5/100)+MIN(5500000,J13-500000)*('Rate Design'!$G$6/100)+MAX(0,J13-6000000)*('Rate Design'!$G$7/100)+'Rate Design'!$G$9+J77*'Rate Design'!$G$10-0.2*J50 -> 86299.24812 | K128: =500000*('Rate Design'!$G$5/100)+MIN(5500000,K13-500000)*('Rate Design'!$G$6/100)+MAX(0,K13-6000000)*('Rate Design'!$G$7/100)+'Rate Design'!$G$9+K77*'Rate Design'!$G$10-0.2*K50 -> 89740.34831 | L128: =500000*('Rate Design'!$G$5/100)+MIN(5500000,L13-500000)*('Rate Design'!$G$6/100)+MAX(0,L13-6000000)*('Rate Design'!$G$7/100)+'Rate Design'!$G$9+L77*'Rate Design'!$G$10-0.2*L50 -> 80812.21033 | M128: =500000*('Rate Design'!$G$5/100)+MIN(5500000,M13-500000)*('Rate Design'!$G$6/100)+MAX(0,M13-6000000)*('Rate Design'!$G$7/100)+'Rate Design'!$G$9+M77*'Rate Design'!$G$10-0.2*M50 -> 86698.65791 | N128: =500000*('Rate Design'!$G$5/100)+MIN(5500000,N13-500000)*('Rate Design'!$G$6/100)+MAX(0,N13-6000000)*('Rate Design'!$G$7/100)+'Rate Design'!$G$9+N77*'Rate Design'!$G$10-0.2*N50 -> 81256.47562 | O128: =500000*('Rate Design'!$G$5/100)+MIN(5500000,O13-500000)*('Rate Design'!$G$6/100)+MAX(0,O13-6000000)*('Rate Design'!$G$7/100)+'Rate Design'!$G$9+O77*'Rate Design'!$G$10-0.2*O50 -> 77919.39743 | P128: 1018072.855 | T128: 0
B129: Inland Empire Paper | C129: 2500004 | D129: =500000*('Rate Design'!$G$5/100)+MIN(5500000,D14-500000)*('Rate Design'!$G$6/100)+MAX(0,D14-6000000)*('Rate Design'!$G$7/100)+'Rate Design'!$G$9+D78*'Rate Design'!$G$10-1.1*D103-1.4*D105 -> 2154756.39 | E129: =500000*('Rate Design'!$G$5/100)+MIN(5500000,E14-500000)*('Rate Design'!$G$6/100)+MAX(0,E14-6000000)*('Rate Design'!$G$7/100)+'Rate Design'!$G$9+E78*'Rate Design'!$G$10-1.1*E103-1.4*E105 -> 2011380.022 | F129: =500000*('Rate Design'!$G$5/100)+MIN(5500000,F14-500000)*('Rate Design'!$G$6/100)+MAX(0,F14-6000000)*('Rate Design'!$G$7/100)+'Rate Design'!$G$9+F78*'Rate Design'!$G$10-1.1*F103-1.4*F105 -> 2155694.039 | G129: =500000*('Rate Design'!$G$5/100)+MIN(5500000,G14-500000)*('Rate Design'!$G$6/100)+MAX(0,G14-6000000)*('Rate Design'!$G$7/100)+'Rate Design'!$G$9+G78*'Rate Design'!$G$10-1.1*G103-1.4*G105 -> 2100499.592 | H129: =500000*('Rate Design'!$G$5/100)+MIN(5500000,H14-500000)*('Rate Design'!$G$6/100)+MAX(0,H14-6000000)*('Rate Design'!$G$7/100)+'Rate Design'!$G$9+H78*'Rate Design'!$G$10-1.1*H103-1.4*H105 -> 2040376.91 | I129: =500000*('Rate Design'!$G$5/100)+MIN(5500000,I14-500000)*('Rate Design'!$G$6/100)+MAX(0,I14-6000000)*('Rate Design'!$G$7/100)+'Rate Design'!$G$9+I78*'Rate Design'!$G$10-1.1*I103-1.4*I105 -> 2035536.011 | J129: =500000*('Rate Design'!$G$5/100)+MIN(5500000,J14-500000)*('Rate Design'!$G$6/100)+MAX(0,J14-6000000)*('Rate Design'!$G$7/100)+'Rate Design'!$G$9+J78*'Rate Design'!$G$10-1.1*J103-1.4*J105 -> 2093006.277 | K129: =500000*('Rate Design'!$G$5/100)+MIN(5500000,K14-500000)*('Rate Design'!$G$6/100)+MAX(0,K14-6000000)*('Rate Design'!$G$7/100)+'Rate Design'!$G$9+K78*'Rate Design'!$G$10-1.1*K103-1.4*K105 -> 2108306.085 | L129: =500000*('Rate Design'!$G$5/100)+MIN(5500000,L14-500000)*('Rate Design'!$G$6/100)+MAX(0,L14-6000000)*('Rate Design'!$G$7/100)+'Rate Design'!$G$9+L78*'Rate Design'!$G$10-1.1*L103-1.4*L105 -> 1981461.526 | M129: =500000*('Rate Design'!$G$5/100)+MIN(5500000,M14-500000)*('Rate Design'!$G$6/100)+MAX(0,M14-6000000)*('Rate Design'!$G$7/100)+'Rate Design'!$G$9+M78*'Rate Design'!$G$10-1.1*M103-1.4*M105 -> 2121498.991 | N129: =500000*('Rate Design'!$G$5/100)+MIN(5500000,N14-500000)*('Rate Design'!$G$6/100)+MAX(0,N14-6000000)*('Rate Design'!$G$7/100)+'Rate Design'!$G$9+N78*'Rate Design'!$G$10-1.1*N103-1.4*N105 -> 2035579.798 | O129: =500000*('Rate Design'!$G$5/100)+MIN(5500000,O14-500000)*('Rate Design'!$G$6/100)+MAX(0,O14-6000000)*('Rate Design'!$G$7/100)+'Rate Design'!$G$9+O78*'Rate Design'!$G$10-1.1*O103-1.4*O105 -> 2111992.007 | P129: 24950087.65 | T129: 0
B130: JR Simplot | C130: 290048778 | D130: =500000*('Rate Design'!$G$5/100)+MIN(5500000,D15-500000)*('Rate Design'!$G$6/100)+MAX(0,D15-6000000)*('Rate Design'!$G$7/100)+'Rate Design'!$G$9+D79*'Rate Design'!$G$10-0.2*D52 -> 331667.5797 | E130: =500000*('Rate Design'!$G$5/100)+MIN(5500000,E15-500000)*('Rate Design'!$G$6/100)+MAX(0,E15-6000000)*('Rate Design'!$G$7/100)+'Rate Design'!$G$9+E79*'Rate Design'!$G$10-0.2*E52 -> 219682.5873 | F130: =500000*('Rate Design'!$G$5/100)+MIN(5500000,F15-500000)*('Rate Design'!$G$6/100)+MAX(0,F15-6000000)*('Rate Design'!$G$7/100)+'Rate Design'!$G$9+F79*'Rate Design'!$G$10-0.2*F52 -> 320979.4877 | G130: =500000*('Rate Design'!$G$5/100)+MIN(5500000,G15-500000)*('Rate Design'!$G$6/100)+MAX(0,G15-6000000)*('Rate Design'!$G$7/100)+'Rate Design'!$G$9+G79*'Rate Design'!$G$10-0.2*G52 -> 313654.9535 | H130: =500000*('Rate Design'!$G$5/100)+MIN(5500000,H15-500000)*('Rate Design'!$G$6/100)+MAX(0,H15-6000000)*('Rate Design'!$G$7/100)+'Rate Design'!$G$9+H79*'Rate Design'!$G$10-0.2*H52 -> 335424.2721 | I130: =500000*('Rate Design'!$G$5/100)+MIN(5500000,I15-500000)*('Rate Design'!$G$6/100)+MAX(0,I15-6000000)*('Rate Design'!$G$7/100)+'Rate Design'!$G$9+I79*'Rate Design'!$G$10-0.2*I52 -> 302392.6942 | J130: =500000*('Rate Design'!$G$5/100)+MIN(5500000,J15-500000)*('Rate Design'!$G$6/100)+MAX(0,J15-6000000)*('Rate Design'!$G$7/100)+'Rate Design'!$G$9+J79*'Rate Design'!$G$10-0.2*J52 -> 281313.9524 | K130: =500000*('Rate Design'!$G$5/100)+MIN(5500000,K15-500000)*('Rate Design'!$G$6/100)+MAX(0,K15-6000000)*('Rate Design'!$G$7/100)+'Rate Design'!$G$9+K79*'Rate Design'!$G$10-0.2*K52 -> 332359.9742 | L130: =500000*('Rate Design'!$G$5/100)+MIN(5500000,L15-500000)*('Rate Design'!$G$6/100)+MAX(0,L15-6000000)*('Rate Design'!$G$7/100)+'Rate Design'!$G$9+L79*'Rate Design'!$G$10-0.2*L52 -> 302527.1925 | M130: =500000*('Rate Design'!$G$5/100)+MIN(5500000,M15-500000)*('Rate Design'!$G$6/100)+MAX(0,M15-6000000)*('Rate Design'!$G$7/100)+'Rate Design'!$G$9+M79*'Rate Design'!$G$10-0.2*M52 -> 325118.2189 | N130: =500000*('Rate Design'!$G$5/100)+MIN(5500000,N15-500000)*('Rate Design'!$G$6/100)+MAX(0,N15-6000000)*('Rate Design'!$G$7/100)+'Rate Design'!$G$9+N79*'Rate Design'!$G$10-0.2*N52 -> 282228.1636 | O130: =500000*('Rate Design'!$G$5/100)+MIN(5500000,O15-500000)*('Rate Design'!$G$6/100)+MAX(0,O15-6000000)*('Rate Design'!$G$7/100)+'Rate Design'!$G$9+O79*'Rate Design'!$G$10-0.2*O52 -> 300813.3664 | P130: 3648162.443 | T130: 0
B131: McCaine Foods Inc | C131: 2500003 | D131: =500000*('Rate Design'!$G$5/100)+MIN(5500000,D16-500000)*('Rate Design'!$G$6/100)+MAX(0,D16-6000000)*('Rate Design'!$G$7/100)+'Rate Design'!$G$9+D80*'Rate Design'!$G$10-0.2*D53 -> 194303.6912 | E131: =500000*('Rate Design'!$G$5/100)+MIN(5500000,E16-500000)*('Rate Design'!$G$6/100)+MAX(0,E16-6000000)*('Rate Design'!$G$7/100)+'Rate Design'!$G$9+E80*'Rate Design'!$G$10-0.2*E53 -> 301126.1971 | F131: =500000*('Rate Design'!$G$5/100)+MIN(5500000,F16-500000)*('Rate Design'!$G$6/100)+MAX(0,F16-6000000)*('Rate Design'!$G$7/100)+'Rate Design'!$G$9+F80*'Rate Design'!$G$10-0.2*F53 -> 329134.3409 | G131: =500000*('Rate Design'!$G$5/100)+MIN(5500000,G16-500000)*('Rate Design'!$G$6/100)+MAX(0,G16-6000000)*('Rate Design'!$G$7/100)+'Rate Design'!$G$9+G80*'Rate Design'!$G$10-0.2*G53 -> 316498.0958 | H131: =500000*('Rate Design'!$G$5/100)+MIN(5500000,H16-500000)*('Rate Design'!$G$6/100)+MAX(0,H16-6000000)*('Rate Design'!$G$7/100)+'Rate Design'!$G$9+H80*'Rate Design'!$G$10-0.2*H53 -> 351613.0975 | I131: =500000*('Rate Design'!$G$5/100)+MIN(5500000,I16-500000)*('Rate Design'!$G$6/100)+MAX(0,I16-6000000)*('Rate Design'!$G$7/100)+'Rate Design'!$G$9+I80*'Rate Design'!$G$10-0.2*I53 -> 309962.6415 | J131: =500000*('Rate Design'!$G$5/100)+MIN(5500000,J16-500000)*('Rate Design'!$G$6/100)+MAX(0,J16-6000000)*('Rate Design'!$G$7/100)+'Rate Design'!$G$9+J80*'Rate Design'!$G$10-0.2*J53 -> 288644.4411 | K131: =500000*('Rate Design'!$G$5/100)+MIN(5500000,K16-500000)*('Rate Design'!$G$6/100)+MAX(0,K16-6000000)*('Rate Design'!$G$7/100)+'Rate Design'!$G$9+K80*'Rate Design'!$G$10-0.2*K53 -> 322452.1436 | L131: =500000*('Rate Design'!$G$5/100)+MIN(5500000,L16-500000)*('Rate Design'!$G$6/100)+MAX(0,L16-6000000)*('Rate Design'!$G$7/100)+'Rate Design'!$G$9+L80*'Rate Design'!$G$10-0.2*L53 -> 312399.7573 | M131: =500000*('Rate Design'!$G$5/100)+MIN(5500000,M16-500000)*('Rate Design'!$G$6/100)+MAX(0,M16-6000000)*('Rate Design'!$G$7/100)+'Rate Design'!$G$9+M80*'Rate Design'!$G$10-0.2*M53 -> 353350.3413 | N131: =500000*('Rate Design'!$G$5/100)+MIN(5500000,N16-500000)*('Rate Design'!$G$6/100)+MAX(0,N16-6000000)*('Rate Design'!$G$7/100)+'Rate Design'!$G$9+N80*'Rate Design'!$G$10-0.2*N53 -> 328805.2116 | O131: =500000*('Rate Design'!$G$5/100)+MIN(5500000,O16-500000)*('Rate Design'!$G$6/100)+MAX(0,O16-6000000)*('Rate Design'!$G$7/100)+'Rate Design'!$G$9+O80*'Rate Design'!$G$10-0.2*O53 -> 331208.5899 | P131: 3739498.549 | T131: 0
B132: Sacred Heart Medical Center | C132: 500020 | D132: =500000*('Rate Design'!$G$5/100)+MIN(5500000,D17-500000)*('Rate Design'!$G$6/100)+MAX(0,D17-6000000)*('Rate Design'!$G$7/100)+'Rate Design'!$G$9+D81*'Rate Design'!$G$10-0.2*D54 -> 197740.2756 | E132: =500000*('Rate Design'!$G$5/100)+MIN(5500000,E17-500000)*('Rate Design'!$G$6/100)+MAX(0,E17-6000000)*('Rate Design'!$G$7/100)+'Rate Design'!$G$9+E81*'Rate Design'!$G$10-0.2*E54 -> 184027.167 | F132: =500000*('Rate Design'!$G$5/100)+MIN(5500000,F17-500000)*('Rate Design'!$G$6/100)+MAX(0,F17-6000000)*('Rate Design'!$G$7/100)+'Rate Design'!$G$9+F81*'Rate Design'!$G$10-0.2*F54 -> 197994.9796 | G132: =500000*('Rate Design'!$G$5/100)+MIN(5500000,G17-500000)*('Rate Design'!$G$6/100)+MAX(0,G17-6000000)*('Rate Design'!$G$7/100)+'Rate Design'!$G$9+G81*'Rate Design'!$G$10-0.2*G54 -> 209520.141 | H132: =500000*('Rate Design'!$G$5/100)+MIN(5500000,H17-500000)*('Rate Design'!$G$6/100)+MAX(0,H17-6000000)*('Rate Design'!$G$7/100)+'Rate Design'!$G$9+H81*'Rate Design'!$G$10-0.2*H54 -> 255674.4426 | I132: =500000*('Rate Design'!$G$5/100)+MIN(5500000,I17-500000)*('Rate Design'!$G$6/100)+MAX(0,I17-6000000)*('Rate Design'!$G$7/100)+'Rate Design'!$G$9+I81*'Rate Design'!$G$10-0.2*I54 -> 248094.9646 | J132: =500000*('Rate Design'!$G$5/100)+MIN(5500000,J17-500000)*('Rate Design'!$G$6/100)+MAX(0,J17-6000000)*('Rate Design'!$G$7/100)+'Rate Design'!$G$9+J81*'Rate Design'!$G$10-0.2*J54 -> 283139.2907 | K132: =500000*('Rate Design'!$G$5/100)+MIN(5500000,K17-500000)*('Rate Design'!$G$6/100)+MAX(0,K17-6000000)*('Rate Design'!$G$7/100)+'Rate Design'!$G$9+K81*'Rate Design'!$G$10-0.2*K54 -> 280863.8595 | L132: =500000*('Rate Design'!$G$5/100)+MIN(5500000,L17-500000)*('Rate Design'!$G$6/100)+MAX(0,L17-6000000)*('Rate Design'!$G$7/100)+'Rate Design'!$G$9+L81*'Rate Design'!$G$10-0.2*L54 -> 234113.0223 | M132: =500000*('Rate Design'!$G$5/100)+MIN(5500000,M17-500000)*('Rate Design'!$G$6/100)+MAX(0,M17-6000000)*('Rate Design'!$G$7/100)+'Rate Design'!$G$9+M81*'Rate Design'!$G$10-0.2*M54 -> 208441.3853 | N132: =500000*('Rate Design'!$G$5/100)+MIN(5500000,N17-500000)*('Rate Design'!$G$6/100)+MAX(0,N17-6000000)*('Rate Design'!$G$7/100)+'Rate Design'!$G$9+N81*'Rate Design'!$G$10-0.2*N54 -> 190282.7265 | O132: =500000*('Rate Design'!$G$5/100)+MIN(5500000,O17-500000)*('Rate Design'!$G$6/100)+MAX(0,O17-6000000)*('Rate Design'!$G$7/100)+'Rate Design'!$G$9+O81*'Rate Design'!$G$10-0.2*O54 -> 192221.9566 | P132: 2682114.211 | T132: 0
B133: Spokane County Courthouse | C133: 1900012 | D133: =500000*('Rate Design'!$G$5/100)+MIN(5500000,D18-500000)*('Rate Design'!$G$6/100)+MAX(0,D18-6000000)*('Rate Design'!$G$7/100)+'Rate Design'!$G$9+D82*'Rate Design'!$G$10-0.2*D55 -> 71552.88425 | E133: =500000*('Rate Design'!$G$5/100)+MIN(5500000,E18-500000)*('Rate Design'!$G$6/100)+MAX(0,E18-6000000)*('Rate Design'!$G$7/100)+'Rate Design'!$G$9+E82*'Rate Design'!$G$10-0.2*E55 -> 66885.18606 | F133: =500000*('Rate Design'!$G$5/100)+MIN(5500000,F18-500000)*('Rate Design'!$G$6/100)+MAX(0,F18-6000000)*('Rate Design'!$G$7/100)+'Rate Design'!$G$9+F82*'Rate Design'!$G$10-0.2*F55 -> 70107.61376 | G133: =500000*('Rate Design'!$G$5/100)+MIN(5500000,G18-500000)*('Rate Design'!$G$6/100)+MAX(0,G18-6000000)*('Rate Design'!$G$7/100)+'Rate Design'!$G$9+G82*'Rate Design'!$G$10-0.2*G55 -> 69930.04397 | H133: =500000*('Rate Design'!$G$5/100)+MIN(5500000,H18-500000)*('Rate Design'!$G$6/100)+MAX(0,H18-6000000)*('Rate Design'!$G$7/100)+'Rate Design'!$G$9+H82*'Rate Design'!$G$10-0.2*H55 -> 79389.55083 | I133: =500000*('Rate Design'!$G$5/100)+MIN(5500000,I18-500000)*('Rate Design'!$G$6/100)+MAX(0,I18-6000000)*('Rate Design'!$G$7/100)+'Rate Design'!$G$9+I82*'Rate Design'!$G$10-0.2*I55 -> 78054.40295 | J133: =500000*('Rate Design'!$G$5/100)+MIN(5500000,J18-500000)*('Rate Design'!$G$6/100)+MAX(0,J18-6000000)*('Rate Design'!$G$7/100)+'Rate Design'!$G$9+J82*'Rate Design'!$G$10-0.2*J55 -> 85760.9353 | K133: =500000*('Rate Design'!$G$5/100)+MIN(5500000,K18-500000)*('Rate Design'!$G$6/100)+MAX(0,K18-6000000)*('Rate Design'!$G$7/100)+'Rate Design'!$G$9+K82*'Rate Design'!$G$10-0.2*K55 -> 85612.88982 | L133: =500000*('Rate Design'!$G$5/100)+MIN(5500000,L18-500000)*('Rate Design'!$G$6/100)+MAX(0,L18-6000000)*('Rate Design'!$G$7/100)+'Rate Design'!$G$9+L82*'Rate Design'!$G$10-0.2*L55 -> 74728.01485 | M133: =500000*('Rate Design'!$G$5/100)+MIN(5500000,M18-500000)*('Rate Design'!$G$6/100)+MAX(0,M18-6000000)*('Rate Design'!$G$7/100)+'Rate Design'!$G$9+M82*'Rate Design'!$G$10-0.2*M55 -> 72621.2559 | N133: =500000*('Rate Design'!$G$5/100)+MIN(5500000,N18-500000)*('Rate Design'!$G$6/100)+MAX(0,N18-6000000)*('Rate Design'!$G$7/100)+'Rate Design'!$G$9+N82*'Rate Design'!$G$10-0.2*N55 -> 68857.00477 | O133: =500000*('Rate Design'!$G$5/100)+MIN(5500000,O18-500000)*('Rate Design'!$G$6/100)+MAX(0,O18-6000000)*('Rate Design'!$G$7/100)+'Rate Design'!$G$9+O82*'Rate Design'!$G$10-0.2*O55 -> 70366.72471 | P133: 893866.5072 | T133: 0
B134: Spokane Steel Foundry | C134: 2400169 | D134: =500000*('Rate Design'!$G$5/100)+MIN(5500000,D19-500000)*('Rate Design'!$G$6/100)+MAX(0,D19-6000000)*('Rate Design'!$G$7/100)+'Rate Design'!$G$9+D83*'Rate Design'!$G$10-0.2*D56 -> 89183.79472 | E134: =500000*('Rate Design'!$G$5/100)+MIN(5500000,E19-500000)*('Rate Design'!$G$6/100)+MAX(0,E19-6000000)*('Rate Design'!$G$7/100)+'Rate Design'!$G$9+E83*'Rate Design'!$G$10-0.2*E56 -> 85708.24402 | F134: =500000*('Rate Design'!$G$5/100)+MIN(5500000,F19-500000)*('Rate Design'!$G$6/100)+MAX(0,F19-6000000)*('Rate Design'!$G$7/100)+'Rate Design'!$G$9+F83*'Rate Design'!$G$10-0.2*F56 -> 93660.09945 | G134: =500000*('Rate Design'!$G$5/100)+MIN(5500000,G19-500000)*('Rate Design'!$G$6/100)+MAX(0,G19-6000000)*('Rate Design'!$G$7/100)+'Rate Design'!$G$9+G83*'Rate Design'!$G$10-0.2*G56 -> 89211.44098 | H134: =500000*('Rate Design'!$G$5/100)+MIN(5500000,H19-500000)*('Rate Design'!$G$6/100)+MAX(0,H19-6000000)*('Rate Design'!$G$7/100)+'Rate Design'!$G$9+H83*'Rate Design'!$G$10-0.2*H56 -> 90949.80102 | I134: =500000*('Rate Design'!$G$5/100)+MIN(5500000,I19-500000)*('Rate Design'!$G$6/100)+MAX(0,I19-6000000)*('Rate Design'!$G$7/100)+'Rate Design'!$G$9+I83*'Rate Design'!$G$10-0.2*I56 -> 90100.09525 | J134: =500000*('Rate Design'!$G$5/100)+MIN(5500000,J19-500000)*('Rate Design'!$G$6/100)+MAX(0,J19-6000000)*('Rate Design'!$G$7/100)+'Rate Design'!$G$9+J83*'Rate Design'!$G$10-0.2*J56 -> 91423.87566 | K134: =500000*('Rate Design'!$G$5/100)+MIN(5500000,K19-500000)*('Rate Design'!$G$6/100)+MAX(0,K19-6000000)*('Rate Design'!$G$7/100)+'Rate Design'!$G$9+K83*'Rate Design'!$G$10-0.2*K56 -> 96020.02815 | L134: =500000*('Rate Design'!$G$5/100)+MIN(5500000,L19-500000)*('Rate Design'!$G$6/100)+MAX(0,L19-6000000)*('Rate Design'!$G$7/100)+'Rate Design'!$G$9+L83*'Rate Design'!$G$10-0.2*L56 -> 91998.44684 | M134: =500000*('Rate Design'!$G$5/100)+MIN(5500000,M19-500000)*('Rate Design'!$G$6/100)+MAX(0,M19-6000000)*('Rate Design'!$G$7/100)+'Rate Design'!$G$9+M83*'Rate Design'!$G$10-0.2*M56 -> 99316.35512 | N134: =500000*('Rate Design'!$G$5/100)+MIN(5500000,N19-500000)*('Rate Design'!$G$6/100)+MAX(0,N19-6000000)*('Rate Design'!$G$7/100)+'Rate Design'!$G$9+N83*'Rate Design'!$G$10-0.2*N56 -> 83293.07912 | O134: =500000*('Rate Design'!$G$5/100)+MIN(5500000,O19-500000)*('Rate Design'!$G$6/100)+MAX(0,O19-6000000)*('Rate Design'!$G$7/100)+'Rate Design'!$G$9+O83*'Rate Design'!$G$10-0.2*O56 -> 90491.49407 | P134: 1091356.754 | T134: 0
B135: Stimson Lumber - Colville | C135: 610018682 | D135: =500000*('Rate Design'!$G$5/100)+MIN(5500000,D20-500000)*('Rate Design'!$G$6/100)+MAX(0,D20-6000000)*('Rate Design'!$G$7/100)+'Rate Design'!$G$9+D84*'Rate Design'!$G$10-0.2*D57 -> 89484.6361 | E135: =500000*('Rate Design'!$G$5/100)+MIN(5500000,E20-500000)*('Rate Design'!$G$6/100)+MAX(0,E20-6000000)*('Rate Design'!$G$7/100)+'Rate Design'!$G$9+E84*'Rate Design'!$G$10-0.2*E57 -> 81275.37286 | F135: =500000*('Rate Design'!$G$5/100)+MIN(5500000,F20-500000)*('Rate Design'!$G$6/100)+MAX(0,F20-6000000)*('Rate Design'!$G$7/100)+'Rate Design'!$G$9+F84*'Rate Design'!$G$10-0.2*F57 -> 83646.59329 | G135: =500000*('Rate Design'!$G$5/100)+MIN(5500000,G20-500000)*('Rate Design'!$G$6/100)+MAX(0,G20-6000000)*('Rate Design'!$G$7/100)+'Rate Design'!$G$9+G84*'Rate Design'!$G$10-0.2*G57 -> 87701.93758 | H135: =500000*('Rate Design'!$G$5/100)+MIN(5500000,H20-500000)*('Rate Design'!$G$6/100)+MAX(0,H20-6000000)*('Rate Design'!$G$7/100)+'Rate Design'!$G$9+H84*'Rate Design'!$G$10-0.2*H57 -> 102404.0648 | I135: =500000*('Rate Design'!$G$5/100)+MIN(5500000,I20-500000)*('Rate Design'!$G$6/100)+MAX(0,I20-6000000)*('Rate Design'!$G$7/100)+'Rate Design'!$G$9+I84*'Rate Design'!$G$10-0.2*I57 -> 102425.9153 | J135: =500000*('Rate Design'!$G$5/100)+MIN(5500000,J20-500000)*('Rate Design'!$G$6/100)+MAX(0,J20-6000000)*('Rate Design'!$G$7/100)+'Rate Design'!$G$9+J84*'Rate Design'!$G$10-0.2*J57 -> 107933.2396 | K135: =500000*('Rate Design'!$G$5/100)+MIN(5500000,K20-500000)*('Rate Design'!$G$6/100)+MAX(0,K20-6000000)*('Rate Design'!$G$7/100)+'Rate Design'!$G$9+K84*'Rate Design'!$G$10-0.2*K57 -> 105724.0564 | L135: =500000*('Rate Design'!$G$5/100)+MIN(5500000,L20-500000)*('Rate Design'!$G$6/100)+MAX(0,L20-6000000)*('Rate Design'!$G$7/100)+'Rate Design'!$G$9+L84*'Rate Design'!$G$10-0.2*L57 -> 93240.55019 | M135: =500000*('Rate Design'!$G$5/100)+MIN(5500000,M20-500000)*('Rate Design'!$G$6/100)+MAX(0,M20-6000000)*('Rate Design'!$G$7/100)+'Rate Design'!$G$9+M84*'Rate Design'!$G$10-0.2*M57 -> 86867.78255 | N135: =500000*('Rate Design'!$G$5/100)+MIN(5500000,N20-500000)*('Rate Design'!$G$6/100)+MAX(0,N20-6000000)*('Rate Design'!$G$7/100)+'Rate Design'!$G$9+N84*'Rate Design'!$G$10-0.2*N57 -> 81170.39121 | O135: =500000*('Rate Design'!$G$5/100)+MIN(5500000,O20-500000)*('Rate Design'!$G$6/100)+MAX(0,O20-6000000)*('Rate Design'!$G$7/100)+'Rate Design'!$G$9+O84*'Rate Design'!$G$10-0.2*O57 -> 80237.49459 | P135: 1102112.034 | T135: 0
B136: Triumph Composite / Boeing | C136: 690067830 | D136: =500000*('Rate Design'!$G$5/100)+MIN(5500000,D21-500000)*('Rate Design'!$G$6/100)+MAX(0,D21-6000000)*('Rate Design'!$G$7/100)+'Rate Design'!$G$9+D85*'Rate Design'!$G$10-0.2*D58 -> 154153.7926 | E136: =500000*('Rate Design'!$G$5/100)+MIN(5500000,E21-500000)*('Rate Design'!$G$6/100)+MAX(0,E21-6000000)*('Rate Design'!$G$7/100)+'Rate Design'!$G$9+E85*'Rate Design'!$G$10-0.2*E58 -> 146627.0799 | F136: =500000*('Rate Design'!$G$5/100)+MIN(5500000,F21-500000)*('Rate Design'!$G$6/100)+MAX(0,F21-6000000)*('Rate Design'!$G$7/100)+'Rate Design'!$G$9+F85*'Rate Design'!$G$10-0.2*F58 -> 154542.9311 | G136: =500000*('Rate Design'!$G$5/100)+MIN(5500000,G21-500000)*('Rate Design'!$G$6/100)+MAX(0,G21-6000000)*('Rate Design'!$G$7/100)+'Rate Design'!$G$9+G85*'Rate Design'!$G$10-0.2*G58 -> 144196.9842 | H136: =500000*('Rate Design'!$G$5/100)+MIN(5500000,H21-500000)*('Rate Design'!$G$6/100)+MAX(0,H21-6000000)*('Rate Design'!$G$7/100)+'Rate Design'!$G$9+H85*'Rate Design'!$G$10-0.2*H58 -> 124088.9257 | I136: =500000*('Rate Design'!$G$5/100)+MIN(5500000,I21-500000)*('Rate Design'!$G$6/100)+MAX(0,I21-6000000)*('Rate Design'!$G$7/100)+'Rate Design'!$G$9+I85*'Rate Design'!$G$10-0.2*I58 -> 136381.7911 | J136: =500000*('Rate Design'!$G$5/100)+MIN(5500000,J21-500000)*('Rate Design'!$G$6/100)+MAX(0,J21-6000000)*('Rate Design'!$G$7/100)+'Rate Design'!$G$9+J85*'Rate Design'!$G$10-0.2*J58 -> 131040.4842 | K136: =500000*('Rate Design'!$G$5/100)+MIN(5500000,K21-500000)*('Rate Design'!$G$6/100)+MAX(0,K21-6000000)*('Rate Design'!$G$7/100)+'Rate Design'!$G$9+K85*'Rate Design'!$G$10-0.2*K58 -> 133842.8813 | L136: =500000*('Rate Design'!$G$5/100)+MIN(5500000,L21-500000)*('Rate Design'!$G$6/100)+MAX(0,L21-6000000)*('Rate Design'!$G$7/100)+'Rate Design'!$G$9+L85*'Rate Design'!$G$10-0.2*L58 -> 133033.9944 | M136: =500000*('Rate Design'!$G$5/100)+MIN(5500000,M21-500000)*('Rate Design'!$G$6/100)+MAX(0,M21-6000000)*('Rate Design'!$G$7/100)+'Rate Design'!$G$9+M85*'Rate Design'!$G$10-0.2*M58 -> 144345.3964 | N136: =500000*('Rate Design'!$G$5/100)+MIN(5500000,N21-500000)*('Rate Design'!$G$6/100)+MAX(0,N21-6000000)*('Rate Design'!$G$7/100)+'Rate Design'!$G$9+N85*'Rate Design'!$G$10-0.2*N58 -> 141836.0271 | O136: =500000*('Rate Design'!$G$5/100)+MIN(5500000,O21-500000)*('Rate Design'!$G$6/100)+MAX(0,O21-6000000)*('Rate Design'!$G$7/100)+'Rate Design'!$G$9+O85*'Rate Design'!$G$10-0.2*O58 -> 149658.0621 | P136: 1693748.35 | T136: 0
B137: Vaagen Brothers Lumber | C137: 1300001 | D137: =500000*('Rate Design'!$G$5/100)+MIN(5500000,D22-500000)*('Rate Design'!$G$6/100)+MAX(0,D22-6000000)*('Rate Design'!$G$7/100)+'Rate Design'!$G$9+D86*'Rate Design'!$G$10-0.2*D59 -> 159689.9395 | E137: =500000*('Rate Design'!$G$5/100)+MIN(5500000,E22-500000)*('Rate Design'!$G$6/100)+MAX(0,E22-6000000)*('Rate Design'!$G$7/100)+'Rate Design'!$G$9+E86*'Rate Design'!$G$10-0.2*E59 -> 160768.5455 | F137: =500000*('Rate Design'!$G$5/100)+MIN(5500000,F22-500000)*('Rate Design'!$G$6/100)+MAX(0,F22-6000000)*('Rate Design'!$G$7/100)+'Rate Design'!$G$9+F86*'Rate Design'!$G$10-0.2*F59 -> 163694.0726 | G137: =500000*('Rate Design'!$G$5/100)+MIN(5500000,G22-500000)*('Rate Design'!$G$6/100)+MAX(0,G22-6000000)*('Rate Design'!$G$7/100)+'Rate Design'!$G$9+G86*'Rate Design'!$G$10-0.2*G59 -> 151658.6 | H137: =500000*('Rate Design'!$G$5/100)+MIN(5500000,H22-500000)*('Rate Design'!$G$6/100)+MAX(0,H22-6000000)*('Rate Design'!$G$7/100)+'Rate Design'!$G$9+H86*'Rate Design'!$G$10-0.2*H59 -> 144196.6911 | I137: =500000*('Rate Design'!$G$5/100)+MIN(5500000,I22-500000)*('Rate Design'!$G$6/100)+MAX(0,I22-6000000)*('Rate Design'!$G$7/100)+'Rate Design'!$G$9+I86*'Rate Design'!$G$10-0.2*I59 -> 137881.7846 | J137: =500000*('Rate Design'!$G$5/100)+MIN(5500000,J22-500000)*('Rate Design'!$G$6/100)+MAX(0,J22-6000000)*('Rate Design'!$G$7/100)+'Rate Design'!$G$9+J86*'Rate Design'!$G$10-0.2*J59 -> 139753.3491 | K137: =500000*('Rate Design'!$G$5/100)+MIN(5500000,K22-500000)*('Rate Design'!$G$6/100)+MAX(0,K22-6000000)*('Rate Design'!$G$7/100)+'Rate Design'!$G$9+K86*'Rate Design'!$G$10-0.2*K59 -> 147006.6746 | L137: =500000*('Rate Design'!$G$5/100)+MIN(5500000,L22-500000)*('Rate Design'!$G$6/100)+MAX(0,L22-6000000)*('Rate Design'!$G$7/100)+'Rate Design'!$G$9+L86*'Rate Design'!$G$10-0.2*L59 -> 144889.7747 | M137: =500000*('Rate Design'!$G$5/100)+MIN(5500000,M22-500000)*('Rate Design'!$G$6/100)+MAX(0,M22-6000000)*('Rate Design'!$G$7/100)+'Rate Design'!$G$9+M86*'Rate Design'!$G$10-0.2*M59 -> 156028.9639 | N137: =500000*('Rate Design'!$G$5/100)+MIN(5500000,N22-500000)*('Rate Design'!$G$6/100)+MAX(0,N22-6000000)*('Rate Design'!$G$7/100)+'Rate Design'!$G$9+N86*'Rate Design'!$G$10-0.2*N59 -> 152343.1726 | O137: =500000*('Rate Design'!$G$5/100)+MIN(5500000,O22-500000)*('Rate Design'!$G$6/100)+MAX(0,O22-6000000)*('Rate Design'!$G$7/100)+'Rate Design'!$G$9+O86*'Rate Design'!$G$10-0.2*O59 -> 162270.9758 | P137: 1820182.544 | T137: 0
B138: WSU - MP-A South Campus Feeder | C138: 290081951 | D138: =500000*('Rate Design'!$G$5/100)+MIN(5500000,D23-500000)*('Rate Design'!$G$6/100)+MAX(0,D23-6000000)*('Rate Design'!$G$7/100)+'Rate Design'!$G$9+D87*'Rate Design'!$G$10-0.2*D60 -> 275426.0377 | E138: =500000*('Rate Design'!$G$5/100)+MIN(5500000,E23-500000)*('Rate Design'!$G$6/100)+MAX(0,E23-6000000)*('Rate Design'!$G$7/100)+'Rate Design'!$G$9+E87*'Rate Design'!$G$10-0.2*E60 -> 248056.9758 | F138: =500000*('Rate Design'!$G$5/100)+MIN(5500000,F23-500000)*('Rate Design'!$G$6/100)+MAX(0,F23-6000000)*('Rate Design'!$G$7/100)+'Rate Design'!$G$9+F87*'Rate Design'!$G$10-0.2*F60 -> 236987.1577 | G138: =500000*('Rate Design'!$G$5/100)+MIN(5500000,G23-500000)*('Rate Design'!$G$6/100)+MAX(0,G23-6000000)*('Rate Design'!$G$7/100)+'Rate Design'!$G$9+G87*'Rate Design'!$G$10-0.2*G60 -> 242606.7972 | H138: =500000*('Rate Design'!$G$5/100)+MIN(5500000,H23-500000)*('Rate Design'!$G$6/100)+MAX(0,H23-6000000)*('Rate Design'!$G$7/100)+'Rate Design'!$G$9+H87*'Rate Design'!$G$10-0.2*H60 -> 276983.2972 | I138: =500000*('Rate Design'!$G$5/100)+MIN(5500000,I23-500000)*('Rate Design'!$G$6/100)+MAX(0,I23-6000000)*('Rate Design'!$G$7/100)+'Rate Design'!$G$9+I87*'Rate Design'!$G$10-0.2*I60 -> 275838.4039 | J138: =500000*('Rate Design'!$G$5/100)+MIN(5500000,J23-500000)*('Rate Design'!$G$6/100)+MAX(0,J23-6000000)*('Rate Design'!$G$7/100)+'Rate Design'!$G$9+J87*'Rate Design'!$G$10-0.2*J60 -> 327255.3447 | K138: =500000*('Rate Design'!$G$5/100)+MIN(5500000,K23-500000)*('Rate Design'!$G$6/100)+MAX(0,K23-6000000)*('Rate Design'!$G$7/100)+'Rate Design'!$G$9+K87*'Rate Design'!$G$10-0.2*K60 -> 330593.1113 | L138: =500000*('Rate Design'!$G$5/100)+MIN(5500000,L23-500000)*('Rate Design'!$G$6/100)+MAX(0,L23-6000000)*('Rate Design'!$G$7/100)+'Rate Design'!$G$9+L87*'Rate Design'!$G$10-0.2*L60 -> 270230.688 | M138: =500000*('Rate Design'!$G$5/100)+MIN(5500000,M23-500000)*('Rate Design'!$G$6/100)+MAX(0,M23-6000000)*('Rate Design'!$G$7/100)+'Rate Design'!$G$9+M87*'Rate Design'!$G$10-0.2*M60 -> 242824.7756 | N138: =500000*('Rate Design'!$G$5/100)+MIN(5500000,N23-500000)*('Rate Design'!$G$6/100)+MAX(0,N23-6000000)*('Rate Design'!$G$7/100)+'Rate Design'!$G$9+N87*'Rate Design'!$G$10-0.2*N60 -> 237401.6177 | O138: =500000*('Rate Design'!$G$5/100)+MIN(5500000,O23-500000)*('Rate Design'!$G$6/100)+MAX(0,O23-6000000)*('Rate Design'!$G$7/100)+'Rate Design'!$G$9+O87*'Rate Design'!$G$10-0.2*O60 -> 249948.6288 | P138: 3214152.836 | T138: 0
B139: WSU - MP-B East Campus EA | C139: 500033 | D139: =500000*('Rate Design'!$G$5/100)+MIN(5500000,D24-500000)*('Rate Design'!$G$6/100)+MAX(0,D24-6000000)*('Rate Design'!$G$7/100)+'Rate Design'!$G$9+D88*'Rate Design'!$G$10-0.2*D61 -> 206262.1074 | E139: =500000*('Rate Design'!$G$5/100)+MIN(5500000,E24-500000)*('Rate Design'!$G$6/100)+MAX(0,E24-6000000)*('Rate Design'!$G$7/100)+'Rate Design'!$G$9+E88*'Rate Design'!$G$10-0.2*E61 -> 191086.269 | F139: =500000*('Rate Design'!$G$5/100)+MIN(5500000,F24-500000)*('Rate Design'!$G$6/100)+MAX(0,F24-6000000)*('Rate Design'!$G$7/100)+'Rate Design'!$G$9+F88*'Rate Design'!$G$10-0.2*F61 -> 201660.6647 | G139: =500000*('Rate Design'!$G$5/100)+MIN(5500000,G24-500000)*('Rate Design'!$G$6/100)+MAX(0,G24-6000000)*('Rate Design'!$G$7/100)+'Rate Design'!$G$9+G88*'Rate Design'!$G$10-0.2*G61 -> 194107.1871 | H139: =500000*('Rate Design'!$G$5/100)+MIN(5500000,H24-500000)*('Rate Design'!$G$6/100)+MAX(0,H24-6000000)*('Rate Design'!$G$7/100)+'Rate Design'!$G$9+H88*'Rate Design'!$G$10-0.2*H61 -> 182858.3629 | I139: =500000*('Rate Design'!$G$5/100)+MIN(5500000,I24-500000)*('Rate Design'!$G$6/100)+MAX(0,I24-6000000)*('Rate Design'!$G$7/100)+'Rate Design'!$G$9+I88*'Rate Design'!$G$10-0.2*I61 -> 177734.474 | J139: =500000*('Rate Design'!$G$5/100)+MIN(5500000,J24-500000)*('Rate Design'!$G$6/100)+MAX(0,J24-6000000)*('Rate Design'!$G$7/100)+'Rate Design'!$G$9+J88*'Rate Design'!$G$10-0.2*J61 -> 184033.6677 | K139: =500000*('Rate Design'!$G$5/100)+MIN(5500000,K24-500000)*('Rate Design'!$G$6/100)+MAX(0,K24-6000000)*('Rate Design'!$G$7/100)+'Rate Design'!$G$9+K88*'Rate Design'!$G$10-0.2*K61 -> 187087.8791 | L139: =500000*('Rate Design'!$G$5/100)+MIN(5500000,L24-500000)*('Rate Design'!$G$6/100)+MAX(0,L24-6000000)*('Rate Design'!$G$7/100)+'Rate Design'!$G$9+L88*'Rate Design'!$G$10-0.2*L61 -> 183918.7559 | M139: =500000*('Rate Design'!$G$5/100)+MIN(5500000,M24-500000)*('Rate Design'!$G$6/100)+MAX(0,M24-6000000)*('Rate Design'!$G$7/100)+'Rate Design'!$G$9+M88*'Rate Design'!$G$10-0.2*M61 -> 194290.5414 | N139: =500000*('Rate Design'!$G$5/100)+MIN(5500000,N24-500000)*('Rate Design'!$G$6/100)+MAX(0,N24-6000000)*('Rate Design'!$G$7/100)+'Rate Design'!$G$9+N88*'Rate Design'!$G$10-0.2*N61 -> 200299.9127 | O139: =500000*('Rate Design'!$G$5/100)+MIN(5500000,O24-500000)*('Rate Design'!$G$6/100)+MAX(0,O24-6000000)*('Rate Design'!$G$7/100)+'Rate Design'!$G$9+O88*'Rate Design'!$G$10-0.2*O61 -> 208451.3957 | P139: 2311791.218 | T139: 0
B140: WSU - MP-C East Campus EB | C140: 410031282 | D140: =500000*('Rate Design'!$G$5/100)+MIN(5500000,D25-500000)*('Rate Design'!$G$6/100)+MAX(0,D25-6000000)*('Rate Design'!$G$7/100)+'Rate Design'!$G$9+D89*'Rate Design'!$G$10 -> 166703.9231 | E140: =500000*('Rate Design'!$G$5/100)+MIN(5500000,E25-500000)*('Rate Design'!$G$6/100)+MAX(0,E25-6000000)*('Rate Design'!$G$7/100)+'Rate Design'!$G$9+E89*'Rate Design'!$G$10 -> 162401.7559 | F140: =500000*('Rate Design'!$G$5/100)+MIN(5500000,F25-500000)*('Rate Design'!$G$6/100)+MAX(0,F25-6000000)*('Rate Design'!$G$7/100)+'Rate Design'!$G$9+F89*'Rate Design'!$G$10 -> 179732.1554 | G140: =500000*('Rate Design'!$G$5/100)+MIN(5500000,G25-500000)*('Rate Design'!$G$6/100)+MAX(0,G25-6000000)*('Rate Design'!$G$7/100)+'Rate Design'!$G$9+G89*'Rate Design'!$G$10 -> 176102.2793 | H140: =500000*('Rate Design'!$G$5/100)+MIN(5500000,H25-500000)*('Rate Design'!$G$6/100)+MAX(0,H25-6000000)*('Rate Design'!$G$7/100)+'Rate Design'!$G$9+H89*'Rate Design'!$G$10 -> 165005.7458 | I140: =500000*('Rate Design'!$G$5/100)+MIN(5500000,I25-500000)*('Rate Design'!$G$6/100)+MAX(0,I25-6000000)*('Rate Design'!$G$7/100)+'Rate Design'!$G$9+I89*'Rate Design'!$G$10 -> 156425.8316 | J140: =500000*('Rate Design'!$G$5/100)+MIN(5500000,J25-500000)*('Rate Design'!$G$6/100)+MAX(0,J25-6000000)*('Rate Design'!$G$7/100)+'Rate Design'!$G$9+J89*'Rate Design'!$G$10 -> 161581.3877 | K140: =500000*('Rate Design'!$G$5/100)+MIN(5500000,K25-500000)*('Rate Design'!$G$6/100)+MAX(0,K25-6000000)*('Rate Design'!$G$7/100)+'Rate Design'!$G$9+K89*'Rate Design'!$G$10 -> 169300.6492 | L140: =500000*('Rate Design'!$G$5/100)+MIN(5500000,L25-500000)*('Rate Design'!$G$6/100)+MAX(0,L25-6000000)*('Rate Design'!$G$7/100)+'Rate Design'!$G$9+L89*'Rate Design'!$G$10 -> 166692.0289 | M140: =500000*('Rate Design'!$G$5/100)+MIN(5500000,M25-500000)*('Rate Design'!$G$6/100)+MAX(0,M25-6000000)*('Rate Design'!$G$7/100)+'Rate Design'!$G$9+M89*'Rate Design'!$G$10 -> 176357.7642 | N140: =500000*('Rate Design'!$G$5/100)+MIN(5500000,N25-500000)*('Rate Design'!$G$6/100)+MAX(0,N25-6000000)*('Rate Design'!$G$7/100)+'Rate Design'!$G$9+N89*'Rate Design'!$G$10 -> 176152.4775 | O140: =500000*('Rate Design'!$G$5/100)+MIN(5500000,O25-500000)*('Rate Design'!$G$6/100)+MAX(0,O25-6000000)*('Rate Design'!$G$7/100)+'Rate Design'!$G$9+O89*'Rate Design'!$G$10 -> 183978.8508 | P140: 2040434.849 | T140: 0
B141: WSU - MP -D Casp East (no PVD) | C141: 500032 | D141: =500000*('Rate Design'!$G$5/100)+MIN(5500000,D26-500000)*('Rate Design'!$G$6/100)+MAX(0,D26-6000000)*('Rate Design'!$G$7/100)+'Rate Design'!$G$9+D90*'Rate Design'!$G$10 -> 152839.8587 | E141: =500000*('Rate Design'!$G$5/100)+MIN(5500000,E26-500000)*('Rate Design'!$G$6/100)+MAX(0,E26-6000000)*('Rate Design'!$G$7/100)+'Rate Design'!$G$9+E90*'Rate Design'!$G$10 -> 145820.8961 | F141: =500000*('Rate Design'!$G$5/100)+MIN(5500000,F26-500000)*('Rate Design'!$G$6/100)+MAX(0,F26-6000000)*('Rate Design'!$G$7/100)+'Rate Design'!$G$9+F90*'Rate Design'!$G$10 -> 146036.3247 | G141: =500000*('Rate Design'!$G$5/100)+MIN(5500000,G26-500000)*('Rate Design'!$G$6/100)+MAX(0,G26-6000000)*('Rate Design'!$G$7/100)+'Rate Design'!$G$9+G90*'Rate Design'!$G$10 -> 161365.9228 | H141: =500000*('Rate Design'!$G$5/100)+MIN(5500000,H26-500000)*('Rate Design'!$G$6/100)+MAX(0,H26-6000000)*('Rate Design'!$G$7/100)+'Rate Design'!$G$9+H90*'Rate Design'!$G$10 -> 154679.3761 | I141: =500000*('Rate Design'!$G$5/100)+MIN(5500000,I26-500000)*('Rate Design'!$G$6/100)+MAX(0,I26-6000000)*('Rate Design'!$G$7/100)+'Rate Design'!$G$9+I90*'Rate Design'!$G$10 -> 152162.3861 | J141: =500000*('Rate Design'!$G$5/100)+MIN(5500000,J26-500000)*('Rate Design'!$G$6/100)+MAX(0,J26-6000000)*('Rate Design'!$G$7/100)+'Rate Design'!$G$9+J90*'Rate Design'!$G$10 -> 210906.7008 | K141: =500000*('Rate Design'!$G$5/100)+MIN(5500000,K26-500000)*('Rate Design'!$G$6/100)+MAX(0,K26-6000000)*('Rate Design'!$G$7/100)+'Rate Design'!$G$9+K90*'Rate Design'!$G$10 -> 222986.1651 | L141: =500000*('Rate Design'!$G$5/100)+MIN(5500000,L26-500000)*('Rate Design'!$G$6/100)+MAX(0,L26-6000000)*('Rate Design'!$G$7/100)+'Rate Design'!$G$9+L90*'Rate Design'!$G$10 -> 194233.6431 | M141: =500000*('Rate Design'!$G$5/100)+MIN(5500000,M26-500000)*('Rate Design'!$G$6/100)+MAX(0,M26-6000000)*('Rate Design'!$G$7/100)+'Rate Design'!$G$9+M90*'Rate Design'!$G$10 -> 167175.8371 | N141: =500000*('Rate Design'!$G$5/100)+MIN(5500000,N26-500000)*('Rate Design'!$G$6/100)+MAX(0,N26-6000000)*('Rate Design'!$G$7/100)+'Rate Design'!$G$9+N90*'Rate Design'!$G$10 -> 144287.4533 | O141: =500000*('Rate Design'!$G$5/100)+MIN(5500000,O26-500000)*('Rate Design'!$G$6/100)+MAX(0,O26-6000000)*('Rate Design'!$G$7/100)+'Rate Design'!$G$9+O90*'Rate Design'!$G$10 -> 141820.3087 | P141: 1994314.873 | T141: 0
B142: Schedule 25 Total | P142: =SUM(P119:P141) -> 66641397.3 | Q142: =P142-'Pres & Prop Rev'!G152 -> -102310.2666 | T142: =SUM(T119:T141) -> 102310.2664
D146: 24 | E146: 24 | F146: 24 | G146: 24 | H146: 24 | I146: 24 | J146: 24 | K146: 24 | L146: 24 | M146: 24 | N146: 24 | O146: 24
D147: 31 | E147: 30 | F147: 31 | G147: 31 | H147: 28 | I147: 31 | J147: 30 | K147: 31 | L147: 30 | M147: 31 | N147: 31 | O147: 30 | P147: =SUM(D147:O147) -> 365
D148: =D146*D147 -> 744 | E148: =E146*E147 -> 720 | F148: =F146*F147 -> 744 | G148: 744 | H148: 672 | I148: 744 | J148: 720 | K148: 744 | L148: 720 | M148: 744 | N148: 744 | O148: 720 | P148: =SUM(D148:O148) -> 8760
B149: Load Factor | D149: =D3 -> 2018-01-01 | E149: =E3 -> 2018-02-01 | F149: 2018-03-01 | G149: 2018-04-01 | H149: 2018-05-01 | I149: 2018-06-01 | J149: 2018-07-01 | K149: 2018-08-01 | L149: 2018-09-01 | M149: 2018-10-01 | N149: 2018-11-01 | O149: 2018-12-01 | P149: Monthly Average | Q149: Annual Peak
A150: 1 | B150: BF Goodrich | D150: =(D4/D$148)/D41 -> 0.7748279323 | E150: 0.6694134877 | F150: 0.6917680414 | G150: 0.6548763378 | H150: 0.8842905119 | I150: 0.688197494 | J150: 0.7849418044 | K150: 0.7329208773 | L150: 0.6758508509 | M150: 0.6793463603 | N150: 0.6146411492 | O150: 0.7958534892 | P150: =AVERAGE(D150:O150) -> 0.7205773614 | Q150: =(P4/8760)/Q41 -> 0.643448969
A151: 2 | B151: Boise Cascade Plywood | D151: =(D7/D$148)/D44 -> 0.8155551031 | E151: 0.7705507179 | F151: 0.8329044495 | G151: 0.8040367357 | H151: 0.890734084 | I151: 0.78813424 | J151: 0.7942532048 | K151: 0.7975831197 | L151: 0.7518511843 | M151: 0.7408052958 | N151: 0.7193710909 | O151: 0.4264462682 | P151: =AVERAGE(D151:O151) -> 0.7610187911 | Q151: =(P7/8760)/Q44 -> 0.7385886596
A152: 3 | B152: Boise Cascade Sawmill | D152: =(D8/D$148)/D45 -> 0.640696564 | E152: 0.5835297602 | F152: 0.6470106098 | G152: 0.5977597767 | H152: 0.6912142191 | I152: 0.6445887827 | J152: 0.6458911184 | K152: 0.636748124 | L152: 0.6165626446 | M152: 0.6702105749 | N152: 0.6020335596 | O152: 0.6213613228 | P152: 0.6331339214 | Q152: 0.5717086061
A153: 4 | B153: City of Spokane Sewage Treatment Plt | D153: =(D9/D$148)/D46 -> 0.6605750433 | E153: 0.6595601398 | F153: 0.6575523282 | G153: 0.6606783079 | H153: 0.808124759 | I153: 0.6371754974 | J153: 0.7041044522 | K153: 0.6382577494 | L153: 0.667290651 | M153: 0.6048649303 | N153: 0.6366838867 | O153: 0.7241902357 | P153: 0.6715881651 | Q153: 0.6221357747
A154: 5 | B154: Deaconess Medical Center | D154: =(D10/D$148)/D47 -> 0.8126104158 | E154: 0.7506879156 | F154: 0.8243069248 | G154: 0.6318543152 | H154: 0.7586477559 | I154: 0.6957357594 | J154: 0.7739287024 | K154: 0.7288884045 | L154: 0.7044267034 | M154: 0.7254529287 | N154: 0.7689087006 | O154: 0.8202281674 | P154: 0.7496397245 | Q154: 0.6268293154
A155: 6 | B155: Gonzaga University | D155: =(D11/D$148)/D48 -> 0.676076808 | E155: 0.653184823 | F155: 0.6511373701 | G155: 0.5871518613 | H155: 0.5857936021 | I155: 0.5330824688 | J155: 0.5719441226 | K155: 0.514081222 | L155: 0.5483526761 | M155: 0.6764263574 | N155: 0.6280062807 | O155: 0.6399985784 | P155: 0.6054363475 | Q155: 0.5319604034
A156: 7 | B156: Honeywell Electronics | D156: =(D12/D$148)/D49 -> 0.5893326859 | E156: 0.5641527095 | F156: 0.5834016783 | G156: 0.5719764652 | H156: 0.6161598346 | I156: 0.5729417739 | J156: 0.5860725428 | K156: 0.5718144593 | L156: 0.5949300419 | M156: 0.5780092248 | N156: 0.4900503781 | O156: 0.5530332551 | P156: 0.5726562541 | Q156: 0.5025643266
A157: 8 | B157: Huntwood Industries | D157: =(D13/D$148)/D50 -> 0.3565302617 | E157: 0.3405136739 | F157: 0.3479029808 | G157: 0.3358311134 | H157: 0.3880043887 | I157: 0.3446065102 | J157: 0.346182375 | K157: 0.3625598357 | L157: 0.3251605398 | M157: 0.3493208769 | N157: 0.3071543759 | O157: 0.3061939765 | P157: 0.3424967424 | Q157: 0.3354234619
A158: 9 | B158: Inland Empire Paper | D158: =(D14/D$148)/D51 -> 0.9092177582 | E158: 0.8622624512 | F158: 0.8936326368 | G158: 0.8858413267 | H158: 0.9582384775 | I158: 0.8974363911 | J158: 0.8971055932 | K158: 0.9063802938 | L158: 0.8894623762 | M158: 0.9122938079 | N158: 0.8774607179 | O158: 0.9425576888 | P158: 0.9026574599 | Q158: 0.8769577728
A159: 10 | B159: JR Simplot | D159: =(D15/D$148)/D52 -> 0.8717945537 | E159: 0.535980631 | F159: 0.8793474141 | G159: 0.8399411694 | H159: 0.9729346467 | I159: 0.7735062882 | J159: 0.7144075736 | K159: 0.8599703893 | L159: 0.6896021835 | M159: 0.8800495301 | N159: 0.7449103776 | O159: 0.8259620817 | P159: 0.7990339032 | Q159: 0.7046564463
A160: 11 | B160: McCaine Foods Inc | D160: =(D16/D$148)/D53 -> 0.4153091915 | E160: 0.7757192705 | F160: 0.810151191 | G160: 0.7427722594 | H160: 0.9139808051 | I160: 0.7553740502 | J160: 0.7046467987 | K160: 0.7912459841 | L160: 0.7833383274 | M160: 0.8536420004 | N160: 0.7793464475 | O160: 0.8208339132 | P160: 0.7621966866 | Q160: 0.7306687115
A161: 12 | B161: Sacred Heart Medical Center | D161: =(D17/D$148)/D54 -> 0.848279252 | E161: 0.7911235304 | F161: 0.8264936172 | G161: 0.6101866828 | H161: 0.7887482869 | I161: 0.7032365609 | J161: 0.7892687149 | K161: 0.7012927212 | L161: 0.6703668793 | M161: 0.6731925655 | N161: 0.8175566686 | O161: 0.8522889739 | P161: 0.7560028711 | Q161: 0.5694408128
A162: 13 | B162: Spokane County Courthouse | D162: =(D18/D$148)/D55 -> 0.6860513043 | E162: 0.6385601772 | F162: 0.667930728 | G162: 0.5001445066 | H162: 0.5742198154 | I162: 0.5174620432 | J162: 0.5922098261 | K162: 0.562000338 | L162: 0.5623309248 | M162: 0.5819901253 | N162: 0.5473044665 | O162: 0.6947191776 | P162: 0.5937436194 | Q162: 0.4644238142
A163: 14 | B163: Spokane Steel Foundry | D163: =(D19/D$148)/D56 -> 0.1990334975 | E163: 0.2020237449 | F163: 0.2103647729 | G163: 0.1872685157 | H163: 0.2296117051 | I163: 0.1903237456 | J163: 0.2011474886 | K163: 0.2119638455 | L163: 0.2246318474 | M163: 0.2185479552 | N163: 0.1812759267 | O163: 0.1921158252 | P163: 0.2040257392 | Q163: 0.1945793133
A164: 15 | B164: Triumph Composite / Boeing | D164: =(D20/D$148)/D57 -> 0.5569435516 | E164: 0.5213636602 | F164: 0.5300614084 | G164: 0.5161350837 | H164: 0.5868457364 | I164: 0.5158194476 | J164: 0.5379909648 | K164: 0.5185418541 | L164: 0.4917007822 | M164: 0.5203762465 | N164: 0.521203333 | O164: 0.5284851179 | P164: 0.5287889322 | Q164: 0.4442357604
A165: 16 | B165: Vaagen Brothers Lumber | D165: =(D21/D$148)/D58 -> 0.6634355129 | E165: 0.6210602734 | F165: 0.6580823799 | G165: 0.6107934292 | H165: 0.5945830242 | I165: 0.6228433314 | J165: 0.5907380217 | K165: 0.6013235114 | L165: 0.5903655931 | M165: 0.6065702815 | N165: 0.5909357634 | O165: 0.643352933 | P165: 0.6161736713 | Q165: 0.5893999149
A166: 17 | B166: WSU - MP-A South Campus Feeder | D166: =(D22/D$148)/D59 -> 0.74630703 | E166: 0.7509246809 | F166: 0.744499584 | G166: 0.7260046879 | H166: 0.8465902277 | I166: 0.7293823868 | J166: 0.7559950837 | K166: 0.7464780827 | L166: 0.7297283086 | M166: 0.7347995531 | N166: 0.7256837765 | O166: 0.7865802193 | P166: 0.7519144684 | Q166: 0.6986464511
A167: 18 | B167: WSU - MP-B East Campus EA | D167: =(D23/D$148)/D60 -> 0.7049613082 | E167: 0.7135537977 | F167: 0.6703419529 | G167: 0.5315372919 | H167: 0.6795747616 | I167: 0.5881497854 | J167: 0.658888765 | K167: 0.6279655094 | L167: 0.5901898965 | M167: 0.693345206 | N167: 0.688750048 | O167: 0.7527943928 | P167: 0.6583377263 | Q167: 0.5178852976
A168: 19 | B168: WSU - MP-C East Campus EB | D168: =(D24/D$148)/D61 -> 0.7792430566 | E168: 0.7412172785 | F168: 0.7680885022 | G168: 0.7386872214 | H168: 0.8607153917 | I168: 0.762295358 | J168: 0.8491009349 | K168: 0.7763410556 | L168: 0.7786139472 | M168: 0.7755290014 | N168: 0.7352674504 | O168: 0.7771180239 | P168: 0.7785181018 | Q168: 0.708004335
A169: 20 | B169: WSU - MP -D Casp East (no PVD) | D169: =(D25/D$148)/D62 -> 0.7217747142 | E169: 0.6859579492 | F169: 0.7084889024 | G169: 0.682420358 | H169: 0.7930407426 | I169: 0.7061478406 | J169: 0.7394825948 | K169: 0.7002240274 | L169: 0.7140301299 | M169: 0.7305740049 | N169: 0.6873965449 | O169: 0.7290909691 | P169: 0.7165523982 | Q169: 0.6617203869
A170: 21 | B170: WSU - MP-E Casp West (no PVD) | D170: =(D26/D$148)/D63 -> 0.7341698095 | E170: 0.7169883442 | F170: 0.7340691291 | G170: 0.5356798471 | H170: 0.5822516408 | I170: 0.5242460395 | J170: 0.6520484634 | K170: 0.6408695016 | L170: 0.5677797172 | M170: 0.6852906335 | N170: 0.6980424339 | O170: 0.6792186176 | P170: 0.6458878481 | Q170: 0.4784534077

Sheet Lighting summary
B1: AVISTA UTILITIES
B2: WASHINGTON ELECTRIC
B3: STREET & AREA LIGHT REVENUE UNDER PRESENT & PROPOSED RATES
B4: 12 MONTHS ENDED DECEMBER 31, 2018
C7: ="Present "&IF(Base1_Billing2=2,"Billing ","")&"Rates(1)" -> Present Rates(1) | D7: ="Present "&IF(Base1_Billing2=2,"Billing","")&" Rates" -> Present Rates | F7: ="Proposed "&IF(Base1_Billing2=2,"Billing ","")&"Rates(2)" -> Proposed Rates(2) | G7: ="Proposed "&IF(Base1_Billing2=2,"Billing ","")&"Rates" -> Proposed Rates | I7: % Revenue Change
C8: Monthly | D8: Annual | F8: Monthly | G8: Annual | L8: Target Base | N8: Annual | O8: Present | P8: Proposed
C9: Revenue | D9: Revenue | F9: Revenue | G9: Revenue | I9: Base Rates | J9: Billing Rates | L9: % Change | N9: kWh's | O9: kWh Rate | P9: kWh Rate
B11: Schedule 41 | C11: ='St Lts'!Y$98*IF(Base1_Billing2=2,(1+$I$39),1) -> 1019.64 | D11: =C11*12 -> 12235.68 | F11: ='St Lts'!AQ$98*IF(Base1_Billing2=2,1+$D$39,1) -> 1019.64 | G11: =F11*12 -> 12235.68 | I11: =G11/D11-1 -> 0 | J11: 0 | L11: 0 | N11: ='REVRUNS 12ME1218'!P207 -> 44155.772
B12: Schedule 42 | C12: ='St Lts'!Z$98*IF(Base1_Billing2=2,1+$I$39,1) -> 338609.53 | D12: =C12*12 -> 4063314.36 | F12: ='St Lts'!AR$98*IF(Base1_Billing2=2,1+$D$39,1) -> 338609.53 | G12: =F12*12 -> 4063314.36 | I12: =G12/D12-1 -> 0 | J12: 0 | L12: =L11 -> 0 | N12: ='REVRUNS 12ME1218'!P216 -> 9214602.303
B13: Schedule 44 | C13: ='St Lts'!AA$98*IF(Base1_Billing2=2,1+$I$39,1) -> 2377.62 | D13: 28531.44 | F13: ='St Lts'!AS$98*IF(Base1_Billing2=2,1+$D$39,1) -> 2377.62 | G13: 28531.44 | I13: 0 | J13: 0 | L13: =L11 -> 0 | N13: ='REVRUNS 12ME1218'!P225 -> 201737.201
B14: Schedule 45 | C14: ='St Lts'!AB$98*IF(Base1_Billing2=2,1+$I$39,1) -> 1929.82 | D14: 23157.84 | F14: ='St Lts'!AT$98*IF(Base1_Billing2=2,1+$D$39,1) -> 1929.82 | G14: 23157.84 | I14: 0 | J14: 0 | L14: =L11 -> 0 | N14: ='REVRUNS 12ME1218'!P234 -> 429568.991
B15: Schedule 46 | C15: ='St Lts'!AC$98*IF(Base1_Billing2=2,1+$I$39,1) -> 9293.2 | D15: 111518.4 | F15: ='St Lts'!AU$98*IF(Base1_Billing2=2,1+$D$39,1) -> 9293.2 | G15: 111518.4 | I15: 0 | J15: 0 | L15: =L11 -> 0 | N15: ='REVRUNS 12ME1218'!P243 -> 1077785.959 | O15: =D15/N15 -> 0.103469895 | P15: =G15/N15 -> 0.103469895
B16: Schedule 47 | C16: ='Area Lts'!S56*IF(Base1_Billing2=2,1+$I$39,1) -> 115772.09 | D16: 1389265.08 | F16: =IF(Base1_Billing2=1,'Area Lts'!AG56,'Area Lts'!AG65) -> 115772.09 | G16: 1389265.08 | I16: 0 | J16: 0 | L16: =L11 -> 0 | N16: ='REVRUNS 12ME1218'!P252 -> 4954674.699
B17: Schedule 48 | C17: ='Area Lts'!T56*IF(Base1_Billing2=2,1+$I$39,1) -> 66333.39002 | D17: 796000.6803 | F17: =IF(Base1_Billing2=1,'Area Lts'!AH56,'Area Lts'!AH65) -> 66333.39005 | G17: 796000.6806 | I17: 4.070348503e-10 | J17: 0 | L17: =L11 -> 0 | N17: ='REVRUNS 12ME1218'!P262 -> 2619506.616
B19: Total | C19: =SUM(C11:C17) -> 535335.29 | D19: =SUM(D11:D17) -> 6424023.48 | F19: =SUM(F11:F17) -> 535335.29 | G19: =SUM(G11:G17) -> 6424023.481 | I19: =G19/D19-1 -> 5.043565565e-11 | J19: 0 | L19: =L11 -> 0 | N19: =SUM(N11:N18) -> 18542031.54
C20: =ROUND(C19-CHOOSE(Base1_Billing2,'St Lts'!AC100+'Area Lts'!T57,'St Lts'!AC106+'Area Lts'!T66+G52),0) -> 0 | F20: =ROUND(F19-CHOOSE(Base1_Billing2,'St Lts'!AU99+'Area Lts'!AH57,'St Lts'!AU105+'Area Lts'!AH66),0) -> 0 | L20: =I19-L19 -> 5.043565565e-11
B21: Sch 46 Per kWh Rate | D21: =D15/N15 -> 0.103469895 | G21: =G15/N15 -> 0.103469895
B23: (1) from PDE-E-12/14 | L23: =G19-('Rate Spread GRC'!H25*1000) -> 0.0003239996731
B24: (2) from PDE-E-13/14
C26: Billed | D26: =D19*(1+I39)+'Area Lts'!T64*12 -> 6515244.614 | F26: b4 Sch 91/92 | G26: =G19*(1+J39)+'Area Lts'!AH64*12 -> 6514036.454 | I26: =G26/D26-1 -> -0.0001854358114 | K26: =G26-D26 -> -1208.159671
C27: Diff | D27: =D26-D19 -> 91221.13342 | F27: b4 Sch 91/92 | G27: =G26-G19 -> 90012.97342
C28: Pres 91/92 | D28: =D$19*(I36+I37) -> 91221.13342 | F28: 91/92 b4 Sch 91/92 | G28: =G$19*(J36+J37) -> 91221.13342
C29: Pres 93 | D29: =D$19*I38 -> 0 | F29: 93 b4 Sch 93 | G29: =G$19*J38 -> 0
C30: add'l 91/92 | D30: =D28*($L$36+L37) -> 0
C31: Billed | D31: =D26 -> 6515244.614 | F31: w/Sch 91/92/93/98 | G31: =G19*(1+D39)+'Area Lts'!AH64*12 -> 6514036.454 | I31: =G31/D31-1 -> -0.0001854358114 | K31: =G31-D26 -> -1208.159671 | L31: =K31-J$19 -> -1208.159671
J34: Revised
D35: Proposed | I35: Present | J35: Present | K35: Proposed
D36: =K36 -> 0 | G36: Sch 91-DSM | I36: 0 | J36: =(L19+(1+I36))/(1+L19)-1 -> 0 | K36: =J36*(1+L36) -> 0 | L36: 0
D37: =K37 -> 0.0142 | G37: Sch 92-LIRAP | I37: 0.0142 | J37: =(L19+(1+I37))/(1+L19)-1 -> 0.0142 | K37: =J37*(1+L37) -> 0.0142 | L37: 0 | M37: Reflects additional LIRAP funding
D38: =K38 -> 0 | I38: 0 | J38: =(L19+(1+I38))/(1+L19)-1 -> 0 | K38: =J38*(1+$L$38) -> 0 | L38: 0
D39: =D36+D37+D38 -> 0.0142 | G39: Total adder | I39: =I36+I37+I38 -> 0.0142 | J39: =J36+J37+J38 -> 0.0142 | K39: =K36+K37+K38 -> 0.0142
C41: Schedule 98 | D41: Schedule 91 | E41: Schedule 59 | G41: Total Revenue
B42: copy of Total above | C42: 488916.6501 | D42: 488917.65 | E42: 5866999.801 | G42: 556466.5401 | H42: 6677598.481
B43: diff from curr Total above | C43: =C19-C42 -> 46418.63997 | D43: =D19-D42 -> 5935105.83 | E43: =D19-E42 -> 557023.6797 | G43: =F19-G42 -> -21131.25 | H43: =G19-H42 -> -253575
B44: % diff | C44: =C43/C42 -> 0.09494182693 | D44: =D43/D42 -> 12.13927505 | E44: =E43/E42 -> 0.09494182693 | G44: =G43/G42 -> -0.03797398133 | H44: =H43/H42 -> -0.03797398133
B45: Schedule 41 | C45: ='REVRUNS 12ME1218'!P195*'Lighting summary'!$C$53 -> 0 | D45: ='REVRUNS 12ME1218'!P195*'Lighting summary'!$D$53 -> 0 | G45: =C45+D45+F45 -> 0
B46: Schedule 42 | C46: ='REVRUNS 12ME1218'!P203*'Lighting summary'!$C$53 -> 0 | D46: ='REVRUNS 12ME1218'!P203*'Lighting summary'!$D$53 -> 0 | G46: =C46+D46+F46 -> 0
B47: Schedule 44 | C47: ='REVRUNS 12ME1218'!P211*'Lighting summary'!$C$53 -> 0 | D47: ='REVRUNS 12ME1218'!P211*'Lighting summary'!$D$53 -> 0 | G47: 0
B48: Schedule 45 | C48: ='REVRUNS 12ME1218'!P219*'Lighting summary'!$C$53 -> 0 | D48: ='REVRUNS 12ME1218'!P219*'Lighting summary'!$D$53 -> 0 | G48: 0
B49: Schedule 46 | C49: ='REVRUNS 12ME1218'!P227*'Lighting summary'!$C$53 -> -158.9405267 | D49: ='REVRUNS 12ME1218'!P227*'Lighting summary'!$D$53 -> 3702.884702 | G49: 3543.944176
B50: Schedule 47 | C50: ='REVRUNS 12ME1218'!P235*'Lighting summary'!$C$53 -> 0 | D50: ='REVRUNS 12ME1218'!P235*'Lighting summary'!$D$53 -> 0 | G50: 0
B51: Schedule 48 | C51: ='REVRUNS 12ME1218'!P243*'Lighting summary'!$C$53 -> -398.7808047 | D51: ='REVRUNS 12ME1218'!P243*'Lighting summary'!$D$53 -> 9290.514964 | F51: ='REVRUNS 12ME1218'!P243*'Lighting summary'!$F$53 -> -549.6708389 | G51: 8342.06332
B52: Total | C52: =C45+C46+C47+C48+C49+C50+C51 -> -557.7213314 | D52: =D45+D46+D47+D48+D49+D50+D51 -> 12993.39967 | F52: =E45+E46+E47+E48+E49+E50+F51 -> -549.6708389 | G52: =C52+F52+D52 -> 11886.0075
C53: -0.00037 | D53: 0.00862 | F53: -0.00051
F55: Total Billed | G55: =D31+G52 -> 6527130.621

Sheet St Lts
A1: Street Light Summary | I1: WASHINGTON Street Lights | AJ1: % rate increase --> | AK1: ='Lighting summary'!L11 -> 0 | AL1: ='Lighting summary'!L12 -> 0 | AM1: ='Lighting summary'!L13 -> 0 | AN1: ='Lighting summary'!L14 -> 0 | AO1: ='Lighting summary'!L15 -> 0 | BD1: =-0.00475-0.00048 -> -0.00523 | BE1: compare input Present Billing Rates to calculated Present Billing Rates | BL1: =BE2 -> 1.0142
A2: MDM-10069 Report as of 1/1/19 | M2: Number of Lights(1) | S2: Present Rates | Y2: Monthly Revenue at Present Rates | AE2: Number of Lights | AK2: Proposed Rates | AQ2: Monthly Revenue at Proposed Rates | AX2: Present Billing Rates | BD2: 0.02017 | BE2: =1+'Lighting summary'!I39 -> 1.0142 | BF2: Sch 91 & 92 | BL2: New Billing Rates | BR2: Increase
I3: Fixture Type | J3: Pole Facility | K3: Size | L3: Sched | M3: 041 | N3: 042 | O3: 044 | P3: 045 | Q3: 046 | S3: 041 | T3: 042 | U3: 044 | V3: 045 | W3: 046 | Y3: 041 | Z3: 042 | AA3: 044 | AB3: 045 | AC3: 046 | AE3: 041 | AF3: 042 | AG3: 044 | AH3: 045 | AI3: 046 | AK3: 041 | AL3: 042 | AM3: 044 | AN3: 045 | AO3: 046 | AQ3: 041 | AR3: 042 | AS3: 044 | AT3: 045 | AU3: 046 | AW3: kwh | AX3: 041 | AY3: 042 | AZ3: 044 | BA3: 045 | BB3: 046 | BD3: Sch 93/94 | BE3: 041 | BF3: 042 | BG3: 044 | BH3: 045 | BI3: 046 | BL3: 041 | BM3: 042 | BN3: 044 | BO3: 045 | BP3: 046 | BR3: 041 | BS3: 042 | BT3: 044 | BU3: 045 | BV3: 046
I4: Single Mercury Vapor | J4: Direct Burial | K4: 4000 | L4: 214 | M4: =SUMIF($G:$G,TEXT(M$3,"000")&TEXT($L4,"000"),$E:$E) -> 59 | N4: 0 | O4: 0 | P4: 0 | Q4: 0 | S4: 14.29 | T4: 0 | U4: 0 | V4: 0 | W4: 0 | Y4: =IF(AND(M4<>0,S4=0),#VALUE!,M4*S4) -> 843.11 | Z4: =IF(AND(N4<>0,T4=0),#VALUE!,N4*T4) -> 0 | AA4: =IF(AND(O4<>0,U4=0),#VALUE!,O4*U4) -> 0 | AB4: =IF(AND(P4<>0,V4=0),#VALUE!,P4*V4) -> 0 | AC4: =IF(AND(Q4<>0,W4=0),#VALUE!,Q4*W4) -> 0 | AE4: =M4 -> 59 | AF4: =N4 -> 0 | AG4: =O4 -> 0 | AH4: =P4 -> 0 | AI4: =Q4 -> 0 | AK4: =ROUND(S4*(1+AK$1),2) -> 14.29 | AL4: 0 | AM4: =ROUND(U4*(1+AM$1),2) -> 0 | AN4: =ROUND(V4*(1+AN$1),2) -> 0 | AO4: =ROUND(W4*(1+AO$1),2) -> 0 | AQ4: =IF(AND(AE4<>0,AK4=0),#VALUE!,AE4*AK4) -> 843.11 | AR4: =IF(AND(AF4<>0,AL4=0),#VALUE!,AF4*AL4) -> 0 | AS4: =IF(AND(AG4<>0,AM4=0),#VALUE!,AG4*AM4) -> 0 | AT4: =IF(AND(AH4<>0,AN4=0),#VALUE!,AH4*AN4) -> 0 | AU4: =IF(AND(AI4<>0,AO4=0),#VALUE!,AI4*AO4) -> 0 | AV4: =SUM(AQ4:AU4)-SUM(Y4:AC4) -> 0 | AW4: 42 | AX4: 15.12 | BD4: =ROUND(AW4*$BD$2,2)+ROUND(AW4*$BD$1,2) -> 0.63 | BE4: =ROUND((S4*$BE$2),2)+ROUND($BD4-AX4,2) -> 0 | BL4: =AK4*$BL$1 -> 14.492918 | BM4: =AL4*$BL$1 -> 0 | BN4: =AM4*$BL$1 -> 0 | BO4: =AN4*$BL$1 -> 0 | BP4: =AO4*$BL$1 -> 0 | BR4: =BL4-AX4 -> -0.627082 | BS4: =BM4-AY4 -> 0 | BT4: =BN4-AZ4 -> 0 | BU4: =BO4-BA4 -> 0 | BV4: =BP4-BB4 -> 0
B5: State | C5: Sched | D5: Rate Sub | E5: # of Lights | I5: Single High-Pressure Sodium Vapor | J5: Direct Burial | K5: 50W | L5: 234 | M5: 0 | N5: 108 | O5: 0 | P5: 0 | Q5: 0 | S5: 0 | T5: 13.42 | U5: 0 | V5: 0 | W5: 0 | Y5: =IF(AND(M5<>0,S5=0),#VALUE!,M5*S5) -> 0 | Z5: =IF(AND(N5<>0,T5=0),#VALUE!,N5*T5) -> 1449.36 | AA5: =IF(AND(O5<>0,U5=0),#VALUE!,O5*U5) -> 0 | AB5: =IF(AND(P5<>0,V5=0),#VALUE!,P5*V5) -> 0 | AC5: =IF(AND(Q5<>0,W5=0),#VALUE!,Q5*W5) -> 0 | AE5: =M5 -> 0 | AF5: =N5 -> 108 | AG5: 0 | AH5: 0 | AI5: 0 | AK5: 0 | AL5: 13.42 | AM5: 0 | AN5: 0 | AO5: 0 | AQ5: 0 | AR5: 1449.36 | AS5: 0 | AT5: 0 | AU5: 0 | AV5: 0 | AW5: 20 | AY5: 13.9 | BD5: =ROUND(AW5*$BD$2,2)+ROUND(AW5*$BD$1,2) -> 0.3 | BF5: =ROUND((T5*$BE$2)+$BD5-AY5,2) -> 0.01 | BL5: =AK5*$BL$1 -> 0 | BM5: =AL5*$BL$1 -> 13.610564 | BN5: =AM5*$BL$1 -> 0 | BO5: 0 | BP5: 0 | BR5: =BL5-AX5 -> 0 | BS5: =BM5-AY5 -> -0.289436 | BT5: =BN5-AZ5 -> 0 | BU5: =BO5-BA5 -> 0 | BV5: =BP5-BB5 -> 0
I6: High-Pressure Sodium Vapor | J6: Dusk to Dawn | K6: 70W | L6: 335 | M6: 0 | N6: 0 | O6: 0 | P6: 0 | Q6: 8 | S6: 0 | T6: 0 | U6: 0 | V6: 0 | W6: 3.45 | Y6: 0 | Z6: 0 | AA6: 0 | AB6: 0 | AC6: 27.6 | AE6: 0 | AF6: 0 | AG6: 0 | AH6: 0 | AI6: 8 | AK6: 0 | AL6: 0 | AM6: 0 | AN6: 0 | AO6: 3.45 | AQ6: 0 | AR6: 0 | AS6: 0 | AT6: 0 | AU6: 27.6 | AV6: 0 | AW6: 25 | BB6: 3.87 | BD6: 0.37 | BI6: =ROUND((W6*$BE$2)+$BD6-BB6,2) -> 0 | BL6: 0 | BM6: 0 | BN6: 0 | BO6: 0 | BP6: 3.49899 | BR6: 0 | BS6: 0 | BT6: 0 | BU6: 0 | BV6: -0.37101
B7: 2 | C7: 041 | D7: 214 | E7: 59 | G7: =IF(OR(ISBLANK(C7),ISBLANK(D7)),"",TEXT(C7,"000")&TEXT(D7,"000")) -> 041214 | I7: Single Mercury Vapor | J7: Wood Pole | K7: 7000 | L7: 411 | M7: 1 | N7: 0 | O7: 0 | P7: 0 | Q7: 0 | S7: 15.49 | T7: 0 | U7: 0 | V7: 0 | W7: 0 | Y7: 15.49 | Z7: 0 | AA7: 0 | AB7: 0 | AC7: 0 | AE7: 1 | AF7: 0 | AG7: 0 | AH7: 0 | AI7: 0 | AK7: 15.49 | AL7: 0 | AM7: 0 | AN7: 0 | AO7: 0 | AQ7: 15.49 | AR7: 0 | AS7: 0 | AT7: 0 | AU7: 0 | AV7: 0 | AW7: 80 | AX7: 16.9 | BD7: 1.19 | BE7: =ROUND((S7*$BE$2)+$BD7-AX7,2) -> 0 | BL7: 15.709958 | BM7: 0 | BN7: 0 | BO7: 0 | BP7: 0 | BR7: -1.190042 | BS7: 0 | BT7: 0 | BU7: 0 | BV7: 0
B8: 2 | C8: 041 | D8: 411 | E8: 1 | G8: =IF(OR(ISBLANK(C8),ISBLANK(D8)),"",TEXT(C8,"000")&TEXT(D8,"000")) -> 041411 | I8: Mercury Vapor | J8: Dusk to Dawn | K8: 7000 | L8: 415 | M8: 0 | N8: 0 | O8: 0 | P8: 65 | Q8: 0 | S8: 0 | T8: 0 | U8: 0 | V8: 6.8 | W8: 0 | Y8: 0 | Z8: 0 | AA8: 0 | AB8: 442 | AC8: 0 | AE8: 0 | AF8: 0 | AG8: 0 | AH8: 65 | AI8: 0 | AK8: 0 | AL8: 0 | AM8: 0 | AN8: 6.8 | AO8: 0 | AQ8: 0 | AR8: 0 | AS8: 0 | AT8: 442 | AU8: 0 | AV8: 0 | AW8: 80 | BA8: 8.09 | BD8: 1.19 | BH8: =ROUND((V8*$BE$2)+$BD8-BA8,2) -> 0 | BL8: 0 | BM8: 0 | BN8: 0 | BO8: 6.89656 | BP8: 0 | BR8: 0 | BS8: 0 | BT8: 0 | BU8: -1.19344 | BV8: 0
B9: 2 | C9: 041 | D9: 511 | E9: 0 | G9: =IF(OR(ISBLANK(C9),ISBLANK(D9)),"",TEXT(C9,"000")&TEXT(D9,"000")) -> 041511 | I9: Mercury Vapor | J9: Dusk to 1 AM | K9: 7000 | L9: 419 | M9: 0 | N9: 0 | O9: 0 | P9: 16 | Q9: 0 | S9: 0 | T9: 0 | U9: 0 | V9: 4.61 | W9: 0 | Y9: 0 | Z9: 0 | AA9: 0 | AB9: 73.76 | AC9: 0 | AE9: =M9 -> 0 | AF9: 0 | AG9: 0 | AH9: 16 | AI9: 0 | AK9: 0 | AL9: 0 | AM9: 0 | AN9: 4.61 | AO9: 0 | AQ9: 0 | AR9: 0 | AS9: 0 | AT9: 73.76 | AU9: 0 | AV9: 0 | AW9: 80 | BA9: 5.87 | BD9: 1.19 | BH9: =ROUND((V9*$BE$2)+$BD9-BA9,2) -> 0 | BL9: 0 | BM9: 0 | BN9: =AM9*$BL$1 -> 0 | BO9: =AN9*$BL$1 -> 4.675462 | BP9: =AO9*$BL$1 -> 0 | BR9: 0 | BS9: 0 | BT9: 0 | BU9: -1.194538 | BV9: 0
B10: 2 | C10: 041 | D10: 611 | E10: 6 | G10: =IF(OR(ISBLANK(C10),ISBLANK(D10)),"",TEXT(C10,"000")&TEXT(D10,"000")) -> 041611 | I10: Single High-Pressure Sodium Vapor | J10: Wood Pole | K10: 100W | L10: 421 | M10: 0 | N10: 2 | O10: 0 | P10: 0 | Q10: 0 | S10: 0 | T10: =25.46-1.83 -> 23.63 | U10: 0 | V10: 0 | W10: 0 | Y10: 0 | Z10: 47.26 | AA10: 0 | AB10: 0 | AC10: 0 | AE10: 0 | AF10: 2 | AG10: 0 | AH10: 0 | AI10: 0 | AK10: 0 | AL10: 23.63 | AM10: 0 | AN10: 0 | AO10: 0 | AQ10: 0 | AR10: 47.26 | AS10: 0 | AT10: 0 | AU10: 0 | AV10: 0 | AW10: 40 | AY10: 26.42 | BD10: 0.6 | BF10: =ROUND((T10*$BE$2)+$BD10-AY10,2) -> -1.85 | BL10: 0 | BM10: 23.965546 | BN10: 0 | BO10: 0 | BP10: 0 | BR10: 0 | BS10: -2.454454 | BT10: 0 | BU10: 0 | BV10: 0
B11: 2 | C11: 041 | E11: =SUM(E7:E10) -> 66 | I11: Single Light Emitting Diode (LED) | J11: Wood Pole | K11: 70W | L11: 421L | M11: 0 | N11: 1 | O11: 0 | P11: 0 | Q11: 0 | R11: =IF(SUM(M11:Q11)>0,0,1) -> 0 | S11: 0 | T11: =T10 -> 23.63 | Y11: =IF(AND(M11<>0,S11=0),#VALUE!,M11*S11) -> 0 | Z11: =IF(AND(N11<>0,T11=0),#VALUE!,N11*T11) -> 23.63 | AA11: =IF(AND(O11<>0,U11=0),#VALUE!,O11*U11) -> 0 | AB11: =IF(AND(P11<>0,V11=0),#VALUE!,P11*V11) -> 0 | AC11: =IF(AND(Q11<>0,W11=0),#VALUE!,Q11*W11) -> 0 | AE11: =SUMIF($G:$G,TEXT(AE$3,"000")&TEXT($L11,"000"),$E:$E) -> 0 | AF11: =SUMIF($G:$G,TEXT(AF$3,"000")&TEXT($L11,"000"),$E:$E) -> 1 | AG11: =SUMIF($G:$G,TEXT(AG$3,"000")&TEXT($L11,"000"),$E:$E) -> 0 | AH11: =SUMIF($G:$G,TEXT(AH$3,"000")&TEXT($L11,"000"),$E:$E) -> 0 | AI11: =SUMIF($G:$G,TEXT(AI$3,"000")&TEXT($L11,"000"),$E:$E) -> 0 | AK11: =ROUND(S11*(1+AK$1),2) -> 0 | AL11: =AL10 -> 23.63 | AM11: 0 | AN11: 0 | AO11: 0 | AQ11: 0 | AR11: 23.63 | AS11: 0 | AT11: 0 | AU11: 0 | AW11: 26 | AY11: 26.21 | BD11: =ROUND(AW11*$BD$2,2)+ROUND(AW11*$BD$1,2) -> 0.38 | BF11: -1.86 | BL11: 0 | BM11: 23.965546 | BN11: =AM11*$BL$1 -> 0 | BO11: =AN11*$BL$1 -> 0 | BP11: =AO11*$BL$1 -> 0 | BR11: =BL11-AX11 -> 0 | BS11: =BM11-AY11 -> -2.244454 | BT11: =BN11-AZ11 -> 0 | BU11: =BO11-BA11 -> 0 | BV11: =BP11-BB11 -> 0
G12: =IF(OR(ISBLANK(C12),ISBLANK(D12)),"",TEXT(C12,"000")&TEXT(D12,"000")) ->  | I12: Single High-Pressure Sodium Vapor | J12: Wood Pole | K12: 100W | L12: 431 | M12: 0 | N12: 574 | O12: 2 | P12: 0 | Q12: 0 | S12: 0 | T12: =15.45-1.83 -> 13.62 | U12: 7.3 | V12: 0 | W12: 0 | Y12: 0 | Z12: =IF(AND(N12<>0,T12=0),#VALUE!,N12*T12) -> 7817.88 | AA12: 14.6 | AB12: 0 | AC12: 0 | AE12: 0 | AF12: =N12 -> 574 | AG12: =O12 -> 2 | AH12: =P12 -> 0 | AI12: =Q12 -> 0 | AK12: 0 | AL12: =ROUND(T12*(1+AL$1),2) -> 13.62 | AM12: 7.3 | AN12: 0 | AO12: 0 | AQ12: 0 | AR12: 7817.88 | AS12: 14.6 | AT12: 0 | AU12: 0 | AV12: =SUM(AQ12:AU12)-SUM(Y12:AC12) -> 0 | AW12: 40 | AY12: 16.27 | AZ12: 8 | BD12: 0.6 | BF12: -1.86 | BG12: =ROUND((U12*$BE$2)+$BD12-AZ12,2) -> 0 | BL12: 0 | BM12: 13.813404 | BN12: 7.40366 | BO12: 0 | BP12: 0 | BR12: 0 | BS12: -2.456596 | BT12: -0.59634 | BU12: 0 | BV12: 0
B13: 2 | C13: 042 | D13: 234 | E13: 108 | G13: 042234 | I13: Single Light Emitting Diode (LED) | J13: Wood Pole | K13: 70W | L13: 431L | M13: 0 | N13: 5308 | O13: 0 | P13: 0 | Q13: 0 | R13: =IF(SUM(M13:Q13)>0,0,1) -> 0 | S13: 0 | T13: =T12 -> 13.62 | U13: 0 | Y13: =IF(AND(M13<>0,S13=0),#VALUE!,M13*S13) -> 0 | Z13: =IF(AND(N13<>0,T13=0),#VALUE!,N13*T13) -> 72294.96 | AA13: =IF(AND(O13<>0,U13=0),#VALUE!,O13*U13) -> 0 | AB13: 0 | AC13: 0 | AE13: =SUMIF($G:$G,TEXT(AE$3,"000")&TEXT($L13,"000"),$E:$E) -> 0 | AF13: =SUMIF($G:$G,TEXT(AF$3,"000")&TEXT($L13,"000"),$E:$E) -> 5308 | AG13: =SUMIF($G:$G,TEXT(AG$3,"000")&TEXT($L13,"000"),$E:$E) -> 0 | AH13: =SUMIF($G:$G,TEXT(AH$3,"000")&TEXT($L13,"000"),$E:$E) -> 0 | AI13: =SUMIF($G:$G,TEXT(AI$3,"000")&TEXT($L13,"000"),$E:$E) -> 0 | AK13: 0 | AL13: =AL12 -> 13.62 | AM13: 0 | AN13: 0 | AO13: 0 | AQ13: 0 | AR13: 72294.96 | AS13: 0 | AT13: 0 | AU13: 0 | AW13: 26 | AY13: 16.06 | BD13: 0.38 | BF13: -1.87 | BL13: 0 | BM13: 13.813404 | BN13: 0 | BO13: 0 | BP13: 0 | BR13: 0 | BS13: -2.246596 | BT13: 0 | BU13: 0 | BV13: 0
B14: 2 | C14: 042 | D14: 421 | E14: 2 | G14: 042421 | I14: Single Light Emitting Diode (LED) | J14: Wood Pole | K14: 70W | L14: 431T | M14: =SUMIF($G:$G,TEXT(M$3,"000")&TEXT($L14,"000"),$E:$E) -> 0 | N14: 1866 | O14: 0 | P14: 0 | Q14: 0 | S14: 0 | T14: =T12-T95 -> 8.39 | V14: 0 | W14: 0 | Y14: =IF(AND(M14<>0,S14=0),#VALUE!,M14*S14) -> 0 | Z14: =IF(AND(N14<>0,T14=0),#VALUE!,N14*T14) -> 15655.74 | AA14: 0 | AB14: 0 | AC14: 0 | AE14: =M14 -> 0 | AF14: =N14 -> 1866 | AG14: =O14 -> 0 | AH14: =P14 -> 0 | AI14: =Q14 -> 0 | AK14: 0 | AL14: =AL13-AL95 -> 8.39 | AM14: 0 | AN14: 0 | AO14: 0 | AQ14: 0 | AR14: 15655.74 | AS14: 0 | AT14: 0 | AU14: 0 | AV14: =SUM(AQ14:AU14)-SUM(Y14:AC14) -> 0 | AW14: 26 | AY14: 10.76 | BD14: =ROUND(AW14*$BD$2,2)+ROUND(AW14*$BD$1,2) -> 0.38 | BF14: -1.87 | BL14: 0 | BM14: 8.509138 | BN14: =AM14*$BL$1 -> 0 | BO14: =AN14*$BL$1 -> 0 | BP14: =AO14*$BL$1 -> 0 | BR14: =BL14-AX14 -> 0 | BS14: =BM14-AY14 -> -2.250862 | BT14: =BN14-AZ14 -> 0 | BU14: =BO14-BA14 -> 0 | BV14: =BP14-BB14 -> 0
B15: 2 | C15: 042 | D15: 421L | E15: 1 | G15: 042421L | I15: Single High-Pressure Sodium Vapor | J15: Pedestal Base | K15: 100W | L15: 432 | M15: 0 | N15: 98 | O15: 4 | P15: 0 | Q15: 0 | S15: 0 | T15: 25.46 | U15: 7.3 | V15: 0 | W15: 0 | Y15: 0 | Z15: 2495.08 | AA15: 29.2 | AB15: 0 | AC15: 0 | AE15: 0 | AF15: =N15 -> 98 | AG15: =O15 -> 4 | AH15: =P15 -> 0 | AI15: =Q15 -> 0 | AK15: 0 | AL15: =ROUND(T15*(1+AL$1),2) -> 25.46 | AM15: 7.3 | AN15: 0 | AO15: 0 | AQ15: 0 | AR15: 2495.08 | AS15: 29.2 | AT15: 0 | AU15: 0 | AV15: =SUM(AQ15:AU15)-SUM(Y15:AC15) -> 0 | AW15: 40 | AY15: 26.42 | AZ15: 8 | BD15: 0.6 | BF15: 0 | BG15: =ROUND((U15*$BE$2)+$BD15-AZ15,2) -> 0 | BL15: 0 | BM15: 25.821532 | BN15: 7.40366 | BO15: 0 | BP15: 0 | BR15: 0 | BS15: -0.598468 | BT15: -0.59634 | BU15: 0 | BV15: 0
B16: 2 | C16: 042 | D16: 431 | E16: 574 | G16: 042431 | I16: Single Light Emitting Diode (LED) | J16: Pedestal Base | K16: 70W | L16: 432L | M16: 0 | N16: 136 | O16: 0 | P16: 0 | Q16: 0 | R16: =IF(SUM(M16:Q16)>0,0,1) -> 0 | S16: 0 | T16: =T15 -> 25.46 | U16: 0 | Y16: =IF(AND(M16<>0,S16=0),#VALUE!,M16*S16) -> 0 | Z16: 3462.56 | AA16: 0 | AB16: 0 | AC16: 0 | AE16: =SUMIF($G:$G,TEXT(AE$3,"000")&TEXT($L16,"000"),$E:$E) -> 0 | AF16: =SUMIF($G:$G,TEXT(AF$3,"000")&TEXT($L16,"000"),$E:$E) -> 136 | AG16: =SUMIF($G:$G,TEXT(AG$3,"000")&TEXT($L16,"000"),$E:$E) -> 0 | AH16: =SUMIF($G:$G,TEXT(AH$3,"000")&TEXT($L16,"000"),$E:$E) -> 0 | AI16: =SUMIF($G:$G,TEXT(AI$3,"000")&TEXT($L16,"000"),$E:$E) -> 0 | AK16: 0 | AL16: =AL15 -> 25.46 | AM16: 0 | AN16: 0 | AO16: 0 | AQ16: 0 | AR16: 3462.56 | AS16: 0 | AT16: 0 | AU16: 0 | AW16: 26 | AY16: 26.21 | BD16: =ROUND(AW16*$BD$2,2)+ROUND(AW16*$BD$1,2) -> 0.38 | BF16: -0.01 | BL16: 0 | BM16: 25.821532 | BN16: =AM16*$BL$1 -> 0 | BO16: 0 | BP16: 0 | BR16: =BL16-AX16 -> 0 | BS16: -0.388468 | BT16: 0 | BU16: 0 | BV16: 0
B17: 2 | C17: 042 | D17: 431L | E17: =5308 -> 5308 | G17: 042431L | I17: Single Light Emitting Diode (LED) | J17: Pedestal Base | K17: 70W | L17: 432T | M17: 0 | N17: 29 | O17: 0 | P17: 0 | Q17: 0 | S17: 0 | T17: =T15-T95 -> 20.23 | V17: 0 | W17: 0 | Y17: 0 | Z17: 586.67 | AA17: 0 | AB17: 0 | AC17: 0 | AE17: =M17 -> 0 | AF17: =N17 -> 29 | AG17: =O17 -> 0 | AH17: =P17 -> 0 | AI17: =Q17 -> 0 | AK17: 0 | AL17: =AL16-AL95 -> 20.23 | AM17: 0 | AN17: 0 | AO17: 0 | AQ17: 0 | AR17: 586.67 | AS17: 0 | AT17: 0 | AU17: 0 | AV17: =SUM(AQ17:AU17)-SUM(Y17:AC17) -> 0 | AW17: 26 | AY17: 20.91 | BD17: =ROUND(AW17*$BD$2,2)+ROUND(AW17*$BD$1,2) -> 0.38 | BF17: -0.01 | BL17: 0 | BM17: 20.517266 | BN17: 0 | BO17: 0 | BP17: 0 | BR17: 0 | BS17: -0.392734 | BT17: 0 | BU17: 0 | BV17: 0
B18: 2 | C18: 042 | D18: 431T | E18: =1866 -> 1866 | G18: 042431T | I18: Single High-Pressure Sodium Vapor | J18: Direct Burial | K18: 100W | L18: 433 | M18: 0 | N18: 6 | O18: 10 | P18: 0 | Q18: 0 | S18: 0 | T18: 25.46 | U18: 7.3 | V18: 0 | W18: 0 | Y18: 0 | Z18: 152.76 | AA18: 73 | AB18: 0 | AC18: 0 | AE18: 0 | AF18: =N18 -> 6 | AG18: =O18 -> 10 | AH18: =P18 -> 0 | AI18: =Q18 -> 0 | AK18: 0 | AL18: 25.46 | AM18: 7.3 | AN18: 0 | AO18: 0 | AQ18: 0 | AR18: 152.76 | AS18: 73 | AT18: 0 | AU18: 0 | AV18: =SUM(AQ18:AU18)-SUM(Y18:AC18) -> 0 | AW18: 40 | AY18: 26.42 | AZ18: 8 | BD18: 0.6 | BF18: 0 | BG18: =ROUND((U18*$BE$2)+$BD18-AZ18,2) -> 0 | BL18: 0 | BM18: 25.821532 | BN18: 7.40366 | BO18: 0 | BP18: 0 | BR18: 0 | BS18: -0.598468 | BT18: -0.59634 | BU18: 0 | BV18: 0
B19: 2 | C19: 042 | D19: 432 | E19: 98 | G19: 042432 | I19: Single Light Emitting Diode (LED) | J19: Direct Burial | K19: 70W | L19: 433L | M19: 0 | N19: 39 | O19: 0 | P19: 0 | Q19: 0 | R19: =IF(SUM(M19:Q19)>0,0,1) -> 0 | S19: 0 | T19: =T18 -> 25.46 | U19: 0 | Y19: =IF(AND(M19<>0,S19=0),#VALUE!,M19*S19) -> 0 | Z19: 992.94 | AA19: 0 | AB19: 0 | AC19: 0 | AE19: =SUMIF($G:$G,TEXT(AE$3,"000")&TEXT($L19,"000"),$E:$E) -> 0 | AF19: =SUMIF($G:$G,TEXT(AF$3,"000")&TEXT($L19,"000"),$E:$E) -> 39 | AG19: =SUMIF($G:$G,TEXT(AG$3,"000")&TEXT($L19,"000"),$E:$E) -> 0 | AH19: =SUMIF($G:$G,TEXT(AH$3,"000")&TEXT($L19,"000"),$E:$E) -> 0 | AI19: =SUMIF($G:$G,TEXT(AI$3,"000")&TEXT($L19,"000"),$E:$E) -> 0 | AK19: 0 | AL19: =AL18 -> 25.46 | AM19: 0 | AN19: 0 | AO19: 0 | AQ19: 0 | AR19: 992.94 | AS19: 0 | AT19: 0 | AU19: 0 | AW19: 26 | AY19: 26.21 | BD19: =ROUND(AW19*$BD$2,2)+ROUND(AW19*$BD$1,2) -> 0.38 | BF19: -0.01 | BL19: 0 | BM19: 25.821532 | BN19: =AM19*$BL$1 -> 0 | BO19: 0 | BP19: 0 | BR19: =BL19-AX19 -> 0 | BS19: -0.388468 | BT19: 0 | BU19: 0 | BV19: 0
B20: 2 | C20: 042 | D20: 432L | E20: 136 | G20: 042432L | I20: Single Light Emitting Diode (LED) | J20: Direct Burial | K20: 70W | L20: 433T | M20: 0 | N20: 65 | O20: 0 | P20: 0 | Q20: 0 | S20: 0 | T20: =T18-T95 -> 20.23 | V20: 0 | W20: 0 | Y20: 0 | Z20: 1314.95 | AA20: 0 | AB20: 0 | AC20: 0 | AE20: =M20 -> 0 | AF20: =N20 -> 65 | AG20: =O20 -> 0 | AH20: =P20 -> 0 | AI20: =Q20 -> 0 | AK20: 0 | AL20: =AL19-AL95 -> 20.23 | AM20: 0 | AN20: 0 | AO20: 0 | AQ20: 0 | AR20: 1314.95 | AS20: 0 | AT20: 0 | AU20: 0 | AV20: =SUM(AQ20:AU20)-SUM(Y20:AC20) -> 0 | AW20: 26 | AY20: 20.91 | BD20: =ROUND(AW20*$BD$2,2)+ROUND(AW20*$BD$1,2) -> 0.38 | BF20: -0.01 | BL20: 0 | BM20: 20.517266 | BN20: 0 | BO20: 0 | BP20: 0 | BR20: 0 | BS20: -0.392734 | BT20: 0 | BU20: 0 | BV20: 0
B21: 2 | C21: 042 | D21: 432T | E21: 29 | G21: 042432T | I21: Single High-Pressure Sodium Vapor | J21: Direct Burial | K21: 100W | L21: 434 | M21: 0 | N21: 2470 | O21: 0 | P21: 0 | Q21: 0 | S21: 0 | T21: 14.36 | U21: 0 | V21: 0 | W21: 0 | Y21: 0 | Z21: 35469.2 | AA21: 0 | AB21: 0 | AC21: 0 | AE21: 0 | AF21: =N21 -> 2470 | AG21: =O21 -> 0 | AH21: =P21 -> 0 | AI21: =Q21 -> 0 | AK21: 0 | AL21: 14.36 | AM21: 0 | AN21: 0 | AO21: 0 | AQ21: 0 | AR21: 35469.2 | AS21: 0 | AT21: 0 | AU21: 0 | AV21: =SUM(AQ21:AU21)-SUM(Y21:AC21) -> 0 | AW21: 40 | AY21: 15.16 | BD21: 0.6 | BF21: 0 | BL21: 0 | BM21: 14.563912 | BN21: 0 | BO21: 0 | BP21: 0 | BR21: 0 | BS21: -0.596088 | BT21: 0 | BU21: 0 | BV21: 0
B22: 2 | C22: 042 | D22: 433 | E22: 6 | G22: 042433 | I22: Single Light Emitting Diode (LED) | J22: Direct Burial | K22: 70W | L22: 434L | M22: 0 | N22: 465 | O22: 0 | P22: 0 | Q22: 0 | R22: =IF(SUM(M22:Q22)>0,0,1) -> 0 | S22: 0 | T22: =T21 -> 14.36 | U22: 0 | Y22: =IF(AND(M22<>0,S22=0),#VALUE!,M22*S22) -> 0 | Z22: =IF(AND(N22<>0,T22=0),#VALUE!,N22*T22) -> 6677.4 | AA22: =IF(AND(O22<>0,U22=0),#VALUE!,O22*U22) -> 0 | AB22: =IF(AND(P22<>0,V22=0),#VALUE!,P22*V22) -> 0 | AC22: =IF(AND(Q22<>0,W22=0),#VALUE!,Q22*W22) -> 0 | AE22: =SUMIF($G:$G,TEXT(AE$3,"000")&TEXT($L22,"000"),$E:$E) -> 0 | AF22: =SUMIF($G:$G,TEXT(AF$3,"000")&TEXT($L22,"000"),$E:$E) -> 465 | AG22: =SUMIF($G:$G,TEXT(AG$3,"000")&TEXT($L22,"000"),$E:$E) -> 0 | AH22: =SUMIF($G:$G,TEXT(AH$3,"000")&TEXT($L22,"000"),$E:$E) -> 0 | AI22: =SUMIF($G:$G,TEXT(AI$3,"000")&TEXT($L22,"000"),$E:$E) -> 0 | AK22: 0 | AL22: =AL21 -> 14.36 | AM22: 0 | AN22: 0 | AO22: 0 | AQ22: 0 | AR22: 6677.4 | AS22: 0 | AT22: 0 | AU22: 0 | AW22: 26 | AY22: 14.95 | BD22: =ROUND(AW22*$BD$2,2)+ROUND(AW22*$BD$1,2) -> 0.38 | BF22: -0.01 | BL22: 0 | BM22: 14.563912 | BN22: =AM22*$BL$1 -> 0 | BO22: =AN22*$BL$1 -> 0 | BP22: =AO22*$BL$1 -> 0 | BR22: =BL22-AX22 -> 0 | BS22: =BM22-AY22 -> -0.386088 | BT22: =BN22-AZ22 -> 0 | BU22: =BO22-BA22 -> 0 | BV22: =BP22-BB22 -> 0
B23: 2 | C23: 042 | D23: 433L | E23: 39 | G23: 042433L | I23: Single High-Pressure Sodium Vapor | J23: No Pole / Dusk to Dawn (046) | K23: 100W | L23: 435 | M23: 0 | N23: 258 | O23: 35 | P23: 0 | Q23: 18 | S23: 0 | T23: 13.62 | U23: 7.3 | V23: 0 | W23: 4.88 | Y23: 0 | Z23: 3513.96 | AA23: 255.5 | AB23: 0 | AC23: 87.84 | AE23: 0 | AF23: =N23 -> 258 | AG23: =O23 -> 35 | AH23: =P23 -> 0 | AI23: =Q23 -> 18 | AK23: 0 | AL23: 13.62 | AM23: 7.3 | AN23: 0 | AO23: 4.88 | AQ23: 0 | AR23: 3513.96 | AS23: 255.5 | AT23: 0 | AU23: 87.84 | AV23: =SUM(AQ23:AU23)-SUM(Y23:AC23) -> 0 | AW23: 40 | AY23: 14.41 | AZ23: 8 | BB23: 5.55 | BD23: 0.6 | BF23: 0 | BG23: =ROUND((U23*$BE$2)+$BD23-AZ23,2) -> 0 | BI23: =ROUND((W23*$BE$2)+$BD23-BB23,2) -> 0 | BL23: 0 | BM23: 13.813404 | BN23: 7.40366 | BO23: 0 | BP23: 4.949296 | BR23: 0 | BS23: -0.596596 | BT23: -0.59634 | BU23: 0 | BV23: -0.600704
B24: 2 | C24: 042 | D24: 433T | E24: 65 | G24: 042433T | I24: Single Light Emitting Diode (LED) | J24: No Pole / Dusk to Dawn (046) | K24: 70W | L24: 435L | M24: =SUMIF($G:$G,TEXT(M$3,"000")&TEXT($L24,"000"),$E:$E) -> 0 | N24: 2519 | O24: 0 | P24: 0 | Q24: 0 | R24: =IF(SUM(M24:Q24)>0,0,1) -> 0 | S24: 0 | T24: =T23 -> 13.62 | U24: 0 | Y24: =IF(AND(M24<>0,S24=0),#VALUE!,M24*S24) -> 0 | Z24: 34308.78 | AA24: 0 | AB24: 0 | AC24: 0 | AE24: =SUMIF($G:$G,TEXT(AE$3,"000")&TEXT($L24,"000"),$E:$E) -> 0 | AF24: =SUMIF($G:$G,TEXT(AF$3,"000")&TEXT($L24,"000"),$E:$E) -> 2519 | AG24: =SUMIF($G:$G,TEXT(AG$3,"000")&TEXT($L24,"000"),$E:$E) -> 0 | AH24: =SUMIF($G:$G,TEXT(AH$3,"000")&TEXT($L24,"000"),$E:$E) -> 0 | AI24: =SUMIF($G:$G,TEXT(AI$3,"000")&TEXT($L24,"000"),$E:$E) -> 0 | AK24: 0 | AL24: =AL23 -> 13.62 | AM24: 0 | AN24: 0 | AO24: 0 | AQ24: 0 | AR24: 34308.78 | AS24: 0 | AT24: 0 | AU24: 0 | AW24: 26 | AY24: 14.2 | BD24: =ROUND(AW24*$BD$2,2)+ROUND(AW24*$BD$1,2) -> 0.38 | BF24: -0.01 | BL24: 0 | BM24: 13.813404 | BN24: =AM24*$BL$1 -> 0 | BO24: 0 | BP24: 0 | BR24: =BL24-AX24 -> 0 | BS24: -0.386596 | BT24: 0 | BU24: 0 | BV24: 0
B25: 2 | C25: 042 | D25: 434 | E25: =2470 -> 2470 | G25: 042434 | I25: Single Light Emitting Diode (LED) | J25: No Pole / Dusk to Dawn (046) | K25: 70W | L25: 435T | M25: 0 | N25: 1841 | O25: 0 | P25: 0 | Q25: 0 | S25: 0 | T25: =T23-T95 -> 8.39 | V25: 0 | Y25: 0 | Z25: 15445.99 | AA25: 0 | AB25: 0 | AC25: 0 | AE25: =M25 -> 0 | AF25: =N25 -> 1841 | AG25: =O25 -> 0 | AH25: =P25 -> 0 | AI25: =Q25 -> 0 | AK25: 0 | AL25: =AL24-AL95 -> 8.39 | AM25: 0 | AN25: 0 | AO25: 0 | AQ25: 0 | AR25: 15445.99 | AS25: 0 | AT25: 0 | AU25: 0 | AV25: =SUM(AQ25:AU25)-SUM(Y25:AC25) -> 0 | AW25: 26 | AY25: 8.9 | BD25: =ROUND(AW25*$BD$2,2)+ROUND(AW25*$BD$1,2) -> 0.38 | BF25: -0.01 | BL25: 0 | BM25: 8.509138 | BN25: 0 | BO25: 0 | BP25: 0 | BR25: 0 | BS25: -0.390862 | BT25: 0 | BU25: 0 | BV25: 0
B26: 2 | C26: 042 | D26: 434L | E26: =465 -> 465 | G26: 042434L | I26: Single High-Pressure Sodium Vapor | J26: Developer Contributed | K26: 100W | L26: 436 | M26: 0 | N26: 135 | O26: 0 | P26: 0 | Q26: 0 | S26: 0 | T26: 15.45 | U26: 0 | V26: 0 | W26: 0 | Y26: 0 | Z26: 2085.75 | AA26: 0 | AB26: 0 | AC26: 0 | AE26: 0 | AF26: =N26 -> 135 | AG26: =O26 -> 0 | AH26: =P26 -> 0 | AI26: =Q26 -> 0 | AK26: 0 | AL26: 15.45 | AM26: 0 | AN26: 0 | AO26: 0 | AQ26: 0 | AR26: 2085.75 | AS26: 0 | AT26: 0 | AU26: 0 | AV26: =SUM(AQ26:AU26)-SUM(Y26:AC26) -> 0 | AW26: 40 | AY26: 16.27 | BD26: 0.6 | BF26: 0 | BL26: 0 | BM26: 15.66939 | BN26: 0 | BO26: 0 | BP26: 0 | BR26: 0 | BS26: -0.60061 | BT26: 0 | BU26: 0 | BV26: 0
B27: 2 | C27: 042 | D27: 435 | E27: 258 | G27: 042435 | I27: Single Light Emitting Diode (LED) | J27: Developer Contributed | K27: 70W | L27: 436L | M27: 0 | N27: 95 | O27: 0 | P27: 0 | Q27: 0 | R27: =IF(SUM(M27:Q27)>0,0,1) -> 0 | S27: 0 | T27: =T26 -> 15.45 | U27: 0 | Y27: =IF(AND(M27<>0,S27=0),#VALUE!,M27*S27) -> 0 | Z27: 1467.75 | AA27: 0 | AB27: 0 | AC27: 0 | AE27: =SUMIF($G:$G,TEXT(AE$3,"000")&TEXT($L27,"000"),$E:$E) -> 0 | AF27: =SUMIF($G:$G,TEXT(AF$3,"000")&TEXT($L27,"000"),$E:$E) -> 95 | AG27: =SUMIF($G:$G,TEXT(AG$3,"000")&TEXT($L27,"000"),$E:$E) -> 0 | AH27: =SUMIF($G:$G,TEXT(AH$3,"000")&TEXT($L27,"000"),$E:$E) -> 0 | AI27: =SUMIF($G:$G,TEXT(AI$3,"000")&TEXT($L27,"000"),$E:$E) -> 0 | AK27: 0 | AL27: =AL26 -> 15.45 | AM27: 0 | AN27: 0 | AO27: 0 | AQ27: 0 | AR27: 1467.75 | AS27: 0 | AT27: 0 | AU27: 0 | AW27: 26 | AY27: 16.06 | BD27: =ROUND(AW27*$BD$2,2)+ROUND(AW27*$BD$1,2) -> 0.38 | BF27: -0.01 | BL27: 0 | BM27: 15.66939 | BN27: =AM27*$BL$1 -> 0 | BO27: 0 | BP27: 0 | BR27: =BL27-AX27 -> 0 | BS27: -0.39061 | BT27: 0 | BU27: 0 | BV27: 0
B28: 2 | C28: 042 | D28: 435L | E28: =2519 -> 2519 | G28: 042435L | I28: Single Light Emitting Diode (LED) | J28: Developer Contributed | K28: 70W | L28: 436T | M28: 0 | N28: 271 | O28: 0 | P28: 0 | Q28: 0 | S28: 0 | T28: =T26-T95 -> 10.22 | U28: 0 | V28: 0 | W28: 0 | Y28: 0 | Z28: 2769.62 | AA28: 0 | AB28: 0 | AC28: 0 | AE28: =M28 -> 0 | AF28: =N28 -> 271 | AG28: =O28 -> 0 | AH28: =P28 -> 0 | AI28: =Q28 -> 0 | AK28: 0 | AL28: =AL27-AL95 -> 10.22 | AM28: 0 | AN28: 0 | AO28: 0 | AQ28: 0 | AR28: 2769.62 | AS28: 0 | AT28: 0 | AU28: 0 | AV28: =SUM(AQ28:AU28)-SUM(Y28:AC28) -> 0 | AW28: 26 | AY28: 10.76 | BD28: =ROUND(AW28*$BD$2,2)+ROUND(AW28*$BD$1,2) -> 0.38 | BF28: -0.01 | BL28: 0 | BM28: 10.365124 | BN28: 0 | BO28: 0 | BP28: 0 | BR28: 0 | BS28: -0.394876 | BT28: 0 | BU28: 0 | BV28: 0
B29: 2 | C29: 042 | D29: 435T | E29: =1841 -> 1841 | G29: 042435T | I29: Decorative Sodium Vapor | J29: No Pole | K29: Kim Light 100W | L29: 438 | M29: 0 | N29: 10 | O29: 0 | P29: 0 | Q29: 0 | S29: 0 | T29: 14.36 | U29: 0 | V29: 0 | W29: 0 | Y29: 0 | Z29: 143.6 | AA29: 0 | AB29: 0 | AC29: 0 | AE29: 0 | AF29: =N29 -> 10 | AG29: 0 | AH29: 0 | AI29: 0 | AK29: 0 | AL29: =ROUND(T29*(1+AL$1),2) -> 14.36 | AM29: 0 | AN29: 0 | AO29: 0 | AQ29: 0 | AR29: 143.6 | AS29: 0 | AT29: 0 | AU29: 0 | AV29: =SUM(AQ29:AU29)-SUM(Y29:AC29) -> 0 | AW29: 40 | AY29: 15.16 | BD29: 0.6 | BF29: 0 | BL29: 0 | BM29: 14.563912 | BN29: 0 | BO29: 0 | BP29: 0 | BR29: 0 | BS29: -0.596088 | BT29: 0 | BU29: 0 | BV29: 0
B30: 2 | C30: 042 | D30: 436 | E30: 135 | G30: 042436 | I30: Double High-Pressure Sodium Vapor | J30: Wood Pole | K30: 100W | L30: 441 | M30: 0 | N30: 0 | O30: 0 | P30: 0 | Q30: 0 | S30: 0 | T30: =27.98-1.83 -> 26.15 | U30: 12.82 | V30: 0 | W30: 0 | Y30: 0 | Z30: 0 | AA30: 0 | AB30: 0 | AC30: 0 | AE30: 0 | AF30: 0 | AG30: 0 | AH30: 0 | AI30: 0 | AK30: 0 | AL30: 26.15 | AM30: 12.82 | AN30: 0 | AO30: 0 | AQ30: 0 | AR30: 0 | AS30: 0 | AT30: 0 | AU30: 0 | AV30: =SUM(AQ30:AU30)-SUM(Y30:AC30) -> 0 | AW30: 80 | AY30: 29.57 | AZ30: 14.19 | BD30: 1.19 | BF30: -1.86 | BG30: =ROUND((U30*$BE$2)+$BD30-AZ30,2) -> 0 | BL30: 0 | BM30: 26.52133 | BN30: 13.002044 | BO30: 0 | BP30: 0 | BR30: 0 | BS30: -3.04867 | BT30: -1.187956 | BU30: 0 | BV30: 0
B31: 2 | C31: 042 | D31: 436L | E31: 95 | G31: 042436L | I31: Double Light Emitting Diode (LED) | J31: Wood Pole | K31: 70W | L31: 441L | M31: 0 | N31: 23 | O31: 0 | P31: 0 | Q31: 0 | R31: =IF(SUM(M31:Q31)>0,0,1) -> 0 | S31: 0 | T31: =T30 -> 26.15 | U31: 0 | Y31: =IF(AND(M31<>0,S31=0),#VALUE!,M31*S31) -> 0 | Z31: 601.45 | AA31: 0 | AB31: 0 | AC31: 0 | AE31: =SUMIF($G:$G,TEXT(AE$3,"000")&TEXT($L31,"000"),$E:$E) -> 0 | AF31: 23 | AG31: 0 | AH31: 0 | AI31: 0 | AK31: 0 | AL31: =AL30 -> 26.15 | AM31: 0 | AN31: 0 | AO31: 0 | AQ31: 0 | AR31: 601.45 | AS31: 0 | AT31: 0 | AU31: 0 | AW31: 52 | AY31: 29.16 | BD31: =ROUND(AW31*$BD$2,2)+ROUND(AW31*$BD$1,2) -> 0.78 | BF31: -1.86 | BL31: 0 | BM31: 26.52133 | BN31: =AM31*$BL$1 -> 0 | BO31: 0 | BP31: 0 | BR31: =BL31-AX31 -> 0 | BS31: -2.63867 | BT31: 0 | BU31: 0 | BV31: 0
B32: 2 | C32: 042 | D32: 436T | E32: 271 | G32: 042436T | I32: Double Light Emitting Diode (LED) | J32: Wood Pole | K32: 70W | L32: 441T | M32: 0 | N32: 11 | O32: 0 | P32: 0 | Q32: 0 | R32: =IF(SUM(M32:Q32)>0,0,1) -> 0 | T32: =T30-T95-T95 -> 15.69 | Y32: 0 | Z32: 172.59 | AA32: 0 | AB32: 0 | AC32: 0 | AE32: 0 | AF32: 11 | AG32: 0 | AH32: 0 | AI32: 0 | AK32: 0 | AL32: =AL30-AL95-AL95 -> 15.69 | AM32: 0 | AN32: 0 | AO32: 0 | AQ32: 0 | AR32: 172.59 | AS32: 0 | AT32: 0 | AU32: 0 | AW32: 52 | AY32: 18.55 | BD32: =ROUND(AW32*$BD$2,2)+ROUND(AW32*$BD$1,2) -> 0.78 | BF32: -1.86 | BL32: 0 | BM32: 15.912798 | BN32: 0 | BO32: 0 | BP32: 0 | BR32: 0 | BS32: -2.637202 | BT32: 0 | BU32: 0 | BV32: 0
B33: 2 | C33: 042 | D33: 438 | E33: 10 | G33: 042438 | I33: Double High-Pressure Sodium Vapor | J33: Pedestal Base | K33: 100W | L33: 442 | M33: 0 | N33: 0 | O33: 0 | P33: 0 | Q33: 0 | R33: =IF(SUM(M33:Q33)>0,0,1) -> 1 | S33: 0 | T33: 39.64 | U33: 0 | V33: 0 | W33: 0 | Z33: 0 | AC33: 0 | AE33: 0 | AF33: 0 | AG33: 0 | AH33: 0 | AI33: 0 | AK33: 0 | AL33: =ROUND(T33*(1+AL$1),2) -> 39.64 | AM33: 0 | AN33: 0 | AO33: 0 | AR33: =IF(AND(AF33<>0,AL33=0),#VALUE!,AF33*AL33) -> 0 | AW33: 80 | AY33: 41.39 | BD33: =ROUND(AW33*$BD$2,2)+ROUND(AW33*$BD$1,2) -> 1.19 | BF33: 0 | BL33: 0 | BM33: 40.202888 | BN33: 0 | BO33: 0 | BP33: 0 | BR33: 0 | BS33: -1.187112 | BT33: 0 | BU33: 0 | BV33: 0
B34: 2 | C34: 042 | D34: 441 | E34: 0 | G34: 042441 | I34: Decorative Sodium Vapor | J34: Direct Burial | K34: Granville 100W | L34: 474 | M34: =SUMIF($G:$G,TEXT(M$3,"000")&TEXT($L34,"000"),$E:$E) -> 0 | N34: 247 | O34: 0 | P34: 0 | Q34: 0 | S34: 0 | T34: 25.01 | U34: 0 | V34: 0 | W34: 0 | Y34: 0 | Z34: 6177.47 | AA34: 0 | AB34: 0 | AC34: 0 | AE34: 0 | AF34: =N34 -> 247 | AG34: =O34 -> 0 | AH34: =P34 -> 0 | AI34: =Q34 -> 0 | AK34: 0 | AL34: 25.01 | AM34: 0 | AN34: 0 | AO34: 0 | AQ34: =IF(AND(AE34<>0,AK34=0),#VALUE!,AE34*AK34) -> 0 | AR34: 6177.47 | AS34: =IF(AND(AG34<>0,AM34=0),#VALUE!,AG34*AM34) -> 0 | AT34: 0 | AU34: 0 | AV34: =SUM(AQ34:AU34)-SUM(Y34:AC34) -> 0 | AW34: 40 | AY34: 25.97 | BD34: 0.6 | BF34: 0 | BL34: 0 | BM34: 25.365142 | BN34: 0 | BO34: 0 | BP34: 0 | BR34: 0 | BS34: -0.604858 | BT34: 0 | BU34: 0 | BV34: 0
B35: 2 | C35: 042 | D35: 441L | E35: 23 | G35: 042441L | I35: Decorative Light Emitting Diode (LED) | J35: Direct Burial | K35: Granville 70W | L35: 474L | M35: 0 | N35: 60 | O35: 0 | P35: 0 | Q35: 0 | R35: =IF(SUM(M35:Q35)>0,0,1) -> 0 | S35: 0 | T35: =T34 -> 25.01 | U35: 0 | Y35: =IF(AND(M35<>0,S35=0),#VALUE!,M35*S35) -> 0 | Z35: =IF(AND(N35<>0,T35=0),#VALUE!,N35*T35) -> 1500.6 | AA35: =IF(AND(O35<>0,U35=0),#VALUE!,O35*U35) -> 0 | AB35: =IF(AND(P35<>0,V35=0),#VALUE!,P35*V35) -> 0 | AC35: =IF(AND(Q35<>0,W35=0),#VALUE!,Q35*W35) -> 0 | AE35: =SUMIF($G:$G,TEXT(AE$3,"000")&TEXT($L35,"000"),$E:$E) -> 0 | AF35: 60 | AG35: 0 | AH35: 0 | AI35: 0 | AK35: 0 | AL35: =AL34 -> 25.01 | AM35: 0 | AN35: 0 | AO35: 0 | AQ35: =IF(AND(AE35<>0,AK35=0),#VALUE!,AE35*AK35) -> 0 | AR35: 1500.6 | AS35: 0 | AT35: 0 | AU35: 0 | AW35: 26 | AY35: 25.76 | BD35: =ROUND(AW35*$BD$2,2)+ROUND(AW35*$BD$1,2) -> 0.38 | BF35: -0.01 | BL35: 0 | BM35: 25.365142 | BN35: =AM35*$BL$1 -> 0 | BO35: 0 | BP35: 0 | BR35: =BL35-AX35 -> 0 | BS35: -0.394858 | BT35: 0 | BU35: 0 | BV35: 0
B36: 2 | C36: 042 | D36: 441T | E36: 11 | G36: 042441T | I36: Decorative Sodium Vapor | J36: No Pole | K36: Granville 100W | L36: 475 | M36: 0 | N36: 1 | O36: 0 | P36: 0 | Q36: 0 | R36: =IF(SUM(M36:Q36)>0,0,1) -> 0 | S36: 0 | T36: 19.2 | U36: 0 | V36: 0 | W36: 0 | Z36: 19.2 | AE36: 0 | AF36: 1 | AG36: 0 | AH36: 0 | AI36: 0 | AK36: 0 | AL36: =ROUND(T36*(1+AL$1),2) -> 19.2 | AM36: =ROUND(U36*(1+AM$1),2) -> 0 | AN36: =ROUND(V36*(1+AN$1),2) -> 0 | AO36: =ROUND(W36*(1+AO$1),2) -> 0 | AR36: 19.2 | AW36: 40 | AY36: 20.07 | BD36: =ROUND(AW36*$BD$2,2)+ROUND(AW36*$BD$1,2) -> 0.6 | BF36: 0 | BL36: 0 | BM36: 19.47264 | BN36: 0 | BO36: 0 | BP36: 0 | BR36: 0 | BS36: -0.59736 | BT36: 0 | BU36: 0 | BV36: 0
B37: 2 | C37: 042 | D37: 442 | E37: 0 | G37: 042442 | I37: Decorative Sodium Vapor (Capital Only) | J37: Direct Burial | K37: Granville 100W | L37: 478 | M37: 0 | N37: 0 | O37: 0 | P37: 0 | Q37: 0 | S37: 0 | T37: 17.7 | U37: 0 | V37: 0 | W37: 0 | Y37: 0 | Z37: 0 | AA37: 0 | AB37: 0 | AC37: 0 | AE37: 0 | AF37: =N37 -> 0 | AG37: 0 | AH37: 0 | AI37: 0 | AK37: =ROUND(S37*(1+AK$1),2) -> 0 | AL37: 17.7 | AM37: 0 | AN37: 0 | AO37: 0 | AQ37: =IF(AND(AE37<>0,AK37=0),#VALUE!,AE37*AK37) -> 0 | AR37: 0 | AS37: =IF(AND(AG37<>0,AM37=0),#VALUE!,AG37*AM37) -> 0 | AT37: =IF(AND(AH37<>0,AN37=0),#VALUE!,AH37*AN37) -> 0 | AU37: =IF(AND(AI37<>0,AO37=0),#VALUE!,AI37*AO37) -> 0 | AV37: =SUM(AQ37:AU37)-SUM(Y37:AC37) -> 0 | AY37: 17.95 | BD37: 0 | BF37: 0 | BL37: =AK37*$BL$1 -> 0 | BM37: =AL37*$BL$1 -> 17.95134 | BN37: 0 | BO37: 0 | BP37: 0 | BR37: 0 | BS37: 0.00134 | BT37: 0 | BU37: 0 | BV37: 0
B38: 2 | C38: 042 | D38: 474 | E38: 247 | G38: 042474 | I38: Decorative Sodium Vapor | J38: Direct Burial | K38: Post Top 100W | L38: 484 | M38: 0 | N38: 123 | O38: 0 | P38: 0 | Q38: 0 | S38: 0 | T38: 23.81 | U38: 0 | V38: 0 | W38: 0 | Y38: 0 | Z38: 2928.63 | AA38: 0 | AB38: 0 | AC38: 0 | AE38: 0 | AF38: 123 | AG38: 0 | AH38: 0 | AI38: 0 | AK38: 0 | AL38: 23.81 | AM38: 0 | AN38: 0 | AO38: 0 | AQ38: 0 | AR38: 2928.63 | AS38: 0 | AT38: 0 | AU38: 0 | AV38: =SUM(AQ38:AU38)-SUM(Y38:AC38) -> 0 | AW38: 40 | AY38: 24.75 | BD38: 0.6 | BF38: 0 | BL38: 0 | BM38: 24.148102 | BN38: 0 | BO38: 0 | BP38: 0 | BR38: 0 | BS38: -0.601898 | BT38: 0 | BU38: 0 | BV38: 0
B39: 2 | C39: 042 | D39: 474L | E39: =60 -> 60 | G39: 042474L | I39: Decorative Light Emitting Diode (LED) | J39: Direct Burial | K39: Post Top 70W | L39: 484L | M39: 0 | N39: 38 | O39: 0 | P39: 0 | Q39: 0 | R39: =IF(SUM(M39:Q39)>0,0,1) -> 0 | S39: 0 | T39: =T38 -> 23.81 | U39: 0 | Y39: =IF(AND(M39<>0,S39=0),#VALUE!,M39*S39) -> 0 | Z39: =IF(AND(N39<>0,T39=0),#VALUE!,N39*T39) -> 904.78 | AA39: =IF(AND(O39<>0,U39=0),#VALUE!,O39*U39) -> 0 | AB39: =IF(AND(P39<>0,V39=0),#VALUE!,P39*V39) -> 0 | AC39: =IF(AND(Q39<>0,W39=0),#VALUE!,Q39*W39) -> 0 | AE39: =SUMIF($G:$G,TEXT(AE$3,"000")&TEXT($L39,"000"),$E:$E) -> 0 | AF39: 38 | AG39: 0 | AH39: 0 | AI39: 0 | AK39: =ROUND(S39*(1+AK$1),2) -> 0 | AL39: =AL38 -> 23.81 | AM39: 0 | AN39: 0 | AO39: 0 | AQ39: 0 | AR39: 904.78 | AS39: 0 | AT39: 0 | AU39: 0 | AW39: 26 | AY39: 24.54 | BD39: =ROUND(AW39*$BD$2,2)+ROUND(AW39*$BD$1,2) -> 0.38 | BF39: -0.01 | BL39: 0 | BM39: 24.148102 | BN39: =AM39*$BL$1 -> 0 | BO39: 0 | BP39: 0 | BR39: =BL39-AX39 -> 0 | BS39: =BM39-AY39 -> -0.391898 | BT39: =BN39-AZ39 -> 0 | BU39: =BO39-BA39 -> 0 | BV39: =BP39-BB39 -> 0
B40: 2 | C40: 042 | D40: 475 | E40: 1 | G40: 042475 | I40: LED (Dusk to Dawn) | J40: Dusk to Dawn | K40: 100W | L40: 495 | M40: 0 | N40: 0 | O40: 0 | P40: 0 | Q40: 36 | S40: 0 | T40: 0 | U40: 0 | V40: 0 | W40: 4.88 | Y40: 0 | Z40: 0 | AA40: 0 | AB40: 0 | AC40: 175.68 | AE40: 0 | AF40: 0 | AG40: 0 | AH40: 0 | AI40: 36 | AK40: 0 | AL40: 0 | AM40: 0 | AN40: 0 | AO40: 4.88 | AQ40: 0 | AR40: 0 | AS40: 0 | AT40: 0 | AU40: 175.68 | AW40: 49 | BB40: 5.69 | BD40: 0.73 | BI40: =ROUND((W40*$BE$2)+$BD40-BB40,2) -> -0.01 | BL40: 0 | BM40: 0 | BN40: 0 | BO40: 0 | BP40: 4.949296 | BR40: =BL40-AX40 -> 0 | BS40: 0 | BT40: 0 | BU40: 0 | BV40: -0.740704
B41: 3 | C41: 042 | D41: 478 | E41: 0 | G41: 042478 | I41: LED (Dusk to 11:00) | J41: Dusk to 11 PM | K41: 100W | L41: 499 | M41: 0 | N41: 0 | O41: 0 | P41: 0 | Q41: 41 | S41: 0 | T41: 0 | U41: 0 | V41: 0 | W41: 2.71 | Y41: 0 | Z41: 0 | AA41: 0 | AB41: 0 | AC41: 111.11 | AE41: 0 | AF41: 0 | AG41: 0 | AH41: 0 | AI41: 41 | AK41: 0 | AL41: 0 | AM41: 0 | AN41: 0 | AO41: 2.71 | AQ41: 0 | AR41: 0 | AS41: 0 | AT41: 0 | AU41: 111.11 | AW41: 21 | BB41: 3.06 | BD41: 0.31 | BI41: =ROUND((W41*$BE$2)+$BD41-BB41,2) -> 0 | BL41: 0 | BM41: 0 | BN41: 0 | BO41: 0 | BP41: 2.748482 | BR41: 0 | BS41: 0 | BT41: 0 | BU41: 0 | BV41: -0.311518
B42: 2 | C42: 042 | D42: 484 | E42: 123 | G42: 042484 | I42: LED (Dusk to Dawn) | J42: Dusk to Dawn | K42: 18W | L42: 295L | M42: 0 | N42: 0 | O42: 0 | P42: 0 | Q42: 42 | R42: =IF(SUM(M42:Q42)>0,0,1) -> 0 | S42: 0 | T42: 0 | U42: 0 | V42: 0 | W42: 0.63 | Y42: 0 | Z42: 0 | AA42: 0 | AB42: 0 | AC42: 26.46 | AE42: 0 | AF42: 0 | AG42: 0 | AH42: 0 | AI42: 42 | AK42: 0 | AM42: 0 | AN42: 0 | AO42: 0.63 | AQ42: 0 | AR42: 0 | AS42: 0 | AT42: 0 | AU42: 26.46 | AW42: 6 | BB42: 0.73 | BD42: 0.09 | BI42: =ROUND((W42*$BE$2)+$BD42-BB42,2) -> 0 | BL42: 0 | BM42: 0 | BN42: 0 | BO42: 0 | BP42: =AO42*$BL$1 -> 0.638946 | BR42: 0 | BS42: 0 | BT42: 0 | BU42: 0 | BV42: =BP42-BB42 -> -0.091054
B43: 2 | C43: 042 | D43: 484L | E43: 38 | G43: 042484L | I43: LED (Dusk to Dawn) | J43: Dusk to Dawn | K43: 26W | L43: 395L | M43: 0 | N43: 0 | O43: 0 | P43: 0 | Q43: 45 | R43: 0 | S43: 0 | T43: 0 | U43: 0 | V43: 0 | W43: 0.95 | Y43: 0 | Z43: 0 | AA43: 0 | AB43: 0 | AC43: 42.75 | AE43: 0 | AF43: 0 | AG43: 0 | AH43: 0 | AI43: 45 | AK43: 0 | AM43: 0 | AN43: 0 | AO43: 0.95 | AQ43: 0 | AR43: 0 | AS43: 0 | AT43: 0 | AU43: 42.75 | AW43: 9 | BB43: 1.1 | BD43: 0.13 | BI43: =ROUND((W43*$BE$2)+$BD43-BB43,2) -> -0.01 | BL43: 0 | BM43: 0 | BN43: 0 | BO43: 0 | BP43: =AO43*$BL$1 -> 0.96349 | BR43: 0 | BS43: 0 | BT43: 0 | BU43: 0 | BV43: =BP43-BB43 -> -0.13651
B44: 2 | C44: 042 | D44: 522 | E44: 0 | G44: =IF(OR(ISBLANK(C44),ISBLANK(D44)),"",TEXT(C44,"000")&TEXT(D44,"000")) -> 042522 | I44: Single Mercury Vapor | J44: Wood Pole | K44: 10000 | L44: 511 | M44: =SUMIF($G:$G,TEXT(M$3,"000")&TEXT($L44,"000"),$E:$E) -> 0 | N44: 0 | O44: 0 | P44: 0 | Q44: 0 | S44: 18.95 | T44: 0 | U44: 0 | V44: 0 | W44: 0 | Y44: 0 | Z44: 0 | AA44: 0 | AB44: 0 | AC44: 0 | AE44: 0 | AF44: =N44 -> 0 | AG44: =O44 -> 0 | AH44: =P44 -> 0 | AI44: =Q44 -> 0 | AK44: 18.95 | AL44: 0 | AM44: 0 | AN44: 0 | AO44: 0 | AQ44: 0 | AR44: 0 | AS44: 0 | AT44: 0 | AU44: 0 | AV44: =SUM(AQ44:AU44)-SUM(Y44:AC44) -> 0 | AW44: 111 | AX44: 20.88 | BD44: 1.66 | BE44: =ROUND((S44*$BE$2)+$BD44-AX44,2) -> 0 | BL44: =AK44*$BL$1 -> 19.21909 | BM44: 0 | BN44: 0 | BO44: 0 | BP44: 0 | BR44: -1.66091 | BS44: 0 | BT44: 0 | BU44: 0 | BV44: 0
B45: 2 | C45: 042 | D45: 531 | E45: 238 | G45: 042531 | I45: Mercury Vapor | J45: Dusk to Dawn | K45: 10000 | L45: 515 | M45: 0 | N45: 0 | O45: 0 | P45: 1 | Q45: 0 | S45: 0 | T45: 0 | U45: 0 | V45: 9.4 | W45: 0 | Y45: 0 | Z45: 0 | AA45: 0 | AB45: 9.4 | AC45: 0 | AE45: =SUMIF($G:$G,TEXT(AE$3,"000")&TEXT($L45,"000"),$E:$E) -> 0 | AF45: =SUMIF($G:$G,TEXT(AF$3,"000")&TEXT($L45,"000"),$E:$E) -> 0 | AG45: =SUMIF($G:$G,TEXT(AG$3,"000")&TEXT($L45,"000"),$E:$E) -> 0 | AH45: =SUMIF($G:$G,TEXT(AH$3,"000")&TEXT($L45,"000"),$E:$E) -> 1 | AI45: =SUMIF($G:$G,TEXT(AI$3,"000")&TEXT($L45,"000"),$E:$E) -> 0 | AK45: 0 | AL45: 0 | AM45: 0 | AN45: 9.4 | AO45: 0 | AQ45: 0 | AR45: 0 | AS45: 0 | AT45: 9.4 | AU45: 0 | AV45: =SUM(AQ45:AU45)-SUM(Y45:AC45) -> 0 | AW45: 111 | BA45: 11.19 | BD45: 1.66 | BH45: =ROUND((V45*$BE$2)+$BD45-BA45,2) -> 0 | BL45: 0 | BM45: 0 | BN45: 0 | BO45: 9.53348 | BP45: 0 | BR45: 0 | BS45: 0 | BT45: 0 | BU45: -1.65652 | BV45: 0
B46: 2 | C46: 042 | D46: 531L | E46: 1299 | G46: 042531L | I46: Single High-Pressure Sodium Vapor | J46: Pedestal Base | K46: 200W | L46: 522 | M46: 0 | N46: 0 | O46: 0 | P46: 0 | Q46: 0 | S46: 0 | T46: 57.73 | U46: 0 | V46: 0 | W46: 0 | Y46: 0 | Z46: 0 | AA46: 0 | AB46: 0 | AC46: 0 | AE46: 0 | AF46: 0 | AG46: 0 | AH46: 0 | AI46: 0 | AK46: 0 | AL46: 57.73 | AM46: 0 | AN46: 0 | AO46: 0 | AQ46: 0 | AR46: 0 | AS46: 0 | AT46: 0 | AU46: 0 | AV46: =SUM(AQ46:AU46)-SUM(Y46:AC46) -> 0 | AW46: 85 | AY46: 59.82 | BD46: 1.27 | BF46: =ROUND((T46*$BE$2)+$BD46-AY46,2) -> 0 | BL46: 0 | BM46: 58.549766 | BN46: 0 | BO46: 0 | BP46: 0 | BR46: 0 | BS46: -1.270234 | BT46: 0 | BU46: 0 | BV46: 0
B47: 2 | C47: 042 | D47: 531T | E47: 479 | G47: 042531T | I47: Single High-Pressure Sodium Vapor | J47: Wood Pole | K47: 200W | L47: 531 | M47: 0 | N47: 238 | O47: 2 | P47: 0 | Q47: 0 | S47: 0 | T47: =23-4.06 -> 18.94 | U47: 11.38 | V47: 0 | W47: 0 | Y47: 0 | Z47: 4507.72 | AA47: 22.76 | AB47: 0 | AC47: 0 | AE47: 0 | AF47: 238 | AG47: 2 | AH47: 0 | AI47: 0 | AK47: 0 | AL47: 18.94 | AM47: 11.38 | AN47: 0 | AO47: 0 | AQ47: 0 | AR47: 4507.72 | AS47: 22.76 | AT47: 0 | AU47: 0 | AV47: =SUM(AQ47:AU47)-SUM(Y47:AC47) -> 0 | AW47: 85 | AY47: 24.6 | AZ47: 12.81 | BD47: 1.27 | BF47: -4.12 | BG47: =ROUND((U47*$BE$2)+$BD47-AZ47,2) -> 0 | BL47: 0 | BM47: 19.208948 | BN47: 11.541596 | BO47: 0 | BP47: 0 | BR47: 0 | BS47: -5.391052 | BT47: -1.268404 | BU47: 0 | BV47: 0
B48: 2 | C48: 042 | D48: 532 | E48: 111 | G48: 042532 | I48: Single Light Emitting Diode (LED) | J48: Wood Pole | K48: 107W | L48: 531L | M48: 0 | N48: 1299 | O48: 0 | P48: 0 | Q48: 0 | R48: =IF(SUM(M48:Q48)>0,0,1) -> 0 | S48: 0 | T48: =T47 -> 18.94 | U48: 0 | V48: 0 | Y48: =IF(AND(M48<>0,S48=0),#VALUE!,M48*S48) -> 0 | Z48: 24603.06 | AA48: 0 | AB48: 0 | AC48: 0 | AE48: =SUMIF($G:$G,TEXT(AE$3,"000")&TEXT($L48,"000"),$E:$E) -> 0 | AF48: =SUMIF($G:$G,TEXT(AF$3,"000")&TEXT($L48,"000"),$E:$E) -> 1299 | AG48: =SUMIF($G:$G,TEXT(AG$3,"000")&TEXT($L48,"000"),$E:$E) -> 0 | AH48: =SUMIF($G:$G,TEXT(AH$3,"000")&TEXT($L48,"000"),$E:$E) -> 0 | AI48: =SUMIF($G:$G,TEXT(AI$3,"000")&TEXT($L48,"000"),$E:$E) -> 0 | AK48: =ROUND(S48*(1+AK$1),2) -> 0 | AL48: =AL47 -> 18.94 | AM48: 0 | AN48: 0 | AO48: 0 | AQ48: 0 | AR48: 24603.06 | AS48: 0 | AT48: 0 | AU48: 0 | AW48: 39 | AY48: 23.91 | BD48: =ROUND(AW48*$BD$2,2)+ROUND(AW48*$BD$1,2) -> 0.59 | BF48: -4.11 | BL48: 0 | BM48: 19.208948 | BN48: =AM48*$BL$1 -> 0 | BO48: 0 | BP48: 0 | BR48: =BL48-AX48 -> 0 | BS48: -4.701052 | BT48: 0 | BU48: 0 | BV48: 0
B49: 2 | C49: 042 | D49: 532L | E49: 707 | G49: 042532L | I49: Single Light Emitting Diode (LED) | J49: Wood Pole | K49: 107W | L49: 531T | M49: 0 | N49: 479 | O49: 0 | P49: 0 | Q49: 0 | S49: 0 | T49: =T47-T96 -> 13.41 | V49: 0 | W49: 0 | Y49: 0 | Z49: 6423.39 | AA49: 0 | AB49: 0 | AC49: 0 | AE49: =M49 -> 0 | AF49: =N49 -> 479 | AG49: =O49 -> 0 | AH49: =P49 -> 0 | AI49: =Q49 -> 0 | AK49: =ROUND(S49*(1+AK$1),2) -> 0 | AL49: =AL48-AL96 -> 13.41 | AM49: 0 | AN49: 0 | AO49: 0 | AQ49: 0 | AR49: 6423.39 | AS49: 0 | AT49: 0 | AU49: 0 | AV49: =SUM(AQ49:AU49)-SUM(Y49:AC49) -> 0 | AW49: 39 | AY49: 18.3 | BD49: =ROUND(AW49*$BD$2,2)+ROUND(AW49*$BD$1,2) -> 0.59 | BF49: -4.11 | BL49: 0 | BM49: 13.600422 | BN49: 0 | BO49: 0 | BP49: 0 | BR49: 0 | BS49: -4.699578 | BT49: 0 | BU49: 0 | BV49: 0
B50: 2 | C50: 042 | D50: 532T | E50: 153 | G50: 042532T | I50: Single High-Pressure Sodium Vapor | J50: Pedestal Base | K50: 200W | L50: 532 | M50: 0 | N50: 111 | O50: 89 | P50: 0 | Q50: 0 | S50: 0 | T50: 34.07 | U50: 11.38 | V50: 0 | W50: 0 | Y50: 0 | Z50: 3781.77 | AA50: 1012.82 | AB50: 0 | AC50: 0 | AE50: 0 | AF50: 111 | AG50: 89 | AH50: 0 | AI50: 0 | AK50: 0 | AL50: 34.07 | AM50: 11.38 | AN50: 0 | AO50: 0 | AQ50: 0 | AR50: 3781.77 | AS50: 1012.82 | AT50: 0 | AU50: 0 | AV50: =SUM(AQ50:AU50)-SUM(Y50:AC50) -> 0 | AW50: 85 | AY50: 35.82 | AZ50: 12.81 | BD50: 1.27 | BF50: 0 | BG50: =ROUND((U50*$BE$2)+$BD50-AZ50,2) -> 0 | BL50: 0 | BM50: 34.553794 | BN50: 11.541596 | BO50: 0 | BP50: 0 | BR50: 0 | BS50: -1.266206 | BT50: -1.268404 | BU50: 0 | BV50: 0
B51: 2 | C51: 042 | D51: 533 | E51: 21 | G51: 042533 | I51: Single Light Emitting Diode (LED) | J51: Pedestal Base | K51: 107W | L51: 532L | M51: 0 | N51: 707 | O51: 0 | P51: 0 | Q51: 0 | R51: =IF(SUM(M51:Q51)>0,0,1) -> 0 | S51: 0 | T51: =T50 -> 34.07 | U51: 0 | V51: 0 | Y51: =IF(AND(M51<>0,S51=0),#VALUE!,M51*S51) -> 0 | Z51: 24087.49 | AA51: 0 | AB51: 0 | AC51: 0 | AE51: =SUMIF($G:$G,TEXT(AE$3,"000")&TEXT($L51,"000"),$E:$E) -> 0 | AF51: =SUMIF($G:$G,TEXT(AF$3,"000")&TEXT($L51,"000"),$E:$E) -> 707 | AG51: =SUMIF($G:$G,TEXT(AG$3,"000")&TEXT($L51,"000"),$E:$E) -> 0 | AH51: =SUMIF($G:$G,TEXT(AH$3,"000")&TEXT($L51,"000"),$E:$E) -> 0 | AI51: =SUMIF($G:$G,TEXT(AI$3,"000")&TEXT($L51,"000"),$E:$E) -> 0 | AK51: =ROUND(S51*(1+AK$1),2) -> 0 | AL51: =AL50 -> 34.07 | AM51: 0 | AN51: 0 | AO51: 0 | AQ51: 0 | AR51: 24087.49 | AS51: 0 | AT51: 0 | AU51: 0 | AW51: 39 | AY51: 35.13 | BD51: =ROUND(AW51*$BD$2,2)+ROUND(AW51*$BD$1,2) -> 0.59 | BF51: 0.01 | BL51: 0 | BM51: 34.553794 | BN51: =AM51*$BL$1 -> 0 | BO51: 0 | BP51: 0 | BR51: =BL51-AX51 -> 0 | BS51: -0.576206 | BT51: 0 | BU51: 0 | BV51: 0
B52: 2 | C52: 042 | D52: 533L | E52: 53 | G52: 042533L | I52: Single Light Emitting Diode (LED) | J52: Pedestal Base | K52: 107W | L52: 532T | M52: 0 | N52: 153 | O52: 0 | P52: 0 | Q52: 0 | S52: 0 | T52: =T50-T96 -> 28.54 | V52: 0 | W52: 0 | Y52: 0 | Z52: 4366.62 | AA52: 0 | AB52: 0 | AC52: 0 | AE52: =M52 -> 0 | AF52: =N52 -> 153 | AG52: =O52 -> 0 | AH52: =P52 -> 0 | AI52: =Q52 -> 0 | AK52: =ROUND(S52*(1+AK$1),2) -> 0 | AL52: =AL51-AL96 -> 28.54 | AM52: 0 | AN52: 0 | AO52: 0 | AQ52: 0 | AR52: 4366.62 | AS52: 0 | AT52: 0 | AU52: 0 | AV52: =SUM(AQ52:AU52)-SUM(Y52:AC52) -> 0 | AW52: 39 | AY52: 29.53 | BD52: =ROUND(AW52*$BD$2,2)+ROUND(AW52*$BD$1,2) -> 0.59 | BF52: 0.01 | BL52: 0 | BM52: 28.945268 | BN52: 0 | BO52: 0 | BP52: 0 | BR52: 0 | BS52: -0.584732 | BT52: 0 | BU52: 0 | BV52: 0
B53: 2 | C53: 042 | D53: 533T | E53: =47 -> 47 | G53: 042533T | I53: Single High-Pressure Sodium Vapor | J53: Direct Burial | K53: 200W | L53: 533 | M53: 0 | N53: 21 | O53: 2 | P53: 0 | Q53: 0 | S53: 0 | T53: 34.07 | U53: 11.38 | V53: 0 | W53: 0 | Y53: 0 | Z53: 715.47 | AA53: 22.76 | AB53: 0 | AC53: 0 | AE53: 0 | AF53: 21 | AG53: 2 | AH53: 0 | AI53: 0 | AK53: 0 | AL53: 34.07 | AM53: 11.38 | AN53: 0 | AO53: 0 | AQ53: 0 | AR53: 715.47 | AS53: 22.76 | AT53: 0 | AU53: 0 | AV53: =SUM(AQ53:AU53)-SUM(Y53:AC53) -> 0 | AW53: 85 | AY53: 35.82 | AZ53: 12.81 | BD53: 1.27 | BF53: 0 | BG53: =ROUND((U53*$BE$2)+$BD53-AZ53,2) -> 0 | BL53: 0 | BM53: 34.553794 | BN53: 11.541596 | BO53: 0 | BP53: 0 | BR53: 0 | BS53: -1.266206 | BT53: -1.268404 | BU53: 0 | BV53: 0
B54: 2 | C54: 042 | D54: 535 | E54: 115 | G54: 042535 | I54: Single Light Emitting Diode (LED) | J54: Direct Burial | K54: 107W | L54: 533L | M54: =SUMIF($G:$G,TEXT(M$3,"000")&TEXT($L54,"000"),$E:$E) -> 0 | N54: 53 | O54: 0 | P54: 0 | Q54: 0 | R54: =IF(SUM(M54:Q54)>0,0,1) -> 0 | S54: 0 | T54: =T53 -> 34.07 | U54: 0 | V54: 0 | Y54: =IF(AND(M54<>0,S54=0),#VALUE!,M54*S54) -> 0 | Z54: 1805.71 | AA54: 0 | AB54: 0 | AC54: 0 | AE54: =SUMIF($G:$G,TEXT(AE$3,"000")&TEXT($L54,"000"),$E:$E) -> 0 | AF54: =SUMIF($G:$G,TEXT(AF$3,"000")&TEXT($L54,"000"),$E:$E) -> 53 | AG54: =SUMIF($G:$G,TEXT(AG$3,"000")&TEXT($L54,"000"),$E:$E) -> 0 | AH54: =SUMIF($G:$G,TEXT(AH$3,"000")&TEXT($L54,"000"),$E:$E) -> 0 | AI54: =SUMIF($G:$G,TEXT(AI$3,"000")&TEXT($L54,"000"),$E:$E) -> 0 | AK54: =ROUND(S54*(1+AK$1),2) -> 0 | AL54: =AL53 -> 34.07 | AM54: 0 | AN54: 0 | AO54: 0 | AQ54: 0 | AR54: 1805.71 | AS54: 0 | AT54: 0 | AU54: 0 | AW54: 39 | AY54: 35.13 | BD54: =ROUND(AW54*$BD$2,2)+ROUND(AW54*$BD$1,2) -> 0.59 | BF54: 0.01 | BL54: 0 | BM54: 34.553794 | BN54: =AM54*$BL$1 -> 0 | BO54: 0 | BP54: 0 | BR54: =BL54-AX54 -> 0 | BS54: -0.576206 | BT54: 0 | BU54: 0 | BV54: 0
B55: 2 | C55: 042 | D55: 535L | E55: =788 -> 788 | G55: 042535L | I55: Single Light Emitting Diode (LED) | J55: Direct Burial | K55: 107W | L55: 533T | M55: 0 | N55: 47 | O55: 0 | P55: 0 | Q55: 0 | S55: 0 | T55: =T53-T96 -> 28.54 | V55: 0 | W55: 0 | Y55: 0 | Z55: 1341.38 | AA55: 0 | AB55: 0 | AC55: 0 | AE55: =M55 -> 0 | AF55: =N55 -> 47 | AG55: =O55 -> 0 | AH55: =P55 -> 0 | AI55: =Q55 -> 0 | AK55: =ROUND(S55*(1+AK$1),2) -> 0 | AL55: =AL54-AL96 -> 28.54 | AM55: 0 | AN55: 0 | AO55: 0 | AQ55: 0 | AR55: 1341.38 | AS55: 0 | AT55: 0 | AU55: 0 | AV55: =SUM(AQ55:AU55)-SUM(Y55:AC55) -> 0 | AW55: 39 | AY55: 29.53 | BD55: =ROUND(AW55*$BD$2,2)+ROUND(AW55*$BD$1,2) -> 0.59 | BF55: 0.01 | BL55: 0 | BM55: 28.945268 | BN55: 0 | BO55: 0 | BP55: 0 | BR55: 0 | BS55: -0.584732 | BT55: 0 | BU55: 0 | BV55: 0
B56: 2 | C56: 042 | D56: 535T | E56: 392 | G56: 042535T | I56: Single High-Pressure Sodium Vapor | J56: No Pole / Dusk to Dawn (046) | K56: 200W | L56: 535 | M56: 0 | N56: 115 | O56: 12 | P56: 0 | Q56: 90 | S56: 0 | T56: 18.94 | U56: 11.38 | V56: 0 | W56: 8.99 | Y56: 0 | Z56: 2178.1 | AA56: 136.56 | AB56: 0 | AC56: 809.1 | AE56: 0 | AF56: 115 | AG56: 12 | AH56: 0 | AI56: 90 | AK56: 0 | AL56: 18.94 | AM56: 11.38 | AN56: 0 | AO56: 8.99 | AQ56: 0 | AR56: 2178.1 | AS56: 136.56 | AT56: 0 | AU56: 809.1 | AV56: =SUM(AQ56:AU56)-SUM(Y56:AC56) -> 0 | AW56: 85 | AY56: 20.48 | AZ56: 12.81 | BB56: 10.39 | BD56: 1.27 | BF56: 0 | BG56: =ROUND((U56*$BE$2)+$BD56-AZ56,2) -> 0 | BI56: =ROUND((W56*$BE$2)+$BD56-BB56,2) -> 0 | BL56: 0 | BM56: 19.208948 | BN56: 11.541596 | BO56: 0 | BP56: 9.117658 | BR56: 0 | BS56: -1.271052 | BT56: -1.268404 | BU56: 0 | BV56: -1.272342
B57: 2 | C57: 042 | D57: 536 | E57: 156 | G57: 042536 | I57: Single Light Emitting Diode (LED) | J57: No Pole / Dusk to Dawn (046) | K57: 107W | L57: 535L | M57: 0 | N57: 788 | O57: 0 | P57: 0 | Q57: 0 | R57: =IF(SUM(M57:Q57)>0,0,1) -> 0 | S57: 0 | T57: =T56 -> 18.94 | U57: 0 | V57: 0 | Y57: =IF(AND(M57<>0,S57=0),#VALUE!,M57*S57) -> 0 | Z57: 14924.72 | AA57: 0 | AB57: 0 | AC57: 0 | AE57: =SUMIF($G:$G,TEXT(AE$3,"000")&TEXT($L57,"000"),$E:$E) -> 0 | AF57: =SUMIF($G:$G,TEXT(AF$3,"000")&TEXT($L57,"000"),$E:$E) -> 788 | AG57: =SUMIF($G:$G,TEXT(AG$3,"000")&TEXT($L57,"000"),$E:$E) -> 0 | AH57: =SUMIF($G:$G,TEXT(AH$3,"000")&TEXT($L57,"000"),$E:$E) -> 0 | AI57: =SUMIF($G:$G,TEXT(AI$3,"000")&TEXT($L57,"000"),$E:$E) -> 0 | AK57: =ROUND(S57*(1+AK$1),2) -> 0 | AL57: =AL56 -> 18.94 | AM57: 0 | AN57: 0 | AO57: 0 | AQ57: 0 | AR57: 14924.72 | AS57: 0 | AT57: 0 | AU57: 0 | AW57: 39 | AY57: 19.79 | BD57: =ROUND(AW57*$BD$2,2)+ROUND(AW57*$BD$1,2) -> 0.59 | BF57: 0.01 | BL57: 0 | BM57: 19.208948 | BN57: =AM57*$BL$1 -> 0 | BO57: 0 | BP57: 0 | BR57: =BL57-AX57 -> 0 | BS57: -0.581052 | BT57: 0 | BU57: 0 | BV57: 0
B58: 2 | C58: 042 | D58: 536L | E58: 211 | G58: 042536L | I58: Single Light Emitting Diode (LED) | J58: No Pole / Dusk to Dawn (046) | K58: 107W | L58: 535T | M58: 0 | N58: 392 | O58: 0 | P58: 0 | Q58: 0 | S58: 0 | T58: =T56-T96 -> 13.41 | V58: 0 | Y58: 0 | Z58: 5256.72 | AA58: 0 | AB58: 0 | AC58: 0 | AE58: =M58 -> 0 | AF58: =N58 -> 392 | AG58: =O58 -> 0 | AH58: =P58 -> 0 | AI58: =Q58 -> 0 | AK58: =ROUND(S58*(1+AK$1),2) -> 0 | AL58: =AL57-AL96 -> 13.41 | AM58: 0 | AN58: 0 | AO58: 0 | AQ58: 0 | AR58: 5256.72 | AS58: 0 | AT58: 0 | AU58: 0 | AV58: =SUM(AQ58:AU58)-SUM(Y58:AC58) -> 0 | AW58: 39 | AY58: 14.18 | BD58: =ROUND(AW58*$BD$2,2)+ROUND(AW58*$BD$1,2) -> 0.59 | BF58: 0.01 | BL58: 0 | BM58: 13.600422 | BN58: 0 | BO58: 0 | BP58: 0 | BR58: 0 | BS58: -0.579578 | BT58: 0 | BU58: 0 | BV58: 0
B59: 2 | C59: 042 | D59: 536T | E59: =340 -> 340 | G59: 042536T | I59: Single High-Pressure Sodium Vapor | J59: Developer Contributed | K59: 200W | L59: 536 | M59: 0 | N59: 156 | O59: 0 | P59: 0 | Q59: 0 | S59: 0 | T59: 23 | U59: 0 | V59: 0 | W59: 0 | Y59: 0 | Z59: 3588 | AA59: 0 | AB59: 0 | AC59: 0 | AE59: 0 | AF59: 156 | AG59: 0 | AH59: 0 | AI59: 0 | AK59: 0 | AL59: 23 | AM59: 0 | AN59: 0 | AO59: 0 | AQ59: 0 | AR59: 3588 | AS59: 0 | AT59: 0 | AU59: 0 | AV59: =SUM(AQ59:AU59)-SUM(Y59:AC59) -> 0 | AW59: 85 | AY59: 24.6 | BD59: 1.27 | BF59: 0 | BL59: 0 | BM59: 23.3266 | BN59: 0 | BO59: 0 | BP59: 0 | BR59: 0 | BS59: -1.2734 | BT59: 0 | BU59: 0 | BV59: 0
B60: 2 | C60: 042 | D60: 538 | E60: 0 | G60: 042538 | I60: Single Light Emitting Diode (LED) | J60: Developer Contributed | K60: 107W | L60: 536L | M60: 0 | N60: 211 | O60: 0 | P60: 0 | Q60: 0 | R60: =IF(SUM(M60:Q60)>0,0,1) -> 0 | S60: 0 | T60: =T59 -> 23 | U60: 0 | V60: 0 | Y60: =IF(AND(M60<>0,S60=0),#VALUE!,M60*S60) -> 0 | Z60: 4853 | AA60: 0 | AB60: 0 | AC60: 0 | AE60: =SUMIF($G:$G,TEXT(AE$3,"000")&TEXT($L60,"000"),$E:$E) -> 0 | AF60: =SUMIF($G:$G,TEXT(AF$3,"000")&TEXT($L60,"000"),$E:$E) -> 211 | AG60: =SUMIF($G:$G,TEXT(AG$3,"000")&TEXT($L60,"000"),$E:$E) -> 0 | AH60: =SUMIF($G:$G,TEXT(AH$3,"000")&TEXT($L60,"000"),$E:$E) -> 0 | AI60: =SUMIF($G:$G,TEXT(AI$3,"000")&TEXT($L60,"000"),$E:$E) -> 0 | AK60: =ROUND(S60*(1+AK$1),2) -> 0 | AL60: =AL59 -> 23 | AM60: 0 | AN60: 0 | AO60: 0 | AQ60: 0 | AR60: 4853 | AS60: 0 | AT60: 0 | AU60: 0 | AW60: 39 | AY60: 23.91 | BD60: =ROUND(AW60*$BD$2,2)+ROUND(AW60*$BD$1,2) -> 0.59 | BF60: 0.01 | BL60: 0 | BM60: 23.3266 | BN60: =AM60*$BL$1 -> 0 | BO60: 0 | BP60: 0 | BR60: =BL60-AX60 -> 0 | BS60: -0.5834 | BT60: 0 | BU60: 0 | BV60: 0
B61: 2 | C61: 042 | D61: 541 | E61: 4 | G61: 042541 | I61: Single Light Emitting Diode (LED) | J61: Developer Contributed | K61: 107W | L61: 536T | M61: 0 | N61: 340 | O61: 0 | P61: 0 | Q61: 0 | S61: 0 | T61: =T59-T96 -> 17.47 | U61: 0 | V61: 0 | W61: 0 | Y61: 0 | Z61: 5939.8 | AA61: 0 | AB61: 0 | AC61: 0 | AE61: =M61 -> 0 | AF61: =N61 -> 340 | AG61: =O61 -> 0 | AH61: =P61 -> 0 | AI61: =Q61 -> 0 | AK61: =ROUND(S61*(1+AK$1),2) -> 0 | AL61: =AL60-AL96 -> 17.47 | AM61: 0 | AN61: 0 | AO61: 0 | AQ61: 0 | AR61: 5939.8 | AS61: 0 | AT61: 0 | AU61: 0 | AV61: =SUM(AQ61:AU61)-SUM(Y61:AC61) -> 0 | AW61: 39 | AY61: 18.3 | BD61: =ROUND(AW61*$BD$2,2)+ROUND(AW61*$BD$1,2) -> 0.59 | BF61: 0.01 | BL61: 0 | BM61: 17.718074 | BN61: 0 | BO61: 0 | BP61: 0 | BR61: 0 | BS61: -0.581926 | BT61: 0 | BU61: 0 | BV61: 0
B62: 2 | C62: 042 | D62: 541L | E62: 6 | G62: 042541L | I62: Single High-Pressure Sodium Vapor (Capital Only) | J62: Direct Burial | K62: 200W | L62: 538 | M62: 0 | N62: 0 | O62: 0 | P62: 0 | Q62: 0 | S62: 0 | T62: 22.71 | U62: 0 | V62: 0 | W62: 0 | Y62: 0 | Z62: 0 | AA62: 0 | AB62: 0 | AC62: 0 | AE62: 0 | AF62: 0 | AG62: 0 | AH62: 0 | AI62: 0 | AK62: 0 | AL62: =ROUND(T62*(1+AL$1),2) -> 22.71 | AM62: 0 | AN62: 0 | AO62: 0 | AQ62: 0 | AR62: 0 | AS62: 0 | AT62: 0 | AU62: 0 | AW62: 85 | AY62: 24.3 | BD62: 1.27 | BF62: 0 | BL62: 0 | BM62: 23.032482 | BN62: 0 | BO62: 0 | BP62: 0 | BR62: 0 | BS62: -1.267518 | BT62: 0 | BU62: 0 | BV62: 0
B63: 2 | C63: 042 | D63: 541T | E63: 0 | G63: 042541T | I63: Double High-Pressure Sodium Vapor | J63: Wood Pole | K63: 200W | L63: 541 | M63: 0 | N63: 4 | O63: 0 | P63: 0 | Q63: 0 | S63: 0 | T63: =46.03-4.06 -> 41.97 | U63: 0 | V63: 0 | W63: 0 | Y63: 0 | Z63: 167.88 | AA63: 0 | AB63: 0 | AC63: 0 | AE63: 0 | AF63: 4 | AG63: 0 | AH63: 0 | AI63: 0 | AK63: 0 | AL63: 41.97 | AM63: 0 | AN63: 0 | AO63: 0 | AQ63: 0 | AR63: 167.88 | AS63: 0 | AT63: 0 | AU63: 0 | AV63: =SUM(AQ63:AU63)-SUM(Y63:AC63) -> 0 | AW63: 170 | AY63: 49.22 | BD63: 2.54 | BF63: -4.11 | BL63: 0 | BM63: 42.565974 | BN63: 0 | BO63: 0 | BP63: 0 | BR63: 0 | BS63: -6.654026 | BT63: 0 | BU63: 0 | BV63: 0
B64: 2 | C64: 042 | D64: 542 | E64: 0 | G64: 042542 | I64: Double Light Emitting Diode (LED) | J64: Wood Pole | K64: 107W | L64: 541L | M64: =SUMIF($G:$G,TEXT(M$3,"000")&TEXT($L64,"000"),$E:$E) -> 0 | N64: 6 | O64: 0 | P64: 0 | Q64: 0 | R64: =IF(SUM(M64:Q64)>0,0,1) -> 0 | S64: 0 | T64: =T63 -> 41.97 | U64: 0 | V64: 0 | Y64: =IF(AND(M64<>0,S64=0),#VALUE!,M64*S64) -> 0 | Z64: 251.82 | AA64: 0 | AB64: 0 | AC64: 0 | AE64: =SUMIF($G:$G,TEXT(AE$3,"000")&TEXT($L64,"000"),$E:$E) -> 0 | AF64: =SUMIF($G:$G,TEXT(AF$3,"000")&TEXT($L64,"000"),$E:$E) -> 6 | AG64: =SUMIF($G:$G,TEXT(AG$3,"000")&TEXT($L64,"000"),$E:$E) -> 0 | AH64: =SUMIF($G:$G,TEXT(AH$3,"000")&TEXT($L64,"000"),$E:$E) -> 0 | AI64: =SUMIF($G:$G,TEXT(AI$3,"000")&TEXT($L64,"000"),$E:$E) -> 0 | AK64: =ROUND(S64*(1+AK$1),2) -> 0 | AL64: =AL63 -> 41.97 | AM64: 0 | AN64: 0 | AO64: 0 | AQ64: 0 | AR64: 251.82 | AS64: 0 | AT64: 0 | AU64: 0 | AW64: 78 | AY64: 47.84 | BD64: =ROUND(AW64*$BD$2,2)+ROUND(AW64*$BD$1,2) -> 1.16 | BF64: -4.11 | BL64: 0 | BM64: 42.565974 | BN64: =AM64*$BL$1 -> 0 | BO64: 0 | BP64: 0 | BR64: =BL64-AX64 -> 0 | BS64: -5.274026 | BT64: 0 | BU64: 0 | BV64: 0
B65: 2 | C65: 042 | D65: 542L | E65: 14 | G65: 042542L | I65: Double Light Emitting Diode (LED) | J65: Wood Pole | K65: 107W | L65: 541T | M65: 0 | N65: 0 | O65: 0 | P65: 0 | Q65: 0 | S65: 0 | T65: =T63-T96-T96 -> 30.91 | U65: 0 | V65: 0 | W65: 0 | Y65: 0 | Z65: 0 | AA65: 0 | AB65: 0 | AC65: 0 | AE65: =M65 -> 0 | AF65: =N65 -> 0 | AG65: =O65 -> 0 | AH65: =P65 -> 0 | AI65: =Q65 -> 0 | AK65: =ROUND(S65*(1+AK$1),2) -> 0 | AL65: =AL63-AL96-AL96 -> 30.91 | AM65: 0 | AN65: 0 | AO65: 0 | AQ65: 0 | AR65: 0 | AS65: 0 | AT65: 0 | AU65: 0 | AV65: =SUM(AQ65:AU65)-SUM(Y65:AC65) -> 0 | AW65: 78 | AY65: 36.63 | BD65: =ROUND(AW65*$BD$2,2)+ROUND(AW65*$BD$1,2) -> 1.16 | BF65: -4.12 | BL65: 0 | BM65: 31.348922 | BN65: 0 | BO65: 0 | BP65: 0 | BR65: 0 | BS65: -5.281078 | BT65: 0 | BU65: 0 | BV65: 0
B66: 2 | C66: 042 | D66: 542T | E66: 9 | G66: 042542T | I66: Double High-Pressure Sodium Vapor | J66: Pedestal Base | K66: 200W | L66: 542 | M66: 0 | N66: 0 | O66: 0 | P66: 0 | Q66: 0 | S66: 0 | T66: 57.73 | U66: 20.92 | V66: 0 | W66: 0 | Y66: 0 | Z66: 0 | AA66: 0 | AB66: 0 | AC66: 0 | AE66: 0 | AF66: 0 | AG66: 0 | AH66: 0 | AI66: 0 | AK66: 0 | AL66: 57.73 | AM66: 20.92 | AN66: 0 | AO66: 0 | AQ66: 0 | AR66: 0 | AS66: 0 | AT66: 0 | AU66: 0 | AV66: =SUM(AQ66:AU66)-SUM(Y66:AC66) -> 0 | AW66: 170 | AY66: 61.09 | AZ66: 23.76 | BD66: 2.54 | BF66: 0 | BG66: =ROUND((U66*$BE$2)+$BD66-AZ66,2) -> 0 | BL66: 0 | BM66: 58.549766 | BN66: 21.217064 | BO66: 0 | BP66: 0 | BR66: 0 | BS66: -2.540234 | BT66: -2.542936 | BU66: 0 | BV66: 0
B67: 2 | C67: 042 | D67: 546T | E67: 8 | G67: 042546T | I67: Double Light Emitting Diode (LED) | J67: Pedestal Base | K67: 107W | L67: 542L | M67: 0 | N67: 14 | O67: 0 | P67: 0 | Q67: 0 | R67: =IF(SUM(M67:Q67)>0,0,1) -> 0 | S67: 0 | T67: =T66 -> 57.73 | U67: 0 | V67: 0 | Y67: =IF(AND(M67<>0,S67=0),#VALUE!,M67*S67) -> 0 | Z67: 808.22 | AA67: 0 | AB67: 0 | AC67: 0 | AE67: =SUMIF($G:$G,TEXT(AE$3,"000")&TEXT($L67,"000"),$E:$E) -> 0 | AF67: =SUMIF($G:$G,TEXT(AF$3,"000")&TEXT($L67,"000"),$E:$E) -> 14 | AG67: =SUMIF($G:$G,TEXT(AG$3,"000")&TEXT($L67,"000"),$E:$E) -> 0 | AH67: =SUMIF($G:$G,TEXT(AH$3,"000")&TEXT($L67,"000"),$E:$E) -> 0 | AI67: =SUMIF($G:$G,TEXT(AI$3,"000")&TEXT($L67,"000"),$E:$E) -> 0 | AK67: 0 | AL67: =AL66 -> 57.73 | AM67: 0 | AN67: 0 | AO67: 0 | AQ67: 0 | AR67: =IF(AND(AF67<>0,AL67=0),#VALUE!,AF67*AL67) -> 808.22 | AS67: 0 | AT67: 0 | AU67: 0 | AW67: 78 | AY67: 59.71 | BD67: 1.16 | BF67: 0 | BL67: 0 | BM67: 58.549766 | BN67: 0 | BO67: 0 | BP67: 0 | BR67: 0 | BS67: -1.160234 | BT67: 0 | BU67: 0 | BV67: 0
B68: 2 | C68: 042 | D68: 631 | E68: 86 | G68: 042631 | I68: Double Light Emitting Diode (LED) | J68: Pedestal Base | K68: 107W | L68: 542T | M68: 0 | N68: 9 | O68: 0 | P68: 0 | Q68: 0 | S68: 0 | T68: =T66-T96-T96 -> 46.67 | V68: 0 | W68: 0 | Y68: 0 | Z68: 420.03 | AA68: 0 | AB68: 0 | AC68: 0 | AE68: =M68 -> 0 | AF68: 9 | AG68: 0 | AH68: 0 | AI68: 0 | AK68: =ROUND(S68*(1+AK$1),2) -> 0 | AL68: =AL67-AL96-AL96 -> 46.67 | AM68: 0 | AN68: 0 | AO68: 0 | AQ68: 0 | AR68: 420.03 | AS68: 0 | AT68: 0 | AU68: 0 | AV68: =SUM(AQ68:AU68)-SUM(Y68:AC68) -> 0 | AW68: 78 | AY68: 48.49 | BD68: =ROUND(AW68*$BD$2,2)+ROUND(AW68*$BD$1,2) -> 1.16 | BF68: =ROUND((T68*$BE$2)+$BD68-AY68,2) -> 0 | BL68: 0 | BM68: 47.332714 | BN68: =AM68*$BL$1 -> 0 | BO68: 0 | BP68: 0 | BR68: =BL68-AX68 -> 0 | BS68: -1.157286 | BT68: 0 | BU68: 0 | BV68: 0
B69: 2 | C69: 042 | D69: 632 | E69: 0 | G69: 042632 | I69: Double Light Emitting Diode (LED) | J69: Developer Contributed | K69: 107W | L69: 546T | M69: 0 | N69: 8 | O69: 0 | P69: 0 | Q69: 0 | S69: 0 | T69: =T63-T96-T96 -> 30.91 | V69: 0 | W69: 0 | Y69: 0 | Z69: 247.28 | AA69: 0 | AB69: 0 | AC69: 0 | AE69: 0 | AF69: 8 | AG69: 0 | AH69: 0 | AI69: 0 | AK69: =ROUND(S69*(1+AK$1),2) -> 0 | AL69: =AL63-AL96-AL96 -> 30.91 | AM69: 0 | AN69: 0 | AO69: 0 | AQ69: 0 | AR69: 247.28 | AS69: 0 | AT69: 0 | AU69: 0 | AV69: 0 | AW69: 78 | AY69: 36.63 | BD69: =ROUND(AW69*$BD$2,2)+ROUND(AW69*$BD$1,2) -> 1.16 | BF69: -4.12 | BL69: 0 | BM69: 31.348922 | BN69: 0 | BO69: 0 | BP69: 0 | BR69: 0 | BS69: -5.281078 | BT69: 0 | BU69: 0 | BV69: 0
B70: 2 | C70: 042 | D70: 633 | E70: 34 | G70: 042633 | I70: Single Mercury Vapor | J70: Wood Pole | K70: 20000 | L70: 611 | M70: 6 | N70: 0 | O70: 0 | P70: 0 | Q70: 0 | S70: 26.84 | T70: 0 | U70: 0 | V70: 0 | W70: 0 | Y70: =IF(AND(M70<>0,S70=0),#VALUE!,M70*S70) -> 161.04 | Z70: 0 | AA70: 0 | AB70: 0 | AC70: 0 | AE70: 6 | AF70: 0 | AG70: 0 | AH70: 0 | AI70: 0 | AK70: 26.84 | AL70: 0 | AM70: =ROUND(U70*(1+AM$1),2) -> 0 | AN70: =ROUND(V70*(1+AN$1),2) -> 0 | AO70: =ROUND(W70*(1+AO$1),2) -> 0 | AQ70: 161.04 | AR70: 0 | AS70: 0 | AT70: 0 | AU70: 0 | AV70: 0 | AW70: 182 | AX70: 29.94 | BD70: 2.72 | BE70: =ROUND((S70*$BE$2)+$BD70-AX70,2) -> 0 | BL70: 27.221128 | BM70: 0 | BN70: 0 | BO70: 0 | BP70: 0 | BR70: -2.718872 | BS70: 0 | BT70: 0 | BU70: 0 | BV70: 0
B71: 2 | C71: 042 | D71: 636 | E71: 2 | G71: 042636 | I71: Mercury Vapor | J71: Dusk to Dawn | K71: 20000 | L71: 615 | M71: 0 | N71: 0 | O71: 0 | P71: 87 | Q71: 0 | S71: 0 | T71: 0 | U71: 0 | V71: 14.52 | W71: 0 | Y71: 0 | Z71: 0 | AA71: 0 | AB71: 1263.24 | AC71: 0 | AE71: 0 | AF71: 0 | AG71: 0 | AH71: 87 | AI71: 0 | AK71: 0 | AL71: 0 | AM71: 0 | AN71: 14.52 | AO71: 0 | AQ71: =IF(AND(AE71<>0,AK71=0),#VALUE!,AE71*AK71) -> 0 | AR71: 0 | AS71: =IF(AND(AG71<>0,AM71=0),#VALUE!,AG71*AM71) -> 0 | AT71: =IF(AND(AH71<>0,AN71=0),#VALUE!,AH71*AN71) -> 1263.24 | AU71: =IF(AND(AI71<>0,AO71=0),#VALUE!,AI71*AO71) -> 0 | AV71: 0 | AW71: 182 | BA71: 17.45 | BD71: =ROUND(AW71*$BD$2,2)+ROUND(AW71*$BD$1,2) -> 2.72 | BH71: =ROUND((V71*$BE$2)+$BD71-BA71,2) -> 0 | BL71: =AK71*$BL$1 -> 0 | BM71: =AL71*$BL$1 -> 0 | BN71: 0 | BO71: 14.726184 | BP71: 0 | BR71: 0 | BS71: 0 | BT71: 0 | BU71: -2.723816 | BV71: 0
B72: 2 | C72: 042 | D72: 831 | E72: 40 | G72: 042831 | I72: Single High-Pressure Sodium Vapor | J72: Wood Pole | K72: 250W | L72: 631 | M72: 0 | N72: 86 | O72: 0 | P72: 0 | Q72: 0 | S72: 0 | T72: =27.13-4.06 -> 23.07 | U72: 13.24 | V72: 0 | W72: 0 | Y72: 0 | Z72: 1984.02 | AA72: 0 | AB72: 0 | AC72: 0 | AE72: 0 | AF72: 86 | AG72: 0 | AH72: 0 | AI72: 0 | AK72: 0 | AL72: 23.07 | AM72: 13.24 | AN72: 0 | AO72: 0 | AQ72: 0 | AR72: 1984.02 | AS72: 0 | AT72: 0 | AU72: 0 | AV72: 0 | AW72: 107 | AY72: 29.12 | AZ72: 15.03 | BD72: 1.6 | BF72: =ROUND((T72*$BE$2)+$BD72-AY72,2) -> -4.12 | BG72: 0 | BL72: 0 | BM72: 23.397594 | BN72: 13.428008 | BO72: 0 | BP72: 0 | BR72: 0 | BS72: -5.722406 | BT72: -1.601992 | BU72: 0 | BV72: 0
B73: 2 | C73: 042 | D73: 831T | E73: 19 | G73: 042831T | I73: Single High-Pressure Sodium Vapor | J73: Pedestal Base | K73: 250W | L73: 632 | M73: 0 | N73: 0 | O73: 5 | P73: 0 | Q73: 0 | S73: 0 | T73: 38.2 | U73: 13.24 | V73: 0 | W73: 0 | Y73: 0 | Z73: 0 | AA73: 66.2 | AB73: 0 | AC73: 0 | AE73: 0 | AF73: 0 | AG73: 5 | AH73: 0 | AI73: 0 | AK73: 0 | AL73: 38.2 | AM73: 13.24 | AN73: 0 | AO73: 0 | AQ73: 0 | AR73: 0 | AS73: 66.2 | AT73: 0 | AU73: 0 | AV73: 0 | AW73: 107 | AY73: 40.34 | AZ73: 15.03 | BD73: 1.6 | BF73: 0 | BG73: 0 | BL73: 0 | BM73: 38.74244 | BN73: 13.428008 | BO73: 0 | BP73: 0 | BR73: 0 | BS73: -1.59756 | BT73: -1.601992 | BU73: 0 | BV73: 0
B74: 2 | C74: 042 | D74: 831L | E74: 8 | G74: =IF(OR(ISBLANK(C74),ISBLANK(D74)),"",TEXT(C74,"000")&TEXT(D74,"000")) -> 042831L | I74: Single High-Pressure Sodium Vapor | J74: Direct Burial | K74: 250W | L74: 633 | M74: =SUMIF($G:$G,TEXT(M$3,"000")&TEXT($L74,"000"),$E:$E) -> 0 | N74: 34 | O74: 0 | P74: 0 | Q74: 0 | S74: 0 | T74: 38.2 | U74: 13.24 | V74: 0 | W74: 0 | Y74: 0 | Z74: 1298.8 | AA74: 0 | AB74: 0 | AC74: 0 | AE74: 0 | AF74: 34 | AG74: 0 | AH74: 0 | AI74: 0 | AK74: 0 | AL74: 38.2 | AM74: 13.24 | AN74: 0 | AO74: 0 | AQ74: 0 | AR74: 1298.8 | AS74: 0 | AT74: 0 | AU74: 0 | AV74: 0 | AW74: 107 | AY74: 40.34 | AZ74: 15.03 | BD74: 1.6 | BF74: 0 | BG74: 0 | BL74: 0 | BM74: 38.74244 | BN74: 13.428008 | BO74: 0 | BP74: 0 | BR74: 0 | BS74: -1.59756 | BT74: -1.601992 | BU74: 0 | BV74: 0
B75: 2 | C75: 042 | D75: 832 | E75: 3 | G75: 042832 | I75: Single High-Pressure Sodium Vapor | J75: Dusk to Dawn (046) | K75: 250W | L75: 635 | M75: 0 | N75: 0 | O75: 1 | P75: 0 | Q75: 256 | S75: 0 | T75: 0 | U75: 13.24 | V75: 0 | W75: 10.83 | Y75: 0 | Z75: 0 | AA75: 13.24 | AB75: 0 | AC75: 2772.48 | AE75: 0 | AF75: 0 | AG75: 1 | AH75: 0 | AI75: 256 | AK75: 0 | AL75: 0 | AM75: 13.24 | AN75: 0 | AO75: 10.83 | AQ75: 0 | AR75: 0 | AS75: 13.24 | AT75: 0 | AU75: 2772.48 | AV75: 0 | AW75: 107 | AZ75: 15.03 | BB75: 12.58 | BD75: 1.6 | BG75: =ROUND((U75*$BE$2)+$BD75-AZ75,2) -> 0 | BI75: =ROUND((W75*$BE$2)+$BD75-BB75,2) -> 0 | BL75: 0 | BM75: 0 | BN75: 13.428008 | BO75: 0 | BP75: 10.983786 | BR75: 0 | BS75: 0 | BT75: -1.601992 | BU75: 0 | BV75: -1.596214
B76: 2 | C76: 042 | D76: 832T | E76: =2 -> 2 | G76: =IF(OR(ISBLANK(C76),ISBLANK(D76)),"",TEXT(C76,"000")&TEXT(D76,"000")) -> 042832T | I76: Single High-Pressure Sodium Vapor | J76: Developer Contributed | K76: 250W | L76: 636 | M76: 0 | N76: 2 | O76: 0 | P76: 0 | Q76: 0 | S76: 0 | T76: 27.13 | U76: 0 | V76: 0 | W76: 0 | Y76: 0 | Z76: 54.26 | AA76: 0 | AB76: 0 | AC76: 0 | AE76: 0 | AF76: 2 | AG76: 0 | AH76: 0 | AI76: 0 | AK76: 0 | AL76: 27.13 | AM76: 0 | AN76: 0 | AO76: 0 | AQ76: 0 | AR76: 54.26 | AS76: 0 | AT76: 0 | AU76: 0 | AV76: 0 | AW76: 107 | AY76: 29.12 | BD76: 1.6 | BF76: =ROUND((T76*$BE$2)+$BD76-AY76,2) -> 0 | BL76: 0 | BM76: 27.515246 | BN76: 0 | BO76: 0 | BP76: 0 | BR76: 0 | BS76: -1.604754 | BT76: 0 | BU76: 0 | BV76: 0
B77: 2 | C77: 042 | D77: 832L | E77: =29 -> 29 | G77: 042832L | I77: Mercury Vapor | J77: Dusk to Dawn | K77: 35000 | L77: 715 | M77: 0 | N77: 0 | O77: 0 | P77: 6 | Q77: 0 | S77: 0 | T77: 0 | U77: 0 | V77: 23.57 | W77: 0 | Y77: 0 | Z77: 0 | AA77: 0 | AB77: 141.42 | AC77: 0 | AE77: 0 | AF77: 0 | AG77: 0 | AH77: 6 | AI77: 0 | AK77: 0 | AL77: =ROUND(T77*(1+AL$1),2) -> 0 | AM77: 0 | AN77: 23.57 | AO77: 0 | AQ77: 0 | AR77: 0 | AS77: 0 | AT77: 141.42 | AU77: 0 | AV77: 0 | AW77: 285 | BA77: 28.16 | BD77: 4.26 | BH77: =ROUND((V77*$BE$2)+$BD77-BA77,2) -> 0 | BL77: 0 | BM77: 0 | BN77: 0 | BO77: 23.904694 | BP77: 0 | BR77: 0 | BS77: 0 | BT77: 0 | BU77: -4.255306 | BV77: 0
